Workbook

Sheet LDC Info
Z3: 1 | AA3: Alectra Utilities Corporation-Brampton Rate Zone
Z4: 2 | AA4: Alectra Utilities Corporation-Enersource Rate Zone
Z5: 3 | AA5: Alectra Utilities Corporation-Horizon Utilities Rate Zone
Z6: 4 | AA6: Alectra Utilities Corporation-PowerStream Rate Zone
Z7: 5 | AA7: Alectra Utilities Corporation-Guelph Rate Zone
Z8: 6 | AA8: Algoma Power Inc.
Z9: 7 | AA9: Atikokan Hydro Inc.
Z10: 8 | AA10: Bluewater Power Distribution Corporation
Z11: 9 | AA11: Brantford Power Inc.
Z12: 10 | AA12: Burlington Hydro Inc.
Z13: 11 | AA13: Canadian Niagara Power Inc.
D14: Utility Name | E14: North Bay Hydro Distribution Limited - North Bay service territory | Z14: 12 | AA14: Centre Wellington Hydro Ltd.
Z15: 13 | AA15: Chapleau Public Utilities Corporation
D16: Assigned EB Number | E16: EB-2020-0043 | Z16: 14 | AA16: Cooperative Hydro Embrun Inc.
Z17: 15 | AA17: E.L.K. Energy Inc.
D18: Name of Contact and Title | E18: Micheal Roth - Regulatory Manager | Z18: 16 | AA18: Elexicon Energy Inc.-Whitby Rate Zone
Z19: 17 | AA19: Elexicon Energy Inc.-Veridian Rate Zone
D20: Phone Number | E20: 705-474-8100 ext 263 | Z20: 18 | AA20: Energy+ Inc.
Z21: 19 | AA21: Entegrus Powerlines Inc.-For Entegrus-Main Rate Zone
D22: Email Address | E22: mroth@northbayhydro.com | Z22: 20 | AA22: Entegrus Powerlines Inc.-For Former St. Thomas Energy Rate Zone
Z23: 21 | AA23: ENWIN Utilities Ltd.
D24: Test Year | E24: 2021 | Z24: 22 | AA24: EPCOR Electricity Distribution Ontario Inc.
Z25: 23 | AA25: ERTH Power Corporation - ERTH Power Main Rate Zone
D26: Bridge Year | E26: =IF(ISBLANK(E24), "", E24-1) -> 2020 | Z26: 24 | AA26: ERTH POWER CORPORATION – GODERICH RATE ZONE
Z27: 25 | AA27: Essex Powerlines Corporation
D28: Last Rebasing Year | E28: 2015 | Z28: 26 | AA28: Festival Hydro Inc.
Z29: 27 | AA29: Fort Frances Power Corporation
A30: Identify the accounting standard used for the test year | Z30: 28 | AA30: Greater Sudbury Hydro Inc.
E31: MIFRS | Z31: 29 | AA31: Grimsby Power Incorporated
Z32: 30 | AA32: Halton Hills Hydro Inc.
A33: ="Did "& E14 &" update its depreciation and capitalization policies?" -> Did North Bay Hydro Distribution Limited - North Bay service territory update its depreciation and capitalization policies? | Z33: 31 | AA33: Hearst Power Distribution Co. Ltd.
E34: No | Z34: 32 | AA34: Hydro 2000 Inc.
Z35: 33 | AA35: Hydro Hawkesbury Inc.
A36: If "yes" to cell E34, were the changes in policies reflected in a prior rebasing application? | Z36: 34 | AA36: Hydro One Networks Inc.
E37: Yes | Z37: 35 | AA37: Hydro One Networks Inc.-Former Haldimand County Hydro Inc. Service Area
Z38: 36 | AA38: Hydro One Networks Inc.-Former Norfolk Power Distribution Inc. Service Area
A39: ="When did "&E14&" update its actual depreciation and capitalization policies?" -> When did North Bay Hydro Distribution Limited - North Bay service territory update its actual depreciation and capitalization policies? | Z39: 37 | AA39: Hydro One Networks Inc.-Former Woodstock Hydro Services Inc. Service Area
E40: 2001-01-01 | F40: 2012 | Z40: 38 | AA40: Hydro One Remote Communites Inc.
Z41: 39 | AA41: Hydro Ottawa Limited
A42: Identify the year the applicant adopted IFRS for financial reporting purposes | Z42: 40 | AA42: InnPower Corporation
E43: 2014 | Z43: 41 | AA43: Kingston Hydro Corporation
Z44: 42 | AA44: Kitchener-Wilmot Hydro Inc.
Z45: 43 | AA45: Lakefront Utilities Inc.
A46: ="Is " & E14 & " applying for cost recovery for the test and/or future year(s) for Green Energy initiatives?" -> Is North Bay Hydro Distribution Limited - North Bay service territory applying for cost recovery for the test and/or future year(s) for Green Energy initiatives? | Z46: 44 | AA46: Lakeland Power Distribution Ltd.
E47: No | Z47: 45 | AA47: Lakeland Power Distribution Ltd.-Parry Sound Service Area
Z48: 46 | AA48: London Hydro Inc.
A49: ="Is " & E14 & " an embedded distributor?" -> Is North Bay Hydro Distribution Limited - North Bay service territory an embedded distributor? | E49: Partial | Z49: 47 | AA49: Milton Hydro Distribution Inc.
Z50: 48 | AA50: Newmarket-Tay Power Distribution Ltd.-For Former Midland Power Utility Rate Zone
Z51: 49 | AA51: Newmarket-Tay Power Distribution Ltd.-For Newmarket-Tay Power Main Rate Zone
B52: Notes | Z52: 50 | AA52: Niagara Peninsula Energy Inc.
Z53: 51 | AA53: Niagara-on-the-Lake Hydro Inc.
C54: Pale green cells represent input cells. | Z54: 52 | AA54: North Bay Hydro Distribution Limited - Espanola service territory
Z55: 53 | AA55: North Bay Hydro Distribution Limited - North Bay service territory
C56: Pale blue cells represent drop-down lists. The applicant should select the appropriate item from the drop-down list. | Z56: 54 | AA56: Northern Ontario Wires Inc.
Z57: 55 | AA57: Oakville Hydro Electricity Distribution Inc.
C58: White cells contain fixed values, automatically generated values or formulae. | N58: =IF(LEN($G58)>1, (SUMPRODUCT(--($C$81:$C$1003=$C58),--($A$81:$A$1003=$D58), --($B$81:$B$1003=$B58&"_TOTAL"), $L$1:$L$889)), "") ->  | O58: =IF(LEN($G58)>1, (SUMPRODUCT(--($C$81:$C$1003=$C58),--($A$81:$A$1003=$D58), --($B$81:$B$1003=$B58&"_TOTAL"), $M$1:$M$889)), "") ->  | Z58: 56 | AA58: Orangeville Hydro Limited
Z59: 57 | AA59: Orillia Power Distribution Corporation
Z60: 58 | AA60: Oshawa PUC Networks Inc.
Z61: 59 | AA61: Ottawa River Power Corporation
Z62: 60 | AA62: Peterborough Distribution Incorporated
Z63: 61 | AA63: PUC Distribution Inc.
Z64: 62 | AA64: Renfrew Hydro Inc.
Z65: 63 | AA65: Rideau St. Lawrence Distribution Inc.
Z66: 64 | AA66: Sioux Lookout Hydro Inc.
Z67: 65 | AA67: Synergy North Corporation-Kenora Rate Zone
Z68: 66 | AA68: Synergy North Corporation-Thunder Bay Rate Zone
Z69: 67 | AA69: Tillsonburg Hydro Inc.
Z70: 68 | AA70: Toronto Hydro-Electric System Limited
Z71: 69 | AA71: Wasaga Distribution Inc.
Z72: 70 | AA72: Waterloo North Hydro Inc.
Z73: 71 | AA73: Welland Hydro-Electric System Corp.
Z74: 72 | AA74: Wellington North Power Inc.
Z75: 73 | AA75: Westario Power Inc.

Sheet Index
A15: 1 | B15: LDC Information Sheet | E15: 20 | F15: App.2-G: Service Reliability Indicators
A16: 2 | B16: Index | E16: 21 | F16: App.2-H: Other Operating Revenue (TO BE UPDATED AT THE DRAFT RATE ORDER STAGE)
A17: 3 | B17: Cost of Service Application Flowchart | E17: 22 | F17: App.2-I: Load Forecast CDM Adjustment Workform
A18: 4 | B18: List of Key References | E18: 23 | F18: App.2-IA: Load Forecast Data Instructions
A19: 5 | B19: App.2-A: List of Requested Approvals | E19: 24 | F19: App.2-IB: Actual and Forecast Load and Customer Data
A20: 6 | B20: App.2-AA: Capital Projects Table | E20: 25 | F20: App.2-JA: OM&A Summary Analysis (TO BE UPDATED AT THE DRAFT RATE ORDER STAGE)
A21: 7 | B21: App.2-AB: Capital Expenditures (TO BE UPDATED AT THE DRAFT RATE ORDER STAGE) | E21: 26 | F21: App.2-JB: Recoverable OM&A Cost Driver Table
A22: 8 | B22: App. 2-AC: Customer Engagement Worksheet | E22: 27 | F22: App.2-JC: OM&A Programs Table
A23: 9 | B23: App.2-B: General Accounting Instructions | E23: 28 | F23: App.2-K: Employee Costs (TO BE UPDATED AT THE DRAFT RATE ORDER STAGE)
A24: 10 | B24: App.2-BA: Fixed Asset Continuity Schedule | E24: 29 | F24: App.2-L: Recoverable OM&A Cost per Customer and per FTE
A25: 11 | B25: Appendix 2-BB: Service Life Comparison | E25: 30 | F25: App.2-M: Regulatory Costs Schedule (TO BE UPDATED AT THE DRAFT RATE ORDER STAGE)
A26: 12 | B26: App.2-C_DepExp: Depreciation and Amortization Expense | E26: 31 | F26: App.2-N: Shared Services and Corporate Cost Allocation
A27: 13 | B27: App.2-D: Overhead Expenses | E27: 32 | F27: App.2-OA: Capital Structure and Cost of Capital
A28: 14 | B28: App.2-EA: Account 1575 PP&E Deferral Account (2015 IFRS Adopters) - CONTACT OEB STAFF IF TAB REQUIRED | E28: 33 | F28: App.2-OB: Debt Instruments
A29: 15 | B29: App.2-EB: Account 1576 - Accounting Changes Under CGAAP (2012 Changes) - CONTACT OEB STAFF IF TAB REQUIRED | E29: 34 | F29: App.2-Q: Cost of Serving Embedded Distributor(s)
A30: 16 | B30: App.2-EC: Account 1576 - Accounting Changes Under CGAAP (2013 Changes) - CONTACT OEB STAFF IF TAB REQUIRED | E30: 35 | F30: App.2-R: Loss Factors
A31: 17 | B31: App.2-FA: Renewable Generation Connection Investment Summary (TO BE UPDATED AT THE DRAFT RATE ORDER STAGE) | E31: 36 | F31: App.2-S: Stranded Meter Treatment- CONTACT OEB STAFF IF TAB REQUIRED
A32: 18 | B32: App.2-FB: Calculation of Renewable Generation Connection Direct Benefits/Provincial Amount: Renewable Enabling Improvement Investments (TO BE UPDATED AT THE DRAFT RATE ORDER STAGE) | E32: 37 | F32: App.2-Y: Transition to MIFRS Summary Impact - CONTACT OEB STAFF IF TAB REQUIRED
A33: 19 | B33: App.2-FC: Calculation of Renewable Generation Connection Direct Benefits/Provincial Amount: Renewable Expansion Investments (TO BE UPDATED AT THE DRAFT RATE ORDER STAGE) | E33: 38 | F33: App.2-YA: One-Time Incremental IFRS Transition Costs - CONTACT OEB STAFF IF TAB REQUIRED
E34: 39 | F34: App.2-ZA: Commodity Expense
E35: 40 | F35: App.2-ZB: Cost of Power
A42: Note: | B42: Appendices for the Tariff of Rates and Charges at Current and Proposed Rates, and for the Bill Impacts are now in a separate spreadsheet model. These appendices were formerly 2-Z and 2-W.

Sheet COS Flowchart
B4: Cost of Service Rate Application Schematic
B6: The Cost of Service Rate Application Schematic is a flowchart that is included as a guide for the components of an application. The schematic demonstrates how demand and costs interrelate to derive the revenue requirement and how the revenue requirement is allocated between classes and through fixed/variable splits to derive rates that will be compensatory for the annual revenue requirement, based on the the forecasted demand. There is no form to be filled out; therefore, this Schedule is not required to be filed.

Sheet List of Key References
B2: List of Key References
A4: A list of key references for understanding the Filing Requirements has been embedded in the document below. To access the list of references and associated hyperlinks double-click the icon below.

Sheet App.2-A_Requested_Approvals
G1: File Number: | H1: =EBNUMBER -> EB-2020-0043
G2: Exhibit: | H2: 1
G3: Tab:
G4: Schedule:
G5: Page:
G7: Date:
B9: Appendix 2-A
B10: List of Requested Approvals
B12: The distributor must fill out the following sheet with the complete list of specific approvals requested and relevant section(s) of the legislation must be provided. All approvals, including accounting orders (deferral and variance accounts) new rate classes, revised specific service charges or retail service charges which the applicant is seeking, must be separately identified, as well being clearly documented in the appropriate sections of the application.
B14: Additional requests may be added by copying and pasting blank input rows, as needed.
B16: If additional requests arise, or requested approvals are removed, during the processing of the application, the distributor should update this list.
B18: =CONCATENATE('LDC Info'!E14," is seeking the following approvals in this application:") -> North Bay Hydro Distribution Limited - North Bay service territory is seeking the following approvals in this application:
B20: 1 | F20: Approval to charge distribution rates effective May 1, 2021 to recover a Service Revenue Requirement of $14,457,121 which includes a Revenue Deficiency of $1,770,175 as detailed in Exhibit 6. The schedule of Proposed Rates is set out in Exhibit 8.
B22: 2 | F22: Approval of the Distribution System Plan as outlined in Exhibit 2.
B24: 3 | F24: Approval of revised Low Voltage Rates as proposed and described in Exhibit 8.
B26: 4 | F26: Approval to adjust the Retail Transmission Rates – Network and Connection as detailed in Exhibit 8.
B28: 5 | F28: Approval to continue to charge Wholesale Market and Rural Rate Protection Charges approved in the Board Decision and Order in the matter of NBHDL’s 2020 Distribution Rates (EB-2019-0057) and updated in the Board’s Decision and Order EB-2020-0276..
B30: 6 | F30: Approval to continue the Specific Service Charges and Transformer Allowance approved in the Board Decision and Order in the matter of NBHDL’s 2020 Distribution Rates (EB-2019-0057).
B32: 7 | F32: Approval of the Proposed Loss Factors as detailed in Exhibit 8.
B34: 8 | F34: Approval to continue to use the Transformer Allowance most recently approved as part of the last Cost of Service application (EB-2014-0099). Listed in Appendix 8.
B36: 9 | F36: Approval to charge the Board’s updated Pole Attachment Charge, effective January 1, 2021.
B38: 10 | F38: Approval of the Rate Riders for a one-year disposition of the Group 1, Group 2 and Other Deferral and Variance Accounts as detailed in Exhibit 9.
B40: 11 | F40: Approval to discontinue the use of Retail Cost Variance Accounts (RCVAs) 1518 and 1548.
B42: 12 | F42: Approval of the Rate Riders for a one-year disposition of the Lost Revenue Adjustment Mechanism Variance Account ("LRAMVA") for lost revenue as presented in Exhibits 4 and 9 of this application.
B44: 13 | F44: Approval for the continued used of 1592 – PILS and Tax Variance – CCA Changes sub account as described in Exhibit 9.
B46: 14 | F46: Approval to create a 1509 – Impacts Arising from the COVID-19 Emergency sub account as described in Exhibit 9.
B48: 15 | F48: Approval of the Proposed Loss Factors as detailed in Exhibit 8.F50
B50: 16 | F50: Approval to amend the name and description of its current customer class of GS 3,000 to 4,999 kW to GS> 3,000 kW as described in Exhibit 7.
B52: 17 | F52: Such other approvals as NBHDL may advise and the OEB may deem as just and reasonable.

Sheet App.2-AA_Capital Projects
H1: File Number: | I1: =EBNUMBER -> EB-2020-0043
H2: Exhibit: | I2: 2
H3: Tab:
H4: Schedule:
H5: Page:
H7: Date:
A9: Appendix 2-AA
A10: Capital Projects Table
D11: UPDATED FOR 2020 ACTUAL
A13: Projects | B13: =C13-1 -> 2015 | C13: =D13-1 -> 2016 | D13: =E13-1 -> 2017 | E13: =F13-1 -> 2018 | F13: =BridgeYear - 1 -> 2019 | G13: =BridgeYear & " Bridge Year" -> 2020 Bridge Year | H13: =TestYear & " Test Year" -> 2021 Test Year
A14: Reporting Basis | B14: MIFRS | C14: MIFRS | D14: MIFRS | E14: MIFRS | F14: MIFRS | G14: MIFRS | H14: MIFRS
A15: System Renewal:
A16: Transformer Purchases - Various Jobs | B16: 247628.04 | C16: 187249.57 | D16: 289584.5 | E16: 149515.21 | F16: 265374 | G16: 156050 | H16: 229240
A17: Major Betterment Projects
A18: Norman Ave | B18: 99700.64671 | C18: 0 | D18: 0 | E18: 0 | F18: 0 | G18: 0 | H18: 0
A19: Lake Heights Rd | B19: 97145.93038 | C19: 0 | D19: 0 | E19: 0 | F19: 0 | G19: 0 | H19: 0
A20: Birchaven Area - Misc. Costs and Provisional Items | B20: 88746.80411 | C20: 0 | D20: 0 | E20: 0 | F20: 0 | G20: 75757 | H20: 0
A21: Macbeth Cres Backlot Elimination | B21: 0 | C21: 0 | D21: 0 | E21: 0 | F21: 1182.701362 | G21: 20305 | H21: 949316.9708
A22: Lovell Ave | B22: 0 | C22: 650.7515032 | D22: 0 | E22: 194.0798334 | F22: 12658.68867 | G22: 1102140 | H22: 0
A23: Ski Club Rd Part 1 - South Portal to Johnston Rd | B23: 0 | C23: 0 | D23: 1533.927786 | E23: 380621.8867 | F23: 524333.971 | G23: 616 | H23: 0
A24: Wallace Road | B24: 0 | C24: 0 | D24: 3016.203034 | E24: 3318.052252 | F24: 303.3492362 | G24: 21059 | H24: 811240.4515
A25: Marshall Ave (MS10) to Highway 11 South | B25: 0 | C25: 0 | D25: 0 | E25: 0 | F25: 472.6893599 | G25: 16875 | H25: 629884.2512
A26: Ski Club Part 2A - Johnston Rd to Bolton Rd | B26: 0 | C26: 0 | D26: 540.5928285 | E26: 2029.038216 | F26: 401883.9331 | G26: 404738 | H26: 0
A27: Sylvan Cres - Civil | B27: 234.899832 | C27: 365997.3518 | D27: 130982.3665 | E27: 0 | F27: 0 | G27: 0 | H27: 0
A28: Shore Acres Blvd | B28: 0 | C28: 0 | D28: 0 | E28: 1158.251108 | F28: 22332.62481 | G28: 141433 | H28: 0
A29: Ski Club Rd Part 3 - Chapais St to O'Brien St | B29: 0 | C29: 0 | D29: 702.7667972 | E29: 533.0094938 | F29: 10618.52345 | G29: 166311 | H29: 201271.0737
A30: Ski Club Rd Part 2B - Bolton Rd to Chapais St | B30: 0 | C30: 0 | D30: 0 | E30: 0 | F30: 11538.21511 | G30: 339561 | H30: 0
A31: L5H Transmission Corridor- McKeown Ave East | B31: 0 | C31: 0 | D31: 0 | E31: 1469.520258 | F31: 10170.17574 | G31: 299566.2016 | H31: 0
A32: Pinewood Park Drive - New Conductor | B32: 0 | C32: 0 | D32: 0 | E32: 0 | F32: 0 | G32: 111659.3663 | H32: 0
A33: Moffat Ave | B33: 0 | C33: 0 | D33: 0 | E33: 0 | F33: 0 | G33: 71701.05042 | H33: 0
A34: Madelena Dr - Electrical | B34: 600.0279189 | C34: 45247.40777 | D34: 334131.0758 | E34: -740.263715 | F34: 0 | G34: 0 | H34: 0
A35: Fraser St South - Electrical | B35: 0 | C35: 0 | D35: 0 | E35: 295923.5198 | F35: 69258.29035 | G35: 0 | H35: 0
A36: Tupper underground | G36: 84583
A37: McKeown Ave East | B37: 357.0347375 | C37: 126.094457 | D37: 4789.912921 | E37: 350424.7756 | F37: 118.3617142 | G37: 0 | H37: 0
A38: Lamorie St | B38: 0 | C38: 0 | D38: 0 | E38: 1058.958428 | F38: 0 | G38: 0 | H38: 0
A39: Madelena Dr - Civil | B39: 0 | C39: 277268.411 | D39: 53961.28011 | E39: 0 | F39: 0 | G39: 51560 | H39: 0
A40: Highway 11 North - Sunshine Lane to Berkely Blvd | B40: 0 | C40: 0 | D40: 0 | E40: 0 | F40: 1440.78168 | G40: 11790 | H40: 337163.8951
A41: Sylvan Cres - Electrical | B41: 0 | C41: 126257.53 | D41: 135701.0212 | E41: 1775.029177 | F41: 0 | G41: 0 | H41: 0
A42: Lavase Rd - Civil | B42: 0 | C42: 0 | D42: 0 | E42: 257140.8027 | F42: 642.3912732 | G42: 0 | H42: 0
A43: Norman Ave Backlot Elimination | B43: 0 | C43: 0 | D43: 2957.437602 | E43: 905.7363064 | F43: 10852.05861 | G43: 10549 | H43: 0
A44: Birchaven Area - Civil | B44: 52708.52824 | C44: 236799.0802 | D44: 0 | E44: 0 | F44: 0 | G44: 0 | H44: 0
A45: Melina Close - Civil | B45: 81566.87106 | C45: 217398.9541 | D45: 0 | E45: 0 | F45: 0 | G45: 78624 | H45: 0
A46: Chapais St | B46: 0 | C46: 0 | D46: 0 | E46: 0 | F46: 1350.944811 | G46: 58433 | H46: 0
A47: McKeown Ave East | B47: 0 | C47: 0 | D47: 0 | E47: 6379.814185 | F47: 198737.9672 | G47: 450 | H47: 0
A48: Lees Rd (South Section) | B48: 0 | C48: 0 | D48: 572.4068606 | E48: 197086.6736 | F48: 842.5626506 | G48: -280 | H48: 0
A49: Dane Ave | B49: 0 | C49: 0 | D49: 0 | E49: 0 | F49: 1126.578757 | G49: 6411 | H49: 177413.9454
A50: Elmwood Ave & Browning St | B50: 4959.886347 | C50: 164028.3438 | D50: 1433.338541 | E50: 0 | F50: 0 | G50: 0 | H50: 0
A51: Sage Road | B51: 75016.62951 | C51: 347.4874291 | D51: 0 | E51: 0 | F51: 155611.4424 | G51: 7236 | H51: 0
A52: McKay Ave | B52: 0 | C52: 0 | D52: 908.1095625 | E52: 136.3976872 | F52: 150476.0093 | G52: 610 | H52: 0
A53: Melina Close - Electrical | B53: 143.7412579 | C53: 137943.5648 | D53: 3740.580094 | E53: 1043.365884 | F53: 0 | G53: 0 | H53: 0
A54: Montrose Ave | B54: 0 | C54: 0 | D54: 0 | E54: 0 | F54: 1279.208726 | G54: 0 | H54: 105929.6986
A55: Birchaven Area - Electrical | B55: 0 | C55: 0 | D55: 26119.30746 | E55: 11375.02873 | F55: 68223.51569 | G55: -96175 | H55: 0
A56: Gertrude St East | B56: 0 | C56: 0 | D56: 745.6898756 | E56: 339.6254505 | F56: 405.0912427 | G56: 0 | H56: 106113.2592
A57: Abbott St | B57: 0 | C57: 0 | D57: 0 | E57: 0 | F57: 336.6112634 | G57: 3763 | H57: 0
A58: Voltage Conversion Projects
A59: Ferguson St North | B59: 331.3290574 | C59: 204290.1298 | D59: 303362.0093 | E59: 1774.782385 | F59: 0 | G59: 0 | H59: 0
A60: Main St West | B60: 308891.7401 | C60: 0 | D60: 0 | E60: 0 | F60: 0 | G60: 0 | H60: 0
A61: Fourth Ave | B61: 145872.0384 | C61: 0 | D61: 0 | E61: 0 | F61: 0 | G61: 0 | H61: 0
A62: First Ave | B62: 136466.7945 | C62: 0 | D62: 0 | E62: 0 | F62: 0 | G62: 0 | H62: 0
A63: Fifth Ave | B63: 120379.049 | C63: 0 | D63: 0 | E63: 0 | F63: 0 | G63: 0 | H63: 0
A64: King St - Wyld St to Cassells St | B64: 109497.9518 | C64: 0 | D64: 0 | E64: 0 | F64: 0 | G64: 0 | H64: 0
A65: Hardy St | B65: 103760.7096 | C65: 0 | D65: 0 | E65: 0 | F65: 0 | G65: 0 | H65: 0
A66: Fraser St South | B66: 995.4172008 | C66: 886.1215816 | D66: 438899.8759 | E66: 5955.286821 | F66: 105.957546 | G66: 0 | H66: 0
A67: McIntyre St West | B67: 0 | C67: 20986.54548 | D67: 212108.5861 | E67: 118478.5698 | F67: 15770.75058 | G67: 5230 | H67: 0
A68: Ferguson St South - Civil | B68: 919.7537545 | C68: 1198.491899 | D68: 41569.73103 | E68: 306237.3436 | F68: 177.0373997 | G68: 0 | H68: 0
A69: Wyld St South | B69: 348.638805 | C69: 4343.799369 | D69: 270554.8167 | E69: 30537.16906 | F69: 989.6163108 | G69: 2274 | H69: 0
A70: Ferguson St South - Electrical | B70: 0 | C70: 0 | D70: 41102.76609 | E70: 146376.5611 | F70: 91097.88313 | G70: 0 | H70: 0
A71: McIntyre St West | B71: 96989.46077 | C71: 239567.2922 | D71: 27892.74051 | E71: 5802.526334 | F71: 0 | G71: 0 | H71: 0
A72: Sherbrooke St | B72: 165.6591928 | C72: 41959.64727 | D72: 192866.2732 | E72: 158.7625225 | F72: 0 | G72: 0 | H72: 0
A73: Oak St East | B73: 746.0052962 | C73: 221727.2512 | D73: 0 | E73: 0 | F73: 0 | G73: 0 | H73: 0
A74: Fraser St North | B74: 0 | C74: 8458.008454 | D74: 154897.7444 | E74: 2334.352025 | F74: 991.9256419 | G74: 0 | H74: 0
A75: McIntyre St East | B75: 0 | C75: 123323.937 | D75: 0 | E75: 0 | F75: 0 | G75: 0 | H75: 0
A76: Regina St South | B76: 3253.58155 | C76: 122134.2272 | D76: 182.2579143 | E76: 0 | F76: 0 | G76: 0 | H76: 0
A77: Fifth Ave - Wyld St to Fisher St | B77: 3654.39505 | C77: 96130.76517 | D77: 0 | E77: 0 | F77: 0 | G77: 0 | H77: 0
A78: Princess St West - Police Station | B78: 0 | C78: 85575.29805 | D78: 3254.607202 | E78: 0 | F78: 0 | G78: 0 | H78: 0
A79: Minor Betterment Projects | B79: 186254.9627 | C79: 281979.4194 | D79: 290965.2038 | E79: 363997.9 | F79: 347969 | G79: 240080 | H79: 295359
A80: Porcelain Switch & Insulator Replacement | B80: 0 | C80: 52710.5 | D80: 1063.68 | E80: 129941.12 | F80: 1178.55 | G80: 4489 | H80: 0
A81: Distribution Substation Improvements & Rehabilitation
A82: MS10 - Rehabilitation | B82: 0 | C82: 0 | D82: 0 | E82: 12559.08 | F82: 229820.4108 | G82: 0 | H82: 0
A83: MS11 - Rehabilitation | B83: 0 | C83: 0 | D83: 0 | E83: 0 | F83: 415742.1549 | G83: -665 | H83: 0
A84: MS13 - Rehabilitation | B84: 0 | C84: 0 | D84: 0 | E84: 0 | F84: 0 | G84: 343278 | H84: 0
A85: MS13 - Station Improvements | B85: 0 | C85: 0 | D85: 0 | E85: 0 | F85: 233086.8547 | G85: 0 | H85: 0
A86: MS13 - Transformer Replacement | B86: 0 | C86: 221018.8565 | D86: 45024.03 | E86: 0 | F86: -3390.25911 | G86: 0 | H86: 0
A87: MS14 - Transformer Replacement | B87: 0 | C87: 0 | D87: 0 | E87: 0 | F87: 302693.5496 | G87: 0 | H87: 0
A88: MS15 - Transformer Replacement | B88: 0 | C88: 225180.7699 | D88: 2097.92 | E88: 0 | F88: 0 | G88: 0 | H88: 0
A89: MS15 - Rehabilitation | B89: 0 | C89: 0 | D89: 0 | E89: 0 | F89: 0 | G89: 180 | H89: 424401.5948
A90: MS16 - Transformer and Switchgear Replacement | B90: 0 | C90: 0 | D90: 963979.62 | E90: 95286.18 | F90: 5008.189122 | G90: 8274 | H90: 0
A91: MS18 - Rehabilitation | B91: 0 | C91: 0 | D91: 0 | E91: 0 | F91: 0 | G91: 0 | H91: 82618.76145
A92: MS19 - Recloser Replacement | B92: 0 | C92: 95398.08038 | D92: 562381.82 | E92: 84.95 | F92: 0 | G92: 80 | H92: 0
A93: MS22 - Construction of New Substation to Replace MS9 | B93: 2132312.977 | C93: 147377.6529 | D93: 0 | E93: 0 | F93: 0 | G93: 0 | H93: 0
A94: Primary Services | B94: 0 | C94: 0 | D94: 478882.3416 | E94: 38381.10561 | F94: 79073.36469 | G94: 125 | H94: 132411
A95: Misc. Projects <$75k on Individual Project Basis | B95: 348429.1933 | C95: 458105.7156 | D95: 86343.60962 | E95: 222619.0827 | F95: 168190.881 | G95: =31585+60480+428 -> 92493 | H95: 61503.27273
A96: Sub-Total | B96: =SUM(B16:B95) -> 4448078.698 | C96: =SUM(C16:C95) -> 4411667.056 | D96: 5108850.15 | E96: 3142213.284 | F96: 3810076.554 | G96: 3841163.618 | H96: 4543867.175
A97: System Service:
A98: Transformer Purchases - Various Jobs | B98: 31617 | C98: 15423 | D98: 37818 | E98: 94559 | F98: 19220 | G98: 8456 | H98: 40816
A99: Sub-Transmission Switching Improvements | B99: 0 | C99: 362.8269738 | D99: 131146.4933 | E99: 113910.0111 | F99: 0 | G99: 0 | H99: 0
A100: Fraser Street - New Sub-Transmission Line | B100: 0 | C100: 0 | D100: 53161.55811 | E100: 43393.43338 | F100: 0 | G100: 0 | H100: 0
A101: WIMAX (SCADA Wireless Radio Replacement) | B101: 114454.8656 | C101: 8115.64607 | D101: 42507.52 | E101: 27645.74 | F101: 0 | G101: 0 | H101: 0
A102: MS23 - Community Energy Park | B102: 0 | C102: 0 | D102: 0 | E102: 1307985.44 | F102: 0 | G102: 30592 | H102: 0
A103: 18F3 Voltage Conversion | B103: 0 | C103: 93.88719837 | D103: 55828.34625 | E103: -375.6537847 | F103: 32711.95847 | G103: 15792 | H103: 0
A104: Minor Betterment Projects | B104: 0 | C104: 0 | D104: 0 | E104: 0 | F104: 0 | H104: 51219
A105: Meters Installs and Upgrades | B105: 251726.53 | C105: 261720.97 | D105: 192817.45 | E105: 92326.53 | F105: 105654.93 | G105: 64952 | H105: 130134.2744
A106: Misc. Projects <$75k on Individual Project Basis | B106: 156321.1622 | C106: 56474.95731 | D106: 167337.4028 | E106: 159201.6541 | F106: 115804.2198 | G106: =14145+68896 -> 83041 | H106: 65978.57618
A107: Sub-Total | B107: =SUM(B98:B106) -> 554119.5577 | C107: 342191.2876 | D107: 680616.7705 | E107: 1838646.155 | F107: 273391.1082 | G107: 202833 | H107: 288147.8506
A108: System Access:
A109: Transformer Purchases - Various Jobs | B109: 53052 | C109: 29552 | D109: 43435 | E109: 64875 | F109: 126677 | G109: 52713 | H109: 61061
A110: Booth Road - MS22 Egress | B110: 90263.51469 | C110: 0 | D110: 0 | E110: 0 | F110: 0 | G110: 0 | H110: 0
A111: Gordon Dr Subdivision | B111: 101467.5992 | C111: 0 | D111: 0 | E111: 0 | F111: 0 | G111: 0 | H111: 0
A112: Franklin St | B112: 0 | C112: 0 | D112: 0 | E112: 0 | F112: 0 | G112: 93488.16146 | H112: 0
A113: Trillium Drive Subdivision - Phase 3 | B113: 0 | C113: 0 | D113: 0 | E113: 0 | F113: 0 | G113: 76122.1395 | H113: 0
A114: Minor Betterment Projects | B114: 183634.6133 | C114: 211158.8924 | D114: 315714.311 | E114: 63114.69825 | F114: 167322 | G114: 186427 | H114: 212096
A115: Primary Services Projects
A116: Pinewood Park Dr | B116: 0 | C116: 0 | D116: 0 | E116: 0 | F116: 85776.94345 | G116: 42352 | H116: 0
A117: McIntyre St West | B117: 0 | C117: 0 | D117: 0 | E117: 0 | F117: 134581.944 | G117: 26137 | H117: 0
A118: Primary Services Projects - General | B118: 0 | C118: 0 | D118: 0 | E118: 0 | F118: 0 | G118: 0 | H118: 198457
A119: Secondary Services | B119: 311613.37 | C119: 262232.93 | D119: 337984.04 | E119: 259092.53 | F119: 309997.09 | G119: 365572 | H119: 296183
A120: Subdivisions | B120: 56422.52081 | C120: 40094.04 | D120: 3845.96 | E120: 50745.35 | F120: 166213.69 | G120: 178643 | H120: 83757
A121: Road Relocations Projects
A122: Metcalfe St | B122: 0 | C122: 0 | D122: 0 | E122: 0 | F122: 98161.30547 | G122: 0 | H122: 0
A123: Cassells St | B123: 0 | C123: 0 | D123: 0 | E123: 0 | F123: 233173.0973 | G123: 0 | H123: 0
A124: Community Energy Park - General Connection | B124: 0 | C124: 0 | D124: 0 | E124: 537900.06 | F124: 51313.46 | G124: 0 | H124: 0
A125: Misc. Projects <$75k on Individual Project Basis | B125: 169634.7367 | C125: 181853.4939 | D125: 76584 | E125: 330488.9235 | F125: 383490.3685 | G125: 263722 | H125: 99377.98
A126: Sub-Total | B126: =SUM(B109:B125) -> 966088.3547 | C126: 724891.3562 | D126: 777563.311 | E126: 1306216.562 | F126: 1756706.899 | G126: 1285176.301 | H126: 950931.98
A127: General Plant
A128: Parking Lot upgrades | B128: 117766.54 | C128: 361938.3 | D128: 0 | E128: 0 | F128: 0 | G128: 0 | H128: 0
A129: Server - Cisco | B129: 0 | C129: 0 | D129: 0 | E129: 0 | F129: 174073.84 | G129: 0 | H129: 0
A130: Mezzanine Renovation | B130: 0 | C130: 0 | D130: 0 | E130: 0 | F130: 0 | G130: 154159 | H130: 0
A131: DR Environment | B131: 0 | C131: 0 | D131: 0 | E131: 0 | F131: 0 | G131: 184535 | H131: 0
A132: Rear Yard Cover | B132: 0 | C132: 0 | D132: 0 | E132: 0 | F132: 0 | G132: 0 | H132: 136947
A133: General Building Work (asphalt, windows, masonry, doors, etc.) | B133: 0 | C133: 0 | D133: 0 | E133: 0 | F133: 0 | G133: 0 | H133: 130300
A134: Customer Portal | B134: 0 | C134: 0 | D134: 0 | E134: 0 | F134: 0 | G134: 0 | H134: 75000
A135: Building & General Office Upgrades, Including Furniture | B135: 36876.82 | C135: 92774.56 | D135: 27588.85 | E135: 48322.48 | F135: 19174.65 | G135: 29887 | H135: 26766.08
A136: Fleet Replacement - Bucket Trucks, Radial Boom Devices & Trailers | B136: 355820.86 | C136: 0 | D136: 402611.2 | E136: 0 | F136: 324244.41 | G136: 231649 | H136: 333733
A137: Fleet Replacement - Small Vehicles | B137: 108000.52 | C137: 283707.24 | D137: 0 | E137: 79769.31 | F137: 101854.58 | G137: 0 | H137: 0
A138: Servers, PC, Other Hardware | B138: 15035.54 | C138: 16099.77 | D138: 98354 | E138: 83531.35 | F138: 59479.77 | G138: 83788 | H138: 8200
A139: Software | B139: 33970.7 | C139: 32134.9 | D139: 24273.25 | E139: 22379.11 | F139: 45191.95 | G139: 27252 | H139: 158150
A140: Work Equipment | B140: 46133.44 | C140: 36949.81 | D140: 54670.06 | E140: 95728 | F140: 46674.54 | G140: 144385 | H140: 40000
A141: Sub-Total | B141: =SUM(B128:B140) -> 713604.42 | C141: 823604.58 | D141: 607497.36 | E141: 329730.25 | F141: 770693.74 | G141: 855655 | H141: 909096.08
A142: Contributed Capital from Customers | B142: -703197.72 | C142: -352323 | D142: -728037.44 | E142: -558616.74 | F142: -483042.42 | G142: -528156 | H142: -551144
A143: Total | B143: =SUMPRODUCT(--($A15:$A142="Sub-Total"), B$15:B$142)+B142 -> 5978693.31 | C143: 5950031.28 | D143: 6446490.152 | E143: 6058189.51 | F143: 6127825.881 | G143: 5656671.919 | H143: 6140899.085
A144: Less Renewable Generation Facility Assets and Other Non-Rate-Regulated Utility Assets (input as negative)
A145: Total | B145: =B143+B144 -> 5978693.31 | C145: 5950031.28 | D145: 6446490.152 | E145: 6058189.51 | F145: 6127825.881 | G145: 5656671.919 | H145: 6140899.085
A147: Notes:
A149: 1 Please provide a breakdown of the major components of each capital project undertaken in each year. Please ensure that all projects below the materiality threshold are included in the miscellaneous line. Add more projects as required.
A150: 2 The applicant should group projects appropriately and avoid presentations that result in classification of significant components of the capital budget in the miscellaneous category.
A151: UPDATED FOR 2020 ACTUAL

Sheet App.2-AB_Capital Expenditures
AE1: File Number: | AG1: =EBNUMBER -> EB-2020-0043
AE2: Exhibit: | AG2: 2
AE3: Tab:
AE4: Schedule:
A5: TO BE UPDATED AT THE DRAFT RATE ORDER STAGE | AE5: Page:
AE7: Date:
A9: Appendix 2-AB
A10: Table 2 - Capital Expenditure Summary from Chapter 5 Consolidated Distribution System Plan Filing Requirements
A11: First year of Forecast Period:
A12: =TestYear -> 2021
A13: CATEGORY | B13: Historical Period (previous plan1 & actual) | AC13: Forecast Period (planned)
B14: =E14-1 -> 2012 | E14: =H14-1 -> 2013 | H14: =K14-1 -> 2014 | K14: =N14-1 -> 2015 | N14: =Q14-1 -> 2016 | Q14: =T14-1 -> 2017 | T14: =W14-1 -> 2018 | W14: =Z14-1 -> 2019 | Z14: =AC14-1 -> 2020 | AC14: =A12 -> 2021 | AD14: =AC14+1 -> 2022 | AE14: =AD14+1 -> 2023 | AF14: =AE14+1 -> 2024 | AG14: =AF14+1 -> 2025
B15: Plan | C15: Actual | D15: Var | E15: Plan | F15: Actual | G15: Var | H15: Plan | I15: Actual | J15: Var | K15: Plan | L15: Actual | M15: Var | N15: Plan | O15: Actual | P15: Var | Q15: Plan | R15: Actual | S15: Var | T15: Plan | U15: Actual | V15: Var | W15: Plan | X15: Actual | Y15: Var | Z15: Plan | AA15: Actual2 | AB15: Var
B16: $ '000 | D16: % | E16: $ '000 | G16: % | H16: $ '000 | J16: % | K16: $ '000 | M16: % | N16: $ '000 | P16: % | Q16: $ '000 | S16: % | T16: $ '000 | V16: % | W16: $ '000 | Y16: % | Z16: $ '000 | AB16: % | AC16: $ '000
A17: System Access | D17: =IF(ISERROR((C17-B17)/B17),"--",(C17-B17)/B17) -> -- | G17: =IF(ISERROR((F17-E17)/E17),"--",(F17-E17)/E17) -> -- | J17: =IF(ISERROR((I17-H17)/H17),"--",(I17-H17)/H17) -> -- | K17: 779 | L17: 966 | M17: =IF(ISERROR((L17-K17)/K17),"--",(L17-K17)/K17) -> 0.2400513479 | N17: 1167 | O17: 725 | P17: =IF(ISERROR((O17-N17)/N17),"--",(O17-N17)/N17) -> -0.3787489289 | Q17: 1190 | R17: 778 | S17: =IF(ISERROR((R17-Q17)/Q17),"--",(R17-Q17)/Q17) -> -0.3462184874 | T17: 1214 | U17: 1306 | V17: =IF(ISERROR((U17-T17)/T17),"--",(U17-T17)/T17) -> 0.07578253707 | W17: 1238 | X17: 1757 | Y17: =IF(ISERROR((X17-W17)/W17),"--",(X17-W17)/W17) -> 0.4192245557 | AA17: 1285 | AB17: =IF(ISERROR((AA17-Z17)/Z17),"--",(AA17-Z17)/Z17) -> -- | AC17: 951 | AD17: 969 | AE17: 987.4 | AF17: 1005.6 | AG17: 1025
A18: System Renewal | D18: =IF(ISERROR((C18-B18)/B18),"--",(C18-B18)/B18) -> -- | G18: =IF(ISERROR((F18-E18)/E18),"--",(F18-E18)/E18) -> -- | J18: =IF(ISERROR((I18-H18)/H18),"--",(I18-H18)/H18) -> -- | K18: 5187 | L18: 4448 | M18: =IF(ISERROR((L18-K18)/K18),"--",(L18-K18)/K18) -> -0.1424715635 | N18: 4180 | O18: 4411.6 | P18: =IF(ISERROR((O18-N18)/N18),"--",(O18-N18)/N18) -> 0.05540669856 | Q18: 4236 | R18: 5109 | S18: =IF(ISERROR((R18-Q18)/Q18),"--",(R18-Q18)/Q18) -> 0.2060906516 | T18: 4266 | U18: 3140.6 | V18: =IF(ISERROR((U18-T18)/T18),"--",(U18-T18)/T18) -> -0.2638068448 | W18: 4054 | X18: 3788 | Y18: =IF(ISERROR((X18-W18)/W18),"--",(X18-W18)/W18) -> -0.06561420819 | AA18: 3841 | AB18: =IF(ISERROR((AA18-Z18)/Z18),"--",(AA18-Z18)/Z18) -> -- | AC18: 4544 | AD18: 4008 | AE18: 4057.4 | AF18: 4153.6 | AG18: 4221
A19: System Service | D19: -- | G19: -- | J19: -- | K19: 364 | L19: 554 | M19: 0.521978022 | N19: 215 | O19: 341.6 | P19: 0.5888372093 | Q19: 127 | R19: 681 | S19: 4.362204724 | T19: 89 | U19: 1838.6 | V19: 19.65842697 | W19: 136 | X19: 273 | Y19: 1.007352941 | AA19: 203 | AB19: -- | AC19: 288 | AD19: 294 | AE19: 299 | AF19: 305 | AG19: 311
A20: General Plant | D20: -- | G20: -- | J20: -- | K20: 772 | L20: 714 | M20: -0.07512953368 | N20: 373 | O20: 824 | P20: 1.209115282 | Q20: 549 | R20: 607 | S20: 0.1056466302 | T20: 351 | U20: 330 | V20: -0.05982905983 | W20: 642 | X20: 771 | Y20: 0.2009345794 | AA20: 856 | AB20: -- | AC20: 909 | AD20: 587 | AE20: 666 | AF20: 1041 | AG20: 649
A21: TOTAL EXPENDITURE | B21: =SUM(B17:B20) -> 0 | C21: =SUM(C17:C20) -> 0 | D21: -- | E21: =SUM(E17:E20) -> 0 | F21: =SUM(F17:F20) -> 0 | G21: -- | H21: =SUM(H17:H20) -> 0 | I21: =SUM(I17:I20) -> 0 | J21: -- | K21: =SUM(K17:K20) -> 7102 | L21: =SUM(L17:L20) -> 6682 | M21: -0.05913827091 | N21: =SUM(N17:N20) -> 5935 | O21: =SUM(O17:O20) -> 6302.2 | P21: 0.06187026116 | Q21: 6102 | R21: 7175 | S21: 0.1758439856 | T21: 5920 | U21: 6615.2 | V21: 0.1174324324 | W21: 6070 | X21: 6589 | Y21: 0.08550247117 | Z21: 0 | AA21: 6185 | AB21: -- | AC21: 6692 | AD21: 5858 | AE21: 6009.8 | AF21: 6505.2 | AG21: =SUM(AG17:AG20) -> 6206
A22: Capital Contributions | D22: -- | G22: -- | J22: -- | L22: -703 | M22: -- | O22: -352 | P22: -- | R22: -728 | S22: -- | U22: -559 | V22: -- | X22: -483 | Y22: -- | AA22: -528 | AB22: -- | AC22: -551 | AD22: -562 | AE22: -572 | AF22: -583 | AG22: -594
A23: Net Capital Expenditures | D23: -- | G23: -- | J23: -- | L23: =+L22+L21 -> 5979 | M23: -- | O23: =+O22+O21 -> 5950.2 | P23: -- | R23: =+R22+R21 -> 6447 | S23: -- | U23: =+U22+U21 -> 6056.2 | V23: -- | X23: =+X22+X21 -> 6106 | Y23: -- | AA23: =+AA22+AA21 -> 5657 | AB23: -- | AC23: =+AC22+AC21 -> 6141 | AD23: =+AD22+AD21 -> 5296 | AE23: =+AE22+AE21 -> 5437.8 | AF23: =+AF22+AF21 -> 5922.2 | AG23: =+AG22+AG21 -> 5612
A24: System O&M | D24: -- | G24: -- | J24: -- | L24: 2369 | M24: -- | O24: 2500 | P24: -- | R24: 2370 | S24: -- | U24: 2298 | V24: -- | X24: 2755 | Y24: -- | AB24: -- | AC24: 3642 | AD24: 3713 | AE24: 3785 | AF24: 3859 | AG24: 3935
A26: Notes to the Table:
A27: 1. Historical “previous plan” data is not required unless a plan has previously been filed. However, use the last OEB-approved, at least on a Total (Capital) Expenditure basis for the last cost of service rebasing year, and the applicant should include their planned budget in each subsequent historical year up to and including the Bridge Year.
A28: 2. Indicate the number of months of 'actual' data included in the last year of the Historical Period (normally a 'bridge' year):
A30: Explanatory Notes on Variances (complete only if applicable)
A31: Notes on shifts in forecast vs. historical budgets by category
A32: UPDATED FOR 2020 ACTUAL
A34: Notes on year over year Plan vs. Actual variances for Total Expenditures
A37: Notes on Plan vs. Actual variance trends for individual expenditure categories

Sheet Hidden_CAPEX (hidden)
A1: Utility Name | B1: EB Number | C1: Test Year | D1: Bridge Year | E1: Last Rebasing Year | F1: Category | G1: Year | H1: Plan | I1: Actual
A2: ='LDC Info'!$E$14 -> North Bay Hydro Distribution Limited - North Bay service territory | B2: =EBNUMBER -> EB-2020-0043 | C2: =TestYear -> 2021 | D2: =BridgeYear -> 2020 | E2: =RebaseYear -> 2015 | F2: System Access | G2: ='App.2-AB_Capital Expenditures'!B14 -> 2012 | H2: ='App.2-AB_Capital Expenditures'!B17 -> 0 | I2: ='App.2-AB_Capital Expenditures'!C17 -> 0
A3: ='LDC Info'!$E$14 -> North Bay Hydro Distribution Limited - North Bay service territory | B3: EB-2020-0043 | C3: 2021 | D3: 2020 | E3: 2015 | F3: System Renewal | G3: ='App.2-AB_Capital Expenditures'!B14 -> 2012 | H3: ='App.2-AB_Capital Expenditures'!B18 -> 0 | I3: ='App.2-AB_Capital Expenditures'!C18 -> 0
A4: ='LDC Info'!$E$14 -> North Bay Hydro Distribution Limited - North Bay service territory | B4: EB-2020-0043 | C4: 2021 | D4: 2020 | E4: 2015 | F4: System Service | G4: ='App.2-AB_Capital Expenditures'!B14 -> 2012 | H4: ='App.2-AB_Capital Expenditures'!B19 -> 0 | I4: ='App.2-AB_Capital Expenditures'!C19 -> 0
A5: ='LDC Info'!$E$14 -> North Bay Hydro Distribution Limited - North Bay service territory | B5: EB-2020-0043 | C5: 2021 | D5: 2020 | E5: 2015 | F5: General Plant | G5: ='App.2-AB_Capital Expenditures'!B14 -> 2012 | H5: ='App.2-AB_Capital Expenditures'!B20 -> 0 | I5: ='App.2-AB_Capital Expenditures'!C20 -> 0
A6: ='LDC Info'!$E$14 -> North Bay Hydro Distribution Limited - North Bay service territory | B6: EB-2020-0043 | C6: 2021 | D6: 2020 | E6: 2015 | F6: Total Expenditure | G6: ='App.2-AB_Capital Expenditures'!B14 -> 2012 | H6: ='App.2-AB_Capital Expenditures'!B21 -> 0 | I6: ='App.2-AB_Capital Expenditures'!C21 -> 0
A7: ='LDC Info'!$E$14 -> North Bay Hydro Distribution Limited - North Bay service territory | B7: EB-2020-0043 | C7: 2021 | D7: 2020 | E7: 2015 | F7: Capital Contributions | G7: ='App.2-AB_Capital Expenditures'!B14 -> 2012 | H7: ='App.2-AB_Capital Expenditures'!B22 -> 0 | I7: ='App.2-AB_Capital Expenditures'!C22 -> 0
A8: ='LDC Info'!$E$14 -> North Bay Hydro Distribution Limited - North Bay service territory | B8: EB-2020-0043 | C8: 2021 | D8: 2020 | E8: 2015 | F8: Net Capital Expenditures | G8: ='App.2-AB_Capital Expenditures'!B14 -> 2012 | H8: ='App.2-AB_Capital Expenditures'!B23 -> 0 | I8: ='App.2-AB_Capital Expenditures'!C23 -> 0
A9: ='LDC Info'!$E$14 -> North Bay Hydro Distribution Limited - North Bay service territory | B9: EB-2020-0043 | C9: 2021 | D9: 2020 | E9: 2015 | F9: System O&M | G9: ='App.2-AB_Capital Expenditures'!B14 -> 2012 | H9: ='App.2-AB_Capital Expenditures'!B24 -> 0 | I9: ='App.2-AB_Capital Expenditures'!C24 -> 0
A10: ='LDC Info'!$E$14 -> North Bay Hydro Distribution Limited - North Bay service territory | B10: EB-2020-0043 | C10: 2021 | D10: 2020 | E10: 2015 | F10: System Access | G10: ='App.2-AB_Capital Expenditures'!E14 -> 2013 | H10: ='App.2-AB_Capital Expenditures'!E17 -> 0 | I10: ='App.2-AB_Capital Expenditures'!F17 -> 0
A11: ='LDC Info'!$E$14 -> North Bay Hydro Distribution Limited - North Bay service territory | B11: EB-2020-0043 | C11: 2021 | D11: 2020 | E11: 2015 | F11: System Renewal | G11: ='App.2-AB_Capital Expenditures'!E14 -> 2013 | H11: ='App.2-AB_Capital Expenditures'!E18 -> 0 | I11: ='App.2-AB_Capital Expenditures'!F18 -> 0
A12: ='LDC Info'!$E$14 -> North Bay Hydro Distribution Limited - North Bay service territory | B12: EB-2020-0043 | C12: 2021 | D12: 2020 | E12: 2015 | F12: System Service | G12: ='App.2-AB_Capital Expenditures'!E14 -> 2013 | H12: ='App.2-AB_Capital Expenditures'!E19 -> 0 | I12: ='App.2-AB_Capital Expenditures'!F19 -> 0
A13: ='LDC Info'!$E$14 -> North Bay Hydro Distribution Limited - North Bay service territory | B13: EB-2020-0043 | C13: 2021 | D13: 2020 | E13: 2015 | F13: General Plant | G13: ='App.2-AB_Capital Expenditures'!E14 -> 2013 | H13: ='App.2-AB_Capital Expenditures'!E20 -> 0 | I13: ='App.2-AB_Capital Expenditures'!F20 -> 0
A14: ='LDC Info'!$E$14 -> North Bay Hydro Distribution Limited - North Bay service territory | B14: EB-2020-0043 | C14: 2021 | D14: 2020 | E14: 2015 | F14: Total Expenditure | G14: ='App.2-AB_Capital Expenditures'!E14 -> 2013 | H14: ='App.2-AB_Capital Expenditures'!E21 -> 0 | I14: ='App.2-AB_Capital Expenditures'!F21 -> 0
A15: ='LDC Info'!$E$14 -> North Bay Hydro Distribution Limited - North Bay service territory | B15: EB-2020-0043 | C15: 2021 | D15: 2020 | E15: 2015 | F15: Capital Contributions | G15: ='App.2-AB_Capital Expenditures'!E14 -> 2013 | H15: ='App.2-AB_Capital Expenditures'!E22 -> 0 | I15: ='App.2-AB_Capital Expenditures'!F22 -> 0
A16: ='LDC Info'!$E$14 -> North Bay Hydro Distribution Limited - North Bay service territory | B16: EB-2020-0043 | C16: 2021 | D16: 2020 | E16: 2015 | F16: Net Capital Expenditures | G16: ='App.2-AB_Capital Expenditures'!E14 -> 2013 | H16: ='App.2-AB_Capital Expenditures'!E23 -> 0 | I16: ='App.2-AB_Capital Expenditures'!F23 -> 0
A17: ='LDC Info'!$E$14 -> North Bay Hydro Distribution Limited - North Bay service territory | B17: EB-2020-0043 | C17: 2021 | D17: 2020 | E17: 2015 | F17: System O&M | G17: ='App.2-AB_Capital Expenditures'!E14 -> 2013 | H17: ='App.2-AB_Capital Expenditures'!E24 -> 0 | I17: ='App.2-AB_Capital Expenditures'!F24 -> 0
A18: ='LDC Info'!$E$14 -> North Bay Hydro Distribution Limited - North Bay service territory | B18: EB-2020-0043 | C18: 2021 | D18: 2020 | E18: 2015 | F18: System Access | G18: ='App.2-AB_Capital Expenditures'!H14 -> 2014 | H18: ='App.2-AB_Capital Expenditures'!H17 -> 0 | I18: ='App.2-AB_Capital Expenditures'!I17 -> 0
A19: ='LDC Info'!$E$14 -> North Bay Hydro Distribution Limited - North Bay service territory | B19: EB-2020-0043 | C19: 2021 | D19: 2020 | E19: 2015 | F19: System Renewal | G19: ='App.2-AB_Capital Expenditures'!H14 -> 2014 | H19: ='App.2-AB_Capital Expenditures'!H18 -> 0 | I19: ='App.2-AB_Capital Expenditures'!I18 -> 0
A20: ='LDC Info'!$E$14 -> North Bay Hydro Distribution Limited - North Bay service territory | B20: EB-2020-0043 | C20: 2021 | D20: 2020 | E20: 2015 | F20: System Service | G20: ='App.2-AB_Capital Expenditures'!H14 -> 2014 | H20: ='App.2-AB_Capital Expenditures'!H19 -> 0 | I20: ='App.2-AB_Capital Expenditures'!I19 -> 0
A21: ='LDC Info'!$E$14 -> North Bay Hydro Distribution Limited - North Bay service territory | B21: EB-2020-0043 | C21: 2021 | D21: 2020 | E21: 2015 | F21: General Plant | G21: ='App.2-AB_Capital Expenditures'!H14 -> 2014 | H21: ='App.2-AB_Capital Expenditures'!H20 -> 0 | I21: ='App.2-AB_Capital Expenditures'!I20 -> 0
A22: ='LDC Info'!$E$14 -> North Bay Hydro Distribution Limited - North Bay service territory | B22: EB-2020-0043 | C22: 2021 | D22: 2020 | E22: 2015 | F22: Total Expenditure | G22: ='App.2-AB_Capital Expenditures'!H14 -> 2014 | H22: ='App.2-AB_Capital Expenditures'!H21 -> 0 | I22: ='App.2-AB_Capital Expenditures'!I21 -> 0
A23: ='LDC Info'!$E$14 -> North Bay Hydro Distribution Limited - North Bay service territory | B23: EB-2020-0043 | C23: 2021 | D23: 2020 | E23: 2015 | F23: Capital Contributions | G23: ='App.2-AB_Capital Expenditures'!H14 -> 2014 | H23: ='App.2-AB_Capital Expenditures'!H22 -> 0 | I23: ='App.2-AB_Capital Expenditures'!I22 -> 0
A24: ='LDC Info'!$E$14 -> North Bay Hydro Distribution Limited - North Bay service territory | B24: EB-2020-0043 | C24: 2021 | D24: 2020 | E24: 2015 | F24: Net Capital Expenditures | G24: ='App.2-AB_Capital Expenditures'!H14 -> 2014 | H24: ='App.2-AB_Capital Expenditures'!H23 -> 0 | I24: ='App.2-AB_Capital Expenditures'!I23 -> 0
A25: ='LDC Info'!$E$14 -> North Bay Hydro Distribution Limited - North Bay service territory | B25: EB-2020-0043 | C25: 2021 | D25: 2020 | E25: 2015 | F25: System O&M | G25: ='App.2-AB_Capital Expenditures'!H14 -> 2014 | H25: ='App.2-AB_Capital Expenditures'!H24 -> 0 | I25: ='App.2-AB_Capital Expenditures'!I24 -> 0
A26: ='LDC Info'!$E$14 -> North Bay Hydro Distribution Limited - North Bay service territory | B26: EB-2020-0043 | C26: 2021 | D26: 2020 | E26: 2015 | F26: System Access | G26: ='App.2-AB_Capital Expenditures'!K14 -> 2015 | H26: ='App.2-AB_Capital Expenditures'!K17 -> 779 | I26: ='App.2-AB_Capital Expenditures'!L17 -> 966
A27: ='LDC Info'!$E$14 -> North Bay Hydro Distribution Limited - North Bay service territory | B27: EB-2020-0043 | C27: 2021 | D27: 2020 | E27: 2015 | F27: System Renewal | G27: ='App.2-AB_Capital Expenditures'!K14 -> 2015 | H27: ='App.2-AB_Capital Expenditures'!K18 -> 5187 | I27: ='App.2-AB_Capital Expenditures'!L18 -> 4448
A28: ='LDC Info'!$E$14 -> North Bay Hydro Distribution Limited - North Bay service territory | B28: EB-2020-0043 | C28: 2021 | D28: 2020 | E28: 2015 | F28: System Service | G28: ='App.2-AB_Capital Expenditures'!K14 -> 2015 | H28: ='App.2-AB_Capital Expenditures'!K19 -> 364 | I28: ='App.2-AB_Capital Expenditures'!L19 -> 554
A29: ='LDC Info'!$E$14 -> North Bay Hydro Distribution Limited - North Bay service territory | B29: EB-2020-0043 | C29: 2021 | D29: 2020 | E29: 2015 | F29: General Plant | G29: ='App.2-AB_Capital Expenditures'!K14 -> 2015 | H29: ='App.2-AB_Capital Expenditures'!K20 -> 772 | I29: ='App.2-AB_Capital Expenditures'!L20 -> 714
A30: ='LDC Info'!$E$14 -> North Bay Hydro Distribution Limited - North Bay service territory | B30: EB-2020-0043 | C30: 2021 | D30: 2020 | E30: 2015 | F30: Total Expenditure | G30: ='App.2-AB_Capital Expenditures'!K14 -> 2015 | H30: ='App.2-AB_Capital Expenditures'!K21 -> 7102 | I30: ='App.2-AB_Capital Expenditures'!L21 -> 6682
A31: ='LDC Info'!$E$14 -> North Bay Hydro Distribution Limited - North Bay service territory | B31: EB-2020-0043 | C31: 2021 | D31: 2020 | E31: 2015 | F31: Capital Contributions | G31: ='App.2-AB_Capital Expenditures'!K14 -> 2015 | H31: ='App.2-AB_Capital Expenditures'!K22 -> 0 | I31: ='App.2-AB_Capital Expenditures'!L22 -> -703
A32: ='LDC Info'!$E$14 -> North Bay Hydro Distribution Limited - North Bay service territory | B32: EB-2020-0043 | C32: 2021 | D32: 2020 | E32: 2015 | F32: Net Capital Expenditures | G32: ='App.2-AB_Capital Expenditures'!K14 -> 2015 | H32: ='App.2-AB_Capital Expenditures'!K23 -> 0 | I32: ='App.2-AB_Capital Expenditures'!L23 -> 5979
A33: ='LDC Info'!$E$14 -> North Bay Hydro Distribution Limited - North Bay service territory | B33: EB-2020-0043 | C33: 2021 | D33: 2020 | E33: 2015 | F33: System O&M | G33: ='App.2-AB_Capital Expenditures'!K14 -> 2015 | H33: ='App.2-AB_Capital Expenditures'!K24 -> 0 | I33: ='App.2-AB_Capital Expenditures'!L24 -> 2369
A34: ='LDC Info'!$E$14 -> North Bay Hydro Distribution Limited - North Bay service territory | B34: =EBNUMBER -> EB-2020-0043 | C34: =TestYear -> 2021 | D34: =BridgeYear -> 2020 | E34: =RebaseYear -> 2015 | F34: System Access | G34: ='App.2-AB_Capital Expenditures'!N14 -> 2016 | H34: ='App.2-AB_Capital Expenditures'!N17 -> 1167 | I34: ='App.2-AB_Capital Expenditures'!O17 -> 725
A35: ='LDC Info'!$E$14 -> North Bay Hydro Distribution Limited - North Bay service territory | B35: EB-2020-0043 | C35: 2021 | D35: 2020 | E35: 2015 | F35: System Renewal | G35: ='App.2-AB_Capital Expenditures'!N14 -> 2016 | H35: ='App.2-AB_Capital Expenditures'!N18 -> 4180 | I35: ='App.2-AB_Capital Expenditures'!O18 -> 4411.6
A36: ='LDC Info'!$E$14 -> North Bay Hydro Distribution Limited - North Bay service territory | B36: EB-2020-0043 | C36: 2021 | D36: 2020 | E36: 2015 | F36: System Service | G36: ='App.2-AB_Capital Expenditures'!N14 -> 2016 | H36: ='App.2-AB_Capital Expenditures'!N19 -> 215 | I36: ='App.2-AB_Capital Expenditures'!O19 -> 341.6
A37: ='LDC Info'!$E$14 -> North Bay Hydro Distribution Limited - North Bay service territory | B37: EB-2020-0043 | C37: 2021 | D37: 2020 | E37: 2015 | F37: General Plant | G37: ='App.2-AB_Capital Expenditures'!N14 -> 2016 | H37: ='App.2-AB_Capital Expenditures'!N20 -> 373 | I37: ='App.2-AB_Capital Expenditures'!O20 -> 824
A38: ='LDC Info'!$E$14 -> North Bay Hydro Distribution Limited - North Bay service territory | B38: EB-2020-0043 | C38: 2021 | D38: 2020 | E38: 2015 | F38: Total Expenditure | G38: ='App.2-AB_Capital Expenditures'!N14 -> 2016 | H38: ='App.2-AB_Capital Expenditures'!N21 -> 5935 | I38: ='App.2-AB_Capital Expenditures'!O21 -> 6302.2
A39: ='LDC Info'!$E$14 -> North Bay Hydro Distribution Limited - North Bay service territory | B39: EB-2020-0043 | C39: 2021 | D39: 2020 | E39: 2015 | F39: Capital Contributions | G39: ='App.2-AB_Capital Expenditures'!N14 -> 2016 | H39: ='App.2-AB_Capital Expenditures'!N22 -> 0 | I39: ='App.2-AB_Capital Expenditures'!O22 -> -352
A40: ='LDC Info'!$E$14 -> North Bay Hydro Distribution Limited - North Bay service territory | B40: EB-2020-0043 | C40: 2021 | D40: 2020 | E40: 2015 | F40: Net Capital Expenditures | G40: ='App.2-AB_Capital Expenditures'!N14 -> 2016 | H40: ='App.2-AB_Capital Expenditures'!N23 -> 0 | I40: ='App.2-AB_Capital Expenditures'!O23 -> 5950.2
A41: ='LDC Info'!$E$14 -> North Bay Hydro Distribution Limited - North Bay service territory | B41: EB-2020-0043 | C41: 2021 | D41: 2020 | E41: 2015 | F41: System O&M | G41: ='App.2-AB_Capital Expenditures'!N14 -> 2016 | H41: ='App.2-AB_Capital Expenditures'!N24 -> 0 | I41: ='App.2-AB_Capital Expenditures'!O24 -> 2500
A42: ='LDC Info'!$E$14 -> North Bay Hydro Distribution Limited - North Bay service territory | B42: EB-2020-0043 | C42: 2021 | D42: 2020 | E42: 2015 | F42: System Access | G42: ='App.2-AB_Capital Expenditures'!Q14 -> 2017 | H42: ='App.2-AB_Capital Expenditures'!Q17 -> 1190 | I42: ='App.2-AB_Capital Expenditures'!R17 -> 778
A43: ='LDC Info'!$E$14 -> North Bay Hydro Distribution Limited - North Bay service territory | B43: EB-2020-0043 | C43: 2021 | D43: 2020 | E43: 2015 | F43: System Renewal | G43: ='App.2-AB_Capital Expenditures'!Q14 -> 2017 | H43: ='App.2-AB_Capital Expenditures'!Q18 -> 4236 | I43: ='App.2-AB_Capital Expenditures'!R18 -> 5109
A44: ='LDC Info'!$E$14 -> North Bay Hydro Distribution Limited - North Bay service territory | B44: EB-2020-0043 | C44: 2021 | D44: 2020 | E44: 2015 | F44: System Service | G44: ='App.2-AB_Capital Expenditures'!Q14 -> 2017 | H44: ='App.2-AB_Capital Expenditures'!Q19 -> 127 | I44: ='App.2-AB_Capital Expenditures'!R19 -> 681
A45: ='LDC Info'!$E$14 -> North Bay Hydro Distribution Limited - North Bay service territory | B45: EB-2020-0043 | C45: 2021 | D45: 2020 | E45: 2015 | F45: General Plant | G45: ='App.2-AB_Capital Expenditures'!Q14 -> 2017 | H45: ='App.2-AB_Capital Expenditures'!Q20 -> 549 | I45: ='App.2-AB_Capital Expenditures'!R20 -> 607
A46: ='LDC Info'!$E$14 -> North Bay Hydro Distribution Limited - North Bay service territory | B46: EB-2020-0043 | C46: 2021 | D46: 2020 | E46: 2015 | F46: Total Expenditure | G46: ='App.2-AB_Capital Expenditures'!Q14 -> 2017 | H46: ='App.2-AB_Capital Expenditures'!Q21 -> 6102 | I46: ='App.2-AB_Capital Expenditures'!R21 -> 7175
A47: ='LDC Info'!$E$14 -> North Bay Hydro Distribution Limited - North Bay service territory | B47: EB-2020-0043 | C47: 2021 | D47: 2020 | E47: 2015 | F47: Capital Contributions | G47: ='App.2-AB_Capital Expenditures'!Q14 -> 2017 | H47: ='App.2-AB_Capital Expenditures'!Q22 -> 0 | I47: ='App.2-AB_Capital Expenditures'!R22 -> -728
A48: ='LDC Info'!$E$14 -> North Bay Hydro Distribution Limited - North Bay service territory | B48: EB-2020-0043 | C48: 2021 | D48: 2020 | E48: 2015 | F48: Net Capital Expenditures | G48: ='App.2-AB_Capital Expenditures'!Q14 -> 2017 | H48: ='App.2-AB_Capital Expenditures'!Q23 -> 0 | I48: ='App.2-AB_Capital Expenditures'!R23 -> 6447
A49: ='LDC Info'!$E$14 -> North Bay Hydro Distribution Limited - North Bay service territory | B49: EB-2020-0043 | C49: 2021 | D49: 2020 | E49: 2015 | F49: System O&M | G49: ='App.2-AB_Capital Expenditures'!Q14 -> 2017 | H49: ='App.2-AB_Capital Expenditures'!Q24 -> 0 | I49: ='App.2-AB_Capital Expenditures'!R24 -> 2370
A50: ='LDC Info'!$E$14 -> North Bay Hydro Distribution Limited - North Bay service territory | B50: EB-2020-0043 | C50: 2021 | D50: 2020 | E50: 2015 | F50: System Access | G50: ='App.2-AB_Capital Expenditures'!T14 -> 2018 | H50: ='App.2-AB_Capital Expenditures'!T17 -> 1214 | I50: ='App.2-AB_Capital Expenditures'!U17 -> 1306
A51: ='LDC Info'!$E$14 -> North Bay Hydro Distribution Limited - North Bay service territory | B51: EB-2020-0043 | C51: 2021 | D51: 2020 | E51: 2015 | F51: System Renewal | G51: ='App.2-AB_Capital Expenditures'!T14 -> 2018 | H51: ='App.2-AB_Capital Expenditures'!T18 -> 4266 | I51: ='App.2-AB_Capital Expenditures'!U18 -> 3140.6
A52: ='LDC Info'!$E$14 -> North Bay Hydro Distribution Limited - North Bay service territory | B52: EB-2020-0043 | C52: 2021 | D52: 2020 | E52: 2015 | F52: System Service | G52: ='App.2-AB_Capital Expenditures'!T14 -> 2018 | H52: ='App.2-AB_Capital Expenditures'!T19 -> 89 | I52: ='App.2-AB_Capital Expenditures'!U19 -> 1838.6
A53: ='LDC Info'!$E$14 -> North Bay Hydro Distribution Limited - North Bay service territory | B53: EB-2020-0043 | C53: 2021 | D53: 2020 | E53: 2015 | F53: General Plant | G53: ='App.2-AB_Capital Expenditures'!T14 -> 2018 | H53: ='App.2-AB_Capital Expenditures'!T20 -> 351 | I53: ='App.2-AB_Capital Expenditures'!U20 -> 330
A54: ='LDC Info'!$E$14 -> North Bay Hydro Distribution Limited - North Bay service territory | B54: EB-2020-0043 | C54: 2021 | D54: 2020 | E54: 2015 | F54: Total Expenditure | G54: ='App.2-AB_Capital Expenditures'!T14 -> 2018 | H54: ='App.2-AB_Capital Expenditures'!T21 -> 5920 | I54: ='App.2-AB_Capital Expenditures'!U21 -> 6615.2
A55: ='LDC Info'!$E$14 -> North Bay Hydro Distribution Limited - North Bay service territory | B55: EB-2020-0043 | C55: 2021 | D55: 2020 | E55: 2015 | F55: Capital Contributions | G55: ='App.2-AB_Capital Expenditures'!T14 -> 2018 | H55: ='App.2-AB_Capital Expenditures'!T22 -> 0 | I55: ='App.2-AB_Capital Expenditures'!U22 -> -559
A56: ='LDC Info'!$E$14 -> North Bay Hydro Distribution Limited - North Bay service territory | B56: EB-2020-0043 | C56: 2021 | D56: 2020 | E56: 2015 | F56: Net Capital Expenditures | G56: ='App.2-AB_Capital Expenditures'!T14 -> 2018 | H56: ='App.2-AB_Capital Expenditures'!T23 -> 0 | I56: ='App.2-AB_Capital Expenditures'!U23 -> 6056.2
A57: ='LDC Info'!$E$14 -> North Bay Hydro Distribution Limited - North Bay service territory | B57: EB-2020-0043 | C57: 2021 | D57: 2020 | E57: 2015 | F57: System O&M | G57: ='App.2-AB_Capital Expenditures'!T14 -> 2018 | H57: ='App.2-AB_Capital Expenditures'!T24 -> 0 | I57: ='App.2-AB_Capital Expenditures'!U24 -> 2298
A58: ='LDC Info'!$E$14 -> North Bay Hydro Distribution Limited - North Bay service territory | B58: EB-2020-0043 | C58: 2021 | D58: 2020 | E58: 2015 | F58: System Access | G58: ='App.2-AB_Capital Expenditures'!W14 -> 2019 | H58: ='App.2-AB_Capital Expenditures'!W17 -> 1238 | I58: ='App.2-AB_Capital Expenditures'!X17 -> 1757
A59: ='LDC Info'!$E$14 -> North Bay Hydro Distribution Limited - North Bay service territory | B59: EB-2020-0043 | C59: 2021 | D59: 2020 | E59: 2015 | F59: System Renewal | G59: ='App.2-AB_Capital Expenditures'!W14 -> 2019 | H59: ='App.2-AB_Capital Expenditures'!W18 -> 4054 | I59: ='App.2-AB_Capital Expenditures'!X18 -> 3788
A60: ='LDC Info'!$E$14 -> North Bay Hydro Distribution Limited - North Bay service territory | B60: EB-2020-0043 | C60: 2021 | D60: 2020 | E60: 2015 | F60: System Service | G60: ='App.2-AB_Capital Expenditures'!W14 -> 2019 | H60: ='App.2-AB_Capital Expenditures'!W19 -> 136 | I60: ='App.2-AB_Capital Expenditures'!X19 -> 273
A61: ='LDC Info'!$E$14 -> North Bay Hydro Distribution Limited - North Bay service territory | B61: EB-2020-0043 | C61: 2021 | D61: 2020 | E61: 2015 | F61: General Plant | G61: ='App.2-AB_Capital Expenditures'!W14 -> 2019 | H61: ='App.2-AB_Capital Expenditures'!W20 -> 642 | I61: ='App.2-AB_Capital Expenditures'!X20 -> 771
A62: ='LDC Info'!$E$14 -> North Bay Hydro Distribution Limited - North Bay service territory | B62: EB-2020-0043 | C62: 2021 | D62: 2020 | E62: 2015 | F62: Total Expenditure | G62: ='App.2-AB_Capital Expenditures'!W14 -> 2019 | H62: ='App.2-AB_Capital Expenditures'!W21 -> 6070 | I62: ='App.2-AB_Capital Expenditures'!X21 -> 6589
A63: ='LDC Info'!$E$14 -> North Bay Hydro Distribution Limited - North Bay service territory | B63: EB-2020-0043 | C63: 2021 | D63: 2020 | E63: 2015 | F63: Capital Contributions | G63: ='App.2-AB_Capital Expenditures'!W14 -> 2019 | H63: ='App.2-AB_Capital Expenditures'!W22 -> 0 | I63: ='App.2-AB_Capital Expenditures'!X22 -> -483
A64: ='LDC Info'!$E$14 -> North Bay Hydro Distribution Limited - North Bay service territory | B64: EB-2020-0043 | C64: 2021 | D64: 2020 | E64: 2015 | F64: Net Capital Expenditures | G64: ='App.2-AB_Capital Expenditures'!W14 -> 2019 | H64: ='App.2-AB_Capital Expenditures'!W23 -> 0 | I64: ='App.2-AB_Capital Expenditures'!X23 -> 6106
A65: ='LDC Info'!$E$14 -> North Bay Hydro Distribution Limited - North Bay service territory | B65: EB-2020-0043 | C65: 2021 | D65: 2020 | E65: 2015 | F65: System O&M | G65: ='App.2-AB_Capital Expenditures'!W14 -> 2019 | H65: ='App.2-AB_Capital Expenditures'!W24 -> 0 | I65: ='App.2-AB_Capital Expenditures'!X24 -> 2755
A66: ='LDC Info'!$E$14 -> North Bay Hydro Distribution Limited - North Bay service territory | B66: =EBNUMBER -> EB-2020-0043 | C66: =TestYear -> 2021 | D66: =BridgeYear -> 2020 | E66: =RebaseYear -> 2015 | F66: System Access | G66: ='App.2-AB_Capital Expenditures'!Z14 -> 2020 | H66: ='App.2-AB_Capital Expenditures'!Z17 -> 0 | I66: ='App.2-AB_Capital Expenditures'!AA17 -> 1285
A67: ='LDC Info'!$E$14 -> North Bay Hydro Distribution Limited - North Bay service territory | B67: EB-2020-0043 | C67: 2021 | D67: 2020 | E67: 2015 | F67: System Renewal | G67: ='App.2-AB_Capital Expenditures'!Z14 -> 2020 | H67: ='App.2-AB_Capital Expenditures'!Z18 -> 0 | I67: ='App.2-AB_Capital Expenditures'!AA18 -> 3841
A68: ='LDC Info'!$E$14 -> North Bay Hydro Distribution Limited - North Bay service territory | B68: EB-2020-0043 | C68: 2021 | D68: 2020 | E68: 2015 | F68: System Service | G68: ='App.2-AB_Capital Expenditures'!Z14 -> 2020 | H68: ='App.2-AB_Capital Expenditures'!Z19 -> 0 | I68: ='App.2-AB_Capital Expenditures'!AA19 -> 203
A69: ='LDC Info'!$E$14 -> North Bay Hydro Distribution Limited - North Bay service territory | B69: EB-2020-0043 | C69: 2021 | D69: 2020 | E69: 2015 | F69: General Plant | G69: ='App.2-AB_Capital Expenditures'!Z14 -> 2020 | H69: ='App.2-AB_Capital Expenditures'!Z20 -> 0 | I69: ='App.2-AB_Capital Expenditures'!AA20 -> 856
A70: ='LDC Info'!$E$14 -> North Bay Hydro Distribution Limited - North Bay service territory | B70: EB-2020-0043 | C70: 2021 | D70: 2020 | E70: 2015 | F70: Total Expenditure | G70: ='App.2-AB_Capital Expenditures'!Z14 -> 2020 | H70: ='App.2-AB_Capital Expenditures'!Z21 -> 0 | I70: ='App.2-AB_Capital Expenditures'!AA21 -> 6185
A71: ='LDC Info'!$E$14 -> North Bay Hydro Distribution Limited - North Bay service territory | B71: EB-2020-0043 | C71: 2021 | D71: 2020 | E71: 2015 | F71: Capital Contributions | G71: ='App.2-AB_Capital Expenditures'!Z14 -> 2020 | H71: ='App.2-AB_Capital Expenditures'!Z22 -> 0 | I71: ='App.2-AB_Capital Expenditures'!AA22 -> -528
A72: ='LDC Info'!$E$14 -> North Bay Hydro Distribution Limited - North Bay service territory | B72: EB-2020-0043 | C72: 2021 | D72: 2020 | E72: 2015 | F72: Net Capital Expenditures | G72: ='App.2-AB_Capital Expenditures'!Z14 -> 2020 | H72: ='App.2-AB_Capital Expenditures'!Z23 -> 0 | I72: ='App.2-AB_Capital Expenditures'!AA23 -> 5657
A73: ='LDC Info'!$E$14 -> North Bay Hydro Distribution Limited - North Bay service territory | B73: EB-2020-0043 | C73: 2021 | D73: 2020 | E73: 2015 | F73: System O&M | G73: ='App.2-AB_Capital Expenditures'!Z14 -> 2020 | H73: ='App.2-AB_Capital Expenditures'!Z24 -> 0 | I73: ='App.2-AB_Capital Expenditures'!AA24 -> 0
A74: ='LDC Info'!$E$14 -> North Bay Hydro Distribution Limited - North Bay service territory | B74: EB-2020-0043 | C74: 2021 | D74: 2020 | E74: 2015 | F74: System Access | G74: ='App.2-AB_Capital Expenditures'!AC14 -> 2021 | H74: ='App.2-AB_Capital Expenditures'!AC17 -> 951
A75: ='LDC Info'!$E$14 -> North Bay Hydro Distribution Limited - North Bay service territory | B75: EB-2020-0043 | C75: 2021 | D75: 2020 | E75: 2015 | F75: System Renewal | G75: ='App.2-AB_Capital Expenditures'!AC14 -> 2021 | H75: ='App.2-AB_Capital Expenditures'!AC18 -> 4544
A76: ='LDC Info'!$E$14 -> North Bay Hydro Distribution Limited - North Bay service territory | B76: EB-2020-0043 | C76: 2021 | D76: 2020 | E76: 2015 | F76: System Service | G76: ='App.2-AB_Capital Expenditures'!AC14 -> 2021 | H76: ='App.2-AB_Capital Expenditures'!AC19 -> 288
A77: ='LDC Info'!$E$14 -> North Bay Hydro Distribution Limited - North Bay service territory | B77: EB-2020-0043 | C77: 2021 | D77: 2020 | E77: 2015 | F77: General Plant | G77: ='App.2-AB_Capital Expenditures'!AC14 -> 2021 | H77: ='App.2-AB_Capital Expenditures'!AC20 -> 909
A78: ='LDC Info'!$E$14 -> North Bay Hydro Distribution Limited - North Bay service territory | B78: EB-2020-0043 | C78: 2021 | D78: 2020 | E78: 2015 | F78: Total Expenditure | G78: ='App.2-AB_Capital Expenditures'!AC14 -> 2021 | H78: ='App.2-AB_Capital Expenditures'!AC21 -> 6692
A79: ='LDC Info'!$E$14 -> North Bay Hydro Distribution Limited - North Bay service territory | B79: EB-2020-0043 | C79: 2021 | D79: 2020 | E79: 2015 | F79: Capital Contributions | G79: ='App.2-AB_Capital Expenditures'!AC14 -> 2021 | H79: ='App.2-AB_Capital Expenditures'!AC22 -> -551
A80: ='LDC Info'!$E$14 -> North Bay Hydro Distribution Limited - North Bay service territory | B80: EB-2020-0043 | C80: 2021 | D80: 2020 | E80: 2015 | F80: Net Capital Expenditures | G80: ='App.2-AB_Capital Expenditures'!AC14 -> 2021 | H80: ='App.2-AB_Capital Expenditures'!AC23 -> 6141
A81: ='LDC Info'!$E$14 -> North Bay Hydro Distribution Limited - North Bay service territory | B81: EB-2020-0043 | C81: 2021 | D81: 2020 | E81: 2015 | F81: System O&M | G81: ='App.2-AB_Capital Expenditures'!AC14 -> 2021 | H81: ='App.2-AB_Capital Expenditures'!AC24 -> 3642
A82: ='LDC Info'!$E$14 -> North Bay Hydro Distribution Limited - North Bay service territory | B82: EB-2020-0043 | C82: 2021 | D82: 2020 | E82: 2015 | F82: System Access | G82: ='App.2-AB_Capital Expenditures'!AD14 -> 2022 | H82: ='App.2-AB_Capital Expenditures'!AD17 -> 969
A83: ='LDC Info'!$E$14 -> North Bay Hydro Distribution Limited - North Bay service territory | B83: EB-2020-0043 | C83: 2021 | D83: 2020 | E83: 2015 | F83: System Renewal | G83: ='App.2-AB_Capital Expenditures'!AD14 -> 2022 | H83: ='App.2-AB_Capital Expenditures'!AD18 -> 4008
A84: ='LDC Info'!$E$14 -> North Bay Hydro Distribution Limited - North Bay service territory | B84: EB-2020-0043 | C84: 2021 | D84: 2020 | E84: 2015 | F84: System Service | G84: ='App.2-AB_Capital Expenditures'!AD14 -> 2022 | H84: ='App.2-AB_Capital Expenditures'!AD19 -> 294
A85: ='LDC Info'!$E$14 -> North Bay Hydro Distribution Limited - North Bay service territory | B85: EB-2020-0043 | C85: 2021 | D85: 2020 | E85: 2015 | F85: General Plant | G85: ='App.2-AB_Capital Expenditures'!AD14 -> 2022 | H85: ='App.2-AB_Capital Expenditures'!AD20 -> 587
A86: ='LDC Info'!$E$14 -> North Bay Hydro Distribution Limited - North Bay service territory | B86: EB-2020-0043 | C86: 2021 | D86: 2020 | E86: 2015 | F86: Total Expenditure | G86: ='App.2-AB_Capital Expenditures'!AD14 -> 2022 | H86: ='App.2-AB_Capital Expenditures'!AD21 -> 5858
A87: ='LDC Info'!$E$14 -> North Bay Hydro Distribution Limited - North Bay service territory | B87: EB-2020-0043 | C87: 2021 | D87: 2020 | E87: 2015 | F87: Capital Contributions | G87: ='App.2-AB_Capital Expenditures'!AD14 -> 2022 | H87: ='App.2-AB_Capital Expenditures'!AD22 -> -562
A88: ='LDC Info'!$E$14 -> North Bay Hydro Distribution Limited - North Bay service territory | B88: EB-2020-0043 | C88: 2021 | D88: 2020 | E88: 2015 | F88: Net Capital Expenditures | G88: ='App.2-AB_Capital Expenditures'!AD14 -> 2022 | H88: ='App.2-AB_Capital Expenditures'!AD23 -> 5296
A89: ='LDC Info'!$E$14 -> North Bay Hydro Distribution Limited - North Bay service territory | B89: EB-2020-0043 | C89: 2021 | D89: 2020 | E89: 2015 | F89: System O&M | G89: ='App.2-AB_Capital Expenditures'!AD14 -> 2022 | H89: ='App.2-AB_Capital Expenditures'!AD24 -> 3713
A90: ='LDC Info'!$E$14 -> North Bay Hydro Distribution Limited - North Bay service territory | B90: EB-2020-0043 | C90: 2021 | D90: 2020 | E90: 2015 | F90: System Access | G90: ='App.2-AB_Capital Expenditures'!AE14 -> 2023 | H90: ='App.2-AB_Capital Expenditures'!AE17 -> 987.4
A91: ='LDC Info'!$E$14 -> North Bay Hydro Distribution Limited - North Bay service territory | B91: EB-2020-0043 | C91: 2021 | D91: 2020 | E91: 2015 | F91: System Renewal | G91: ='App.2-AB_Capital Expenditures'!AE14 -> 2023 | H91: ='App.2-AB_Capital Expenditures'!AE18 -> 4057.4
A92: ='LDC Info'!$E$14 -> North Bay Hydro Distribution Limited - North Bay service territory | B92: EB-2020-0043 | C92: 2021 | D92: 2020 | E92: 2015 | F92: System Service | G92: ='App.2-AB_Capital Expenditures'!AE14 -> 2023 | H92: ='App.2-AB_Capital Expenditures'!AE19 -> 299
A93: ='LDC Info'!$E$14 -> North Bay Hydro Distribution Limited - North Bay service territory | B93: EB-2020-0043 | C93: 2021 | D93: 2020 | E93: 2015 | F93: General Plant | G93: ='App.2-AB_Capital Expenditures'!AE14 -> 2023 | H93: ='App.2-AB_Capital Expenditures'!AE20 -> 666
A94: ='LDC Info'!$E$14 -> North Bay Hydro Distribution Limited - North Bay service territory | B94: EB-2020-0043 | C94: 2021 | D94: 2020 | E94: 2015 | F94: Total Expenditure | G94: ='App.2-AB_Capital Expenditures'!AE14 -> 2023 | H94: ='App.2-AB_Capital Expenditures'!AE21 -> 6009.8
A95: ='LDC Info'!$E$14 -> North Bay Hydro Distribution Limited - North Bay service territory | B95: EB-2020-0043 | C95: 2021 | D95: 2020 | E95: 2015 | F95: Capital Contributions | G95: ='App.2-AB_Capital Expenditures'!AE14 -> 2023 | H95: ='App.2-AB_Capital Expenditures'!AE22 -> -572
A96: ='LDC Info'!$E$14 -> North Bay Hydro Distribution Limited - North Bay service territory | B96: EB-2020-0043 | C96: 2021 | D96: 2020 | E96: 2015 | F96: Net Capital Expenditures | G96: ='App.2-AB_Capital Expenditures'!AE14 -> 2023 | H96: ='App.2-AB_Capital Expenditures'!AE23 -> 5437.8
A97: ='LDC Info'!$E$14 -> North Bay Hydro Distribution Limited - North Bay service territory | B97: EB-2020-0043 | C97: 2021 | D97: 2020 | E97: 2015 | F97: System O&M | G97: ='App.2-AB_Capital Expenditures'!AE14 -> 2023 | H97: ='App.2-AB_Capital Expenditures'!AE24 -> 3785
A98: ='LDC Info'!$E$14 -> North Bay Hydro Distribution Limited - North Bay service territory | B98: =EBNUMBER -> EB-2020-0043 | C98: =TestYear -> 2021 | D98: =BridgeYear -> 2020 | E98: =RebaseYear -> 2015 | F98: System Access | G98: ='App.2-AB_Capital Expenditures'!AF14 -> 2024 | H98: ='App.2-AB_Capital Expenditures'!AF17 -> 1005.6
A99: ='LDC Info'!$E$14 -> North Bay Hydro Distribution Limited - North Bay service territory | B99: EB-2020-0043 | C99: 2021 | D99: 2020 | E99: 2015 | F99: System Renewal | G99: ='App.2-AB_Capital Expenditures'!AF14 -> 2024 | H99: ='App.2-AB_Capital Expenditures'!AF18 -> 4153.6
A100: ='LDC Info'!$E$14 -> North Bay Hydro Distribution Limited - North Bay service territory | B100: EB-2020-0043 | C100: 2021 | D100: 2020 | E100: 2015 | F100: System Service | G100: ='App.2-AB_Capital Expenditures'!AF14 -> 2024 | H100: ='App.2-AB_Capital Expenditures'!AF19 -> 305
A101: ='LDC Info'!$E$14 -> North Bay Hydro Distribution Limited - North Bay service territory | B101: EB-2020-0043 | C101: 2021 | D101: 2020 | E101: 2015 | F101: General Plant | G101: ='App.2-AB_Capital Expenditures'!AF14 -> 2024 | H101: ='App.2-AB_Capital Expenditures'!AF20 -> 1041
A102: ='LDC Info'!$E$14 -> North Bay Hydro Distribution Limited - North Bay service territory | B102: EB-2020-0043 | C102: 2021 | D102: 2020 | E102: 2015 | F102: Total Expenditure | G102: ='App.2-AB_Capital Expenditures'!AF14 -> 2024 | H102: ='App.2-AB_Capital Expenditures'!AF21 -> 6505.2
A103: ='LDC Info'!$E$14 -> North Bay Hydro Distribution Limited - North Bay service territory | B103: EB-2020-0043 | C103: 2021 | D103: 2020 | E103: 2015 | F103: Capital Contributions | G103: ='App.2-AB_Capital Expenditures'!AF14 -> 2024 | H103: ='App.2-AB_Capital Expenditures'!AF22 -> -583
A104: ='LDC Info'!$E$14 -> North Bay Hydro Distribution Limited - North Bay service territory | B104: EB-2020-0043 | C104: 2021 | D104: 2020 | E104: 2015 | F104: Net Capital Expenditures | G104: ='App.2-AB_Capital Expenditures'!AF14 -> 2024 | H104: ='App.2-AB_Capital Expenditures'!AF23 -> 5922.2
A105: ='LDC Info'!$E$14 -> North Bay Hydro Distribution Limited - North Bay service territory | B105: EB-2020-0043 | C105: 2021 | D105: 2020 | E105: 2015 | F105: System O&M | G105: ='App.2-AB_Capital Expenditures'!AF14 -> 2024 | H105: ='App.2-AB_Capital Expenditures'!AF24 -> 3859
A106: ='LDC Info'!$E$14 -> North Bay Hydro Distribution Limited - North Bay service territory | B106: EB-2020-0043 | C106: 2021 | D106: 2020 | E106: 2015 | F106: System Access | G106: ='App.2-AB_Capital Expenditures'!AG14 -> 2025 | H106: ='App.2-AB_Capital Expenditures'!AG17 -> 1025
A107: ='LDC Info'!$E$14 -> North Bay Hydro Distribution Limited - North Bay service territory | B107: EB-2020-0043 | C107: 2021 | D107: 2020 | E107: 2015 | F107: System Renewal | G107: ='App.2-AB_Capital Expenditures'!AG14 -> 2025 | H107: ='App.2-AB_Capital Expenditures'!AG18 -> 4221
A108: ='LDC Info'!$E$14 -> North Bay Hydro Distribution Limited - North Bay service territory | B108: EB-2020-0043 | C108: 2021 | D108: 2020 | E108: 2015 | F108: System Service | G108: ='App.2-AB_Capital Expenditures'!AG14 -> 2025 | H108: ='App.2-AB_Capital Expenditures'!AG19 -> 311
A109: ='LDC Info'!$E$14 -> North Bay Hydro Distribution Limited - North Bay service territory | B109: EB-2020-0043 | C109: 2021 | D109: 2020 | E109: 2015 | F109: General Plant | G109: ='App.2-AB_Capital Expenditures'!AG14 -> 2025 | H109: ='App.2-AB_Capital Expenditures'!AG20 -> 649
A110: ='LDC Info'!$E$14 -> North Bay Hydro Distribution Limited - North Bay service territory | B110: EB-2020-0043 | C110: 2021 | D110: 2020 | E110: 2015 | F110: Total Expenditure | G110: ='App.2-AB_Capital Expenditures'!AG14 -> 2025 | H110: ='App.2-AB_Capital Expenditures'!AG21 -> 6206
A111: ='LDC Info'!$E$14 -> North Bay Hydro Distribution Limited - North Bay service territory | B111: EB-2020-0043 | C111: 2021 | D111: 2020 | E111: 2015 | F111: Capital Contributions | G111: ='App.2-AB_Capital Expenditures'!AG14 -> 2025 | H111: ='App.2-AB_Capital Expenditures'!AG22 -> -594
A112: ='LDC Info'!$E$14 -> North Bay Hydro Distribution Limited - North Bay service territory | B112: EB-2020-0043 | C112: 2021 | D112: 2020 | E112: 2015 | F112: Net Capital Expenditures | G112: ='App.2-AB_Capital Expenditures'!AG14 -> 2025 | H112: ='App.2-AB_Capital Expenditures'!AG23 -> 5612
A113: ='LDC Info'!$E$14 -> North Bay Hydro Distribution Limited - North Bay service territory | B113: EB-2020-0043 | C113: 2021 | D113: 2020 | E113: 2015 | F113: System O&M | G113: ='App.2-AB_Capital Expenditures'!AG14 -> 2025 | H113: ='App.2-AB_Capital Expenditures'!AG24 -> 3935

Sheet App.2-AC_Customer Engagement
B1: File Number: | C1: =EBNUMBER -> EB-2020-0043
B2: Exhibit: | C2: 2
B3: Tab:
B4: Schedule:
B5: Page:
B7: Date:
A9: Appendix 2-AC
A10: Customer Engagement Activities Summary
A12: Provide a list of customer engagement activities | B12: Provide a list of customer needs and preferences identified through each engagement activity | C12: Actions taken to respond to identified needs and preferences. If no action was taken, explain why.
A13: Engagement Activities
A14: EVERYDAY ENGAGEMENT ACTIVITIES:
A15: Activities | B15: Activity description | C15: Results and actions taken
A16: 10,000 customer walk-ins per year to the office for service | B16: Pay a bill, arrange payment terms, account set up, general inquiries, new service | C16: Maintain this service option, including an ability to make payment in-person. Trained all front office staff to handle majority of issues.
A17: 24,000 inbound calls per year between 2015 and 2019, approximately 11,000 outbound calls in 2019 | B17: Need to explain the bill, need to make payment arrangements, account balances, billing inquiries | C17: Maintain this service option. All front office staff trained to handle all customer inquiries, or direct to proper department for expertise.
A18: Annual vegetation control program, 4000-6000 customers/year | B18: Maintain safe minimum clearance between trees and utility lines as well as a consistent supply of service to homes and businesses throughout our jurisdiction | C18: Notices to customers of annual trimming, as well as education surrounding the necessity of the program. 4 and 5 year cycle throughout the community.
A19: Locating electrical infrastructure, 2,000-3,000 requests per year | B19: Need to build new infrastructure requires electrical plant to be safely located so construction can proceed | C19: Locates are all now scheduled through On1Call as mandated by the Government of Ontario. On1Call then contacts our contractor to schedule the locates
A20: Annual Vegetation control program, 4000-6000 customers per year | B20: A a consistent supply of service to homes and businesses. It is our responsibility to maintain safe minimum clearance between trees and utility lines throughout our community to enhance reliability | C20: Confirm scope of work on individual properties. Safely establishing right of way. Education and advisement. Removing, and trimming trees to eliminate hazards and provide strong reliability
A21: Electrical Safety Awareness training | B21: Need for elementary students to understand and respect electrical system hazards | C21: In-class program through 21 schools in the North Bay region. Covering safety for JK through Grade 8 classes.
A22: Social Media | B22: Need for instant and efficient updates, feedback and timely information | C22: Customers have continually requested more immediate updates, mainly during power interruptions, to better understand duration and magnitude of outages. In 2013 we established presence on twitter and solidified our engagements on FB, and both are used daily. A more active approach began in 2015 has seen our audience grow significantly. Additionally, NBHDL incorporated social media management software (Hootsuite) to become more effective during these times. With an increased audience on all social media platforms, NBHDL solidified our engagements and both are used daily to provide outage updates, conservation tips, provincial policy changes, promote assistance programs and community involvement
A23: Working with customers on economic development activities | B23: Need for coordinated, multi-utility infrastructure development according to customer schedule and budgets | C23: Core membership in City of North Bay's Development Application Review Team (DART), annual utility coordination meeting to minimize adverse customer impact
A24: Customer Demand Work | B24: Customer require new services, service upgrades, increased transformation, service new developments including subdivisions | C24: Maintain this service, with emphasis on the customer queue with appropriate prioritization
A25: Trouble call response | B25: Customer need for power restoration during unplanned events | C25: 24/7 coverage with ability to call in necessary resources to respond to most contingency situations
A26: Roving Energy Managers (2015/2016) | B26: Need for technical expertise to identify and implement complex industrial conservation project, visits to local businesses and investigations into their energy profile | C26: NBHDL obtained special approval from the OPA to engage 2 Energy Managers to technically support our internal efforts
A27: Corporate website (www.northbayhydro.com) | B27: The need for a fast and efficient one-stop location for customers to find any information they may need, or direction, at any given time | C27: Customers requested a more mobile friendly and acessible website. Some changes and adaptations have been introduced; most notably the outage map portion of the website.
A28: Low Income Community Support | B28: Customer feedback has been very clear on difficulties paying for electricity, and support is a necessity | C28: Customer Service, Billing, and Communications Officer are all extremely active in monitoring requests for support and information related to financial programs available. Feedback is used to develop messaging to educate the community on programs available and local support initiatives
A29: Business Customer Focus Group (2016) | B29: Seeking local knowledge and value of conservation programs and opportunities | C29: Developing a targeted communication and marketing plan to enhance branding and program recognition moving forward
A30: Participation in conservation programs - Businesses | B30: Customers have provided clear feedback that they need clear, and up to date, information on the ever-changing conservation programs and initiatives available | C30: Up until the centralization of the Conservation First Frame work and the Save on Energy programs, NBHDL was active in its local promotion and education of business customers to determine their needs, as well as the programs available for them to participate. Including; energy conservation and the value it provides customers. Support was offered to assist customers, identify projects, complete program applications, and implement energy conservation projects.
A31: Participation in conservation programs - Residents | B31: Customers have provided clear feedback that they need clear, and up to date, information on the ever-changing conservation porograms and intiatives available | C31: Up until the centralization of the Conservation First Frame work and the Save on Energy programs, NBHDL was active in its local promotion and education of residential customers to determine their needs, as well as the programs available for them to participate. Including; energy conservation and the value it provides customers. Support to assist customers, identify projects, complete program applications, and implement energy conservation projects.
A32: RATE APPLICATION ENGAGEMENT:
A33: Activities | B33: Activity description | C33: Results and actions taken
A34: Phase 1: Customer Engagement Survey (September 2019) | B34: Survey conducted at random, consisting of 50 telephone and 490 online respondents as part of the customer engagement outreach | C34: Refer to Exhibit 1 - Customer Engagement
A35: Phase 2: Customer Re-engagement Survey (October 2019) | B35: Survey conducted at random, consisting of 50 telephone and 427 online respondents as part of the customer engagement outreach | C35: Refer to Exhibit 1 - Customer Engagement
A36: Customer Satisfaction Survey (Biannually) | B36: Determining Customer Needs and preferences by way of phone survey. 400 respondents completed the survey | C36: Refer to Exhibit 1 - Customer Engagement
A37: Safety Survey (Biannually) | B37: Pre-Designed Survey to determine the knowledge of our community | C37: Refer to Exhibit 1 - Customer Engagement
A38: SPECIFIC CUSTOMER OUTREACH
A39: Timing/Frequency | B39: Event/Sponsor | C39: Outreach description
A40: 2015-2018 | B40: North Bay Battalion | C40: Conservation advertising and education through in Ice Logo and relationship with executive level staff
A41: 2015, 2016 | B41: Memorial Gardens Tradeshow (North Bay Home and Lifestyle Show) | C41: Conservation program education. Bill explanations, coupon giveaways. E-Bill sign up support. 1000+ Attendees
A42: October 2015 | B42: Contractor event – Cecil’s | C42: Conservation support and educational presentation for local contractors. How to participate, what we can do to assist. 20+ attendees
A43: 42339 | B43: COGEN Grand Opening | C43: Participation in the opening ceremony for the Cogeneration plant/project with our local hospital. Media present. 75+ attendees
A44: May 2016 | B44: Tree Giveaway - Student education | C44: Worked with Greening Nipissing on choosing a school to do donate trees to be planted to all students in attendance. Mayor assisted in the event and was present to take part. 100+ attendees
A45: June 2016 | B45: Terry Young IESO | C45: Fostering a culture of Conservation presentation to local business owners and key stakeholders on conservation and program education. 35+ attendees
A46: 42461 | B46: ICI Presentation | C46: Presentation and ongoing support to Key Stakeholders representing large energy users from local businesses. Instruction and support on taking part in a program that could provide significant savings. 25+ attendees
A47: June 2016 | B47: Chamber of Commerce Presentation | C47: Presentation on local conservation projects and initiatives. How to take part, North Bay Hydro’s role. Project descriptions. 20 attendees
A48: January 2017 | B48: Harriet – Senior Group My Account Presentation | C48: How to sign up for online billing. Conservation education. 20 – 30 attendees
A49: January 2017 | B49: RPP Program | C49: Assisted in the building, marketing and implementation of a pilot program that would allow for more opportunity with less behavior change
A50: Annually since 2017 | B50: West Ferris Tradeshow | C50: Conservation program education. Save on Energy Truck, Kids games and learning opportunities. Affordability fund sign up support. 500+ attendees
A51: 2017 | B51: HEAR Program | C51: Residential conservation program delivery and implementation. Delivered conservation type products to customer's homes, provided an assessment of their energy blueprint. 250+ residents
A52: November 2017 | B52: CEP Ground-breaking | C52: Participation in the ground breaking ceremony for the first microgrid of its kind in Canada. Media present. 50+ attendees
A53: January 2018 | B53: Energy Summit – Montreal | C53: Presentation regarding the Community Energy Park microgrid concept and origin 100+ attendees
A54: March 2018 | B54: World Curling Championships | C54: Sponsor for Nationally Televised event. Booth with educational displays and interaction. Digital banner and Conservation discussions throughout the event 69,000+ attendees
A55: June 2018 | B55: Northgate Mall | C55: Clothesline giveaway, conservation program education 75+ attendees
A56: June 2019 | B56: CEP Grand Opening | C56: Ribbon cutting and media day. Attended by dignitaries, partners, media, and stakeholders. 75+ attendees
A57: October 2019 | B57: City Hall Forum | C57: Educational booth to educate on available conservation programs – Emphasis was Affordability Fund. 100+ attendees
A58: Annually/Ongoing | B58: Christmas Walk | C58: Deploy staff and equipment. Support Downtown Improvement Association (local merchants), our City and to raise awareness about seasonal conservation tips, bill education and customer support to offer bucket truck rides and provide additional support through education as well as one-on-one interaction on the value NBHDL. In 2018 and 2019 it was used to promote the AFT program to customers - 2500+ attendees
A59: Annually/Ongoing | B59: North Bay Science Fair | C59: Sponsor of our local North Bay Science Fair. Staff participation to assist with judging, and created an award to present each year for the project that displays the most advanced depiction of conservation or Electricity. 200 – 300 attendees
A60: Annually/Ongoing | B60: School Safety Presentations | C60: Safety and conservation presentations at each of the local school boards. 1000+ attendees over 21 schools
A61: Annually/Ongoing | B61: Earth Day – North Bay Regional Health Centre | C61: Educational booth with employees providing information on conserving and green efforts. Conservation product giveaways to support (I.e. clotheslines) 200+ attendees
A62: Annually/Ongoing | B62: Vegetation Management | C62: 100 trees donating locally each year. Education on tree trimming initiatives, enhancing the local canopy. 100+ participants
A63: Annually/Ongoing | B63: Armed Forces Day | C63: Assistance in supporting and encouraging support for our local CFB. Parade, static displays. 2000+ attendees
A64: Annually/Ongoing | B64: Our Hospital Walk Run | C64: Sponsorship support, as well as employee participation. Raising funds for advances in our local hospital. 250+ attendees
A67: Note: Use "ALT-ENTER" to go to the next line within a cell

Sheet App.2-B_Acctg Instructions
A1: General Instructions to MIFRS Appendices
A2: Types of Schedules to File
A4: The purpose of this tab is to provide general instructions. The specific instructions to each appendix are listed in footnotes of each appendix.
A6: The typical applicant is expected to have made capitalization and depreciation policy changes under CGAAP as permitted by the OEB on January 1, 2012 or mandated by the OEB by January 1, 2013, and adopted IFRS for reporting purposes on January 1, 2015 (transition date January 1, 2014). Most distributors filing for 2021 rates have rebased with these accounting changes reflected in a prior rebasing application. If that is the case, information relating to pre-accounting policy changes is not generally required. Most distributors may have rebased under MIFRS. If that is the case, information related to the accounting standard used prior to IFRS is not generally required. The information to be provided by applicants will depend on when the accounting policy changes were made and when they last rebased. In general, applicants should provide the following information in the appendices:
E9: Reflecting Accounting Policy Changes in Current Application | G9: Reflected Accounting Policy Changes in Prior Application3 | H9: Rebased under MIFRS in Prior Application3
E10: Accounting Policy Changes in 2012 and Adopted IFRS in 2015 | F10: Accounting Policy Changes in 2013 and Adopted IFRS in 2015 | G10: Adopted IFRS in 2015 | H10: IFRS Since 2015
B11: 2021 | C11: Test | E11: MIFRS | F11: MIFRS | G11: MIFRS | H11: MIFRS
A12: Information to be filed in 2019 CoS Application | B12: 2020 | C12: Bridge | E12: MIFRS | F12: MIFRS | G12: MIFRS | H12: MIFRS
B13: 2019 | C13: Bridge | E13: MIFRS | F13: MIFRS | G13: MIFRS | H13: MIFRS
B14: 2018 | C14: Bridge | E14: MIFRS | F14: MIFRS | G14: MIFRS | H14: MIFRS
B15: 2017 | C15: Historical | E15: MIFRS | F15: MIFRS | G15: MIFRS | H15: MIFRS
B16: 2016 | C16: Historical | E16: MIFRS | F16: MIFRS | G16: MIFRS | H16: MIFRS
B17: 2015 | C17: Historical | E17: MIFRS and Revised CGAAP1 | F17: MIFRS and Revised CGAAP1 | G17: MIFRS and Revised CGAAP1 | H17: N/A
B18: 2014 | C18: Historical | E18: Revised CGAAP | F18: CGAAP and Revised CGAAP2 | G18: N/A | H18: N/A
B19: 2013 | C19: Historical | E19: CGAAP and Revised CGAAP2 | F19: N/A | G19: N/A | H19: N/A
A21: 1) For the transition year (2014), the applicant may file two appendices, one under Revised CGAAP and one under MIFRS, depending on the materiality of impacts. See the specific instructions under each appendix below for further details.
A22: 2) For applicants that are reflecting accounting policy changes for the first time in a rebasing application, the applicant must file two appendices in the year that the applicant implemented changes to its capitalization and depreciation policies (2012 or 2013), one before and one after the policy changes.
A23: 3) Applicants should provide CGAAP and Revised CGAAP schedules (i.e. as indicated in the first two columns of the above table) to support balances in Account 1576 if the account has yet to be disposed of.
A26: Appendix 2-BA - Fixed Asset Schedule
A28: Applicants are to provide Appendix 2-BA in accordance with the years and corresponding accounting standards noted in the above table to provide a year over year continuity in fixed assets.
A29: If this is the first application where the applicant is rebasing under MIFRS, the applicant should file two appendices, one under Revised CGAAP and one under MIFRS for the transition year (2014), if the change between Revised CGAAP and MIFRS is material. If the change from the accounting standards is not material, the applicant may choose to only provide one appendix under MIFRS. However, the applicant must also indicate the fixed asset net book value balance under Revised CGAAP, the total dollar value of the change and explain why it is not material.
A33: The applicant must establish the continuity of historical cost for gross assets and accumulated depreciation by asset class by ensuring that the opening balance in the year agrees to the closing balance in the prior year.
A36: Appendix 2-Cx - Depreciation and Amortization
A38: Applicants are to provide Appendix 2-C in accordance with the years and corresponding accounting standards listed in the above table.
A39: Appendix 2-C is to be used under all of the scenarios presented in the table above. In the appendix, the applicant will need to indicate which scenario applies. The appendix is to be duplicated for each year and for each accounting standard required as per the above table.
A40: Depreciation accounting policy changes were mandated by the OEB by January 1, 2013. In general, no further changes to an applicant's depreciation policy (i.e. assets' service lives) are expected after the OEB mandated changes by January 1, 2013, unless a change is determined to be necessary in accordance with the depreciation review required under IFRS. If the applicant has made any changes to its depreciation policy subsequent to the OEB mandated changes, for the year of the change, applicants must quantify the change in depreciation. If there are significant changes to multiple asset classes, the applicant must complete Appendix 2-C before and after the change. Applicants must also explain the nature of the change, the reason for the change, quantify the impact of the change.
A42: Appendix 2-E - Account 1575, IFRS-CGAAP Transitional PP&E Amounts (2-EA), Account 1576, Accounting Changes Under CGAAP (2-EB, 2-EC) CONTACT OEB STAFF IF TAB REQUIRED
A44: 1) For an applicant that has a balance in Account 1576 to dispose:
A45: · | B45: If an applicant changed capitalization and depreciation policies effective January 1, 2012, the applicant must complete Appendix 2-EB
A46: · | B46: If an applicant changed capitalization and depreciation policies effective January 1, 2013, the applicant must complete Appendix 2-EC
A48: 2) For an applicant that has a balance in Account 1575 to dispose:
A49: · | B49: The applicant must complete 2-EA
A50: If the applicant did not make any further PP&E accounting policy changes beyond the capitalization and depreciation policy changes as mandated by the OEB by January 1, 2013 (i.e. no further changes made on transition to IFRS), the applicant must indicate this and does not need to complete Appendix 2-EA.
A54: Appendix 2-Y - Summary of Impacts to Revenue Requirement from Transition to MIFRS CONTACT OEB STAFF IF TAB REQUIRED
A56: Applicants must complete Appendix 2-Y if this is the first rebasing application under MIFRS. An applicant must provide a summary of the dollar impacts of MIFRS to each component of the revenue requirement (e.g. rate base, operating costs, etc.), including the overall impact on the proposed revenue requirement. Accordingly, the applicant must identify financial differences and resulting revenue requirement impacts arising from the adoption of MIFRS as compared to CGAAP. If the applicant is reflecting the changes in capitalization and depreciation policies for the first time in a rebasing application as well, then a comparison between MIFRS and CGAAP before the change in accounting policies should be completed. If the applicant changed capitalization and depreciation policies and reflected these changes in a prior rebasing application, then a comparison between MIFRS and CGAAP after the change in accounting policies should be completed.

Sheet App.2-BA_Fixed Asset Cont
L1: File Number: | M1: =EBNUMBER -> EB-2020-0043
L2: Exhibit:
L3: Tab:
L4: Schedule:
L5: Page:
L7: Date:
A9: Appendix 2-BA
A10: Fixed Asset Continuity Schedule
E12: Accounting Standard | F12: MIFRS
E13: Year | F13: 2015
D15: Cost | J15: Accumulated Depreciation
A16: CCA Class 2 | B16: OEB Account 3 | C16: Description 3 | D16: Opening Balance | E16: Additions 4 | F16: Disposals 6 | G16: Closing Balance | I16: Opening Balance | J16: Additions | K16: Disposals 6 | L16: Closing Balance | M16: Net Book Value
A17: 90 | B17: 1609 | C17: Capital Contributions Paid | D17: 0 | E17: 0 | F17: 0 | G17: =D17+E17+F17 -> 0 | I17: 0 | J17: 0 | K17: 0 | L17: =I17+J17+K17 -> 0 | M17: =G17+L17 -> 0
A18: 12 | B18: 1611 | C18: Computer Software (Formally known as Account 1925) | D18: 1479561.96 | E18: 26417.56 | F18: 0 | G18: =D18+E18+F18 -> 1505979.52 | I18: 1224252.594 | J18: 102964.6023 | K18: 0 | L18: =I18+J18+K18 -> 1327217.196 | M18: =G18-L18 -> 178762.3238
A19: CEC | B19: 1612 | C19: Land Rights (Formally known as Account 1906) | D19: 0 | E19: 0 | F19: 0 | G19: =D19+E19+F19 -> 0 | I19: 0 | J19: 0 | K19: 0 | L19: =I19+J19+K19 -> 0 | M19: =G19-L19 -> 0
A20: N/A | B20: 1805 | C20: Land | D20: 446565 | E20: 50811 | F20: 0 | G20: =D20+E20+F20 -> 497376 | I20: 0 | J20: 0 | K20: 0 | L20: =I20+J20+K20 -> 0 | M20: 497376
A21: 47 | B21: 1808 | C21: Buildings | D21: 1830506 | E21: 0 | F21: 0 | G21: =D21+E21+F21 -> 1830506 | I21: 391450 | J21: 34598 | K21: 0 | L21: =I21+J21+K21 -> 426048 | M21: 1404458
A22: 13 | B22: 1810 | C22: Leasehold Improvements | D22: 0 | E22: 0 | F22: 0 | G22: 0 | I22: 0 | J22: 0 | K22: 0 | L22: 0 | M22: 0
A23: 47 | B23: 1815 | C23: Transformer Station Equipment >50 kV | D23: 0 | E23: 0 | F23: 0 | G23: 0 | I23: 0 | J23: 0 | K23: 0 | L23: 0 | M23: 0
A24: 47 | B24: 1820 | C24: Distribution Station Equipment <50 kV | D24: 13660424 | E24: =2189661+343964 -> 2533625 | F24: 0 | G24: 16194049 | I24: 4731052 | J24: 345080 | K24: 0 | L24: 5076132 | M24: 11117917
A25: 47 | B25: 1825 | C25: Storage Battery Equipment | D25: 0 | E25: 0 | F25: 0 | G25: 0 | I25: 0 | J25: 0 | K25: 0 | L25: 0 | M25: 0
A26: 47 | B26: 1830 | C26: Poles, Towers & Fixtures | D26: 23050282 | E26: 1143597 | F26: -363805 | G26: 23830074 | I26: 11545406.08 | J26: 367145.212 | K26: -318543.54 | L26: 11594007.75 | M26: 12236066.25
A27: 47 | B27: 1835 | C27: Overhead Conductors & Devices | D27: 17046356 | E27: 802077 | F27: -141079 | G27: 17707354 | I27: 8872695.429 | J27: 234828.1385 | K27: -122806.24 | L27: 8984717.328 | M27: 8722636.672
A28: 47 | B28: 1840 | C28: Underground Conduit | D28: 1215600 | E28: 27336 | F28: -558 | G28: 1242378 | I28: 186720.1467 | J28: 23583.8158 | K28: -212.74 | L28: 210091.2225 | M28: 1032286.777
A29: 47 | B29: 1845 | C29: Underground Conductors & Devices | D29: 7414450 | E29: 51130 | F29: -23324 | G29: 7442256 | I29: 4698050.883 | J29: 102259.7491 | K29: -21548.98 | L29: 4778761.652 | M29: 2663494.348
A30: 47 | B30: 1850 | C30: Line Transformers | D30: 17009343.94 | E30: 539715.95 | F30: -81586.07 | G30: 17467473.82 | I30: 9625189.84 | J30: 264022.6965 | K30: -77482.05 | L30: 9811730.487 | M30: 7655743.333
A31: 47 | B31: 1855 | C31: Services (Overhead & Underground) | D31: 18555182.63 | E31: 626962.39 | F31: 0 | G31: 19182145.02 | I31: 7334178.918 | J31: 421756.6298 | K31: 0 | L31: 7755935.548 | M31: 11426209.47
A32: 47 | B32: 1860 | C32: Meters | D32: 1557486.84 | E32: 0 | F32: 0 | G32: 1557486.84 | I32: 916090.24 | J32: 40810.13 | K32: 0 | L32: 956900.37 | M32: 600586.47
A33: 47 | B33: 1860 | C33: Meters (Smart Meters) | D33: =3834956.72+32075 -> 3867031.72 | E33: 254295.16 | F33: 0 | G33: 4121326.88 | I33: 1126834.6 | J33: =265990.25+13915.28 -> 279905.53 | K33: 0 | L33: 1406740.13 | M33: 2714586.75
A34: N/A | B34: 1905 | C34: Land | D34: 86551 | E34: 0 | F34: 0 | G34: 86551 | I34: 0 | J34: 0 | K34: 0 | L34: 0 | M34: 86551
A35: 1 | B35: 1908 | C35: Buildings & Fixtures | D35: 2951333.75 | E35: 170169.52 | F35: 0 | G35: 3121503.27 | I35: 1428483.483 | J35: 81393.59878 | K35: 0 | L35: 1509877.081 | M35: 1611626.189
A36: 13 | B36: 1910 | C36: Leasehold Improvements | F36: 0 | G36: 0 | I36: 0 | J36: 0 | K36: 0 | L36: 0 | M36: 0
A37: 8 | B37: 1915 | C37: Office Furniture & Equipment (10 years) | D37: 379285.98 | E37: 750.79 | F37: 0 | G37: 380036.77 | I37: 320588.0615 | J37: 10878.195 | K37: 0 | L37: 331466.2565 | M37: 48570.5135
A38: 8 | B38: 1915 | C38: Office Furniture & Equipment (5 years) | D38: 0 | E38: 0 | F38: 0 | G38: 0 | I38: 0 | J38: 0 | K38: 0 | L38: 0 | M38: 0
A39: 10 | B39: 1920 | C39: Computer Equipment - Hardware | D39: 0 | E39: 0 | F39: 0 | I39: 0 | J39: 0 | K39: 0 | L39: 0 | M39: 0
A40: 45 | B40: 1920 | C40: Computer Equip.-Hardware(Post Mar. 22/04) | D40: 0 | E40: 0 | F40: 0 | G40: =D40+E40+F40 -> 0 | I40: 0 | J40: 0 | K40: 0 | L40: 0 | M40: 0
A41: 50 | B41: 1920 | C41: Computer Equip.-Hardware(Post Mar. 19/07) | D41: 953447.8 | E41: 29127.23 | F41: -8634.6 | G41: 973940.43 | I41: 743149.5093 | J41: 72734.63665 | K41: -8634.6 | L41: 807249.546 | M41: 166690.884
A42: 10 | B42: 1930 | C42: Transportation Equipment | D42: 2395300.85 | E42: 590665.38 | F42: -72968.38 | G42: 2912997.85 | I42: 1757910.814 | J42: 261459.52 | K42: -68352.47 | L42: 1951017.864 | M42: 961979.9864
A43: 8 | B43: 1935 | C43: Stores Equipment | D43: 75195.87 | F43: 0 | G43: 75195.87 | I43: 75195.87 | J43: 0 | K43: 0 | L43: 75195.87 | M43: 0
A44: 8 | B44: 1940 | C44: Tools, Shop & Garage Equipment | D44: 1342108.257 | E44: 18787.1 | F44: 0 | G44: 1360895.357 | I44: 1114491.086 | J44: 43725.3615 | K44: 0 | L44: 1158216.447 | M44: 202678.9098
A45: 8 | B45: 1945 | C45: Measurement & Testing Equipment | D45: 0 | E45: 0 | F45: 0 | G45: 0 | I45: 0 | J45: 0 | K45: 0 | L45: 0 | M45: 0
A46: 8 | B46: 1950 | C46: Power Operated Equipment | D46: 0 | E46: 0 | F46: 0 | G46: 0 | I46: 0 | J46: 0 | K46: 0 | L46: 0 | M46: 0
A47: 8 | B47: 1955 | C47: Communications Equipment | D47: 174364.38 | E47: 2880.85 | F47: 0 | G47: 177245.23 | I47: 111782.0727 | J47: 9933.520833 | K47: 0 | L47: 121715.5935 | M47: 55529.6365
A48: 8 | B48: 1955 | C48: Communication Equipment (Smart Meters) | D48: 0 | E48: 0 | F48: 0 | G48: 0 | I48: 0 | J48: 0 | K48: 0 | L48: 0 | M48: 0
A49: 8 | B49: 1960 | C49: Miscellaneous Equipment | D49: 21009.52 | E49: 0 | F49: 0 | G49: 21009.52 | I49: 16087.45612 | J49: 1765.079308 | K49: 0 | L49: 17852.53542 | M49: 3156.984577
A50: 47 | B50: 1970 | C50: Load Management Controls Customer Premises | D50: 403930.62 | E50: 0 | F50: 0 | G50: 403930.62 | I50: 403930.62 | J50: 0 | K50: 0 | L50: 403930.62 | M50: 0
A51: 47 | B51: 1975 | C51: Load Management Controls Utility Premises | D51: 165151.45 | E51: 0 | F51: 0 | G51: 165151.45 | I51: 165151.45 | J51: 0 | K51: 0 | L51: 165151.45 | M51: 0
A52: 50 | B52: 1980 | C52: System Supervisor Equipment | D52: 1433558.32 | E52: 28271.77 | F52: 0 | G52: 1461830.09 | I52: 1165764.624 | J52: 51458.20575 | K52: 0 | L52: 1217222.83 | M52: 244607.2599
A53: 47 | B53: 1985 | C53: Miscellaneous Fixed Assets | D53: 0 | E53: 0 | F53: 0 | G53: 0 | I53: 0 | J53: 0 | K53: 0 | L53: 0 | M53: 0
A54: 47 | B54: 1990 | C54: Other Tangible Property | D54: 53060.28 | E54: 0 | F54: 0 | G54: 53060.28 | I54: 26523.36 | J54: 1629.6 | K54: 0 | L54: 28152.96 | M54: 24907.32
A55: 47 | B55: 1995 | C55: Contributions & Grants | D55: -9298809 | E55: 0 | F55: 0 | G55: -9298809 | I55: -2168528 | J55: -214846 | K55: 0 | L55: -2383374 | M55: -6915435
A56: 47 | B56: 2440 | C56: Deferred Revenue5 | D56: -1415412 | E56: -703198 | F56: 0 | G56: -2118610 | I56: -13636 | J56: -43035 | K56: 0 | L56: -56671 | M56: -2061939
B57: 2005 | C57: Property Under Finance Lease7 | D57: 0 | E57: 0 | F57: 0 | G57: 0 | I57: 0 | J57: 0 | K57: 0 | L57: 0 | M57: 0
C58: Sub-Total | D58: =SUM(D17:D57) -> 106852867.2 | E58: =SUM(E17:E57) -> 6193421.7 | F58: =SUM(F17:F57) -> -691955.05 | G58: =SUM(G17:G57) -> 112354333.8 | I58: =SUM(I17:I57) -> 55798815.13 | J58: =SUM(J17:J57) -> 2494051.222 | K58: =SUM(K17:K57) -> -617580.62 | L58: =SUM(L17:L57) -> 57675285.74 | M58: =SUM(M17:M57) -> 54679048.08
C59: Less Socialized Renewable Energy Generation Investments (input as negative) | D59: 0 | E59: 0 | F59: 0 | G59: =D59+E59+F59 -> 0 | I59: 0 | J59: 0 | K59: 0 | L59: =I59+J59+K59 -> 0 | M59: =G59+L59 -> 0
C60: Less Other Non Rate-Regulated Utility Assets (input as negative) | D60: 0 | E60: 0 | F60: 0 | G60: =D60+E60+F60 -> 0 | I60: 0 | J60: 0 | K60: 0 | L60: =I60+J60+K60 -> 0 | M60: =G60+L60 -> 0
C61: Total PP&E | D61: =SUM(D58:D60) -> 106852867.2 | E61: =SUM(E58:E60) -> 6193421.7 | F61: =SUM(F58:F60) -> -691955.05 | G61: =SUM(G58:G60) -> 112354333.8 | I61: =SUM(I58:I60) -> 55798815.13 | J61: =SUM(J58:J60) -> 2494051.222 | K61: =SUM(K58:K60) -> -617580.62 | L61: =SUM(L58:L60) -> 57675285.74 | M61: =SUM(M58:M60) -> 54679048.08
C62: Depreciation Expense adj. from gain or loss on the retirement of assets (pool of like assets), if applicable6 | J62: 0
C63: Total | J63: =J61+J62 -> 2494051.222
I65: Less: Fully Allocated Depreciation
A66: 10 | C66: Transportation | I66: Transportation | K66: 152941
A67: 8 | C67: Stores Equipment | I67: Stores Equipment | K67: 0
A68: 47 | C68: Deferred Revenue | I68: Deferred Revenue | K68: =+J56 -> -43035
I69: Net Depreciation | K69: =J63-K66-K67-K68 -> 2384145.222
A71: Appendix 2-BA
A72: Fixed Asset Continuity Schedule 1
E74: Accounting Standard | F74: MIFRS
E75: Year | F75: 2016
D77: Cost | J77: Accumulated Depreciation
A78: CCA Class 2 | B78: OEB Account 3 | C78: Description 3 | D78: Opening Balance | E78: Additions 4 | F78: Disposals 6 | G78: Closing Balance | I78: Opening Balance | J78: Additions | K78: Disposals 6 | L78: Closing Balance | M78: Net Book Value
A79: 90 | B79: 1609 | C79: Capital Contributions Paid | D79: 0 | E79: 0 | F79: 0 | G79: =D79+E79+F79 -> 0 | I79: 0 | J79: 0 | K79: 0 | L79: =I79+J79+K79 -> 0 | M79: =G79+L79 -> 0
A80: 12 | B80: 1611 | C80: Computer Software (Formally known as Account 1925) | D80: =+G18 -> 1505979.52 | E80: 54301 | F80: 0 | G80: =D80+E80+F80 -> 1560280.52 | I80: =+L18 -> 1327217.196 | J80: 86776 | K80: 0 | L80: =I80+J80+K80 -> 1413993.196 | M80: =G80-L80 -> 146287.3238
A81: CEC | B81: 1612 | C81: Land Rights (Formally known as Account 1906) | D81: 0 | E81: 0 | F81: 0 | G81: =D81+E81+F81 -> 0 | I81: 0 | J81: 0 | K81: 0 | L81: =I81+J81+K81 -> 0 | M81: =G81-L81 -> 0
A82: N/A | B82: 1805 | C82: Land | D82: 497376 | E82: 7929 | F82: 0 | G82: =D82+E82+F82 -> 505305 | I82: 0 | K82: 0 | L82: =I82+J82+K82 -> 0 | M82: 505305
A83: 47 | B83: 1808 | C83: Buildings | D83: 1830506 | E83: 7829 | F83: 0 | G83: =D83+E83+F83 -> 1838335 | I83: 426048 | J83: 35235 | K83: 0 | L83: =I83+J83+K83 -> 461283 | M83: 1377052
A84: 13 | B84: 1810 | C84: Leasehold Improvements | D84: 0 | E84: 0 | F84: 0 | G84: 0 | I84: 0 | J84: 0 | K84: 0 | L84: 0 | M84: 0
A85: 47 | B85: 1815 | C85: Transformer Station Equipment >50 kV | D85: 0 | E85: 0 | F85: 0 | G85: 0 | I85: 0 | J85: 0 | K85: 0 | L85: 0 | M85: 0
A86: 47 | B86: 1820 | C86: Distribution Station Equipment <50 kV | D86: 16194049 | E86: 491617.11 | F86: -227884 | G86: 16457782.11 | I86: 5076132 | J86: 381625 | K86: -178626 | L86: 5279131 | M86: 11178651.11
A87: 47 | B87: 1825 | C87: Storage Battery Equipment | D87: 0 | E87: 0 | F87: 0 | G87: 0 | I87: 0 | J87: 0 | K87: 0 | L87: 0 | M87: 0
A88: 47 | B88: 1830 | C88: Poles, Towers & Fixtures | D88: 23830074 | E88: 1052727 | F88: -16955 | G88: 24865846 | I88: 11594007.75 | J88: 378557 | K88: -13613 | L88: 11958951.75 | M88: 12906894.25
A89: 47 | B89: 1835 | C89: Overhead Conductors & Devices | D89: 17707354 | E89: 597960 | F89: -5489 | G89: 18299825 | I89: 8984717.328 | J89: 197336 | K89: -4946 | L89: 9177107.328 | M89: 9122717.672
A90: 47 | B90: 1840 | C90: Underground Conduit | D90: 1242378 | E90: 191283 | F90: -747 | G90: 1432914 | I90: 210091.2225 | J90: 26412 | K90: -231 | L90: 236272.2225 | M90: 1196641.777
A91: 47 | B91: 1845 | C91: Underground Conductors & Devices | D91: 7442256 | E91: 155327 | F91: -13022 | G91: 7584561 | I91: 4778761.652 | J91: 102783 | K91: -10242 | L91: 4871302.652 | M91: 2713258.348
A92: 47 | B92: 1850 | C92: Line Transformers | D92: 17467473.82 | E92: 574025 | F92: -67075 | G92: 17974423.82 | I92: 9811730.487 | J92: 265810 | K92: -55237 | L92: 10022303.49 | M92: 7952120.333
A93: 47 | B93: 1855 | C93: Services (Overhead & Underground) | D93: 19182145.02 | E93: 1359878 | F93: 0 | G93: 20542023.02 | I93: 7755935.548 | J93: 444576 | K93: 0 | L93: 8200511.548 | M93: 12341511.47
A94: 47 | B94: 1860 | C94: Meters | D94: 1557486.84 | E94: 0 | F94: 0 | G94: 1557486.84 | I94: 956900.37 | J94: 48429.59 | K94: 0 | L94: 1005329.96 | M94: 552156.88
A95: 47 | B95: 1860 | C95: Meters (Smart Meters) | D95: 4121326.88 | E95: 262657 | F95: 0 | G95: 4383983.88 | I95: 1406740.13 | J95: =265990.28+33965.45 -> 299955.73 | K95: 0 | L95: 1706695.86 | M95: 2677288.02
A96: N/A | B96: 1905 | C96: Land | D96: 86551 | E96: 0 | F96: 0 | G96: 86551 | I96: 0 | J96: 0 | K96: 0 | L96: 0 | M96: 86551
A97: 1 | B97: 1908 | C97: Buildings & Fixtures | D97: 3121503.27 | E97: 454713 | F97: 0 | G97: 3576216.27 | I97: 1509877.081 | J97: 89057 | K97: 0 | L97: 1598934.081 | M97: 1977282.189
A98: 13 | B98: 1910 | C98: Leasehold Improvements | D98: 0 | E98: 0 | F98: 0 | G98: 0 | I98: 0 | J98: 0 | K98: 0 | L98: 0 | M98: 0
A99: 8 | B99: 1915 | C99: Office Furniture & Equipment (10 years) | D99: 380036.77 | E99: 0 | F99: 0 | G99: 380036.77 | I99: 331466.2565 | J99: 10308 | K99: 0 | L99: 341774.2565 | M99: 38262.5135
A100: 8 | B100: 1915 | C100: Office Furniture & Equipment (5 years) | D100: 0 | E100: 0 | F100: 0 | G100: 0 | I100: 0 | J100: 0 | K100: 0 | L100: 0 | M100: 0
A101: 10 | B101: 1920 | C101: Computer Equipment - Hardware | D101: 0 | E101: 0 | F101: 0 | I101: 0 | J101: 0 | K101: 0 | L101: 0 | M101: 0
A102: 45 | B102: 1920 | C102: Computer Equip.-Hardware(Post Mar. 22/04) | D102: 0 | E102: 0 | F102: 0 | G102: 0 | I102: 0 | J102: 0 | K102: 0 | L102: 0 | M102: 0
A103: 50 | B103: 1920 | C103: Computer Equip.-Hardware(Post Mar. 19/07) | D103: 973940.43 | E103: 20646 | F103: 0 | G103: =D103+E103+F103 -> 994586.43 | I103: 807249.546 | J103: 63122 | K103: 0 | L103: 870371.546 | M103: 124214.884
A104: 10 | B104: 1930 | C104: Transportation Equipment | D104: 2912997.85 | E104: 283707 | F104: -208399 | G104: 2988305.85 | I104: 1951017.864 | J104: 314812 | K104: -208399 | L104: 2057430.864 | M104: 930874.9864
A105: 8 | B105: 1935 | C105: Stores Equipment | D105: 75195.87 | E105: 0 | F105: 0 | G105: 75195.87 | I105: 75195.87 | J105: 0 | K105: 0 | L105: 75195.87 | M105: 0
A106: 8 | B106: 1940 | C106: Tools, Shop & Garage Equipment | D106: 1360895.357 | E106: 22336 | F106: 0 | G106: 1383231.357 | I106: 1158216.447 | J106: 38245 | K106: 0 | L106: 1196461.447 | M106: 186769.9098
A107: 8 | B107: 1945 | C107: Measurement & Testing Equipment | D107: 0 | E107: 0 | F107: 0 | G107: 0 | I107: 0 | J107: 0 | K107: 0 | L107: 0 | M107: 0
A108: 8 | B108: 1950 | C108: Power Operated Equipment | D108: 0 | E108: 0 | F108: 0 | G108: 0 | I108: 0 | J108: 0 | K108: 0 | L108: 0 | M108: 0
A109: 8 | B109: 1955 | C109: Communications Equipment | D109: 177245.23 | E109: 14614 | F109: 0 | G109: 191859.23 | I109: 121715.5935 | J109: 10381 | K109: 0 | L109: 132096.5935 | M109: 59762.6365
A110: 8 | B110: 1955 | C110: Communication Equipment (Smart Meters) | D110: 0 | E110: 0 | F110: 0 | G110: 0 | I110: 0 | J110: 0 | K110: 0 | L110: 0 | M110: 0
A111: 8 | B111: 1960 | C111: Miscellaneous Equipment | D111: 21009.52 | E111: 0 | F111: 0 | G111: 21009.52 | I111: 17852.53542 | J111: 834 | K111: 0 | L111: 18686.53542 | M111: 2322.984577
A112: 47 | B112: 1970 | C112: Load Management Controls Customer Premises | D112: 403930.62 | E112: 0 | F112: 0 | G112: 403930.62 | I112: 403930.62 | J112: 0 | K112: 0 | L112: 403930.62 | M112: 0
A113: 47 | B113: 1975 | C113: Load Management Controls Utility Premises | D113: 165151.45 | E113: 0 | F113: 0 | G113: 165151.45 | I113: 165151.45 | J113: 0 | K113: 0 | L113: 165151.45 | M113: 0
A114: 50 | B114: 1980 | C114: System Supervisor Equipment | D114: 1461830.09 | E114: 18996 | F114: 0 | G114: 1480826.09 | I114: 1217222.83 | J114: 31102 | K114: 0 | L114: 1248324.83 | M114: 232501.2599
A115: 47 | B115: 1985 | C115: Miscellaneous Fixed Assets | D115: 0 | E115: 0 | F115: 0 | G115: 0 | I115: 0 | J115: 0 | K115: 0 | L115: 0 | M115: 0
A116: 47 | B116: 1990 | C116: Other Tangible Property | D116: 53060.28 | E116: 0 | F116: 0 | G116: 53060.28 | I116: 28152.96 | J116: 1630 | K116: 0 | L116: 29782.96 | M116: 23277.32
A117: 47 | B117: 1995 | C117: Contributions & Grants | D117: -9298809 | E117: 0 | F117: 0 | G117: -9298809 | I117: -2383374 | J117: -212507 | K117: 0 | L117: -2595881 | M117: -6702928
A118: 47 | B118: 2440 | C118: Deferred Revenue5 | D118: -2118610 | E118: -352322 | F118: 0 | G118: -2470932 | I118: -56671 | J118: -48694 | K118: 0 | L118: =I118+J118+K118 -> -105365 | M118: -2365567
B119: 2005 | C119: Property Under Finance Lease7 | D119: 0 | E119: 0 | F119: 0 | G119: 0 | I119: 0 | J119: 0 | K119: 0 | L119: 0 | M119: =G119+L119 -> 0
C120: Sub-Total | D120: =SUM(D79:D119) -> 112354333.8 | E120: =SUM(E79:E119) -> 5218223.11 | F120: =SUM(F79:F119) -> -539571 | G120: =SUM(G79:G119) -> 117032985.9 | I120: =SUM(I79:I119) -> 57675285.74 | J120: =SUM(J79:J119) -> 2565785.32 | K120: =SUM(K79:K119) -> -471294 | L120: =SUM(L79:L119) -> 59769777.06 | M120: =SUM(M79:M119) -> 57263208.87
C121: Less Socialized Renewable Energy Generation Investments (input as negative) | D121: 0 | E121: 0 | F121: 0 | G121: =D121+E121+F121 -> 0 | I121: 0 | J121: 0 | K121: 0 | L121: =I121+J121+K121 -> 0 | M121: =G121+L121 -> 0
C122: Less Other Non Rate-Regulated Utility Assets (input as negative) | D122: 0 | E122: 0 | F122: 0 | G122: 0 | I122: 0 | J122: 0 | K122: 0 | L122: =I122+J122+K122 -> 0 | M122: 0
C123: Total PP&E | D123: =SUM(D120:D122) -> 112354333.8 | E123: =SUM(E120:E122) -> 5218223.11 | F123: =SUM(F120:F122) -> -539571 | G123: =SUM(G120:G122) -> 117032985.9 | I123: =SUM(I120:I122) -> 57675285.74 | J123: =SUM(J120:J122) -> 2565785.32 | K123: =SUM(K120:K122) -> -471294 | L123: =SUM(L120:L122) -> 59769777.06 | M123: =SUM(M120:M122) -> 57263208.87
C124: Depreciation Expense adj. from gain or loss on the retirement of assets (pool of like assets), if applicable6 | J124: 0
C125: Total | J125: =J123+J124 -> 2565785.32
I127: Less: Fully Allocated Depreciation
A128: 10 | C128: Transportation | I128: Transportation | K128: 179402
A129: 8 | C129: Stores Equipment | I129: Stores Equipment | K129: 0
A130: 47 | C130: Deferred Revenue | I130: Deferred Revenue | K130: =+J118 -> -48694
I131: Net Depreciation | K131: =J125-K128-K129-K130 -> 2435077.32
A133: Appendix 2-BA
A134: Fixed Asset Continuity Schedule 1
E136: Accounting Standard | F136: MIFRS
E137: Year | F137: 2017
D139: Cost | J139: Accumulated Depreciation
A140: CCA Class 2 | B140: OEB Account 3 | C140: Description 3 | D140: Opening Balance | E140: Additions 4 | F140: Disposals 6 | G140: Closing Balance | I140: Opening Balance | J140: Additions | K140: Disposals 6 | L140: Closing Balance | M140: Net Book Value
A141: 90 | B141: 1609 | C141: Capital Contributions Paid | D141: 0 | E141: 0 | F141: 0 | G141: =D141+E141+F141 -> 0 | I141: 0 | J141: 0 | K141: 0 | L141: =I141+J141+K141 -> 0 | M141: =G141+L141 -> 0
A142: 12 | B142: 1611 | C142: Computer Software (Formally known as Account 1925) | D142: =+G80 -> 1560280.52 | E142: 24273.25 | F142: 0 | G142: =D142+E142+F142 -> 1584553.77 | I142: =+L80 -> 1413993.196 | J142: 67370.643 | K142: 7400 | L142: =I142+J142+K142 -> 1488763.839 | M142: =G142-L142 -> 95789.93081
A143: CEC | B143: 1612 | C143: Land Rights (Formally known as Account 1906) | D143: 0 | E143: 0 | F143: 0 | G143: =D143+E143+F143 -> 0 | I143: 0 | J143: 0 | K143: 0 | L143: =I143+J143+K143 -> 0 | M143: =G143-L143 -> 0
A144: N/A | B144: 1805 | C144: Land | D144: 505305 | E144: 0 | F144: 0 | G144: =D144+E144+F144 -> 505305 | I144: 0 | J144: 0 | K144: 0 | L144: =I144+J144+K144 -> 0 | M144: 505305
A145: 47 | B145: 1808 | C145: Buildings | D145: 1838335 | E145: 0 | F145: 0 | G145: =D145+E145+F145 -> 1838335 | I145: 461283 | J145: 35235 | K145: 0 | L145: =I145+J145+K145 -> 496518 | M145: 1341817
A146: 13 | B146: 1810 | C146: Leasehold Improvements | D146: 0 | E146: 0 | F146: 0 | G146: 0 | I146: 0 | J146: 0 | K146: 0 | L146: 0 | M146: 0
A147: 47 | B147: 1815 | C147: Transformer Station Equipment >50 kV | D147: 0 | E147: 0 | F147: 0 | G147: 0 | I147: 0 | J147: 0 | K147: 0 | L147: 0 | M147: 0
A148: 47 | B148: 1820 | C148: Distribution Station Equipment <50 kV | D148: 16457782.11 | E148: =660318.17+315856 -> 976174.17 | F148: -354667 | G148: 17079289.28 | I148: 5279131 | J148: 394259 | K148: -227880 | L148: 5445510 | M148: 11633779.28
A149: 47 | B149: 1825 | C149: Storage Battery Equipment | D149: 0 | E149: 0 | F149: 0 | G149: 0 | I149: 0 | J149: 0 | K149: 0 | L149: 0 | M149: 0
A150: 47 | B150: 1830 | C150: Poles, Towers & Fixtures | D150: 24865846 | E150: 1050168.06 | F150: -269541.35 | G150: 25646472.71 | I150: 11958951.75 | J150: 402172.8 | K150: -234845.34 | L150: 12126279.21 | M150: 13520193.5
A151: 47 | B151: 1835 | C151: Overhead Conductors & Devices | D151: 18299825 | E151: 428092.4 | F151: -95523.4 | G151: 18632394 | I151: 9177107.328 | J151: 209487.78 | K151: -79286.23 | L151: 9307308.878 | M151: 9325085.122
A152: 47 | B152: 1840 | C152: Underground Conduit | D152: 1432914 | E152: 577359.58 | F152: -3020.44 | G152: 2007253.14 | I152: 236272.2225 | J152: 33919.55012 | K152: -1153.88 | L152: 269037.8927 | M152: 1738215.247
A153: 47 | B153: 1845 | C153: Underground Conductors & Devices | D153: 7584561 | E153: 442811.63 | F153: -12859.18 | G153: 8014513.45 | I153: 4871302.652 | J153: 111939.1743 | K153: -11670.18 | L153: 4971571.646 | M153: 3042941.804
A154: 47 | B154: 1850 | C154: Line Transformers | D154: 17974423.82 | E154: 771611.61 | F154: -128353.4 | G154: 18617682.03 | I154: 10022303.49 | J154: 282717.42 | K154: -125107.11 | L154: 10179913.8 | M154: 8437768.233
A155: 47 | B155: 1855 | C155: Services (Overhead & Underground) | D155: 20542023.02 | E155: 1110692.16 | F155: 0 | G155: 21652715.18 | I155: 8200511.548 | J155: 472616.65 | K155: 0 | L155: 8673128.198 | M155: 12979586.98
A156: 47 | B156: 1860 | C156: Meters | D156: 1557486.84 | E156: 0 | F156: 0 | G156: 1557486.84 | I156: 1005329.96 | J156: 46900.72 | K156: 0 | L156: 1052230.68 | M156: 505256.16
A157: 47 | B157: 1860 | C157: Meters (Smart Meters) | D157: 4383983.88 | E157: 192115.96 | F157: 0 | G157: 4576099.84 | I157: 1706695.86 | J157: =265990.28+46070.12+768.29 -> 312828.69 | K157: 0 | L157: 2019524.55 | M157: 2556575.29
A158: N/A | B158: 1905 | C158: Land | D158: 86551 | E158: 0 | F158: 0 | G158: 86551 | I158: 0 | J158: 0 | K158: 0 | L158: 0 | M158: 86551
A159: 1 | B159: 1908 | C159: Buildings & Fixtures | D159: 3576216.27 | E159: 18475.64 | F159: 0 | G159: 3594691.91 | I159: 1598934.081 | J159: 105795.2872 | K159: 0 | L159: 1704729.369 | M159: 1889962.541
A160: 13 | B160: 1910 | C160: Leasehold Improvements | D160: 0 | E160: 0 | F160: 0 | G160: 0 | I160: 0 | J160: 0 | K160: 0 | L160: 0 | M160: 0
A161: 8 | B161: 1915 | C161: Office Furniture & Equipment (10 years) | D161: 380036.77 | E161: 29130.21 | F161: -30100 | G161: 379066.98 | I161: 341774.2565 | J161: 22760.4275 | K161: -30100 | L161: 334434.684 | M161: 44632.296
A162: 8 | B162: 1915 | C162: Office Furniture & Equipment (5 years) | D162: 0 | E162: 0 | F162: 0 | G162: 0 | I162: 0 | J162: 0 | K162: 0 | L162: 0 | M162: 0
A163: 10 | B163: 1920 | C163: Computer Equipment - Hardware | D163: 0 | E163: 0 | F163: 0 | I163: 0 | J163: 0 | K163: 0 | L163: 0 | M163: 0
A164: 45 | B164: 1920 | C164: Computer Equip.-Hardware(Post Mar. 22/04) | D164: 0 | E164: 0 | F164: 0 | G164: =D164+E164+F164 -> 0 | I164: 0 | J164: 0 | K164: 0 | L164: 0 | M164: 0
A165: 50 | B165: 1920 | C165: Computer Equip.-Hardware(Post Mar. 19/07) | D165: 994586.43 | E165: 98480.33 | F165: 0 | G165: 1093066.76 | I165: 870371.546 | J165: 51769.133 | K165: -7400 | L165: 914740.679 | M165: 178326.081
A166: 10 | B166: 1930 | C166: Transportation Equipment | D166: 2988305.85 | E166: 408727.16 | F166: -280273.99 | G166: 3116759.02 | I166: 2057430.864 | J166: 262155.6037 | K166: -280273.99 | L166: 2039312.477 | M166: 1077446.543
A167: 8 | B167: 1935 | C167: Stores Equipment | D167: 75195.87 | E167: 0 | F167: 0 | G167: 75195.87 | I167: 75195.87 | J167: 0 | K167: 0 | L167: 75195.87 | M167: 0
A168: 8 | B168: 1940 | C168: Tools, Shop & Garage Equipment | D168: 1383231.357 | E168: 23404.57 | F168: 0 | G168: 1406635.927 | I168: 1196461.447 | J168: 38414.31726 | K168: 0 | L168: 1234875.764 | M168: 171760.1625
A169: 8 | B169: 1945 | C169: Measurement & Testing Equipment | D169: 0 | E169: 0 | F169: 0 | G169: 0 | I169: 0 | J169: 0 | K169: 0 | L169: 0 | M169: 0
A170: 8 | B170: 1950 | C170: Power Operated Equipment | D170: 0 | E170: 0 | F170: 0 | G170: 0 | I170: 0 | J170: 0 | K170: 0 | L170: 0 | M170: 0
A171: 8 | B171: 1955 | C171: Communications Equipment | D171: 191859.23 | E171: 5006.21 | F171: 0 | G171: 196865.44 | I171: 132096.5935 | J171: 11045.38283 | K171: 0 | L171: 143141.9763 | M171: 53723.46367
A172: 8 | B172: 1955 | C172: Communication Equipment (Smart Meters) | D172: 0 | E172: 0 | F172: 0 | G172: 0 | I172: 0 | J172: 0 | K172: 0 | L172: 0 | M172: 0
A173: 8 | B173: 1960 | C173: Miscellaneous Equipment | D173: 21009.52 | E173: 0 | F173: 0 | G173: 21009.52 | I173: 18686.53542 | J173: 551.8493077 | K173: 0 | L173: 19238.38473 | M173: 1771.135269
A174: 47 | B174: 1970 | C174: Load Management Controls Customer Premises | D174: 403930.62 | E174: 0 | F174: 0 | G174: 403930.62 | I174: 403930.62 | J174: 0 | K174: 0 | L174: 403930.62 | M174: 0
A175: 47 | B175: 1975 | C175: Load Management Controls Utility Premises | D175: 165151.45 | E175: 0 | F175: 0 | G175: 165151.45 | I175: 165151.45 | J175: 0 | K175: 0 | L175: 165151.45 | M175: 0
A176: 50 | B176: 1980 | C176: System Supervisor Equipment | D176: 1480826.09 | E176: 35317.46 | F176: 0 | G176: 1516143.55 | I176: 1248324.83 | J176: 26750.29954 | K176: 0 | L176: 1275075.13 | M176: 241068.4203
A177: 47 | B177: 1985 | C177: Miscellaneous Fixed Assets | D177: 0 | E177: 0 | F177: 0 | G177: 0 | I177: 0 | J177: 0 | K177: 0 | L177: 0 | M177: 0
A178: 47 | B178: 1990 | C178: Other Tangible Property | D178: 53060.28 | E178: 0 | F178: 0 | G178: 53060.28 | I178: 29782.96 | J178: 1629.560541 | K178: 0 | L178: 31412.52054 | M178: 21647.75946
A179: 47 | B179: 1995 | C179: Contributions & Grants | D179: -9298809 | E179: 0 | F179: 0 | G179: -9298809 | I179: -2595881 | J179: -212507 | K179: 0 | L179: -2808388 | M179: -6490421
A180: 47 | B180: 2440 | C180: Deferred Revenue5 | D180: -2470932 | E180: -728037 | F180: 0 | G180: -3198969 | I180: -105365 | J180: -71270 | K180: 0 | L180: -176635 | M180: -3022334
B181: 2005 | C181: Property Under Finance Lease7 | D181: 0 | E181: 0 | F181: 0 | G181: 0 | I181: 0 | J181: 0 | K181: 0 | L181: 0 | M181: =G181+L181 -> 0
C182: Sub-Total | D182: =SUM(D141:D181) -> 117032985.9 | E182: =SUM(E141:E181) -> 5463803.4 | F182: =SUM(F141:F181) -> -1174338.76 | G182: =SUM(G141:G181) -> 121322450.6 | I182: =SUM(I141:I181) -> 59769777.06 | J182: =SUM(J141:J181) -> 2606542.288 | K182: =SUM(K141:K181) -> -990316.73 | L182: =SUM(L141:L181) -> 61386002.62 | M182: =SUM(M141:M181) -> 59936447.95
C183: Less Socialized Renewable Energy Generation Investments (input as negative) | D183: 0 | E183: 0 | F183: 0 | G183: =D183+E183+F183 -> 0 | I183: 0 | J183: 0 | K183: 0 | L183: =I183+J183+K183 -> 0 | M183: =G183+L183 -> 0
C184: Less Other Non Rate-Regulated Utility Assets (input as negative) | D184: 0 | E184: 0 | F184: 0 | G184: =D184+E184+F184 -> 0 | I184: 0 | J184: 0 | K184: 0 | L184: =I184+J184+K184 -> 0 | M184: =G184+L184 -> 0
C185: Total PP&E | D185: =SUM(D182:D184) -> 117032985.9 | E185: =SUM(E182:E184) -> 5463803.4 | F185: =SUM(F182:F184) -> -1174338.76 | G185: =SUM(G182:G184) -> 121322450.6 | I185: =SUM(I182:I184) -> 59769777.06 | J185: =SUM(J182:J184) -> 2606542.288 | K185: =SUM(K182:K184) -> -990316.73 | L185: =SUM(L182:L184) -> 61386002.62 | M185: =SUM(M182:M184) -> 59936447.95
C186: Depreciation Expense adj. from gain or loss on the retirement of assets (pool of like assets), if applicable6 | J186: 0
C187: Total | J187: =J185+J186 -> 2606542.288
I189: Less: Fully Allocated Depreciation
A190: 10 | C190: Transportation | I190: Transportation | K190: 158961
A191: 8 | C191: Stores Equipment | I191: Stores Equipment | K191: 0
A192: 47 | C192: Deferred Revenue | I192: Deferred Revenue | K192: =+J180 -> -71270
I193: Net Depreciation | K193: =J187-K190-K191-K192 -> 2518851.288
A195: Appendix 2-BA
A196: Fixed Asset Continuity Schedule 1
E198: Accounting Standard | F198: MIFRS
E199: Year | F199: 2018
D201: Cost | J201: Accumulated Depreciation
A202: CCA Class 2 | B202: OEB Account 3 | C202: Description 3 | D202: Opening Balance | E202: Additions 4 | F202: Disposals 6 | G202: Closing Balance | I202: Opening Balance | J202: Additions | K202: Disposals 6 | L202: Closing Balance | M202: Net Book Value
A203: 90 | B203: 1609 | C203: Capital Contributions Paid | D203: 0 | E203: 0 | F203: 0 | G203: =D203+E203+F203 -> 0 | I203: 0 | J203: 0 | K203: 0 | L203: =I203+J203+K203 -> 0 | M203: =G203+L203 -> 0
A204: 12 | B204: 1611 | C204: Computer Software (Formally known as Account 1925) | D204: =+G142 -> 1584553.77 | E204: 32812.1 | F204: 0 | G204: =D204+E204+F204 -> 1617365.87 | I204: =+L142 -> 1488763.839 | J204: 48627.55 | K204: 0 | L204: =I204+J204+K204 -> 1537391.389 | M204: =G204-L204 -> 79974.48081
A205: CEC | B205: 1612 | C205: Land Rights (Formally known as Account 1906) | D205: 0 | E205: 0 | F205: 0 | G205: =D205+E205+F205 -> 0 | I205: 0 | J205: 0 | K205: 0 | L205: =I205+J205+K205 -> 0 | M205: =G205-L205 -> 0
A206: N/A | B206: 1805 | C206: Land | D206: 505305 | E206: 0 | F206: 0 | G206: =D206+E206+F206 -> 505305 | I206: 0 | J206: 0 | K206: 0 | L206: =I206+J206+K206 -> 0 | M206: 505305
A207: 47 | B207: 1808 | C207: Buildings | D207: 1838335 | E207: =78130-950275 -> -872145 | F207: 0 | G207: =D207+E207+F207 -> 966190 | I207: 496518 | J207: 17013 | K207: -129103 | L207: =I207+J207+K207 -> 384428 | M207: 581762
A208: 13 | B208: 1810 | C208: Leasehold Improvements | D208: 0 | E208: 0 | F208: 0 | G208: 0 | I208: 0 | J208: 0 | K208: 0 | L208: 0 | M208: 0
A209: 47 | B209: 1815 | C209: Transformer Station Equipment >50 kV | D209: 0 | E209: 0 | F209: 0 | G209: 0 | I209: 0 | J209: 0 | K209: 0 | L209: 0 | M209: 0
A210: 47 | B210: 1820 | C210: Distribution Station Equipment <50 kV | D210: 17079289.28 | E210: =1348674+1915750 -> 3264424 | F210: 0 | G210: 20343713.28 | I210: 5445510 | J210: 485912 | K210: 129106 | L210: 6060528 | M210: 14283185.28
A211: 47 | B211: 1825 | C211: Storage Battery Equipment | D211: 0 | E211: 0 | F211: 0 | G211: 0 | I211: 0 | J211: 0 | K211: 0 | L211: 0 | M211: 0
A212: 47 | B212: 1830 | C212: Poles, Towers & Fixtures | D212: 25646472.71 | E212: 1025156.25 | F212: -99273.79 | G212: 26572355.17 | I212: 12126279.21 | J212: 421902.63 | K212: -86714.74 | L212: 12461467.1 | M212: 14110888.07
A213: 47 | B213: 1835 | C213: Overhead Conductors & Devices | D213: 18632394 | E213: 893705.37 | F213: -31969.83 | G213: 19494129.54 | I213: 9307308.878 | J213: 220460.86 | K213: -27522.6 | L213: 9500247.138 | M213: 9993882.402
A214: 47 | B214: 1840 | C214: Underground Conduit | D214: 2007253.14 | E214: 208072.67 | F214: -3342.94 | G214: 2211982.87 | I214: 269037.8927 | J214: 41246.46 | K214: -1467.66 | L214: 308816.6927 | M214: 1903166.177
A215: 47 | B215: 1845 | C215: Underground Conductors & Devices | D215: 8014513.45 | E215: 276709.68 | F215: -10616.75 | G215: 8280606.38 | I215: 4971571.646 | J215: 119383.79 | K215: -10397.84 | L215: 5080557.596 | M215: 3200048.784
A216: 47 | B216: 1850 | C216: Line Transformers | D216: 18617682.03 | E216: 614191.45 | F216: -141078.394 | G216: 19090795.09 | I216: 10179913.8 | J216: 294735.85 | K216: -130827.13 | L216: 10343822.52 | M216: 8746972.569
... 220 more rows

Sheet Appendix 2-BB Service Life
N1: File Number: | P1: ='LDC Info'!E16 -> EB-2020-0043
N2: Exhibit:
N3: Tab:
N4: Schedule:
N5: Page:
N7: Date:
A9: Appendix 2-BB
A10: Service Life Comparison
A11: Table F-1 from Kinetrics Report1
C15: Asset Details | F15: Useful Life | J15: USoA Account Number | K15: USoA Account Description | L15: Current | N15: Proposed | P15: Outside Range of Min, Max TUL?
A16: Parent* | B16: # | C16: Category| Component | Type | F16: MIN UL | G16: TUL | H16: MAX UL | L16: Years | M16: Rate | N16: Years | O16: Rate | P16: Below Min TUL | Q16: Above Max TUL
A17: OH | B17: 1 | C17: Fully Dressed Wood Poles | D17: Overall | F17: 35 | G17: 45 | H17: 75 | J17: 1820 | K17: Fully Dressed Wood Poles | L17: 45 | M17: =IF(ISERROR(1/L17), "", 1/L17) -> 0.02222222222 | N17: 45 | O17: =IF(ISERROR(1/N17), "", 1/N17) -> 0.02222222222 | P17: =IF(ISBLANK(N17),"",IF(N17<F17,"Yes","No")) -> No | Q17: =IF(ISBLANK(N17),"",IF(N17>H17,"Yes","No")) -> No
D18: Cross Arm | E18: Wood | F18: 20 | G18: 40 | H18: 55 | M18: =IF(ISERROR(1/L18), "", 1/L18) ->  | O18: =IF(ISERROR(1/N18), "", 1/N18) ->  | P18: =IF(ISBLANK(N18),"",IF(N18<F18,"Yes","No")) ->  | Q18: =IF(ISBLANK(N18),"",IF(N18>H18,"Yes","No")) -> 
E19: Steel | F19: 30 | G19: 70 | H19: 95
B20: 2 | C20: Fully Dressed Concrete Poles | D20: Overall | F20: 50 | G20: 60 | H20: 80
D21: Cross Arm | E21: Wood | F21: 20 | G21: 40 | H21: 55
E22: Steel | F22: 30 | G22: 70 | H22: 95
B23: 3 | C23: Fully Dressed Steel Poles | D23: Overall | F23: 60 | G23: 60 | H23: 80
D24: Cross Arm | E24: Wood | F24: 20 | G24: 40 | H24: 55
E25: Steel | F25: 30 | G25: 70 | H25: 95
B26: 4 | C26: OH Line Switch | F26: 30 | G26: 45 | H26: 55 | J26: 1835 | K26: OH Conductor & Devices | L26: 45 | M26: 0.02222222222 | N26: 45 | O26: 0.02222222222 | P26: No | Q26: No
B27: 5 | C27: OH Line Switch Motor | F27: 15 | G27: 25 | H27: 25 | J27: 1835 | K27: OH Conductor & Devices | L27: 25 | M27: 0.04 | N27: 25 | O27: 0.04 | P27: No | Q27: No
B28: 6 | C28: OH Line Switch RTU | F28: 15 | G28: 20 | H28: 20 | J28: 1980 | K28: System Supervisory Equipment | L28: 20 | M28: 0.05 | N28: 20 | O28: 0.05 | P28: No | Q28: No
B29: 7 | C29: OH Integral Switches | F29: 35 | G29: 45 | H29: 60
B30: 8 | C30: OH Conductors | F30: 50 | G30: 60 | H30: 75 | J30: 1835 | K30: OH Conductor & Devices | L30: 60 | M30: 0.01666666667 | N30: 60 | O30: 0.01666666667 | P30: No | Q30: No
B31: 9 | C31: OH Transformers & Voltage Regulators | F31: 30 | G31: 40 | H31: 60 | J31: 1850 | K31: OH Transformers | L31: 40 | M31: 0.025 | N31: 40 | O31: 0.025 | P31: No | Q31: No
B32: 10 | C32: OH Shunt Capacitor Banks | F32: 25 | G32: 30 | H32: 40
B33: 11 | C33: Reclosers | F33: 25 | G33: 40 | H33: 55 | J33: 1835 | K33: OH Conductor & Devices | L33: 25 | M33: 0.04 | N33: 25 | O33: 0.04 | P33: No | Q33: No
A34: TS & MS | B34: 12 | C34: Power Transformers | D34: Overall | F34: 30 | G34: 45 | H34: 60 | J34: 1820 | K34: Distribution Station Equipment <50 kV | L34: 45 | M34: 0.02222222222 | N34: 45 | O34: 0.02222222222 | P34: No | Q34: No
D35: Bushing | F35: 10 | G35: 20 | H35: 30
D36: Tap Changer | F36: 20 | G36: 30 | H36: 60
B37: 13 | C37: Station Service Transformer | F37: 30 | G37: 45 | H37: 55
B38: 14 | C38: Station Grounding Transformer | F38: 30 | G38: 40 | H38: 40
B39: 15 | C39: Station DC System | D39: Overall | F39: 10 | G39: 20 | H39: 30
D40: Battery Bank | F40: 10 | G40: 15 | H40: 15
D41: Charger | F41: 20 | G41: 20 | H41: 30
B42: 16 | C42: Station Metal Clad Switchgear | D42: Overall | F42: 30 | G42: 40 | H42: 60 | J42: 1820 | K42: Distribution Station Equipment <50 kV | L42: 40 | M42: 0.025 | N42: 40 | O42: 0.025 | P42: No | Q42: No
D43: Removable Breaker | F43: 25 | G43: 40 | H43: 60
B44: 17 | C44: Station Independent Breakers | F44: 35 | G44: 45 | H44: 65
B45: 18 | C45: Station Switch | F45: 30 | G45: 50 | H45: 60
B46: 19 | C46: Electromechanical Relays | F46: 25 | G46: 35 | H46: 50
B47: 20 | C47: Solid State Relays | F47: 10 | G47: 30 | H47: 45 | J47: 1820 | K47: Distribution Station Equipment <50 kV | L47: 20 | M47: 0.05 | N47: 20 | O47: 0.05 | P47: No | Q47: No
B48: 21 | C48: Digital & Numeric Relays | F48: 15 | G48: 20 | H48: 20
B49: 22 | C49: Rigid Busbars | F49: 30 | G49: 55 | H49: 60 | J49: 1820 | K49: Distribution Station Equipment <50 kV | L49: 40 | M49: 0.025 | N49: 40 | O49: 0.025 | P49: No | Q49: No
B50: 23 | C50: Steel Structure | F50: 35 | G50: 50 | H50: 90 | J50: 1820 | K50: Distribution Station Equipment <50 kV | L50: 40 | M50: 0.025 | N50: 40 | O50: 0.025 | P50: No | Q50: No
A51: UG | B51: 24 | C51: Primary Paper Insulated Lead Covered (PILC) Cables | F51: 60 | G51: 65 | H51: 75
B52: 25 | C52: Primary Ethylene-Propylene Rubber (EPR) Cables | F52: 20 | G52: 25 | H52: 25
B53: 26 | C53: Primary Non-Tree Retardant (TR) Cross Linked Polyethylene (XLPE) Cables Direct Buried | F53: 20 | G53: 25 | H53: 30
B54: 27 | C54: Primary Non-TR XLPE Cables in Duct | F54: 20 | G54: 25 | H54: 30
B55: 29 | C55: Primary TR XLPE Cables in Duct | F55: 35 | G55: 40 | H55: 55 | J55: 1845 | K55: UG Conductor & Devices | L55: 40 | M55: =IF(ISERROR(1/L55), "", 1/L55) -> 0.025 | N55: 40 | O55: =IF(ISERROR(1/N55), "", 1/N55) -> 0.025 | P55: =IF(ISBLANK(N55),"",IF(N55<F55,"Yes","No")) -> No | Q55: =IF(ISBLANK(N55),"",IF(N55>H55,"Yes","No")) -> No
B56: 30 | C56: Secondary PILC Cables | F56: 70 | G56: 75 | H56: 80
B57: 31 | C57: Secondary Cables Direct Buried | F57: 25 | G57: 35 | H57: 40
B58: 32 | C58: Secondary Cables in Duct | F58: 35 | G58: 40 | H58: 60 | J58: 1855 | K58: Services | L58: 40 | M58: 0.025 | N58: 40 | O58: 0.025 | P58: No | Q58: No
B59: 33 | C59: Network Tranformers | D59: Overall | F59: 20 | G59: 35 | H59: 50
D60: Protector | F60: 20 | G60: 35 | H60: 40
B61: 34 | C61: Pad-Mounted Transformers | F61: 25 | G61: 40 | H61: 45 | J61: 1850 | K61: UG Transformers | L61: 40 | M61: 0.025 | N61: 40 | O61: 0.025 | P61: No | Q61: No
B62: 35 | C62: Submersible/Vault Transformers | F62: 25 | G62: 35 | H62: 45
B63: 36 | C63: UG Foundation | F63: 35 | G63: 55 | H63: 70
B64: 37 | C64: UG Vaults | D64: Overall | F64: 40 | G64: 60 | H64: 80
D65: Roof | F65: 20 | G65: 30 | H65: 45
B66: 38 | C66: UG Vault Switches | F66: 20 | G66: 35 | H66: 50
B67: 39 | C67: Pad-Mounted Switchgear | F67: 20 | G67: 30 | H67: 45
B68: 40 | C68: Ducts | F68: 30 | G68: 50 | H68: 85
B69: 41 | C69: Concrete Encased Duct Banks | F69: 35 | G69: 55 | H69: 80 | J69: 1840 | K69: UG Conduit | L69: 50 | M69: 0.02 | N69: 50 | O69: 0.02 | P69: No | Q69: No
B70: 42 | C70: Cable Chambers | F70: 50 | G70: 60 | H70: 80
A71: S | B71: 43 | C71: Remote SCADA | F71: 15 | G71: 20 | H71: 30 | J71: 1980 | K71: System Supervisory Equipment | L71: 20 | M71: 0.05 | N71: 20 | O71: 0.05 | P71: No | Q71: No
B74: Table F-2 from Kinetrics Report1
C76: Asset Details | F76: Useful Life Range | J76: USoA Account Number | K76: USoA Account Description | L76: Current | N76: Proposed | P76: Outside Range of Min, Max TUL?
B77: # | C77: Category| Component | Type | L77: Years | M77: Rate | N77: Years | O77: Rate | P77: Below Min Range | Q77: Above Max Range
B78: 1 | C78: Office Equipment | F78: 5 | G78: 15 | J78: 1915 | K78: Office Equipment | L78: 10 | M78: =IF(ISERROR(1/L78), "", 1/L78) -> 0.1 | N78: 10 | O78: =IF(ISERROR(1/N78), "", 1/N78) -> 0.1 | P78: =IF(ISBLANK(N78),"",IF(N78<F78,"Yes","No")) -> No | Q78: =IF(ISBLANK(N78),"",IF(N78>G78,"Yes","No")) -> No
B79: 2 | C79: Vehicles | D79: Trucks & Buckets | F79: 5 | G79: 15 | J79: 1930 | K79: Transportation Equipment - >3 ton | L79: 8 | M79: =IF(ISERROR(1/L79), "", 1/L79) -> 0.125 | N79: 8 | O79: =IF(ISERROR(1/N79), "", 1/N79) -> 0.125 | P79: =IF(ISBLANK(N79),"",IF(N79<F79,"Yes","No")) -> No | Q79: =IF(ISBLANK(N79),"",IF(N79>G79,"Yes","No")) -> No
D80: Trucks & Buckets | F80: 5 | G80: 15 | J80: 1930 | K80: Transportation Equipment - <3 ton | L80: 5 | M80: 0.2 | N80: 5 | O80: =IF(ISERROR(1/N80), "", 1/N80) -> 0.2 | P80: =IF(ISBLANK(N80),"",IF(N80<F80,"Yes","No")) -> No | Q80: =IF(ISBLANK(N80),"",IF(N80>G80,"Yes","No")) -> No
D81: Trailers | F81: 5 | G81: 20 | J81: 1930 | K81: Transportation Equipment - Trailers | L81: 8 | M81: 0.125 | N81: 8 | O81: 0.125 | P81: No | Q81: No
D82: Vans | F82: 5 | G82: 10 | J82: 1930 | K82: Transportation Equipment - <3 ton | L82: 8 | M82: 0.125 | N82: 8 | O82: 0.125 | P82: No | Q82: No
B83: 3 | C83: Administrative Buildings | F83: 50 | G83: 75 | J83: 1980 | K83: Buildings & Fixtures | L83: 25 | M83: 0.04 | N83: 25 | O83: 0.04 | P83: Yes | Q83: No
B84: 4 | C84: Leasehold Improvements | F84: Lease dependent | P84: =IF(ISBLANK(N84),"",IF(N84<F84,"Yes","No")) ->  | Q84: =IF(ISBLANK(N84),"",IF(N84>G84,"Yes","No")) -> 
B85: 5 | C85: Station Buildings | D85: Station Buildings | F85: 50 | G85: 75 | J85: 1808 | K85: Station Buildings | L85: 50 | M85: 0.02 | N85: 50 | O85: 0.02 | P85: No | Q85: No
D86: Parking | F86: 25 | G86: 30
D87: Fence | F87: 25 | G87: 60
D88: Roof | F88: 20 | G88: 30
B89: 6 | C89: Computer Equipment | D89: Hardware | F89: 3 | G89: 5 | J89: 1920 | K89: Computer Hardware | L89: 5 | M89: 0.2 | N89: 5 | O89: 0.2 | P89: No | Q89: No
D90: Software | F90: 2 | G90: 5 | J90: 1925 | K90: Computer Software | L90: 5 | M90: 0.2 | N90: 5 | O90: 0.2 | P90: No | Q90: No
B91: 7 | C91: Equipment | D91: Power Operated | F91: 5 | G91: 10
D92: Stores | F92: 5 | G92: 10 | J92: 1935 | K92: Stores Equipment | L92: 10 | M92: 0.1 | N92: 10 | O92: 0.1 | P92: No | Q92: No
D93: Tools, Shop, Garage Equipment | F93: 5 | G93: 10 | J93: 1940 | K93: Tools, Shop, Garage Equipment | L93: 10 | M93: 0.1 | N93: 10 | O93: 0.1 | P93: No | Q93: No
D94: Measurement & Testing Equipment | F94: 5 | G94: 10
B95: 8 | C95: Communication | D95: Towers | F95: 60 | G95: 70
D96: Wireless | F96: 2 | G96: 10
B97: 9 | C97: Residential Energy Meters | F97: 25 | G97: 35 | J97: 1860 | K97: Meters | L97: 25 | M97: 0.04 | N97: 25 | O97: 0.04 | P97: No | Q97: No
B98: 10 | C98: Industrial/Commercial Energy Meters | F98: 25 | G98: 35 | J98: 1860 | K98: Meters | L98: 25 | M98: 0.04 | N98: 25 | O98: 0.04 | P98: No | Q98: No
B99: 11 | C99: Wholesale Energy Meters | F99: 15 | G99: 30
B100: 12 | C100: Current & Potential Transformer (CT & PT) | F100: 35 | G100: 50
B101: 13 | C101: Smart Meters | F101: 5 | G101: 15 | J101: 1860 | K101: Meters | L101: 10 | M101: 0.1 | N101: 10 | O101: 0.1 | P101: No | Q101: No
B102: 14 | C102: Repeaters - Smart Metering | F102: 10 | G102: 15
B103: 15 | C103: Data Collectors - Smart Metering | F103: 15 | G103: 20
A106: * TS & MS = Transformer and Municipal Stations UG = Underground Systems S = Monitoring and Control Systems
A108: Note 1: | B108: Tables F-1 and F-2 above are to be used as a reference in order to complete columns J, K, L and N.
B109: See pages 17-19 of Kinetrics Report

Sheet App.2-C_DepExp
A9: Appendix 2-C
A10: Depreciation and Amortization Expense
A12: This appendix is to be completed in conjunction with the accounting instructions in Appendix 2-B
A14: Scenario that applies | C14: Applicable Years and Accounting Standard | R14: Year Reflected in Schedule Below | S14: Accounting Standard Reflected in Schedule Below
A15: Rebasing for the first time with depreciation policy changes made in 2012. | C15: ="This appendix must be duplicated and completed for the years 2012 to " & TestYear & ". The appendix for 2012 is to be completed under CGAAP (prior to changes in depreciation policies)." &" The appendix for 2012 to 2014 must be completed under Revised CGAAP (after changes in depreciation policies). The appendix for 2014 to " & TestYear & " is to be completed under MIFRS (2014 if changes to MIFRS are material)." -> This appendix must be duplicated and completed for the years 2012 to 2021. The appendix for 2012 is to be completed under CGAAP (prior to changes in depreciation policies). The appendix for 2012 to 2014 must be completed under Revised CGAAP (after changes in depreciation policies). The appendix for 2014 to 2021 is to be completed under MIFRS (2014 if changes to MIFRS are material).
A16: Rebasing for the first time with depreciation policy changes made in 2013. | C16: ="This appendix must be duplicated and completed for the years 2013 to " & TestYear & ". The appendix for 2013 is to be completed under CGAAP (prior to changes in depreciation policies)."&" The appendix for 2013 to 2014 must be completed under Revised CGAAP (after changes in depreciation policies). The appendix for 2014 to " & TestYear & " is to be completed under MIFRS (2014 if changes to MIFRS are material)." -> This appendix must be duplicated and completed for the years 2013 to 2021. The appendix for 2013 is to be completed under CGAAP (prior to changes in depreciation policies). The appendix for 2013 to 2014 must be completed under Revised CGAAP (after changes in depreciation policies). The appendix for 2014 to 2021 is to be completed under MIFRS (2014 if changes to MIFRS are material).
A17: Already rebased with depreciation policy changes in a prior rate application and rebasing MIFRS for the first time. | C17: This appendix must be completed for 2014 to the test year. The appendix for 2014 is to be completed under Revised CGAAP (after changes in depreciation policies). The appendix for 2014 to the test year is to be completed under MIFRS (2014 if changes to MIFRS are material).
A18: Already rebased under MIFRS in a prior rate application | C18: ="This appendix must be completed under MIFRS for each year for the earlier of: 1) all historical years back to its last rebasing; or 2) at least three years of historical actuals, in addition to Bridge Year and Test Year forecasts." -> This appendix must be completed under MIFRS for each year for the earlier of: 1) all historical years back to its last rebasing; or 2) at least three years of historical actuals, in addition to Bridge Year and Test Year forecasts.
B20: 2015 | C20: Book Values | J20: Service Lives | N20: Depreciation Expense
A21: Account | B21: Description | C21: Opening Net Book Value of Existing Assets as at Date of Policy Change (Jan. 1) 1 | D21: Less Fully Depreciated 7 | E21: Net Amount of Existing Assets Before Policy Change to be Depreciated | F21: Opening Gross Book Value of Assets Acquired After Policy Change 2 | G21: Less Fully Depreciated 8 | H21: Net Amount of Assets Acquired After Policy Change to be Depreciated | I21: Current Year Additions | J21: Average Remaining Life of Assets Existing Before Policy Change 3 | K21: Depreciation Rate Assets Acquired After Policy Change | L21: Life of Assets Acquired After Policy Change 4 | M21: Depreciation Rate on New Additions | N21: Depreciation Expense on Assets Existing Before Policy Change | O21: Depreciation Expense on Assets Acquired After Policy Change | P21: Depreciation Expense on Current Year Additions 5 | Q21: Total Current Year Depreciation Expense | R21: Depreciation Expense per Appendix 2-BA Fixed Assets, Column J | S21: Variance 6
C22: a | D22: b | E22: c = a-b | F22: d | G22: e | H22: f = d- e | I22: g | J22: h | K22: i = 1/h | L22: j | M22: k = 1/j | N22: l = c/h | O22: m = f/j | P22: n = g*0.5/j | Q22: o = l+m+n | R22: p | S22: q = p-o
A23: 1611 | B23: Computer Software (Formally known as Account 1925) | C23: 158896.429 | D23: 146098 | E23: =C23-D23 -> 12798.429 | F23: 381166.88 | H23: =F23-G23 -> 381166.88 | I23: 26417.56 | J23: 1 | K23: =IF(J23=0,0,1/J23) -> 1 | L23: 5 | M23: =IF(L23=0,0,1/L23) -> 0.2 | N23: =IF(J23=0,0,+E23/J23) -> 12798.429 | O23: =IF(L23=0,0,+H23/L23) -> 76233.376 | P23: =IF(L23=0,0,+(I23*0.5)/L23) -> 2641.756 | Q23: =IF(ISERROR(+N23+O23+P23), 0, +N23+O23+P23) -> 91673.561 | R23: 102964.6023 | S23: =IF(ISERROR(+R23-Q23), 0, +R23-Q23) -> 11291.04135
A24: 1612 | B24: Land Rights (Formally known as Account 1906) | E24: =C24-D24 -> 0 | H24: =F24-G24 -> 0 | K24: =IF(J24=0,0,1/J24) -> 0 | M24: =IF(L24=0,0,1/L24) -> 0 | N24: =IF(J24=0,0,+E24/J24) -> 0 | O24: =IF(L24=0,0,+H24/L24) -> 0 | P24: =IF(L24=0,0,+(I24*0.5)/L24) -> 0 | Q24: =IF(ISERROR(+N24+O24+P24), 0, +N24+O24+P24) -> 0 | R24: 0 | S24: =IF(ISERROR(+R24-Q24), 0, +R24-Q24) -> 0
A25: 1805 | B25: Land | C25: 446493.3 | E25: 446493.3 | F25: 71.55 | H25: 71.55 | I25: 50811 | K25: 0 | L25: 0 | M25: 0 | N25: 0 | O25: =IF(L25=0,0,+H25/L25) -> 0 | P25: 0 | Q25: 0 | R25: 0 | S25: 0
A26: 1808 | B26: Buildings | C26: 1418748.667 | D26: 96535.03662 | E26: 1322213.63 | F26: 88590.53 | H26: 88590.53 | I26: 0 | J26: 41.09016818 | K26: 0.024336722 | L26: 50 | M26: 0.02 | N26: 32178.34554 | O26: 1771.8106 | P26: 0 | Q26: 33950.15614 | R26: 34598 | S26: 647.8438611
A27: 1810 | B27: Leasehold Improvements | E27: 0 | H27: 0 | I27: 0 | K27: 0 | M27: 0 | N27: 0 | O27: 0 | P27: 0 | Q27: 0 | R27: 0 | S27: 0
A28: 1815 | B28: Transformer Station Equipment >50 kV | E28: 0 | H28: 0 | I28: 0 | K28: 0 | M28: 0 | N28: 0 | O28: 0 | P28: 0 | Q28: 0 | R28: 0 | S28: 0
A29: 1820 | B29: Distribution Station Equipment <50 kV | C29: 6731808.953 | D29: 780351.153 | E29: 5951457.8 | F29: 2788292.86 | H29: 2788292.86 | I29: 2533625 | J29: 22.87992185 | K29: 0.04370644298 | L29: 40 | M29: 0.025 | N29: 260117.051 | O29: 69707.3215 | P29: 31670.3125 | Q29: 361494.685 | R29: 345080 | S29: -16414.685
A30: 1825 | B30: Storage Battery Equipment | E30: 0 | H30: 0 | I30: 0 | K30: 0 | M30: 0 | N30: 0 | O30: 0 | P30: 0 | Q30: 0 | R30: 0 | S30: 0
A31: 1830 | B31: Poles, Towers & Fixtures | C31: 8016523.176 | D31: 778517.9395 | E31: 7238005.237 | F31: 4128921.14 | H31: 4128921.14 | I31: 1143597 | J31: 27.89147765 | K31: 0.03585324566 | L31: 45 | M31: 0.02222222222 | N31: 259505.9798 | O31: 91753.80311 | P31: 12706.63333 | Q31: 363966.4163 | R31: 367145.212 | S31: 3178.795725
A32: 1835 | B32: Overhead Conductors & Devices | C32: 6486254.218 | D32: 571039.0218 | E32: 5915215.196 | F32: 2227995.46 | H32: 2227995.46 | I32: 802077 | J32: 31.0760647 | K32: 0.03217910664 | L32: 60 | M32: 0.01666666667 | N32: 190346.3406 | O32: 37133.25767 | P32: 6683.975 | Q32: 234163.5733 | R32: 234828.1385 | S32: 664.5652388
A33: 1840 | B33: Underground Conduit | C33: 631714.3028 | D33: 42997.71794 | E33: 588716.5849 | F33: 448601.8 | H33: 448601.8 | I33: 27336 | J33: 41.07543003 | K33: 0.02434545419 | L33: 50 | M33: 0.02 | N33: 14332.57265 | O33: 8972.036 | P33: 273.36 | Q33: 23577.96865 | R33: 23583.8158 | S33: 5.847153123
A34: 1845 | B34: Underground Conductors & Devices | C34: 2326939.123 | D34: 254776.1716 | E34: 2072162.951 | F34: 659214.7 | H34: 659214.7 | I34: 51130 | J34: 24.39980479 | K34: 0.04098393444 | L34: 40 | M34: 0.025 | N34: 84925.39053 | O34: 16480.3675 | P34: 639.125 | Q34: 102044.883 | R34: 102259.7491 | S34: 214.8660973
A35: 1850 | B35: Line Transformers OH and UG | C35: 6397141.503 | D35: 632476.2942 | E35: 5764665.209 | F35: 1636686.76 | H35: 1636686.76 | I35: 539715.95 | J35: 27.34331039 | K35: 0.03657201654 | L35: 40 | M35: 0.025 | N35: 210825.4314 | O35: 40917.169 | P35: 6746.449375 | Q35: 258489.0498 | R35: 264022.6965 | S35: 5533.64674
A36: 1855 | B36: Services (OH) | C36: 3293888.051 | D36: 349161.6234 | E36: 2944726.427 | F36: 525927.67 | H36: 525927.67 | I36: 205197.39 | J36: 25.30111756 | K36: 0.03952394583 | L36: 60 | M36: 0.01666666667 | N36: 116387.2078 | O36: 8765.461167 | P36: 1709.97825 | Q36: 126862.6472 | R36: 126862.4798 | S36: -0.1674178816
A37: 1855 | B37: Services (UG) | C37: 7484766.462 | D37: 785820.3617 | E37: 6698946.1 | F37: 1107280.11 | H37: 1107280.11 | I37: 421765 | J37: 25.57434152 | K37: 0.03910169102 | L37: 40 | M37: 0.025 | N37: 261940.1206 | O37: 27682.00275 | P37: 5272.0625 | Q37: 294894.1858 | R37: 294894.15 | S37: -0.03583178791
A38: 1860 | B38: Meters | C38: 641396.6 | E38: 641396.6 | H38: 0 | I38: 0 | J38: 15.71660265 | K38: 0.06362698238 | L38: 25 | M38: 0.04 | N38: 40810.13017 | O38: 0 | P38: 0 | Q38: 40810.13017 | R38: 40810.13 | S38: -0.0001651348939
A39: 1860 | B39: Meters (Smart Meters) | C39: 2740197.12 | E39: 2740197.12 | H39: 0 | I39: 254295.16 | J39: 10.29569454 | K39: 0.09712797872 | L39: 10 | M39: 0.1 | N39: 266149.8076 | O39: 0 | P39: 12714.758 | Q39: 278864.5656 | R39: 279905.53 | S39: 1040.964436
A40: 1905 | B40: Land | C40: 86550.51 | E40: 86550.51 | F40: 0 | H40: 0 | I40: 0 | K40: 0 | M40: 0 | N40: 0 | O40: 0 | P40: 0 | Q40: 0 | R40: 0 | S40: 0
A41: 1908 | B41: Buildings & Fixtures | C41: 996034.7958 | D41: 213929.649 | E41: 782105.1468 | F41: 768904.53 | H41: 768904.53 | I41: 170169.52 | J41: 10.9676964 | K41: 0.09117684916 | L41: 25 | M41: 0.04 | N41: 71309.883 | O41: 30756.1812 | P41: 3403.3904 | Q41: 105469.4546 | R41: 81393.59878 | S41: -24075.85582
A42: 1910 | B42: Leasehold Improvements | E42: 0 | H42: 0 | I42: 0 | K42: 0 | M42: 0 | N42: 0 | O42: 0 | P42: 0 | Q42: 0 | R42: 0 | S42: 0
A43: 1915 | B43: Office Furniture & Equipment (10 years) | C43: 50812.585 | D43: 24943.3425 | E43: 25869.2425 | F43: 40068.94 | H43: 40068.94 | I43: 750.79 | J43: 3.111360376 | K43: 0.3214028204 | L43: 10 | M43: 0.1 | N43: 8314.4475 | O43: 4006.894 | P43: 37.5395 | Q43: 12358.881 | R43: 10878.195 | S43: -1480.686
A44: 1915 | B44: Office Furniture & Equipment (5 years) | E44: 0 | H44: 0 | I44: 0 | K44: 0 | M44: 0 | N44: 0 | O44: 0 | P44: 0 | Q44: 0 | R44: 0 | S44: 0
A45: 1920 | B45: Computer Equipment - Hardware | E45: 0 | H45: 0 | I45: 0 | K45: 0 | M45: 0 | N45: 0 | O45: 0 | P45: 0 | Q45: 0 | R45: 0 | S45: 0
A46: 1920 | B46: Computer Equip.-Hardware(Post Mar. 22/04) | E46: 0 | H46: 0 | I46: 0 | K46: 0 | M46: 0 | N46: 0 | O46: 0 | P46: 0 | Q46: 0 | R46: 0 | S46: 0
A47: 1920 | B47: Computer Equip.-Hardware(Post Mar. 19/07) | C47: 160672.409 | D47: 115044.372 | E47: 45628.037 | F47: 204796.02 | H47: 204796.02 | I47: 29127.23 | J47: 1.189837526 | K47: 0.8404508833 | L47: 5 | M47: 0.2 | N47: 38348.124 | O47: 40959.204 | P47: 2912.723 | Q47: 82220.051 | R47: 72734.63665 | S47: -9485.414349
A48: 1930 | B48: Transportation Equipment >3 | C48: 592812.7919 | D48: 275259.8681 | E48: 317552.9237 | F48: 201460.18 | H48: 201460.18 | I48: 480279.38 | J48: 1.726438275 | K48: 0.5792271953 | L48: 8 | M48: 0.125 | N48: 183935.2894 | O48: 25182.5225 | P48: 30017.46125 | Q48: 239135.2731 | R48: 235868.8426 | S48: -3266.430535
A49: 1930 | B49: Transportation Equipment <3 | C49: 154905.721 | D49: 154905.721 | E49: 0 | F49: 74532.35 | H49: 74532.35 | I49: 110386 | J49: 0 | K49: 0 | L49: 5 | M49: 0.2 | N49: 0 | O49: 14906.47 | P49: 11038.6 | Q49: 25945.07 | R49: 25590.67741 | S49: -354.3925903
A50: 1935 | B50: Stores Equipment | E50: 0 | H50: 0 | I50: 0 | K50: 0 | M50: 0 | N50: 0 | O50: 0 | P50: 0 | Q50: 0 | R50: 0 | S50: 0
A51: 1940 | B51: Tools, Shop & Garage Equipment | C51: 214636 | D51: 107588.2695 | E51: 107047.7305 | F51: 136154.737 | H51: 136154.737 | I51: 18787.1 | J51: 2.984933423 | K51: 0.3350158474 | L51: 10 | M51: 0.1 | N51: 35862.68615 | O51: 13615.4737 | P51: 939.355 | Q51: 50417.51485 | R51: 43725.3615 | S51: -6692.153349
A52: 1945 | B52: Measurement & Testing Equipment | E52: 0 | H52: 0 | I52: 0 | K52: 0 | M52: 0 | N52: 0 | O52: 0 | P52: 0 | Q52: 0 | R52: 0 | S52: 0
A53: 1950 | B53: Power Operated Equipment | E53: 0 | H53: 0 | I53: 0 | K53: 0 | M53: 0 | N53: 0 | O53: 0 | P53: 0 | Q53: 0 | R53: 0 | S53: 0
A54: 1955 | B54: Communications Equipment | C54: 19683 | D54: 12931.17 | E54: 6751.83 | F54: 72493.77 | H54: 72493.77 | I54: 2880.85 | J54: 1.566329845 | K54: 0.6384351312 | L54: 10 | M54: 0.1 | N54: 4310.605472 | O54: 7249.377 | P54: 144.0425 | Q54: 11704.02497 | R54: 9933.520833 | S54: -1770.504139
A55: 1955 | B55: Communication Equipment (Smart Meters) | E55: 0 | H55: 0 | I55: 0 | K55: 0 | M55: 0 | N55: 0 | O55: 0 | P55: 0 | Q55: 0 | R55: 0 | S55: 0
A56: 1960 | B56: Miscellaneous Equipment | C56: 10055 | D56: 10054.6125 | E56: 0.3875 | F56: 2930.37 | H56: 2930.37 | I56: 0 | J56: 0 | K56: 0 | L56: 10 | M56: 0.1 | N56: 0 | O56: 293.037 | P56: 0 | Q56: 293.037 | R56: 1765.079308 | S56: 1472.042308
A57: 1970 | B57: Load Management Controls Customer Premises | E57: 0 | H57: 0 | I57: 0 | K57: 0 | M57: 0 | N57: 0 | O57: 0 | P57: 0 | Q57: 0 | R57: 0 | S57: 0
A58: 1975 | B58: Load Management Controls Utility Premises | E58: 0 | H58: 0 | I58: 0 | K58: 0 | M58: 0 | N58: 0 | O58: 0 | P58: 0 | Q58: 0 | R58: 0 | S58: 0
A59: 1980 | B59: System Supervisor Equipment | C59: 283106 | D59: 155775.9705 | E59: 127330.0295 | F59: 138692.63 | H59: 138692.63 | I59: 28271.77 | J59: 2.452177452 | K59: 0.4078008298 | L59: 20 | M59: 0.05 | N59: 51925.29169 | O59: 6934.6315 | P59: 706.79425 | Q59: 59566.71744 | R59: 51458.20575 | S59: -8108.511692
A60: 1985 | B60: Miscellaneous Fixed Assets | E60: 0 | H60: 0 | I60: 0 | K60: 0 | M60: 0 | N60: 0 | O60: 0 | P60: 0 | Q60: 0 | R60: 0 | S60: 0
A61: 1990 | B61: Other Tangible Property | C61: 31426 | D61: 4888.68 | E61: 26537.32 | F61: 0 | H61: 0 | I61: 0 | J61: 16.28474558 | K61: 0.06140716141 | L61: 10 | M61: 0.1 | N61: 1629.581493 | O61: 0 | P61: 0 | Q61: 1629.581493 | R61: 1629.6 | S61: 0.01850749351
A62: 1995 | B62: Contributions & Grants | C62: -5981923.804 | D62: -517003.3434 | E62: -5464920.461 | F62: -1737867.08 | H62: -1737867.08 | I62: 0 | J62: 31.71113223 | K62: 0.03153466716 | L62: 45 | M62: 0.02222222222 | N62: -172334.4478 | O62: -38619.26844 | P62: 0 | Q62: -210953.7162 | R62: -214846 | S62: -3892.283761
A63: 2440 | B63: Deferrerd Revenue | F63: -1415412 | H63: -1415412 | I63: -703198 | K63: 0 | L63: 46 | M63: 0.02173913043 | N63: 0 | O63: -30769.82609 | P63: -7643.456522 | Q63: -38413.28261 | R63: -43035 | S63: -4621.717391
A64: 2005 | B64: Property Under Finance Lease | E64: 0 | H64: 0 | K64: 0 | M64: 0 | N64: 0 | O64: =IF(L64=0,0,+H64/L64) -> 0 | P64: =IF(L64=0,0,+(I64*0.5)/L64) -> 0 | Q64: =IF(ISERROR(+N64+O64+P64), 0, +N64+O64+P64) -> 0 | R64: 0 | S64: 0
B65: Total | C65: =SUM(C23:C64) -> 43393538.91 | D65: 4996091.631 | E65: 38397447.28 | F65: 12479503.91 | G65: 0 | H65: 12479503.91 | I65: 6193421.7 | N65: =SUM(N23:N64) -> 1973618.268 | O65: 453931.3017 | P65: 122614.8593 | Q65: 2550164.429 | R65: 2494051.222 | S65: -56113.20662
B67: 2016 | C67: Book Values | J67: Service Lives | N67: Depreciation Expense
A68: Account | B68: Description | C68: Opening Net Book Value of Existing Assets as at Date of Policy Change (Jan. 1) 1 | D68: Less Fully Depreciated 7 | E68: Net Amount of Existing Assets Before Policy Change to be Depreciated | F68: Opening Gross Book Value of Assets Acquired After Policy Change 2 | G68: Less Fully Depreciated 8 | H68: Net Amount of Assets Acquired After Policy Change to be Depreciated | I68: Current Year Additions | J68: Average Remaining Life of Assets Existing Before Policy Change 3 | K68: Depreciation Rate Assets Acquired After Policy Change | L68: Life of Assets Acquired After Policy Change 4 | M68: Depreciation Rate on New Additions | N68: Depreciation Expense on Assets Existing Before Policy Change | O68: Depreciation Expense on Assets Acquired After Policy Change | P68: Depreciation Expense on Current Year Additions 5 | Q68: Total Current Year Depreciation Expense | R68: Depreciation Expense per Appendix 2-BA Fixed Assets, Column J | S68: Variance 6
C69: a | D69: b | E69: c = a-b | F69: d | G69: e | H69: f = d- e | I69: g | J69: h | K69: i = 1/h | L69: j | M69: k = 1/j | N69: l = c/h | O69: m = f/j | P69: n = g*0.5/j | Q69: o = l+m+n | R69: p | S69: q = p-o
A70: 1611 | B70: Computer Software (Formally known as Account 1925) | C70: 158896.429 | D70: 158896.429 | E70: =C70-D70 -> 0 | F70: 407584.44 | H70: =F70-G70 -> 407584.44 | I70: 54301 | J70: 0 | K70: =IF(J70=0,0,1/J70) -> 0 | L70: 5 | M70: =IF(L70=0,0,1/L70) -> 0.2 | N70: =IF(J70=0,0,+E70/J70) -> 0 | O70: =IF(L70=0,0,+H70/L70) -> 81516.888 | P70: =IF(L70=0,0,+(I70*0.5)/L70) -> 5430.1 | Q70: =IF(ISERROR(+N70+O70+P70), 0, +N70+O70+P70) -> 86946.988 | R70: 86776 | S70: =IF(ISERROR(+R70-Q70), 0, +R70-Q70) -> -170.988
A71: 1612 | B71: Land Rights (Formally known as Account 1906) | D71: 0 | E71: =C71-D71 -> 0 | F71: 0 | H71: =F71-G71 -> 0 | I71: 0 | K71: =IF(J71=0,0,1/J71) -> 0 | L71: 0 | M71: =IF(L71=0,0,1/L71) -> 0 | N71: =IF(J71=0,0,+E71/J71) -> 0 | O71: =IF(L71=0,0,+H71/L71) -> 0 | P71: =IF(L71=0,0,+(I71*0.5)/L71) -> 0 | Q71: =IF(ISERROR(+N71+O71+P71), 0, +N71+O71+P71) -> 0 | R71: 0 | S71: =IF(ISERROR(+R71-Q71), 0, +R71-Q71) -> 0
A72: 1805 | B72: Land | C72: 446493.3 | D72: 0 | E72: 446493.3 | F72: 50882.55 | H72: 50882.55 | I72: 7929 | K72: 0 | L72: 0 | M72: 0 | N72: 0 | O72: =IF(L72=0,0,+H72/L72) -> 0 | P72: 0 | Q72: 0 | R72: 0 | S72: 0
A73: 1808 | B73: Buildings | C73: 1418748.667 | D73: 128713.3822 | E73: 1290035.285 | F73: 88590.53 | H73: 88590.53 | I73: 7829 | J73: 40.09016818 | K73: 0.02494377164 | L73: 50 | M73: 0.02 | N73: 32178.34554 | O73: 1771.8106 | P73: 78.29 | Q73: 34028.44614 | R73: 35235 | S73: 1206.553861
A74: 1810 | B74: Leasehold Improvements | D74: 0 | E74: 0 | F74: 0 | H74: 0 | I74: 0 | K74: 0 | L74: 0 | M74: 0 | N74: 0 | O74: 0 | P74: 0 | Q74: 0 | R74: 0 | S74: 0
A75: 1815 | B75: Transformer Station Equipment >50 kV | D75: 0 | E75: 0 | F75: 0 | H75: 0 | I75: 0 | K75: 0 | L75: 0 | M75: 0 | N75: 0 | O75: 0 | P75: 0 | Q75: 0 | R75: 0 | S75: 0
A76: 1820 | B76: Distribution Station Equipment <50 kV | C76: 6731808.953 | D76: 1040468.204 | E76: 5691340.749 | F76: 5321917.86 | H76: 5321917.86 | I76: 491617.11 | J76: 21.87992185 | K76: 0.04570400236 | L76: 40 | M76: 0.025 | N76: 260117.051 | O76: 133047.9465 | P76: 6145.213875 | Q76: 399310.2114 | R76: 381625 | S76: -17685.21138
A77: 1825 | B77: Storage Battery Equipment | D77: 0 | E77: 0 | F77: 0 | H77: 0 | I77: 0 | K77: 0 | L77: 0 | M77: 0 | N77: 0 | O77: 0 | P77: 0 | Q77: 0 | R77: 0 | S77: 0
A78: 1830 | B78: Poles, Towers & Fixtures | C78: 8016523.176 | D78: 1038023.919 | E78: 6978499.257 | F78: 5272518.14 | G78: 363805 | H78: 4908713.14 | I78: 1052727 | J78: 26.89147765 | K78: 0.03718650247 | L78: 45 | M78: 0.02222222222 | N78: 259505.9798 | O78: 109082.5142 | P78: 11696.96667 | Q78: 380285.4607 | R78: 378557 | S78: -1728.460719
A79: 1835 | B79: Overhead Conductors & Devices | C79: 4812400.218 | D79: 761385.3624 | E79: 4051014.855 | F79: 3030072.46 | H79: 3030072.46 | I79: 597960 | J79: 30.0760647 | K79: 0.03324903075 | L79: 60 | M79: 0.01666666667 | N79: 134692.3175 | O79: 50501.20767 | P79: 4983 | Q79: 190176.5251 | R79: 197336 | S79: 7159.47485
A80: 1840 | B80: Underground Conduit | C80: 631714.3028 | D80: 57330.29059 | E80: 574384.0122 | F80: 475937.8 | H80: 475937.8 | I80: 191283 | J80: 40.07543003 | K80: 0.02495294497 | L80: 50 | M80: 0.02 | N80: 14332.57265 | O80: 9518.756 | P80: 1912.83 | Q80: 25764.15865 | R80: 26412 | S80: 647.8413531
A81: 1845 | B81: Underground Conductors & Devices | C81: 2326939.123 | D81: 339701.5621 | E81: 1987237.56 | F81: 710344.7 | H81: 710344.7 | I81: 155327 | J81: 23.39980479 | K81: 0.04273539924 | L81: 40 | M81: 0.025 | N81: 84925.39053 | O81: 17758.6175 | P81: 1941.5875 | Q81: 104625.5955 | R81: 102783 | S81: -1842.595528
A82: 1850 | B82: Line Transformers | C82: 6397141.503 | D82: 843301.7255 | E82: 5553839.777 | F82: 2176402.71 | H82: 2176402.71 | I82: 574025 | J82: 26.34331039 | K82: 0.03796030131 | L82: 40 | M82: 0.025 | N82: 210825.4314 | O82: 54410.06775 | P82: 7175.3125 | Q82: 272410.8116 | R82: 265810 | S82: -6600.811635
A83: 1855 | B83: Services (OH) | C83: 3293888.051 | D83: 465548.8312 | E83: 2828339.219 | F83: 731125.06 | H83: 731125.06 | I83: 100255.88 | J83: 24.30111756 | K83: 0.04115037086 | L83: 60 | M83: 0.01666666667 | N83: 116387.2078 | O83: 12185.41767 | P83: 835.4656667 | Q83: 129408.0911 | R83: 129080.77 | S83: -327.3211262
A84: 1855 | B84: Services (UG) | C84: 7484766.462 | D84: 1047760.482 | E84: 6437005.98 | F84: 1529045.11 | H84: 1529045.11 | I84: 1259622.12 | J84: 24.57434152 | K84: 0.04069285028 | L84: 40 | M84: 0.025 | N84: 261940.1206 | O84: =IF(L84=0,0,+H84/L84) -> 38226.12775 | P84: =IF(L84=0,0,+(I84*0.5)/L84) -> 15745.2765 | Q84: =IF(ISERROR(+N84+O84+P84), 0, +N84+O84+P84) -> 315911.5248 | R84: 315495.23 | S84: -416.2948318
A85: 1860 | B85: Meters | C85: 641396.6 | E85: 641396.6 | H85: 0 | I85: 0 | J85: 15.71660265 | K85: 0.06362698238 | L85: 25 | M85: 0.04 | N85: 40810.13017 | O85: 0 | P85: 0 | Q85: 40810.13017 | R85: 48429.59 | S85: 7619.459835
A86: 1860 | B86: Meters (Smart Meters) | C86: 2709763.124 | E86: 2709763.124 | F86: 254295.16 | H86: 254295.16 | I86: 262657 | J86: 10.29569454 | K86: 0.09712797872 | L86: 10 | M86: 0.1 | N86: 263193.815 | O86: 25429.516 | P86: 13132.85 | Q86: 301756.181 | R86: 299955.73 | S86: -1800.451003
A87: 1905 | B87: Land | C87: 86550.51 | D87: 0 | E87: 86550.51 | F87: 0 | H87: 0 | I87: 0 | K87: 0 | L87: 0 | M87: 0 | N87: 0 | O87: 0 | P87: 0 | Q87: 0 | R87: 0 | S87: 0
A88: 1908 | B88: Buildings & Fixtures | C88: 996034.7958 | D88: 285239.532 | E88: 710795.2638 | F88: 939074.05 | H88: 939074.05 | I88: 454713 | J88: 9.967696396 | K88: 0.1003240829 | L88: 25 | M88: 0.04 | N88: 71309.883 | O88: 37562.962 | P88: 9094.26 | Q88: 117967.105 | R88: 89057 | S88: -28910.105
A89: 1910 | B89: Leasehold Improvements | D89: 0 | E89: 0 | F89: 0 | H89: 0 | I89: 0 | K89: 0 | L89: 0 | M89: 0 | N89: 0 | O89: 0 | P89: 0 | Q89: 0 | R89: 0 | S89: 0
A90: 1915 | B90: Office Furniture & Equipment (10 years) | C90: 50812.585 | D90: 33257.79 | E90: 17554.795 | F90: 40819.73 | H90: 40819.73 | I90: 0 | J90: 2.111360376 | K90: 0.4736282879 | L90: 10 | M90: 0.1 | N90: 8314.4475 | O90: 4081.973 | P90: 0 | Q90: 12396.4205 | R90: 10308 | S90: -2088.4205
A91: 1915 | B91: Office Furniture & Equipment (5 years) | D91: 0 | E91: 0 | F91: 0 | H91: 0 | I91: 0 | K91: 0 | L91: 0 | M91: 0 | N91: 0 | O91: 0 | P91: 0 | Q91: 0 | R91: 0 | S91: 0
A92: 1920 | B92: Computer Equipment - Hardware | D92: 0 | E92: 0 | F92: 0 | H92: 0 | I92: 0 | K92: 0 | L92: 0 | M92: 0 | N92: 0 | O92: 0 | P92: 0 | Q92: 0 | R92: 0 | S92: 0
A93: 1920 | B93: Computer Equip.-Hardware(Post Mar. 22/04) | D93: 0 | E93: 0 | F93: 0 | H93: 0 | I93: 0 | K93: 0 | L93: 0 | M93: 0 | N93: 0 | O93: 0 | P93: 0 | Q93: 0 | R93: 0 | S93: 0
A94: 1920 | B94: Computer Equip.-Hardware(Post Mar. 19/07) | C94: 160672.409 | D94: 153392.496 | E94: 7279.913 | F94: 233923.25 | H94: 233923.25 | I94: 20646 | J94: 1 | K94: 1 | L94: 5 | M94: 0.2 | N94: 7279.913 | O94: 46784.65 | P94: 2064.6 | Q94: 56129.163 | R94: 63122 | S94: 6992.837
A95: 1930 | B95: Transportation Equipment >3 | C95: 592812.7919 | D95: 459195.1575 | E95: 133617.6344 | F95: 681739.56 | H95: 681739.56 | I95: 0 | J95: 1 | K95: 1 | L95: 8 | M95: 0.125 | N95: 133617.6344 | O95: 85217.445 | P95: 0 | Q95: 218835.0794 | R95: 242415.4351 | S95: 23580.35568
A96: 1930 | B96: Transportation Equipment <3 | C96: 154905.721 | D96: 154905.721 | E96: 0 | F96: 184918.35 | H96: 184918.35 | I96: 283707 | L96: 5 | M96: 0.2 | N96: 0 | O96: 36983.67 | P96: 28370.7 | Q96: 65354.37 | R96: 72396.56495 | S96: 7042.194945
A97: 1935 | B97: Stores Equipment | D97: 0 | E97: 0 | F97: 0 | H97: 0 | I97: 0 | K97: 0 | L97: 0 | M97: 0 | N97: 0 | O97: 0 | P97: 0 | Q97: 0 | R97: 0 | S97: 0
A98: 1940 | B98: Tools, Shop & Garage Equipment | C98: 214636 | D98: 143450.9556 | E98: 71185.04435 | F98: 154941.837 | H98: 154941.837 | I98: 22336 | J98: 1.984933423 | K98: 0.503795235 | L98: 10 | M98: 0.1 | N98: 35862.68615 | O98: 15494.1837 | P98: 1116.8 | Q98: 52473.66985 | R98: 38245 | S98: -14228.66985
A99: 1945 | B99: Measurement & Testing Equipment | D99: 0 | E99: 0 | F99: 0 | H99: 0 | I99: 0 | K99: 0 | L99: 0 | M99: 0 | N99: 0 | O99: 0 | P99: 0 | Q99: 0 | R99: 0 | S99: 0
A100: 1950 | B100: Power Operated Equipment | D100: 0 | E100: 0 | F100: 0 | H100: 0 | I100: 0 | K100: 0 | L100: 0 | M100: 0 | N100: 0 | O100: 0 | P100: 0 | Q100: 0 | R100: 0 | S100: 0
A101: 1955 | B101: Communications Equipment | C101: 19683 | D101: 17241.77547 | E101: 2441.224528 | F101: 75374.62 | H101: 75374.62 | I101: 14614 | J101: 1 | K101: 1 | L101: 10 | M101: 0.1 | N101: 2441.224528 | O101: 7537.462 | P101: 730.7 | Q101: 10709.38653 | R101: 10381 | S101: -328.3865281
A102: 1955 | B102: Communication Equipment (Smart Meters) | D102: 0 | E102: 0 | F102: 0 | H102: 0 | I102: 0 | K102: 0 | L102: 0 | M102: 0 | N102: 0 | O102: 0 | P102: 0 | Q102: 0 | R102: 0 | S102: 0
A103: 1960 | B103: Miscellaneous Equipment | C103: 10055 | D103: 10054.6125 | E103: 0.3875 | F103: 2930.37 | H103: 2930.37 | I103: 0 | K103: 0 | L103: 10 | M103: 0.1 | N103: 0 | O103: 293.037 | P103: 0 | Q103: 293.037 | R103: 834 | S103: 540.963
A104: 1970 | B104: Load Management Controls Customer Premises | D104: 0 | E104: 0 | F104: 0 | H104: 0 | I104: 0 | K104: 0 | L104: 0 | M104: 0 | N104: 0 | O104: 0 | P104: 0 | Q104: 0 | R104: 0 | S104: 0
A105: 1975 | B105: Load Management Controls Utility Premises | D105: 0 | E105: 0 | F105: 0 | H105: 0 | I105: 0 | K105: 0 | L105: 0 | M105: 0 | N105: 0 | O105: 0 | P105: 0 | Q105: 0 | R105: 0 | S105: 0
A106: 1980 | B106: System Supervisor Equipment | C106: 283106 | D106: 207701.2622 | E106: 75404.73781 | F106: 166964.4 | H106: 166964.4 | I106: 18996 | J106: 3.74 | K106: 0.2673796791 | L106: 20 | M106: 0.05 | N106: 20161.6946 | O106: 8348.22 | P106: 474.9 | Q106: 28984.8146 | R106: 31102 | S106: 2117.185399
A107: 1985 | B107: Miscellaneous Fixed Assets | D107: 0 | E107: 0 | F107: 0 | H107: 0 | I107: 0 | K107: 0 | L107: 0 | M107: 0 | N107: 0 | O107: 0 | P107: 0 | Q107: 0 | R107: 0 | S107: 0
A108: 1990 | B108: Other Tangible Property | C108: 31426 | D108: 6518.261493 | E108: 24907.73851 | F108: 0 | H108: 0 | I108: 0 | J108: 15.28474558 | K108: 0.06542470694 | L108: 10 | M108: 0.1 | N108: 1629.581493 | O108: 0 | P108: 0 | Q108: 1629.581493 | R108: 1630 | S108: 0.4185074935
A109: 1995 | B109: Contributions & Grants | C109: -5981923.804 | D109: -689337.7912 | E109: -5292586.013 | F109: -1737867.08 | H109: -1737867.08 | I109: 0 | J109: 30.71113223 | K109: 0.03256148268 | L109: 45 | M109: 0.02222222222 | N109: -172334.4478 | O109: -38619.26844 | P109: 0 | Q109: -210953.7162 | R109: -212507 | S109: -1553.283761
A110: 2440 | B110: Deferrerd Revenue | E110: 0 | F110: -2118610 | H110: -2118610 | I110: -352322 | K110: 0 | L110: 46 | M110: 0.02173913043 | N110: 0 | O110: =IF(L110=0,0,+H110/L110) -> -46056.73913 | P110: =IF(L110=0,0,+(I110*0.5)/L110) -> -3829.586957 | Q110: =IF(ISERROR(+N110+O110+P110), 0, +N110+O110+P110) -> -49886.32609 | R110: -48694 | S110: 1192.326087
A111: 2005 | B111: Property Under Finance Lease | E111: 0 | F111: =+F64+I64 -> 0 | H111: 0 | K111: 0 | M111: 0 | N111: 0 | O111: 0 | P111: 0 | Q111: 0 | S111: 0
B112: Total | C112: =SUM(C70:C111) -> 41689250.92 | D112: 6662749.961 | E112: 35026500.95 | F112: 18672925.61 | G112: 363805 | H112: 18309120.61 | I112: 5218223.11 | N112: =SUM(N70:N111) -> 1787190.979 | O112: 691076.4648 | P112: 107099.2658 | Q112: 2585366.709 | R112: 2565785.32 | S112: -19581.38934
B114: 2017 | C114: Book Values | J114: Service Lives | N114: Depreciation Expense
A115: Account | B115: Description | C115: Opening Net Book Value of Existing Assets as at Date of Policy Change (Jan. 1) 1 | D115: Less Fully Depreciated 7 | E115: Net Amount of Existing Assets Before Policy Change to be Depreciated | F115: Opening Gross Book Value of Assets Acquired After Policy Change 2 | G115: Less Fully Depreciated 8 | H115: Net Amount of Assets Acquired After Policy Change to be Depreciated | I115: Current Year Additions | J115: Average Remaining Life of Assets Existing Before Policy Change 3 | K115: Depreciation Rate Assets Acquired After Policy Change | L115: Life of Assets Acquired After Policy Change 4 | M115: Depreciation Rate on New Additions | N115: Depreciation Expense on Assets Existing Before Policy Change | O115: Depreciation Expense on Assets Acquired After Policy Change | P115: Depreciation Expense on Current Year Additions 5 | Q115: Total Current Year Depreciation Expense | R115: Depreciation Expense per Appendix 2-BA Fixed Assets, Column J | S115: Variance 6
C116: a | D116: b | E116: c = a-b | F116: d | G116: e | H116: f = d- e | I116: g | J116: h | K116: i = 1/h | L116: j | M116: k = 1/j | N116: l = c/h | O116: m = f/j | P116: n = g*0.5/j | Q116: o = l+m+n | R116: p | S116: q = p-o
A117: 1611 | B117: Computer Software (Formally known as Account 1925) | C117: 158896.429 | D117: 158896.429 | E117: =C117-D117 -> 0 | F117: 461885.44 | G117: 62569 | H117: =F117-G117 -> 399316.44 | I117: 24273.25 | J117: 0 | K117: =IF(J117=0,0,1/J117) -> 0 | L117: 5 | M117: =IF(L117=0,0,1/L117) -> 0.2 | N117: =IF(J117=0,0,+E117/J117) -> 0 | O117: =IF(L117=0,0,+H117/L117) -> 79863.288 | P117: =IF(L117=0,0,+(I117*0.5)/L117) -> 2427.325 | Q117: =IF(ISERROR(+N117+O117+P117), 0, +N117+O117+P117) -> 82290.613 | R117: 67370.643 | S117: =IF(ISERROR(+R117-Q117), 0, +R117-Q117) -> -14919.97
A118: 1612 | B118: Land Rights (Formally known as Account 1906) | D118: 0 | E118: =C118-D118 -> 0 | F118: 0 | H118: =F118-G118 -> 0 | I118: 0 | K118: =IF(J118=0,0,1/J118) -> 0 | L118: 0 | M118: =IF(L118=0,0,1/L118) -> 0 | N118: =IF(J118=0,0,+E118/J118) -> 0 | O118: =IF(L118=0,0,+H118/L118) -> 0 | P118: =IF(L118=0,0,+(I118*0.5)/L118) -> 0 | Q118: =IF(ISERROR(+N118+O118+P118), 0, +N118+O118+P118) -> 0 | R118: 0 | S118: =IF(ISERROR(+R118-Q118), 0, +R118-Q118) -> 0
A119: 1805 | B119: Land | C119: 446493.3 | D119: 0 | E119: 446493.3 | F119: 58811.55 | H119: 58811.55 | I119: 0 | K119: 0 | L119: 0 | M119: 0 | N119: 0 | O119: =IF(L119=0,0,+H119/L119) -> 0 | P119: 0 | Q119: 0 | R119: 0 | S119: 0
A120: 1808 | B120: Buildings | C120: 1418748.667 | D120: 160891.7277 | E120: 1257856.939 | F120: 96419.53 | H120: 96419.53 | I120: 0 | J120: 39.09016818 | K120: 0.02558188021 | L120: 50 | M120: 0.02 | N120: 32178.34554 | O120: 1928.3906 | P120: 0 | Q120: 34106.73614 | R120: 35235 | S120: 1128.263861
A121: 1810 | B121: Leasehold Improvements | D121: 0 | E121: 0 | F121: 0 | H121: 0 | I121: 0 | K121: 0 | L121: 0 | M121: 0 | N121: 0 | O121: 0 | P121: 0 | Q121: 0 | R121: 0 | S121: 0
A122: 1815 | B122: Transformer Station Equipment >50 kV | D122: 0 | E122: 0 | F122: 0 | H122: 0 | I122: 0 | K122: 0 | L122: 0 | M122: 0 | N122: 0 | O122: 0 | P122: 0 | Q122: 0 | R122: 0 | S122: 0
A123: 1820 | B123: Distribution Station Equipment <50 kV | C123: 6731808.953 | D123: 1300585.255 | E123: 5431223.698 | F123: 5813534.97 | H123: 5813534.97 | I123: 976174.17 | J123: 20.87992185 | K123: 0.04789289955 | L123: 40 | M123: 0.025 | N123: 260117.051 | O123: 145338.3742 | P123: 12202.17713 | Q123: 417657.6024 | R123: 394259 | S123: -23398.60238
A124: 1825 | B124: Storage Battery Equipment | D124: 0 | E124: 0 | F124: 0 | H124: 0 | I124: 0 | K124: 0 | L124: 0 | M124: 0 | N124: 0 | O124: 0 | P124: 0 | Q124: 0 | R124: 0 | S124: 0
A125: 1830 | B125: Poles, Towers & Fixtures | C125: 8016523.176 | D125: 1297529.899 | E125: 6718993.277 | F125: 6325245.14 | G125: 380760 | H125: 5944485.14 | I125: 1050168.06 | J125: 25.89147765 | K125: 0.03862274736 | L125: 45 | M125: 0.02222222222 | N125: 259505.9798 | O125: 132099.6698 | P125: 11668.534 | Q125: 403274.1836 | R125: 402172.8 | S125: -1101.383608
A126: 1835 | B126: Overhead Conductors & Devices | C126: 4812400.218 | D126: 896077.6799 | E126: 3916322.538 | F126: 3628032.46 | H126: 3628032.46 | I126: 428092.4 | J126: 29.0760647 | K126: 0.03439254969 | L126: 60 | M126: 0.01666666667 | N126: 134692.3175 | O126: 60467.20767 | P126: 3567.436667 | Q126: 198726.9618 | R126: 209487.78 | S126: 10760.81818
A127: 1840 | B127: Underground Conduit | C127: 631714.3028 | D127: 71662.86323 | E127: 560051.4396 | F127: 667220.8 | H127: 667220.8 | I127: 577359.58 | J127: 39.07543003 | K127: 0.02559152898 | L127: 50 | M127: 0.02 | N127: 14332.57265 | O127: 13344.416 | P127: 5773.5958 | Q127: 33450.58445 | R127: 33919.55012 | S127: 468.965676
A128: 1845 | B128: Underground Conductors & Devices | C128: 2326939.123 | D128: 424626.9526 | E128: 1902312.17 | F128: 865671.7 | H128: 865671.7 | I128: 442811.63 | J128: 22.39980479 | K128: 0.04464324619 | L128: 40 | M128: 0.025 | N128: 84925.39053 | O128: 21641.7925 | P128: 5535.145375 | Q128: 112102.3284 | R128: 111939.1743 | S128: -163.1541325
A129: 1850 | B129: Line Transformers | C129: 6397141.503 | D129: 1054127.157 | E129: 5343014.346 | F129: 2750427.71 | H129: 2750427.71 | I129: 771611.61 | J129: 25.34331039 | K129: 0.03945814436 | L129: 40 | M129: 0.025 | N129: 210825.4314 | O129: 68760.69275 | P129: 9645.145125 | Q129: 289231.2693 | R129: 282717.42 | S129: -6513.84926
A130: 1855 | B130: Services (OH) | C130: 3293888.051 | D130: 581936.039 | E130: 2711952.012 | F130: 831380.94 | H130: 831380.94 | I130: 95053.05 | J130: 23.30111756 | K130: 0.04291639649 | L130: 60 | M130: 0.01666666667 | N130: 116387.2078 | O130: 13856.349 | P130: 792.10875 | Q130: 131035.6655 | R130: 130223.7 | S130: -811.9655429
A131: 1855 | B131: Services (UG) | C131: 7484766.462 | D131: 1309700.603 | E131: 6175065.859 | F131: 2788667.23 | H131: 2788667.23 | I131: 1015639.11 | J131: 23.57434152 | K131: 0.04241900031 | L131: 40 | M131: 0.025 | N131: 261940.1206 | O131: 69716.68075 | P131: =IF(L131=0,0,+(I131*0.5)/L131) -> 12695.48887 | Q131: =IF(ISERROR(+N131+O131+P131), 0, +N131+O131+P131) -> 344352.2902 | R131: 342392.95 | S131: -1959.340207
A132: 1860 | B132: Meters | C132: 641396.6 | E132: 641396.6 | H132: 0 | I132: 0 | J132: 15.71660265 | K132: 0.06362698238 | L132: 25 | M132: 0.04 | N132: 40810.13017 | O132: 0 | P132: 0 | Q132: 40810.13017 | R132: 46900.72 | S132: 6090.589835
A133: 1860 | B133: Meters (Smart Meters) | C133: 2709763.124 | E133: 2709763.124 | F133: 516952.16 | H133: 516952.16 | I133: 192115.96 | J133: 10.29569454 | K133: 0.09712797872 | L133: 10 | M133: 0.1 | N133: 263193.815 | O133: 51695.216 | P133: 9605.798 | Q133: 324494.829 | R133: 312828.69 | S133: -11666.139
A134: 1905 | B134: Land | C134: 86550.51 | D134: 0 | E134: 86550.51 | F134: 0 | H134: 0 | I134: 0 | K134: 0 | L134: 0 | M134: 0 | N134: 0 | O134: 0 | P134: 0 | Q134: 0 | R134: 0 | S134: 0
A135: 1908 | B135: Buildings & Fixtures | C135: 996034.7958 | D135: 356549.415 | E135: 639485.3808 | F135: 1393787.05 | H135: 1393787.05 | I135: 18475.64 | J135: 8.967696396 | K135: 0.1115113576 | L135: 25 | M135: 0.04 | N135: 71309.883 | O135: 55751.482 | P135: 369.5128 | Q135: 127430.8778 | R135: 105795.2872 | S135: -21635.59062
A136: 1910 | B136: Leasehold Improvements | D136: 0 | E136: 0 | F136: 0 | H136: 0 | I136: 0 | K136: 0 | L136: 0 | M136: 0 | N136: 0 | O136: 0 | P136: 0 | Q136: 0 | R136: 0 | S136: 0
A137: 1915 | B137: Office Furniture & Equipment (10 years) | C137: 50812.585 | D137: 41572.2375 | E137: 9240.3475 | F137: 40819.73 | H137: 40819.73 | I137: 29130.21 | J137: 1.111360376 | K137: 0.8997981407 | L137: 10 | M137: 0.1 | N137: 8314.4475 | O137: 4081.973 | P137: 1456.5105 | Q137: 13852.931 | R137: 22760.4275 | S137: 8907.4965
A138: 1915 | B138: Office Furniture & Equipment (5 years) | D138: 0 | E138: 0 | F138: 0 | H138: 0 | I138: 0 | K138: 0 | L138: 0 | M138: 0 | N138: 0 | O138: 0 | P138: 0 | Q138: 0 | R138: 0 | S138: 0
A139: 1920 | B139: Computer Equipment - Hardware | D139: 0 | E139: 0 | F139: 0 | H139: 0 | I139: 0 | K139: 0 | L139: 0 | M139: 0 | N139: 0 | O139: 0 | P139: 0 | Q139: 0 | R139: 0 | S139: 0
A140: 1920 | B140: Computer Equip.-Hardware(Post Mar. 22/04) | D140: 0 | E140: 0 | F140: 0 | H140: 0 | I140: 0 | K140: 0 | L140: 0 | M140: 0 | N140: 0 | O140: 0 | P140: 0 | Q140: 0 | R140: 0 | S140: 0
A141: 1920 | B141: Computer Equip.-Hardware(Post Mar. 19/07) | C141: 160672.409 | D141: 160672.409 | E141: 0 | F141: 254569.25 | H141: 254569.25 | I141: 98480.33 | J141: 0 | K141: 0 | L141: 5 | M141: 0.2 | N141: 0 | O141: 50913.85 | P141: 9848.033 | Q141: 60761.883 | R141: 51769.133 | S141: -8992.75
A142: 1930 | B142: Transportation Equipment >3 | C142: 592812.7919 | D142: 592812.7919 | E142: 0 | F142: 681739.56 | H142: 681739.56 | I142: 402611.16 | J142: 0 | K142: 0 | L142: 8 | M142: 0.125 | N142: 0 | O142: 85217.445 | P142: 25163.1975 | Q142: 110380.6425 | R142: 141350.5464 | S142: 30969.90386
A143: 1930 | B143: Transportation Equipment <3 | C143: 154905.721 | D143: 154905.721 | E143: 0 | F143: 468625.35 | H143: 468625.35 | I143: 6116 | K143: 0 | L143: 5 | M143: 0.2 | N143: 0 | O143: 93725.07 | P143: 611.6 | Q143: 94336.67 | R143: 120805.0573 | S143: 26468.38734
A144: 1935 | B144: Stores Equipment | D144: 0 | E144: 0 | F144: 0 | H144: 0 | I144: 0 | K144: 0 | L144: 0 | M144: 0 | N144: 0 | O144: 0 | P144: 0 | Q144: 0 | R144: 0 | S144: 0
A145: 1940 | B145: Tools, Shop & Garage Equipment | C145: 214636 | D145: 179313.6418 | E145: 35322.35821 | F145: 177277.837 | H145: 177277.837 | I145: 23404.57 | J145: 1 | K145: 1 | L145: 10 | M145: 0.1 | N145: 35322.35821 | O145: 17727.7837 | P145: 1170.2285 | Q145: 54220.37041 | R145: 38414.31726 | S145: -15806.05315
A146: 1945 | B146: Measurement & Testing Equipment | D146: 0 | E146: 0 | F146: 0 | H146: 0 | I146: 0 | K146: 0 | L146: 0 | M146: 0 | N146: 0 | O146: 0 | P146: 0 | Q146: 0 | R146: 0 | S146: 0
A147: 1950 | B147: Power Operated Equipment | D147: 0 | E147: 0 | F147: 0 | H147: 0 | I147: 0 | K147: 0 | L147: 0 | M147: 0 | N147: 0 | O147: 0 | P147: 0 | Q147: 0 | R147: 0 | S147: 0
A148: 1955 | B148: Communications Equipment | C148: 19683 | D148: 19683 | E148: 0 | F148: 89988.62 | H148: 89988.62 | I148: 5006.21 | J148: 0 | K148: 0 | L148: 10 | M148: 0.1 | N148: 0 | O148: 8998.862 | P148: 250.3105 | Q148: 9249.1725 | R148: 11045.38283 | S148: 1796.210333
A149: 1955 | B149: Communication Equipment (Smart Meters) | D149: 0 | E149: 0 | F149: 0 | H149: 0 | I149: 0 | K149: 0 | L149: 0 | M149: 0 | N149: 0 | O149: 0 | P149: 0 | Q149: 0 | R149: 0 | S149: 0
A150: 1960 | B150: Miscellaneous Equipment | C150: 10055 | D150: 10054.6125 | E150: 0.3875 | F150: 2930.37 | H150: 2930.37 | I150: 0 | K150: 0 | L150: 10 | M150: 0.1 | N150: 0 | O150: 293.037 | P150: 0 | Q150: 293.037 | R150: 551.8493077 | S150: 258.8123077
A151: 1970 | B151: Load Management Controls Customer Premises | D151: 0 | E151: 0 | F151: 0 | H151: 0 | I151: 0 | K151: 0 | L151: 0 | M151: 0 | N151: 0 | O151: 0 | P151: 0 | Q151: 0 | R151: 0 | S151: 0
A152: 1975 | B152: Load Management Controls Utility Premises | D152: 0 | E152: 0 | F152: 0 | H152: 0 | I152: 0 | K152: 0 | L152: 0 | M152: 0 | N152: 0 | O152: 0 | P152: 0 | Q152: 0 | R152: 0 | S152: 0
A153: 1980 | B153: System Supervisor Equipment | C153: 283106 | D153: 227862.9568 | E153: 55243.04321 | F153: 185960.4 | H153: 185960.4 | I153: 35317.46 | J153: 3.45 | K153: 0.2898550725 | L153: 20 | M153: 0.05 | N153: 16012.47629 | O153: 9298.02 | P153: 882.9365 | Q153: 26193.43279 | R153: 26750.29954 | S153: 556.8667458
A154: 1985 | B154: Miscellaneous Fixed Assets | D154: 0 | E154: 0 | F154: 0 | H154: 0 | I154: 0 | K154: 0 | L154: 0 | M154: 0 | N154: 0 | O154: 0 | P154: 0 | Q154: 0 | R154: 0 | S154: 0
A155: 1990 | B155: Other Tangible Property | C155: 31426 | D155: 8147.842985 | E155: 23278.15701 | F155: 0 | H155: 0 | I155: 0 | J155: 14.28474558 | K155: 0.070004747 | L155: 10 | M155: 0.1 | N155: 1629.581493 | O155: 0 | P155: 0 | Q155: 1629.581493 | R155: 1629.560541 | S155: -0.02095196595
A156: 1995 | B156: Contributions & Grants | C156: -5981923.804 | D156: -861672.239 | E156: -5120251.565 | F156: -1737867.08 | H156: -1737867.08 | I156: 0 | J156: 29.71113223 | K156: 0.03365741812 | L156: 45 | M156: 0.02222222222 | N156: -172334.4478 | O156: -38619.26844 | P156: 0 | Q156: -210953.7162 | R156: -212507 | S156: -1553.283761
A157: 2440 | B157: Deferrerd Revenue | F157: -2470932 | H157: -2470932 | I157: -728037 | L157: 46 | N157: =IF(J157=0,0,+E157/J157) -> 0 | O157: =IF(L157=0,0,+H157/L157) -> -53715.91304 | P157: =IF(L157=0,0,+(I157*0.5)/L157) -> -7913.445652 | Q157: =IF(ISERROR(+N157+O157+P157), 0, +N157+O157+P157) -> -61629.3587 | R157: -71270 | S157: -9640.641304
A158: 2005 | B158: Property Under Finance Lease | E158: 0 | F158: 0 | H158: 0 | K158: 0 | M158: 0 | N158: 0 | O158: 0 | P158: 0 | Q158: 0 | S158: 0
B159: Total | C159: =SUM(C117:C158) -> 41689250.92 | D159: 8145936.995 | E159: 33543313.92 | F159: 23891148.72 | G159: 443329 | H159: 23447819.72 | I159: 5463803.4 | N159: =SUM(N117:N158) -> 1639162.661 | O159: 892384.4185 | P159: 105751.6384 | Q159: 2637298.718 | R159: 2606542.288 | S159: -30756.42928
B161: 2018 | C161: Book Values | J161: Service Lives | N161: Depreciation Expense
A162: Account | B162: Description | C162: Opening Net Book Value of Existing Assets as at Date of Policy Change (Jan. 1) 1 | D162: Less Fully Depreciated 7 | E162: Net Amount of Existing Assets Before Policy Change to be Depreciated | F162: Opening Gross Book Value of Assets Acquired After Policy Change 2 | G162: Less Fully Depreciated 8 | H162: Net Amount of Assets Acquired After Policy Change to be Depreciated | I162: Current Year Additions | J162: Average Remaining Life of Assets Existing Before Policy Change 3 | K162: Depreciation Rate Assets Acquired After Policy Change | L162: Life of Assets Acquired After Policy Change 4 | M162: Depreciation Rate on New Additions | N162: Depreciation Expense on Assets Existing Before Policy Change | O162: Depreciation Expense on Assets Acquired After Policy Change | P162: Depreciation Expense on Current Year Additions 5 | Q162: Total Current Year Depreciation Expense | R162: Depreciation Expense per Appendix 2-BA Fixed Assets, Column J | S162: Variance 6
C163: a | D163: b | E163: c = a-b | F163: d | G163: e | H163: f = d- e | I163: g | J163: h | K163: i = 1/h | L163: j | M163: k = 1/j | N163: l = c/h | O163: m = f/j | P163: n = g*0.5/j | Q163: o = l+m+n | R163: p | S163: q = p-o
A164: 1611 | B164: Computer Software (Formally known as Account 1925) | C164: 158896.429 | D164: 158896.429 | E164: =C164-D164 -> 0 | F164: 486158.69 | G164: 172154.5 | H164: =F164-G164 -> 314004.19 | I164: 32812.1 | J164: 0 | K164: =IF(J164=0,0,1/J164) -> 0 | L164: 5 | M164: =IF(L164=0,0,1/L164) -> 0.2 | N164: =IF(J164=0,0,+E164/J164) -> 0 | O164: =IF(L164=0,0,+H164/L164) -> 62800.838 | P164: =IF(L164=0,0,+(I164*0.5)/L164) -> 3281.21 | Q164: =IF(ISERROR(+N164+O164+P164), 0, +N164+O164+P164) -> 66082.048 | R164: 48627.55 | S164: =IF(ISERROR(+R164-Q164), 0, +R164-Q164) -> -17454.498
A165: 1612 | B165: Land Rights (Formally known as Account 1906) | D165: 0 | E165: =C165-D165 -> 0 | F165: 0 | H165: =F165-G165 -> 0 | I165: 0 | K165: =IF(J165=0,0,1/J165) -> 0 | L165: 0 | M165: =IF(L165=0,0,1/L165) -> 0 | N165: =IF(J165=0,0,+E165/J165) -> 0 | O165: =IF(L165=0,0,+H165/L165) -> 0 | P165: =IF(L165=0,0,+(I165*0.5)/L165) -> 0 | Q165: =IF(ISERROR(+N165+O165+P165), 0, +N165+O165+P165) -> 0 | R165: 0 | S165: =IF(ISERROR(+R165-Q165), 0, +R165-Q165) -> 0
A166: 1805 | B166: Land | C166: 446493.3 | D166: 0 | E166: 446493.3 | F166: 58811.55 | H166: 58811.55 | I166: 0 | K166: 0 | L166: 0 | M166: 0 | N166: 0 | O166: =IF(L166=0,0,+H166/L166) -> 0 | P166: 0 | Q166: 0 | R166: 0 | S166: 0
A167: 1808 | B167: Buildings | C167: 1418748.667 | D167: 193070.0732 | E167: 1225678.593 | F167: 96419.53 | H167: 96419.53 | I167: -872145 | J167: 38.09016818 | K167: 0.02625349395 | L167: 50 | M167: 0.02 | N167: 32178.34554 | O167: 1928.3906 | P167: -8721.45 | Q167: 25385.28614 | R167: 17013 | S167: -8372.286139
A168: 1810 | B168: Leasehold Improvements | D168: 0 | E168: 0 | F168: 0 | H168: 0 | I168: 0 | K168: 0 | L168: 0 | M168: 0 | N168: 0 | O168: 0 | P168: 0 | Q168: 0 | R168: 0 | S168: 0
A169: 1815 | B169: Transformer Station Equipment >50 kV | D169: 0 | E169: 0 | F169: 0 | H169: 0 | I169: 0 | K169: 0 | L169: 0 | M169: 0 | N169: 0 | O169: 0 | P169: 0 | Q169: 0 | R169: 0 | S169: 0
A170: 1820 | B170: Distribution Station Equipment <50 kV | C170: 6731808.953 | D170: 1560702.306 | E170: 5171106.647 | F170: 6789709.14 | H170: 6789709.14 | I170: 3264424 | J170: 19.87992185 | K170: 0.05030200859 | L170: 40 | M170: 0.025 | N170: 260117.051 | O170: 169742.7285 | P170: 40805.3 | Q170: 470665.0795 | R170: 485912 | S170: 15246.9205
A171: 1825 | B171: Storage Battery Equipment | D171: 0 | E171: 0 | F171: 0 | H171: 0 | I171: 0 | K171: 0 | L171: 0 | M171: 0 | N171: 0 | O171: 0 | P171: 0 | Q171: 0 | R171: 0 | S171: 0
A172: 1830 | B172: Poles, Towers & Fixtures | C172: 8016523.176 | D172: 1557035.879 | E172: 6459487.297 | F172: 7375413.2 | G172: 650301 | H172: 6725112.2 | I172: 1025156.25 | J172: 24.89147765 | K172: 0.04017439278 | L172: 45 | M172: 0.02222222222 | N172: 259505.9798 | O172: 149446.9378 | P172: 11390.625 | Q172: 420343.5426 | R172: 421902.63 | S172: 1559.087392
A173: 1835 | B173: Overhead Conductors & Devices | C173: 4812400.218 | D173: 1030769.997 | E173: 3781630.22 | F173: 4056124.86 | H173: 4056124.86 | I173: 893705.37 | J173: 28.0760647 | K173: 0.03561752726 | L173: 60 | M173: 0.01666666667 | N173: 134692.3175 | O173: 67602.081 | P173: 7447.54475 | Q173: 209741.9432 | R173: 220460.86 | S173: 10718.91677
A174: 1840 | B174: Underground Conduit | C174: 631714.3028 | D174: 85995.43588 | E174: 545718.8669 | F174: 1244580.38 | H174: 1244580.38 | I174: 208072.67 | J174: 38.07543003 | K174: 0.0262636561 | L174: 50 | M174: 0.02 | N174: 14332.57265 | O174: 24891.6076 | P174: 2080.7267 | Q174: 41304.90695 | R174: 41246.46 | S174: -58.44694688
A175: 1845 | B175: Underground Conductors & Devices | C175: 2326939.123 | D175: 509552.3432 | E175: 1817386.779 | F175: 1308483.33 | H175: 1308483.33 | I175: 276709.68 | J175: 21.39980479 | K175: 0.04672939822 | L175: 40 | M175: 0.025 | N175: 84925.39053 | O175: 32712.08325 | P175: 3458.871 | Q175: 121096.3448 | R175: 119383.79 | S175: -1712.554778
A176: 1850 | B176: Line Transformers | C176: 6397141.503 | D176: 1264952.588 | E176: 5132188.914 | F176: 3522039.32 | H176: 3522039.32 | I176: 614191.45 | J176: 24.34331039 | K176: 0.04107904734 | L176: 40 | M176: 0.025 | N176: 210825.4314 | O176: 88050.983 | P176: 7677.393125 | Q176: 306553.8075 | R176: 294735.85 | S176: -11817.95751
A177: 1855 | B177: Services (OH) | C177: 3293888.051 | D177: 698323.2468 | E177: 2595564.804 | F177: 926433.99 | H177: 926433.99 | I177: 213699.69 | J177: 22.30111756 | K177: 0.04484080213 | L177: 60 | M177: 0.01666666667 | N177: 116387.2078 | O177: 15440.5665 | P177: 1780.83075 | Q177: 133608.605 | R177: 133718.15 | S177: 109.5449571
A178: 1855 | B178: Services (UG) | C178: 7484766.462 | D178: 1571640.723 | E178: 5913125.739 | F178: 3804306.34 | H178: 3804306.34 | I178: 519597.41 | J178: 22.57434152 | K178: 0.0442980806 | L178: 40 | M178: 0.025 | N178: 261940.1206 | O178: =IF(L178=0,0,+H178/L178) -> 95107.6585 | P178: =IF(L178=0,0,+(I178*0.5)/L178) -> 6494.967625 | Q178: =IF(ISERROR(+N178+O178+P178), 0, +N178+O178+P178) -> 363542.7467 | R178: 362742.41 | S178: -800.3367068
A179: 1860 | B179: Meters | C179: 641396.6 | E179: 641396.6 | H179: 0 | I179: 0 | J179: 15.71660265 | K179: 0.06362698238 | L179: 25 | M179: 0.04 | N179: 40810.13017 | O179: 0 | P179: 0 | Q179: 40810.13017 | R179: 45723.99 | S179: 4913.859835
A180: 1860 | B180: Meters (Smart Meters) | C180: 2709763.124 | E180: 2709763.124 | F180: 709068.12 | H180: 709068.12 | I180: 123522.11 | J180: 10.29569454 | K180: 0.09712797872 | L180: 10 | M180: 0.1 | N180: 263193.815 | O180: 70906.812 | P180: 6176.1055 | Q180: 340276.7325 | R180: 330385.41 | S180: -9891.322503
A181: 1905 | B181: Land | C181: 86550.51 | D181: 0 | E181: 86550.51 | F181: 0 | H181: 0 | I181: 0 | K181: 0 | L181: 0 | M181: 0 | N181: 0 | O181: 0 | P181: 0 | Q181: 0 | R181: 0 | S181: 0
A182: 1908 | B182: Buildings & Fixtures | C182: 996034.7958 | D182: 427859.298 | E182: 568175.4978 | F182: 1412262.69 | H182: 1412262.69 | I182: 13278.45 | J182: 7.967696396 | K182: 0.1255067902 | L182: 25 | M182: 0.04 | N182: 71309.883 | O182: 56490.5076 | P182: 265.569 | Q182: 128065.9596 | R182: 109311.51 | S182: -18754.4496
A183: 1910 | B183: Leasehold Improvements | D183: 0 | E183: 0 | F183: 0 | H183: 0 | I183: 0 | K183: 0 | L183: 0 | M183: 0 | N183: 0 | O183: 0 | P183: 0 | Q183: 0 | R183: 0 | S183: 0
A184: 1915 | B184: Office Furniture & Equipment (10 years) | C184: 50812.585 | D184: 49886.685 | E184: 925.9 | F184: 69949.94 | H184: 69949.94 | I184: 7297.93 | J184: 1 | K184: 1 | L184: 10 | M184: 0.1 | N184: 925.9 | O184: 6994.994 | P184: 364.8965 | Q184: 8285.7905 | R184: 10191.36 | S184: 1905.5695
A185: 1915 | B185: Office Furniture & Equipment (5 years) | D185: 0 | E185: 0 | F185: 0 | H185: 0 | I185: 0 | K185: 0 | L185: 0 | M185: 0 | N185: 0 | O185: 0 | P185: 0 | Q185: 0 | R185: 0 | S185: 0
A186: 1920 | B186: Computer Equipment - Hardware | D186: 0 | E186: 0 | F186: 0 | H186: 0 | I186: 0 | K186: 0 | L186: 0 | M186: 0 | N186: 0 | O186: 0 | P186: 0 | Q186: 0 | R186: 0 | S186: 0
A187: 1920 | B187: Computer Equip.-Hardware(Post Mar. 22/04) | D187: 0 | E187: 0 | F187: 0 | H187: 0 | I187: 0 | K187: 0 | L187: 0 | M187: 0 | N187: 0 | O187: 0 | P187: 0 | Q187: 0 | R187: 0 | S187: 0
A188: 1920 | B188: Computer Equip.-Hardware(Post Mar. 19/07) | C188: 160672.409 | D188: 160672.409 | E188: 0 | F188: 353049.58 | G188: 68005 | H188: 285044.58 | I188: 73098.36 | J188: 0 | K188: 0 | L188: 5 | M188: 0.2 | N188: 0 | O188: 57008.916 | P188: 7309.836 | Q188: 64318.752 | R188: 60634.13 | S188: -3684.622
A189: 1930 | B189: Transportation Equipment >3 | C189: 592812.7919 | D189: 592812.7919 | E189: 0 | F189: 1084350.72 | H189: 1084350.72 | I189: -0.12 | J189: 0 | K189: 0 | L189: 8 | M189: 0.125 | N189: 0 | O189: 135543.84 | P189: -0.0075 | Q189: 135543.8325 | R189: 152242.2065 | S189: 16698.37396
A190: 1930 | B190: Transportation Equipment <3 | C190: 154905.721 | D190: 154905.721 | E190: 0 | F190: 474741.35 | H190: 474741.35 | I190: 74349 | L190: 5 | N190: 0 | O190: =IF(L190=0,0,+H190/L190) -> 94948.27 | P190: =IF(L190=0,0,+(I190*0.5)/L190) -> 7434.9 | Q190: =IF(ISERROR(+N190+O190+P190), 0, +N190+O190+P190) -> 102383.17 | R190: 114996.3035 | S190: 12613.13354
A191: 1935 | B191: Stores Equipment | D191: 0 | E191: 0 | F191: 0 | H191: 0 | I191: 67297.5 | K191: 0 | L191: 0 | M191: 0 | N191: 0 | O191: 0 | P191: 0 | Q191: 0 | R191: 1121.63 | S191: 1121.63
A192: 1940 | B192: Tools, Shop & Garage Equipment | C192: 214636 | D192: 214636 | E192: 0 | F192: 200682.407 | H192: 200682.407 | I192: 25442 | J192: 0 | K192: 0 | L192: 10 | M192: 0.1 | N192: 0 | O192: 20068.2407 | P192: 1272.1 | Q192: 21340.3407 | R192: 36395.51 | S192: 15055.1693
A193: 1945 | B193: Measurement & Testing Equipment | D193: 0 | E193: 0 | F193: 0 | H193: 0 | I193: 0 | K193: 0 | L193: 0 | M193: 0 | N193: 0 | O193: 0 | P193: 0 | Q193: 0 | R193: 0 | S193: 0
A194: 1950 | B194: Power Operated Equipment | D194: 0 | E194: 0 | F194: 0 | H194: 0 | I194: 0 | K194: 0 | L194: 0 | M194: 0 | N194: 0 | O194: 0 | P194: 0 | Q194: 0 | R194: 0 | S194: 0
A195: 1955 | B195: Communications Equipment | C195: 19683 | D195: 19683 | E195: 0 | F195: 94994.83 | H195: 94994.83 | I195: 4188.56 | J195: 0 | K195: 0 | L195: 10 | M195: 0.1 | N195: 0 | O195: 9499.483 | P195: 209.428 | Q195: 9708.911 | R195: 11628.65 | S195: 1919.739
A196: 1955 | B196: Communication Equipment (Smart Meters) | D196: 0 | E196: 0 | F196: 0 | H196: 0 | I196: 0 | K196: 0 | L196: 0 | M196: 0 | N196: 0 | O196: 0 | P196: 0 | Q196: 0 | R196: 0 | S196: 0
A197: 1960 | B197: Miscellaneous Equipment | C197: 10055 | D197: 10054.6125 | E197: 0.3875 | F197: 2930.37 | H197: 2930.37 | I197: 0 | K197: 0 | L197: 10 | M197: 0.1 | N197: 0 | O197: 293.037 | P197: 0 | Q197: 293.037 | R197: 422.58 | S197: 129.543
A198: 1970 | B198: Load Management Controls Customer Premises | D198: 0 | E198: 0 | F198: 0 | H198: 0 | I198: 0 | K198: 0 | L198: 0 | M198: 0 | N198: 0 | O198: 0 | P198: 0 | Q198: 0 | R198: 0 | S198: 0
A199: 1975 | B199: Load Management Controls Utility Premises | D199: 0 | E199: 0 | F199: 0 | H199: 0 | I199: 0 | K199: 0 | L199: 0 | M199: 0 | N199: 0 | O199: 0 | P199: 0 | Q199: 0 | R199: 0 | S199: 0
A200: 1980 | B200: System Supervisor Equipment | C200: 283106 | D200: 243875.4331 | E200: 39230.56692 | F200: 221277.86 | H200: 221277.86 | I200: 375350.41 | J200: 2.46 | K200: 0.406504065 | L200: 13.72 | M200: 0.07288629738 | N200: 15947.38492 | O200: 16128.12391 | P200: 13678.9508 | Q200: 45754.45963 | R200: 46280.2 | S200: 525.7403666
A201: 1985 | B201: Miscellaneous Fixed Assets | D201: 0 | E201: 0 | F201: 0 | H201: 0 | I201: 0 | K201: 0 | L201: 0 | M201: 0 | N201: 0 | O201: 0 | P201: 0 | Q201: 0 | R201: 0 | S201: 0
A202: 1990 | B202: Other Tangible Property | C202: 31426 | D202: 9777.424478 | E202: 21648.57552 | F202: 0 | H202: 0 | I202: 0 | J202: 13.28474558 | K202: 0.07527430573 | L202: 10 | M202: 0.1 | N202: 1629.581493 | O202: 0 | P202: 0 | Q202: 1629.581493 | R202: 1629.560541 | S202: -0.02095196595
A203: 1995 | B203: Contributions & Grants | C203: -5981923.804 | D203: -1034006.687 | E203: -4947917.118 | F203: -1737867.08 | H203: -1737867.08 | I203: 0 | J203: 28.71113223 | K203: 0.03482969575 | L203: 45 | M203: 0.02222222222 | N203: -172334.4478 | O203: -38619.26844 | P203: 0 | Q203: -210953.7162 | R203: -212507 | S203: -1553.283761
A204: 2440 | B204: Deferrerd Revenue | E204: 0 | F204: -3198969 | H204: -3198969 | I204: -558617 | L204: 46 | M204: 0.02173913043 | N204: =IF(J204=0,0,+E204/J204) -> 0 | O204: =IF(L204=0,0,+H204/L204) -> -69542.80435 | P204: =IF(L204=0,0,+(I204*0.5)/L204) -> -6071.923913 | Q204: =IF(ISERROR(+N204+O204+P204), 0, +N204+O204+P204) -> -75614.72826 | R204: -80614 | S204: -4999.271739
A205: 2005 | B205: Property Under Finance Lease | E205: 0 | F205: 0 | H205: 0 | K205: 0 | M205: 0 | N205: 0 | O205: 0 | P205: 0 | Q205: 0 | S205: 0
B206: Total | C206: =SUM(C164:C205) -> 41689250.92 | D206: 9481095.71 | E206: 32208155.21 | F206: 29354952.12 | G206: 890460.5 | H206: 28464491.62 | I206: 6381430.82 | N206: =SUM(N164:N205) -> 1596386.664 | O206: 1067444.026 | P206: 106335.8733 | Q206: 2770166.563 | R206: 2773584.741 | S206: 3418.177478
B208: 2019 | C208: Book Values | J208: Service Lives | N208: Depreciation Expense
A209: Account | B209: Description | C209: Opening Net Book Value of Existing Assets as at Date of Policy Change (Jan. 1) 1 | D209: Less Fully Depreciated 7 | E209: Net Amount of Existing Assets Before Policy Change to be Depreciated | F209: Opening Gross Book Value of Assets Acquired After Policy Change 2 | G209: Less Fully Depreciated 8 | H209: Net Amount of Assets Acquired After Policy Change to be Depreciated | I209: Current Year Additions | J209: Average Remaining Life of Assets Existing Before Policy Change 3 | K209: Depreciation Rate Assets Acquired After Policy Change | L209: Life of Assets Acquired After Policy Change 4 | M209: Depreciation Rate on New Additions | N209: Depreciation Expense on Assets Existing Before Policy Change | O209: Depreciation Expense on Assets Acquired After Policy Change | P209: Depreciation Expense on Current Year Additions 5 | Q209: Total Current Year Depreciation Expense | R209: Depreciation Expense per Appendix 2-BA Fixed Assets, Column J | S209: Variance 6
C210: a | D210: b | E210: c = a-b | F210: d | G210: e | H210: f = d- e | I210: g | J210: h | K210: i = 1/h | L210: j | M210: k = 1/j | N210: l = c/h | O210: m = f/j | P210: n = g*0.5/j | Q210: o = l+m+n | R210: p | S210: q = p-o
A211: 1611 | B211: Computer Software (Formally known as Account 1925) | C211: 158896.429 | D211: 158896.429 | E211: =C211-D211 -> 0 | F211: 518970.79 | G211: 300148.5 | H211: =F211-G211 -> 218822.29 | I211: 51279.35 | J211: 0 | K211: =IF(J211=0,0,1/J211) -> 0 | L211: 5 | M211: =IF(L211=0,0,1/L211) -> 0.2 | N211: =IF(J211=0,0,+E211/J211) -> 0 | O211: =IF(L211=0,0,+H211/L211) -> 43764.458 | P211: =IF(L211=0,0,+(I211*0.5)/L211) -> 5127.935 | Q211: =IF(ISERROR(+N211+O211+P211), 0, +N211+O211+P211) -> 48892.393 | R211: 36554 | S211: =IF(ISERROR(+R211-Q211), 0, +R211-Q211) -> -12338.393
A212: 1612 | B212: Land Rights (Formally known as Account 1906) | D212: 0 | E212: =C212-D212 -> 0 | F212: 0 | H212: =F212-G212 -> 0 | I212: 0 | K212: =IF(J212=0,0,1/J212) -> 0 | L212: 0 | M212: =IF(L212=0,0,1/L212) -> 0 | N212: =IF(J212=0,0,+E212/J212) -> 0 | O212: =IF(L212=0,0,+H212/L212) -> 0 | P212: =IF(L212=0,0,+(I212*0.5)/L212) -> 0 | Q212: =IF(ISERROR(+N212+O212+P212), 0, +N212+O212+P212) -> 0 | R212: 0 | S212: =IF(ISERROR(+R212-Q212), 0, +R212-Q212) -> 0
A213: 1805 | B213: Land | C213: 446493.3 | D213: 0 | E213: 446493.3 | F213: 58811.55 | H213: 58811.55 | I213: 0 | K213: 0 | L213: 0 | M213: 0 | N213: 0 | O213: =IF(L213=0,0,+H213/L213) -> 0 | P213: 0 | Q213: 0 | R213: 0 | S213: 0
A214: 1808 | B214: Buildings | C214: 1418748.667 | D214: 225248.4188 | E214: 1193500.248 | F214: -775725.47 | H214: -775725.47 | I214: 0 | J214: 37.09016818 | K214: 0.02696132288 | L214: 50 | M214: 0.02 | N214: 32178.34554 | O214: -15514.5094 | P214: 0 | Q214: 16663.83614 | R214: 17923 | S214: 1259.163861
A215: 1810 | B215: Leasehold Improvements | D215: 0 | E215: 0 | F215: 0 | H215: 0 | I215: 0 | K215: 0 | L215: 0 | M215: 0 | N215: 0 | O215: 0 | P215: 0 | Q215: 0 | R215: 0 | S215: 0
... 141 more rows

Sheet App.2-D_Overhead
I1: File Number: | J1: =EBNUMBER -> EB-2020-0043
I2: Exhibit:
I3: Tab:
I4: Schedule:
I5: Page:
I7: Date:
A9: Appendix 2-D
A10: Overhead Expense
A12: Applicants are to provide a breakdown of OM&A before capitalization in the below table. OM&A before capitalization may be broken down by cost center, program, drivers or another format best suited to focus on capitalized vs. uncapitalized OM&A.
A14: OM&A Before Capitalization
B15: =F15-4 -> 2015 | C15: =G15-4 -> 2016 | D15: =H15-4 -> 2017 | E15: =H15-3 -> 2018 | F15: =H15-2 -> 2019 | G15: =H15-1 -> 2020 | H15: =TestYear -> 2021
B16: Historical Year | C16: Historical Year | D16: Historical Year | E16: Historical Year | F16: Historical Year | G16: Bridge Year | H16: Test Year
A17: Administration | B17: 1375466 | C17: 1390945 | D17: 1518521.05 | E17: 1466908.4 | F17: 1468999.034 | G17: 1771030.112 | H17: 1914527.957
A18: Finance | B18: 1643732 | C18: 1773511 | D18: 1861438.23 | E18: 1765995.63 | F18: 1726310.57 | G18: 1813628.004 | H18: 2087778.801
A19: Human Resources | B19: 401608.21 | C19: 335130 | D19: 390226 | E19: 355029.53 | F19: 425209.64 | G19: 531809.4131 | H19: 618201.7749
A20: Engineering | B20: 442691 | C20: 487895 | D20: 481888 | E20: 458751 | F20: 521282 | G20: 565054 | H20: 599256.6239
A21: Operations Administration | B21: 404419 | C21: 465757 | D21: 365904 | E21: 346983 | F21: 438727 | G21: 432137 | H21: 587514.9982
A22: Operations - Lines, Substations, Metering, Customer Service, Fleet, Stores | B22: 2387668.935 | C22: 2486363.86 | D22: 2322082.824 | E22: 2380108.038 | F22: 2601431.98 | G22: 2866514.951 | H22: 3305973.184
A24: Total OM&A Before Capitalization (B) | B24: =SUM(B17:B23) -> 6655585.145 | C24: 6939601.86 | D24: 6940060.104 | E24: 6773775.598 | F24: 7181960.224 | G24: 7980173.48 | H24: 9113253.339
A26: Applicants are to provide a breakdown of capitalized OM&A in the below table. Capitalized OM&A may be broken down using the categories listed in the table below if possible. Otherwise, applicants are to provide its own break down of capitalized OM&A.
A28: Capitalized OM&A | I28: Directly | J28: Explanation for Change in Overhead Capitalized
B29: =F29-4 -> 2015 | C29: =G29-4 -> 2016 | D29: =H29-4 -> 2017 | E29: =H29-3 -> 2018 | F29: =H29-2 -> 2019 | G29: =H29-1 -> 2020 | H29: =TestYear -> 2021 | I29: Attributable?
B30: Historical Year | C30: Historical Year | D30: Historical Year | E30: Historical Year | F30: Historical Year | G30: Bridge Year | H30: Test Year | I30: (Yes/No)
A31: Administration | B31: 0 | C31: 0 | D31: 0 | E31: 0 | F31: 0 | G31: 0 | H31: 0
A32: Finance | B32: 0 | C32: 0 | D32: 0 | E32: 0 | F32: 0 | G32: 0 | H32: 0
A33: Human Resources | B33: 0 | C33: 0 | D33: 0 | E33: 0 | F33: 0 | G33: 0 | H33: 0
A34: Engineering | B34: 91171 | C34: 61378 | D34: 58910 | E34: 49374 | F34: 58671 | G34: 66550 | H34: 54788 | J34: Changes based on required labour to complete annual capital program
A35: Operations Administration | B35: 79679 | C35: 114687 | D35: 166176 | E35: 199459 | F35: 141560 | G35: 156646 | H35: 131914.4 | J35: Changes based on required labour to complete annual capital program
A36: Stores Issues and Facility Costs | B36: 94404.26 | C36: 179397.03 | D36: 99226.9 | E36: 124209.81 | F36: 106671.79 | G36: 145243.912 | H36: 192073.8447 | J36: Changes based on required labour to complete annual capital program and changes in annual fleet costs
A37: Fleet Costs | B37: 177120.9231 | C37: 177195.196 | D37: 184652.9956 | E37: 160921.0173 | F37: 186175.8562 | G37: 158907 | H37: 168538.9654 | J37: Changes based on material requirements of capital projects each year
A39: Total Capitalized OM&A (A) | B39: =SUM(B31:B38) -> 442375.1831 | C39: 532657.226 | D39: 508965.8956 | E39: 533963.8273 | F39: 493078.6462 | G39: 527346.912 | H39: 547315.2101
A41: % of Capitalized OM&A (=A/B) | B41: =IF(ISERROR(B39/B24),"0%",B39/B24) -> 0.06646676039 | C41: 0.07675616508 | D41: 0.07333739015 | E41: 0.07882809514 | F41: 0.0686551625 | G41: 0.06608213634 | H41: 0.06005706082

Sheet App.2-EA_Account 1575 (2015) (hidden)
H1: File Number: | I1: =EBNUMBER -> EB-2020-0043
H2: Exhibit:
H3: Tab:
H4: Schedule:
H5: Page:
H7: Date:
A9: Appendix 2-EA
A10: Account 1575 - IFRS-CGAAP Transitional PP&E Amounts
A11: 2015 Adopters of IFRS for Financial Reporting Purposes
A13: For applicants that adopted IFRS on January 1, 2015 for financial reporting purposes
B17: 2014 | C17: =TestYear-3 -> 2018 | D17: =TestYear-2 -> 2019 | E17: =CONCATENATE(TestYear-1," Bridge Year") -> 2020 Bridge Year | F17: =CONCATENATE(TestYear," Rebasing Year") -> 2021 Rebasing Year
A18: Reporting Basis | B18: CGAAP | C18: CGAAP | D18: CGAAP | E18: MIFRS | F18: MIFRS
B19: Actual | C19: Actual | D19: Actual | E19: Forecast | F19: Forecast
D20: $ | E20: $
A21: PP&E Values under CGAAP
A22: Opening net PP&E - Note 1 | C22: =+B25 -> 0 | D22: =+C25 -> 0 | E22: =+D25 -> 0
A23: Net Additions - Note 4
A24: Net Depreciation (amounts should be negative) - Note 4
A25: Closing net PP&E (1) | B25: =SUM(B22:B24) -> 0 | C25: =SUM(C22:C24) -> 0 | D25: =SUM(D22:D24) -> 0 | E25: =SUM(E22:E24) -> 0
A27: PP&E Values under MIFRS (Starts from 2014, the transition year)
A28: Opening net PP&E - Note 1 | C28: =+B31 -> 0 | D28: =+C31 -> 0 | E28: =+D31 -> 0
A29: Net Additions - Note 4
A30: Net Depreciation (amounts should be negative) - Note 4
A31: Closing net PP&E (2) | B31: =SUM(B28:B30) -> 0 | C31: =SUM(C28:C30) -> 0 | D31: =SUM(D28:D30) -> 0 | E31: =SUM(E28:E30) -> 0
A33: Difference in Closing net PP&E, former CGAAP vs. revised CGAAP | B33: =B25-B31 -> 0 | C33: =C25-C31 -> 0 | D33: =D25-D31 -> 0 | E33: =E25-E31 -> 0
A36: Effect on Deferral and Variance Account Rate Riders
A37: Closing balance in Account 1575 | F37: =IF(ISERROR(E33), 0, E33) -> 0 | H37: WACC
A38: Return on Rate Base Associated with Account 1575 balance at WACC - Note 2 | F38: =E33*I37*I38 -> 0 | G38: # of years of rate rider disposition period
A39: Amount included in Deferral and Variance Account Rate Rider Calculation | F39: =F37+F38 -> 0
A41: Notes:
A42: 1 For an applicant that adopted IFRS on January 1, 2015, the PP&E values as of January 1, 2014 under both CGAAP and MIFRS should be the same.
A43: 2 Return on rate base associated with deferred balance is calculated as:
A44: the deferral account closing balance as of 2017 x WACC X # of years of rate rider disposition period
A45: * Please note that the calculation should be adjusted once WACC is updated and finalized in the rate application.
A46: 3 The PP&E deferral account is cleared by including the total balance in the deferral and variance account rate rider calculation.
A47: 4 Net additions are additions net of disposals; Net depreciation is additions to depreciation net of disposals.

Sheet App.2-EB_Account 1576 (2012) (hidden)
K1: File Number: | L1: =EBNUMBER -> EB-2020-0043
K2: Exhibit:
K3: Tab:
K4: Schedule:
K5: Page:
K7: Date:
A9: Appendix 2-EB
A10: Account 1576 - Accounting Changes under CGAAP
A11: 2012 Changes in Accounting Policies under CGAAP
A13: For applicants with a balance in Account 1576 and made capitalization and depreciation expense accounting policy changes under CGAAP effective January 1, 2012. This is the first time the applicant is rebasing with changes in these accounting policies.
B17: Prior Years Rebasing | C17: 2012 | D17: 2013 | E17: 2014 | F17: 2015 | G17: 2016 | H17: 2017 | I17: 2018 Rebasing Year
A18: Reporting Basis | B18: CGAAP | C18: CGAAP | D18: CGAAP | E18: CGAAP | F18: MIFRS - Note 5 | G18: MIFRS | H18: MIFRS | I18: MIFRS
B19: Forecast | C19: Actual | D19: Actual | E19: Actual | F19: Actual | G19: Actual | H19: Forecast | I19: Forecast
C20: $ | D20: $ | E20: $ | F20: $ | G20: $ | H20: $
A21: PP&E Values under former CGAAP
A22: Opening net PP&E - Note 1 | D22: =+C25 -> 0 | E22: =+D25 -> 0 | F22: =+E25 -> 0 | G22: =+F25 -> 0 | H22: =+G25 -> 0
A23: Net Additions - Note 4
A24: Net Depreciation (amounts should be negative) - Note 4
A25: Closing net PP&E (1) | C25: =C22+C23+C24 -> 0 | D25: 0 | E25: 0 | F25: 0 | G25: 0 | H25: 0
A27: PP&E Values under revised CGAAP (Starts from 2012)
A28: Opening net PP&E - Note 1 | D28: =+C31 -> 0 | E28: =+D31 -> 0 | F28: =+E31 -> 0 | G28: =+F31 -> 0 | H28: =+G31 -> 0
A29: Net Additions - Note 4
A30: Net Depreciation (amounts should be negative) - Note 4
A31: Closing net PP&E (2) | C31: =SUM(C28:C30) -> 0 | D31: 0 | E31: 0 | F31: 0 | G31: 0 | H31: 0
A33: Difference in Closing net PP&E, former CGAAP vs. revised CGAAP | C33: =C25-C31 -> 0 | D33: 0 | E33: 0 | F33: 0 | G33: 0 | H33: 0
A36: Effect on Deferral and Variance Account Rate Riders
A37: Closing balance in Account 1576 | I37: =IF(ISERROR(H33), 0, H33) -> 0 | K37: WACC
A38: Return on Rate Base Associated with Account 1576 balance at WACC - Note 2 | I38: =H33*L37*L38 -> 0 | J38: # of years of rate rider disposition period
A39: Amount included in Deferral and Variance Account Rate Rider Calculation | I39: =I37+I38 -> 0
A41: Notes:
A42: 1 For an applicant that made the capitalization and depreciation expense accounting policy changes on January 1, 2012, the PP&E values as of January 1, 2012 under both former CGAAP and revised CGAAP should be the same.
A43: 2 Return on rate base associated with Account 1576 balance is calculated as:
A44: the variance account ending balance as of 2017 x WACC X # of years of rate rider disposition period
A45: * Please note that the calculation should be adjusted once WACC is updated and finalized in the rate application.
A46: 3 Account 1576 is cleared by including the total balance in the deferral and variance account rate rider calculation.
A47: 4 Net additions are additions net of disposals; Net depreciation is additions to depreciation net of disposals.
A48: 5 Differences due to the adoption of MIFRS are to be shown separately in Account 1575 in Appendix 2-EA as Accounts 1575 and 1576 cannot be used interchangably.

Sheet App.2-EC_Account 1576 (2013) (hidden)
J1: File Number: | K1: =EBNUMBER -> EB-2020-0043
J2: Exhibit:
J3: Tab:
J4: Schedule:
J5: Page:
J7: Date:
A9: Appendix 2-EC
A10: Account 1576 - Accounting Changes under CGAAP
A11: 2013 Changes in Accounting Policies under CGAAP
A13: For applicants with a balance in Account 1576 and made capitalization and depreciation expense accounting policy changes under CGAAP effective January 1, 2013. This is the first time the applicant is rebasing with changes in these accounting policies.
B17: Prior Years Rebasing | C17: 2013 | D17: 2014 | E17: 2015 | F17: 2016 | G17: 2017 | H17: 2018 Rebasing Year
A18: Reporting Basis | B18: CGAAP | C18: CGAAP | D18: CGAAP | E18: MIFRS - Note 5 | F18: MIFRS | G18: MIFRS | H18: MIFRS
B19: Actual | C19: Actual | D19: Actual | E19: Actual | F19: Actual | G19: Forecast | H19: Forecast
C20: $ | D20: $ | F20: $
A21: PP&E Values under former CGAAP
A22: Opening net PP&E - Note 1 | D22: =+C25 -> 0 | E22: =+D25 -> 0 | F22: =+E25 -> 0 | G22: =+F25 -> 0
A23: Net Additions - Note 4
A24: Net Depreciation (amounts should be negative) - Note 4
A25: Closing net PP&E (1) | C25: =C22+C23+C24 -> 0 | D25: =D22+D23+D24 -> 0 | E25: =E22+E23+E24 -> 0 | F25: =F22+F23+F24 -> 0 | G25: =G22+G23+G24 -> 0
A27: PP&E Values under revised CGAAP (Starts from 2012)
A28: Opening net PP&E - Note 1 | D28: =+C31 -> 0 | E28: =+D31 -> 0 | F28: =+E31 -> 0 | G28: =+F31 -> 0
A29: Net Additions - Note 4
A30: Net Depreciation (amounts should be negative) - Note 4
A31: Closing net PP&E (2) | C31: =SUM(C28:C30) -> 0 | D31: =SUM(D28:D30) -> 0 | E31: =SUM(E28:E30) -> 0 | F31: =SUM(F28:F30) -> 0 | G31: =SUM(G28:G30) -> 0
A33: Difference in Closing net PP&E, former CGAAP vs. revised CGAAP | C33: =C25-C31 -> 0 | D33: =D25-D31 -> 0 | E33: =E25-E31 -> 0 | F33: =F25-F31 -> 0 | G33: =G25-G31 -> 0
A36: Effect on Deferral and Variance Account Rate Riders
A37: Closing balance in Account 1576 | H37: =IF(ISERROR(G33), 0, G33) -> 0 | J37: WACC
A38: Return on Rate Base Associated with Account 1576 balance at WACC - Note 2 | H38: =G33*K37*K38 -> 0 | I38: # of years of rate rider disposition period
A39: Amount included in Deferral and Variance Account Rate Rider Calculation | H39: =H37+H38 -> 0
A41: Notes:
A42: 1 For an applicant that made the capitalization and depreciation expense accounting policy changes on January 1, 2013, the PP&E values as of January 1, 2013 under both former CGAAP and revised CGAAP should be the same.
A43: 2 Return on rate base associated with Account 1576 balance is calculated as:
A44: the variance account ending balance as of 2017 x WACC X # of years of rate rider disposition period
A45: * Please note that the calculation should be adjusted once WACC is updated and finalized in the rate application.
A46: 3 Account 1576 is cleared by including the total balance in the deferral and variance account rate rider calculation.
A47: 4 Net additions are additions net of disposals; Net depreciation is additions to depreciation net of disposals.
A48: 5 Differences due to the adoption of MIFRS are to be shown separately in Account 1575 in Appendix 2-EA as Accounts 1575 and 1576 cannot be used interchangably.

Sheet Hidden_REG Invest. (hidden)
A1: Utility Name | B1: EB Number | C1: Test Year | D1: Bridge Year | E1: Last Rebasing Year | F1: Renewable Generation Connection Investment Summary | G1: Year | H1: Amount
A2: ='LDC Info'!$E$14 -> North Bay Hydro Distribution Limited - North Bay service territory | B2: =EBNUMBER -> EB-2020-0043 | C2: =TestYear -> 2021 | D2: =BridgeYear -> 2020 | E2: =RebaseYear -> 2015 | F2: REI Investments_A_Total Capital Costs | G2: ='App.2-FA Proposed REG Invest.'!$C$31 -> 2016 | H2: ='App.2-FA Proposed REG Invest.'!C62 -> 0
A3: ='LDC Info'!$E$14 -> North Bay Hydro Distribution Limited - North Bay service territory | B3: EB-2020-0043 | C3: 2021 | D3: 2020 | E3: 2015 | F3: REI Investments_A_Total OM&A Start-Up | G3: ='App.2-FA Proposed REG Invest.'!$C$31 -> 2016 | H3: ='App.2-FA Proposed REG Invest.'!$C63 -> 0
A4: ='LDC Info'!$E$14 -> North Bay Hydro Distribution Limited - North Bay service territory | B4: EB-2020-0043 | C4: 2021 | D4: 2020 | E4: 2015 | F4: REI Investments_A_Total OM&A Ongoing | G4: ='App.2-FA Proposed REG Invest.'!$C$31 -> 2016 | H4: ='App.2-FA Proposed REG Invest.'!$C64 -> 0
A5: ='LDC Info'!$E$14 -> North Bay Hydro Distribution Limited - North Bay service territory | B5: EB-2020-0043 | C5: 2021 | D5: 2020 | E5: 2015 | F5: REI Investments_A_Total Capital Costs | G5: ='App.2-FA Proposed REG Invest.'!$D$31 -> 2017 | H5: ='App.2-FA Proposed REG Invest.'!D62 -> 0
A6: ='LDC Info'!$E$14 -> North Bay Hydro Distribution Limited - North Bay service territory | B6: EB-2020-0043 | C6: 2021 | D6: 2020 | E6: 2015 | F6: REI Investments_A_Total OM&A Start-Up | G6: ='App.2-FA Proposed REG Invest.'!$D$31 -> 2017 | H6: ='App.2-FA Proposed REG Invest.'!D63 -> 0
A7: ='LDC Info'!$E$14 -> North Bay Hydro Distribution Limited - North Bay service territory | B7: EB-2020-0043 | C7: 2021 | D7: 2020 | E7: 2015 | F7: REI Investments_A_Total OM&A Ongoing | G7: ='App.2-FA Proposed REG Invest.'!$D$31 -> 2017 | H7: ='App.2-FA Proposed REG Invest.'!D64 -> 0
A8: ='LDC Info'!$E$14 -> North Bay Hydro Distribution Limited - North Bay service territory | B8: EB-2020-0043 | C8: 2021 | D8: 2020 | E8: 2015 | F8: REI Investments_A_Total Capital Costs | G8: ='App.2-FA Proposed REG Invest.'!$E$31 -> 2018 | H8: ='App.2-FA Proposed REG Invest.'!E62 -> 0
A9: ='LDC Info'!$E$14 -> North Bay Hydro Distribution Limited - North Bay service territory | B9: EB-2020-0043 | C9: 2021 | D9: 2020 | E9: 2015 | F9: REI Investments_A_Total OM&A Start-Up | G9: ='App.2-FA Proposed REG Invest.'!$E$31 -> 2018 | H9: ='App.2-FA Proposed REG Invest.'!E63 -> 0
A10: ='LDC Info'!$E$14 -> North Bay Hydro Distribution Limited - North Bay service territory | B10: EB-2020-0043 | C10: 2021 | D10: 2020 | E10: 2015 | F10: REI Investments_A_Total OM&A Ongoing | G10: ='App.2-FA Proposed REG Invest.'!$E$31 -> 2018 | H10: ='App.2-FA Proposed REG Invest.'!E64 -> 0
A11: ='LDC Info'!$E$14 -> North Bay Hydro Distribution Limited - North Bay service territory | B11: EB-2020-0043 | C11: 2021 | D11: 2020 | E11: 2015 | F11: REI Investments_A_Total Capital Costs | G11: ='App.2-FA Proposed REG Invest.'!$F$31 -> 2019 | H11: ='App.2-FA Proposed REG Invest.'!F62 -> 0
A12: ='LDC Info'!$E$14 -> North Bay Hydro Distribution Limited - North Bay service territory | B12: EB-2020-0043 | C12: 2021 | D12: 2020 | E12: 2015 | F12: REI Investments_A_Total OM&A Start-Up | G12: ='App.2-FA Proposed REG Invest.'!$F$31 -> 2019 | H12: ='App.2-FA Proposed REG Invest.'!F63 -> 0
A13: ='LDC Info'!$E$14 -> North Bay Hydro Distribution Limited - North Bay service territory | B13: EB-2020-0043 | C13: 2021 | D13: 2020 | E13: 2015 | F13: REI Investments_A_Total OM&A Ongoing | G13: ='App.2-FA Proposed REG Invest.'!$F$31 -> 2019 | H13: ='App.2-FA Proposed REG Invest.'!F64 -> 0
A14: ='LDC Info'!$E$14 -> North Bay Hydro Distribution Limited - North Bay service territory | B14: EB-2020-0043 | C14: 2021 | D14: 2020 | E14: 2015 | F14: REI Investments_A_Total Capital Costs | G14: ='App.2-FA Proposed REG Invest.'!$G$31 -> 2020 | H14: ='App.2-FA Proposed REG Invest.'!G62 -> 0
A15: ='LDC Info'!$E$14 -> North Bay Hydro Distribution Limited - North Bay service territory | B15: EB-2020-0043 | C15: 2021 | D15: 2020 | E15: 2015 | F15: REI Investments_A_Total OM&A Start-Up | G15: ='App.2-FA Proposed REG Invest.'!$G$31 -> 2020 | H15: ='App.2-FA Proposed REG Invest.'!G63 -> 0
A16: ='LDC Info'!$E$14 -> North Bay Hydro Distribution Limited - North Bay service territory | B16: EB-2020-0043 | C16: 2021 | D16: 2020 | E16: 2015 | F16: REI Investments_A_Total OM&A Ongoing | G16: ='App.2-FA Proposed REG Invest.'!$G$31 -> 2020 | H16: ='App.2-FA Proposed REG Invest.'!G64 -> 0
A17: ='LDC Info'!$E$14 -> North Bay Hydro Distribution Limited - North Bay service territory | B17: EB-2020-0043 | C17: 2021 | D17: 2020 | E17: 2015 | F17: REI Investments_A_Total Capital Costs | G17: ='App.2-FA Proposed REG Invest.'!$H$31 -> 2021 | H17: ='App.2-FA Proposed REG Invest.'!H62 -> 0
A18: ='LDC Info'!$E$14 -> North Bay Hydro Distribution Limited - North Bay service territory | B18: EB-2020-0043 | C18: 2021 | D18: 2020 | E18: 2015 | F18: REI Investments_A_Total OM&A Start-Up | G18: ='App.2-FA Proposed REG Invest.'!$H$31 -> 2021 | H18: ='App.2-FA Proposed REG Invest.'!H63 -> 0
A19: ='LDC Info'!$E$14 -> North Bay Hydro Distribution Limited - North Bay service territory | B19: EB-2020-0043 | C19: 2021 | D19: 2020 | E19: 2015 | F19: REI Investments_A_Total OM&A Ongoing | G19: ='App.2-FA Proposed REG Invest.'!$H$31 -> 2021 | H19: ='App.2-FA Proposed REG Invest.'!H64 -> 0
A20: ='LDC Info'!$E$14 -> North Bay Hydro Distribution Limited - North Bay service territory | B20: EB-2020-0043 | C20: 2021 | D20: 2020 | E20: 2015 | F20: REI Investments_A_Total Capital Costs | G20: ='App.2-FA Proposed REG Invest.'!$I$31 -> 2022 | H20: ='App.2-FA Proposed REG Invest.'!I62 -> 0
A21: ='LDC Info'!$E$14 -> North Bay Hydro Distribution Limited - North Bay service territory | B21: EB-2020-0043 | C21: 2021 | D21: 2020 | E21: 2015 | F21: REI Investments_A_Total OM&A Start-Up | G21: ='App.2-FA Proposed REG Invest.'!$I$31 -> 2022 | H21: ='App.2-FA Proposed REG Invest.'!I63 -> 0
A22: ='LDC Info'!$E$14 -> North Bay Hydro Distribution Limited - North Bay service territory | B22: EB-2020-0043 | C22: 2021 | D22: 2020 | E22: 2015 | F22: REI Investments_A_Total OM&A Ongoing | G22: ='App.2-FA Proposed REG Invest.'!$I$31 -> 2022 | H22: ='App.2-FA Proposed REG Invest.'!I64 -> 0
A23: ='LDC Info'!$E$14 -> North Bay Hydro Distribution Limited - North Bay service territory | B23: EB-2020-0043 | C23: 2021 | D23: 2020 | E23: 2015 | F23: REI Investments_A_Total Capital Costs | G23: ='App.2-FA Proposed REG Invest.'!$J$31 -> 2023 | H23: ='App.2-FA Proposed REG Invest.'!J62 -> 0
A24: ='LDC Info'!$E$14 -> North Bay Hydro Distribution Limited - North Bay service territory | B24: EB-2020-0043 | C24: 2021 | D24: 2020 | E24: 2015 | F24: REI Investments_A_Total OM&A Start-Up | G24: ='App.2-FA Proposed REG Invest.'!$J$31 -> 2023 | H24: ='App.2-FA Proposed REG Invest.'!J63 -> 0
A25: ='LDC Info'!$E$14 -> North Bay Hydro Distribution Limited - North Bay service territory | B25: EB-2020-0043 | C25: 2021 | D25: 2020 | E25: 2015 | F25: REI Investments_A_Total OM&A Ongoing | G25: ='App.2-FA Proposed REG Invest.'!$J$31 -> 2023 | H25: ='App.2-FA Proposed REG Invest.'!J64 -> 0
A26: ='LDC Info'!$E$14 -> North Bay Hydro Distribution Limited - North Bay service territory | B26: EB-2020-0043 | C26: 2021 | D26: 2020 | E26: 2015 | F26: REI Investments_A_Total Capital Costs | G26: ='App.2-FA Proposed REG Invest.'!$K$31 -> 2024 | H26: ='App.2-FA Proposed REG Invest.'!K62 -> 0
A27: ='LDC Info'!$E$14 -> North Bay Hydro Distribution Limited - North Bay service territory | B27: EB-2020-0043 | C27: 2021 | D27: 2020 | E27: 2015 | F27: REI Investments_A_Total OM&A Start-Up | G27: ='App.2-FA Proposed REG Invest.'!$K$31 -> 2024 | H27: ='App.2-FA Proposed REG Invest.'!K63 -> 0
A28: ='LDC Info'!$E$14 -> North Bay Hydro Distribution Limited - North Bay service territory | B28: EB-2020-0043 | C28: 2021 | D28: 2020 | E28: 2015 | F28: REI Investments_A_Total OM&A Ongoing | G28: ='App.2-FA Proposed REG Invest.'!$K$31 -> 2024 | H28: ='App.2-FA Proposed REG Invest.'!K64 -> 0
A29: ='LDC Info'!$E$14 -> North Bay Hydro Distribution Limited - North Bay service territory | B29: EB-2020-0043 | C29: 2021 | D29: 2020 | E29: 2015 | F29: REI Investments_A_Total Capital Costs | G29: ='App.2-FA Proposed REG Invest.'!$L$31 -> 2025 | H29: ='App.2-FA Proposed REG Invest.'!L62 -> 0
A30: ='LDC Info'!$E$14 -> North Bay Hydro Distribution Limited - North Bay service territory | B30: EB-2020-0043 | C30: 2021 | D30: 2020 | E30: 2015 | F30: REI Investments_A_Total OM&A Start-Up | G30: ='App.2-FA Proposed REG Invest.'!$L$31 -> 2025 | H30: ='App.2-FA Proposed REG Invest.'!L63 -> 0
A31: ='LDC Info'!$E$14 -> North Bay Hydro Distribution Limited - North Bay service territory | B31: EB-2020-0043 | C31: 2021 | D31: 2020 | E31: 2015 | F31: REI Investments_A_Total OM&A Ongoing | G31: ='App.2-FA Proposed REG Invest.'!$L$31 -> 2025 | H31: ='App.2-FA Proposed REG Invest.'!L64 -> 0
A32: ='LDC Info'!$E$14 -> North Bay Hydro Distribution Limited - North Bay service territory | B32: EB-2020-0043 | C32: 2021 | D32: 2020 | E32: 2015 | F32: Expansion Investments_B_Total Capital Costs | G32: ='App.2-FA Proposed REG Invest.'!$C$31 -> 2016 | H32: ='App.2-FA Proposed REG Invest.'!C99 -> 0
A33: ='LDC Info'!$E$14 -> North Bay Hydro Distribution Limited - North Bay service territory | B33: EB-2020-0043 | C33: 2021 | D33: 2020 | E33: 2015 | F33: Expansion Investments_B_Total OM&A Start-Up | G33: ='App.2-FA Proposed REG Invest.'!$C$31 -> 2016 | H33: ='App.2-FA Proposed REG Invest.'!C100 -> 0
A34: ='LDC Info'!$E$14 -> North Bay Hydro Distribution Limited - North Bay service territory | B34: EB-2020-0043 | C34: 2021 | D34: 2020 | E34: 2015 | F34: Expansion Investments_B_Total OM&A Ongoing | G34: ='App.2-FA Proposed REG Invest.'!$C$31 -> 2016 | H34: ='App.2-FA Proposed REG Invest.'!C101 -> 0
A35: ='LDC Info'!$E$14 -> North Bay Hydro Distribution Limited - North Bay service territory | B35: EB-2020-0043 | C35: 2021 | D35: 2020 | E35: 2015 | F35: Expansion Investments_B_Total Capital Costs | G35: ='App.2-FA Proposed REG Invest.'!$D$31 -> 2017 | H35: ='App.2-FA Proposed REG Invest.'!D99 -> 0
A36: ='LDC Info'!$E$14 -> North Bay Hydro Distribution Limited - North Bay service territory | B36: EB-2020-0043 | C36: 2021 | D36: 2020 | E36: 2015 | F36: Expansion Investments_B_Total OM&A Start-Up | G36: ='App.2-FA Proposed REG Invest.'!$D$31 -> 2017 | H36: ='App.2-FA Proposed REG Invest.'!D100 -> 0
A37: ='LDC Info'!$E$14 -> North Bay Hydro Distribution Limited - North Bay service territory | B37: EB-2020-0043 | C37: 2021 | D37: 2020 | E37: 2015 | F37: Expansion Investments_B_Total OM&A Ongoing | G37: ='App.2-FA Proposed REG Invest.'!$D$31 -> 2017 | H37: ='App.2-FA Proposed REG Invest.'!D101 -> 0
A38: ='LDC Info'!$E$14 -> North Bay Hydro Distribution Limited - North Bay service territory | B38: EB-2020-0043 | C38: 2021 | D38: 2020 | E38: 2015 | F38: Expansion Investments_B_Total Capital Costs | G38: ='App.2-FA Proposed REG Invest.'!$E$31 -> 2018 | H38: ='App.2-FA Proposed REG Invest.'!E99 -> 0
A39: ='LDC Info'!$E$14 -> North Bay Hydro Distribution Limited - North Bay service territory | B39: EB-2020-0043 | C39: 2021 | D39: 2020 | E39: 2015 | F39: Expansion Investments_B_Total OM&A Start-Up | G39: ='App.2-FA Proposed REG Invest.'!$E$31 -> 2018 | H39: ='App.2-FA Proposed REG Invest.'!E100 -> 0
A40: ='LDC Info'!$E$14 -> North Bay Hydro Distribution Limited - North Bay service territory | B40: EB-2020-0043 | C40: 2021 | D40: 2020 | E40: 2015 | F40: Expansion Investments_B_Total OM&A Ongoing | G40: ='App.2-FA Proposed REG Invest.'!$E$31 -> 2018 | H40: ='App.2-FA Proposed REG Invest.'!E101 -> 0
A41: ='LDC Info'!$E$14 -> North Bay Hydro Distribution Limited - North Bay service territory | B41: EB-2020-0043 | C41: 2021 | D41: 2020 | E41: 2015 | F41: Expansion Investments_B_Total Capital Costs | G41: ='App.2-FA Proposed REG Invest.'!$F$31 -> 2019 | H41: ='App.2-FA Proposed REG Invest.'!F99 -> 0
A42: ='LDC Info'!$E$14 -> North Bay Hydro Distribution Limited - North Bay service territory | B42: EB-2020-0043 | C42: 2021 | D42: 2020 | E42: 2015 | F42: Expansion Investments_B_Total OM&A Start-Up | G42: ='App.2-FA Proposed REG Invest.'!$F$31 -> 2019 | H42: ='App.2-FA Proposed REG Invest.'!F100 -> 0
A43: ='LDC Info'!$E$14 -> North Bay Hydro Distribution Limited - North Bay service territory | B43: EB-2020-0043 | C43: 2021 | D43: 2020 | E43: 2015 | F43: Expansion Investments_B_Total OM&A Ongoing | G43: ='App.2-FA Proposed REG Invest.'!$F$31 -> 2019 | H43: ='App.2-FA Proposed REG Invest.'!F101 -> 0
A44: ='LDC Info'!$E$14 -> North Bay Hydro Distribution Limited - North Bay service territory | B44: EB-2020-0043 | C44: 2021 | D44: 2020 | E44: 2015 | F44: Expansion Investments_B_Total Capital Costs | G44: ='App.2-FA Proposed REG Invest.'!$G$31 -> 2020 | H44: ='App.2-FA Proposed REG Invest.'!G99 -> 0
A45: ='LDC Info'!$E$14 -> North Bay Hydro Distribution Limited - North Bay service territory | B45: EB-2020-0043 | C45: 2021 | D45: 2020 | E45: 2015 | F45: Expansion Investments_B_Total OM&A Start-Up | G45: ='App.2-FA Proposed REG Invest.'!$G$31 -> 2020 | H45: ='App.2-FA Proposed REG Invest.'!G100 -> 0
A46: ='LDC Info'!$E$14 -> North Bay Hydro Distribution Limited - North Bay service territory | B46: EB-2020-0043 | C46: 2021 | D46: 2020 | E46: 2015 | F46: Expansion Investments_B_Total OM&A Ongoing | G46: ='App.2-FA Proposed REG Invest.'!$G$31 -> 2020 | H46: ='App.2-FA Proposed REG Invest.'!G101 -> 0
A47: ='LDC Info'!$E$14 -> North Bay Hydro Distribution Limited - North Bay service territory | B47: EB-2020-0043 | C47: 2021 | D47: 2020 | E47: 2015 | F47: Expansion Investments_B_Total Capital Costs | G47: ='App.2-FA Proposed REG Invest.'!$H$31 -> 2021 | H47: ='App.2-FA Proposed REG Invest.'!H99 -> 0
A48: ='LDC Info'!$E$14 -> North Bay Hydro Distribution Limited - North Bay service territory | B48: EB-2020-0043 | C48: 2021 | D48: 2020 | E48: 2015 | F48: Expansion Investments_B_Total OM&A Start-Up | G48: ='App.2-FA Proposed REG Invest.'!$H$31 -> 2021 | H48: ='App.2-FA Proposed REG Invest.'!H100 -> 0
A49: ='LDC Info'!$E$14 -> North Bay Hydro Distribution Limited - North Bay service territory | B49: EB-2020-0043 | C49: 2021 | D49: 2020 | E49: 2015 | F49: Expansion Investments_B_Total OM&A Ongoing | G49: ='App.2-FA Proposed REG Invest.'!$H$31 -> 2021 | H49: ='App.2-FA Proposed REG Invest.'!H101 -> 0
A50: ='LDC Info'!$E$14 -> North Bay Hydro Distribution Limited - North Bay service territory | B50: EB-2020-0043 | C50: 2021 | D50: 2020 | E50: 2015 | F50: Expansion Investments_B_Total Capital Costs | G50: ='App.2-FA Proposed REG Invest.'!$I$31 -> 2022 | H50: ='App.2-FA Proposed REG Invest.'!I99 -> 0
A51: ='LDC Info'!$E$14 -> North Bay Hydro Distribution Limited - North Bay service territory | B51: EB-2020-0043 | C51: 2021 | D51: 2020 | E51: 2015 | F51: Expansion Investments_B_Total OM&A Start-Up | G51: ='App.2-FA Proposed REG Invest.'!$I$31 -> 2022 | H51: ='App.2-FA Proposed REG Invest.'!I100 -> 0
A52: ='LDC Info'!$E$14 -> North Bay Hydro Distribution Limited - North Bay service territory | B52: EB-2020-0043 | C52: 2021 | D52: 2020 | E52: 2015 | F52: Expansion Investments_B_Total OM&A Ongoing | G52: ='App.2-FA Proposed REG Invest.'!$I$31 -> 2022 | H52: ='App.2-FA Proposed REG Invest.'!I101 -> 0
A53: ='LDC Info'!$E$14 -> North Bay Hydro Distribution Limited - North Bay service territory | B53: EB-2020-0043 | C53: 2021 | D53: 2020 | E53: 2015 | F53: Expansion Investments_B_Total Capital Costs | G53: ='App.2-FA Proposed REG Invest.'!$J$31 -> 2023 | H53: ='App.2-FA Proposed REG Invest.'!J99 -> 0
A54: ='LDC Info'!$E$14 -> North Bay Hydro Distribution Limited - North Bay service territory | B54: EB-2020-0043 | C54: 2021 | D54: 2020 | E54: 2015 | F54: Expansion Investments_B_Total OM&A Start-Up | G54: ='App.2-FA Proposed REG Invest.'!$J$31 -> 2023 | H54: ='App.2-FA Proposed REG Invest.'!J100 -> 0
A55: ='LDC Info'!$E$14 -> North Bay Hydro Distribution Limited - North Bay service territory | B55: EB-2020-0043 | C55: 2021 | D55: 2020 | E55: 2015 | F55: Expansion Investments_B_Total OM&A Ongoing | G55: ='App.2-FA Proposed REG Invest.'!$J$31 -> 2023 | H55: ='App.2-FA Proposed REG Invest.'!J101 -> 0
A56: ='LDC Info'!$E$14 -> North Bay Hydro Distribution Limited - North Bay service territory | B56: EB-2020-0043 | C56: 2021 | D56: 2020 | E56: 2015 | F56: Expansion Investments_B_Total Capital Costs | G56: ='App.2-FA Proposed REG Invest.'!$K$31 -> 2024 | H56: ='App.2-FA Proposed REG Invest.'!K99 -> 0
A57: ='LDC Info'!$E$14 -> North Bay Hydro Distribution Limited - North Bay service territory | B57: EB-2020-0043 | C57: 2021 | D57: 2020 | E57: 2015 | F57: Expansion Investments_B_Total OM&A Start-Up | G57: ='App.2-FA Proposed REG Invest.'!$K$31 -> 2024 | H57: ='App.2-FA Proposed REG Invest.'!K100 -> 0
A58: ='LDC Info'!$E$14 -> North Bay Hydro Distribution Limited - North Bay service territory | B58: EB-2020-0043 | C58: 2021 | D58: 2020 | E58: 2015 | F58: Expansion Investments_B_Total OM&A Ongoing | G58: ='App.2-FA Proposed REG Invest.'!$K$31 -> 2024 | H58: ='App.2-FA Proposed REG Invest.'!K101 -> 0
A59: ='LDC Info'!$E$14 -> North Bay Hydro Distribution Limited - North Bay service territory | B59: EB-2020-0043 | C59: 2021 | D59: 2020 | E59: 2015 | F59: Expansion Investments_B_Total Capital Costs | G59: ='App.2-FA Proposed REG Invest.'!$L$31 -> 2025 | H59: ='App.2-FA Proposed REG Invest.'!L99 -> 0
A60: ='LDC Info'!$E$14 -> North Bay Hydro Distribution Limited - North Bay service territory | B60: EB-2020-0043 | C60: 2021 | D60: 2020 | E60: 2015 | F60: Expansion Investments_B_Total OM&A Start-Up | G60: ='App.2-FA Proposed REG Invest.'!$L$31 -> 2025 | H60: ='App.2-FA Proposed REG Invest.'!L100 -> 0
A61: ='LDC Info'!$E$14 -> North Bay Hydro Distribution Limited - North Bay service territory | B61: EB-2020-0043 | C61: 2021 | D61: 2020 | E61: 2015 | F61: Expansion Investments_B_Total OM&A Ongoing | G61: ='App.2-FA Proposed REG Invest.'!$L$31 -> 2025 | H61: ='App.2-FA Proposed REG Invest.'!L101 -> 0

Sheet Hidden_REG Improvement (hidden)
A1: Utility Name | B1: EB Number | C1: Test Year | D1: Bridge Year | E1: Last Rebasing Year | F1: Renewable Generation Connection Direct Benefits/Provincial Amount Renewable Enabling Improvement Investments | G1: Year | H1: Amount
A2: ='LDC Info'!$E$14 -> North Bay Hydro Distribution Limited - North Bay service territory | B2: =EBNUMBER -> EB-2020-0043 | C2: =TestYear -> 2021 | D2: =BridgeYear -> 2020 | E2: =RebaseYear -> 2015 | F2: Provincial Rate Protection | G2: ='App.2-FB Calc of REG Improvemnt'!D17 -> 2016 | H2: ='App.2-FB Calc of REG Improvemnt'!F$44 -> 0
A3: ='LDC Info'!$E$14 -> North Bay Hydro Distribution Limited - North Bay service territory | B3: EB-2020-0043 | C3: 2021 | D3: 2020 | E3: 2015 | F3: Provincial Rate Protection | G3: ='App.2-FB Calc of REG Improvemnt'!G17 -> 2017 | H3: ='App.2-FB Calc of REG Improvemnt'!I$44 -> 0
A4: ='LDC Info'!$E$14 -> North Bay Hydro Distribution Limited - North Bay service territory | B4: EB-2020-0043 | C4: 2021 | D4: 2020 | E4: 2015 | F4: Provincial Rate Protection | G4: ='App.2-FB Calc of REG Improvemnt'!J17 -> 2018 | H4: ='App.2-FB Calc of REG Improvemnt'!L$44 -> 0
A5: ='LDC Info'!$E$14 -> North Bay Hydro Distribution Limited - North Bay service territory | B5: EB-2020-0043 | C5: 2021 | D5: 2020 | E5: 2015 | F5: Provincial Rate Protection | G5: ='App.2-FB Calc of REG Improvemnt'!M17 -> 2019 | H5: ='App.2-FB Calc of REG Improvemnt'!O$44 -> 0
A6: ='LDC Info'!$E$14 -> North Bay Hydro Distribution Limited - North Bay service territory | B6: EB-2020-0043 | C6: 2021 | D6: 2020 | E6: 2015 | F6: Provincial Rate Protection | G6: ='App.2-FB Calc of REG Improvemnt'!P17 -> 2020 | H6: ='App.2-FB Calc of REG Improvemnt'!R$44 -> 0
A7: ='LDC Info'!$E$14 -> North Bay Hydro Distribution Limited - North Bay service territory | B7: EB-2020-0043 | C7: 2021 | D7: 2020 | E7: 2015 | F7: Provincial Rate Protection | G7: ='App.2-FB Calc of REG Improvemnt'!S17 -> 2021 | H7: ='App.2-FB Calc of REG Improvemnt'!U$44 -> 0
A8: ='LDC Info'!$E$14 -> North Bay Hydro Distribution Limited - North Bay service territory | B8: EB-2020-0043 | C8: 2021 | D8: 2020 | E8: 2015 | F8: Provincial Rate Protection | G8: ='App.2-FB Calc of REG Improvemnt'!V17 -> 2022 | H8: ='App.2-FB Calc of REG Improvemnt'!X$44 -> 0
A9: ='LDC Info'!$E$14 -> North Bay Hydro Distribution Limited - North Bay service territory | B9: EB-2020-0043 | C9: 2021 | D9: 2020 | E9: 2015 | F9: Provincial Rate Protection | G9: ='App.2-FB Calc of REG Improvemnt'!Y17 -> 2023 | H9: ='App.2-FB Calc of REG Improvemnt'!AA$44 -> 0
A10: ='LDC Info'!$E$14 -> North Bay Hydro Distribution Limited - North Bay service territory | B10: EB-2020-0043 | C10: 2021 | D10: 2020 | E10: 2015 | F10: Provincial Rate Protection | G10: ='App.2-FB Calc of REG Improvemnt'!AB17 -> 2024 | H10: ='App.2-FB Calc of REG Improvemnt'!AD$44 -> 0
A11: ='LDC Info'!$E$14 -> North Bay Hydro Distribution Limited - North Bay service territory | B11: EB-2020-0043 | C11: 2021 | D11: 2020 | E11: 2015 | F11: Provincial Rate Protection | G11: ='App.2-FB Calc of REG Improvemnt'!AE17 -> 2025 | H11: ='App.2-FB Calc of REG Improvemnt'!AG$44 -> 0

Sheet Hidden_REG Expansion (hidden)
A1: Utility Name | B1: EB Number | C1: Test Year | D1: Bridge Year | E1: Last Rebasing Year | F1: Calculation of Renewable Generation Connection Direct Benefits/Provincial Amount Renewable Expansion Investments | G1: Year | H1: Amount
A2: ='LDC Info'!$E$14 -> North Bay Hydro Distribution Limited - North Bay service territory | B2: =EBNUMBER -> EB-2020-0043 | C2: =TestYear -> 2021 | D2: =BridgeYear -> 2020 | E2: =RebaseYear -> 2015 | F2: Provincial Rate Protection | G2: ='App.2-FC Calc of REG Expansion'!D$17 -> 2016 | H2: ='App.2-FC Calc of REG Expansion'!F$44 -> 0
A3: ='LDC Info'!$E$14 -> North Bay Hydro Distribution Limited - North Bay service territory | B3: EB-2020-0043 | C3: 2021 | D3: 2020 | E3: 2015 | F3: Provincial Rate Protection | G3: ='App.2-FC Calc of REG Expansion'!G$17 -> 2017 | H3: ='App.2-FC Calc of REG Expansion'!I$44 -> 0
A4: ='LDC Info'!$E$14 -> North Bay Hydro Distribution Limited - North Bay service territory | B4: EB-2020-0043 | C4: 2021 | D4: 2020 | E4: 2015 | F4: Provincial Rate Protection | G4: ='App.2-FC Calc of REG Expansion'!J$17 -> 2018 | H4: ='App.2-FC Calc of REG Expansion'!L$44 -> 0
A5: ='LDC Info'!$E$14 -> North Bay Hydro Distribution Limited - North Bay service territory | B5: EB-2020-0043 | C5: 2021 | D5: 2020 | E5: 2015 | F5: Provincial Rate Protection | G5: ='App.2-FC Calc of REG Expansion'!M$17 -> 2019 | H5: ='App.2-FC Calc of REG Expansion'!O$44 -> 0
A6: ='LDC Info'!$E$14 -> North Bay Hydro Distribution Limited - North Bay service territory | B6: EB-2020-0043 | C6: 2021 | D6: 2020 | E6: 2015 | F6: Provincial Rate Protection | G6: ='App.2-FC Calc of REG Expansion'!P$17 -> 2020 | H6: ='App.2-FC Calc of REG Expansion'!R$44 -> 0
A7: ='LDC Info'!$E$14 -> North Bay Hydro Distribution Limited - North Bay service territory | B7: EB-2020-0043 | C7: 2021 | D7: 2020 | E7: 2015 | F7: Provincial Rate Protection | G7: ='App.2-FC Calc of REG Expansion'!S$17 -> 2021 | H7: ='App.2-FC Calc of REG Expansion'!U$44 -> 0
A8: ='LDC Info'!$E$14 -> North Bay Hydro Distribution Limited - North Bay service territory | B8: EB-2020-0043 | C8: 2021 | D8: 2020 | E8: 2015 | F8: Provincial Rate Protection | G8: ='App.2-FC Calc of REG Expansion'!V$17 -> 2022 | H8: ='App.2-FC Calc of REG Expansion'!X$44 -> 0
A9: ='LDC Info'!$E$14 -> North Bay Hydro Distribution Limited - North Bay service territory | B9: EB-2020-0043 | C9: 2021 | D9: 2020 | E9: 2015 | F9: Provincial Rate Protection | G9: ='App.2-FC Calc of REG Expansion'!Y$17 -> 2023 | H9: ='App.2-FC Calc of REG Expansion'!AA$44 -> 0
A10: ='LDC Info'!$E$14 -> North Bay Hydro Distribution Limited - North Bay service territory | B10: EB-2020-0043 | C10: 2021 | D10: 2020 | E10: 2015 | F10: Provincial Rate Protection | G10: ='App.2-FC Calc of REG Expansion'!AB$17 -> 2024 | H10: ='App.2-FC Calc of REG Expansion'!AD$44 -> 0
A11: ='LDC Info'!$E$14 -> North Bay Hydro Distribution Limited - North Bay service territory | B11: EB-2020-0043 | C11: 2021 | D11: 2020 | E11: 2015 | F11: Provincial Rate Protection | G11: ='App.2-FC Calc of REG Expansion'!AE$17 -> 2025 | H11: ='App.2-FC Calc of REG Expansion'!AG$44 -> 0

Sheet App.2-FA Proposed REG Invest.
K1: File Number: | L1: 0
K2: Exhibit: | L2: N/A
K3: Tab:
A4: TO BE UPDATED AT DRAFT RATE ORDER STAGE | K4: Schedule:
K5: Page:
K7: Date:
A9: Appendix 2-FA (Not applicable to this application)
A10: Renewable Generation Connection Investment Summary (past investments or over the future rate setting period)
A12: Enter the details of the Renewable Generation Connection projects as described in the appropriate section of the Filing Requirements.
A13: All costs entered on this page will be transferred to the appropriate cells in the appendices that follow.
A14: For Part A, Renewable Enabling Improvements (REI), these amounts will be transferred to Appendix 2 - FB
A15: For Part B, Expansions, these amounts will be transferred to Appendix 2 - FC
A17: If there are more than five projects proposed to be in-service in a certain year, please amend the tables below and ensure that the formulae for the Total Amounts in any given rate year are updated.
A18: Based on the current methodology and allocation, amounts allocated represent 6% for REI Connection Investments and 17% for Expansion Investments. (EB-2009-0349, 6-10-2010, p. 15, note 9)
A19: Ensure that OM&A costs below are not included in Recoverable OM&A (App. 2-JA)
A20: There are two scenarios described below. Separate sets of spreadsheets (2-FA, 2-FB, 2-FC) should be submited for each scenario as required.
A21: Scenario 1: | B21: Past Investments with No Recovery. The distributor has made investments in the past (during the IRM Years), but has not received approval for these projects and therefore did not receive
B22: revenue from the IESO under Regulation 330/09 and did not receive ratepayer revenue for the direct benefit portion of the investment.
B23: The WCA percentage, debt percentages, interest rates, kWh, tax rates, amortization period, CCA Class and percentage should correspond to the distributor's last Cost of Service approval.
B24: The Direct Benefit portion of the calculated Revenue Requirement for each year should be summed and can be applied for recovery from the distributor's ratepayers through a rate rider.
B25: The Provincial Recovery portion of the calculated Revenue Requirement for each year should be summed and can be applied for recovery from the IESO through a separate order.
A27: Scenario 2: | B27: Investments in the Test Year and Beyond. Distributor plans to make investments in 2021 and/or beyond. These investments should be added to 2-FA in the appropriate year.
B28: The WCA percentage, debt percentages, interest rates, kWh, tax rates, amortization period, CCA Class and percentage should correspond to the distributor's current application.
A30: Part A | H30: Test Year
A31: REI Investments (Direct Benefit at 6%) | C31: =D31-1 -> 2016 | D31: =E31-1 -> 2017 | E31: =F31-1 -> 2018 | F31: =G31-1 -> 2019 | G31: =H31-1 -> 2020 | H31: ='LDC Info'!$E$24 -> 2021 | I31: =H31+1 -> 2022 | J31: =I31+1 -> 2023 | K31: =J31+1 -> 2024 | L31: =K31+1 -> 2025
A32: Project 1
A33: Name: REI Connection Project
A34: Capital Costs | C34: 0 | D34: 0 | E34: 0 | F34: 0 | G34: 0 | H34: 0 | I34: 0 | J34: 0 | K34: 0 | L34: 0
A35: OM&A (Start-Up) | C35: 0 | D35: 0 | E35: 0 | F35: 0 | G35: 0 | H35: 0 | I35: 0 | J35: 0 | K35: 0 | L35: 0
A36: OM&A (Ongoing) | C36: 0 | D36: 0 | E36: 0 | F36: 0 | G36: 0 | H36: 0 | I36: 0 | J36: 0 | K36: 0 | L36: 0
A38: Project 2
A39: Name: REI Connection Project
A40: Capital Costs | C40: 0 | D40: 0 | E40: 0 | F40: 0 | G40: 0 | H40: 0 | I40: 0 | J40: 0 | K40: 0 | L40: 0
A41: OM&A (Start-Up) | C41: 0 | D41: 0 | E41: 0 | F41: 0 | G41: 0 | H41: 0 | I41: 0 | J41: 0 | K41: 0 | L41: 0
A42: OM&A (Ongoing) | C42: 0 | D42: 0 | E42: 0 | F42: 0 | G42: 0 | H42: 0 | I42: 0 | J42: 0 | K42: 0 | L42: 0
A44: Project 3
A45: Name: REI Connection Project
A46: Capital Costs | C46: 0 | D46: 0 | E46: 0 | F46: 0 | G46: 0 | H46: 0 | I46: 0 | J46: 0 | K46: 0 | L46: 0
A47: OM&A (Start-Up) | C47: 0 | D47: 0 | E47: 0 | F47: 0 | G47: 0 | H47: 0 | I47: 0 | J47: 0 | K47: 0 | L47: 0
A48: OM&A (Ongoing) | C48: 0 | D48: 0 | E48: 0 | F48: 0 | G48: 0 | H48: 0 | I48: 0 | J48: 0 | K48: 0 | L48: 0
A50: Project 4
A51: Name: REI Connection Project
A52: Capital Costs | C52: 0 | D52: 0 | E52: 0 | F52: 0 | G52: 0 | H52: 0 | I52: 0 | J52: 0 | K52: 0 | L52: 0
A53: OM&A (Start-Up) | C53: 0 | D53: 0 | E53: 0 | F53: 0 | G53: 0 | H53: 0 | I53: 0 | J53: 0 | K53: 0 | L53: 0
A54: OM&A (Ongoing) | C54: 0 | D54: 0 | E54: 0 | F54: 0 | G54: 0 | H54: 0 | I54: 0 | J54: 0 | K54: 0 | L54: 0
A56: Project 5
A57: Name: REI Connection Project
A58: Capital Costs | C58: 0 | D58: 0 | E58: 0 | F58: 0 | G58: 0 | H58: 0 | I58: 0 | J58: 0 | K58: 0 | L58: 0
A59: OM&A (Start-Up) | C59: 0 | D59: 0 | E59: 0 | F59: 0 | G59: 0 | H59: 0 | I59: 0 | J59: 0 | K59: 0 | L59: 0
A60: OM&A (Ongoing) | C60: 0 | D60: 0 | E60: 0 | F60: 0 | G60: 0 | H60: 0 | I60: 0 | J60: 0 | K60: 0 | L60: 0
A62: Total Capital Costs | C62: =SUM(C58,C52,C46,C40,C34) -> 0 | D62: 0 | E62: 0 | F62: 0 | G62: 0 | H62: 0 | I62: 0 | J62: 0 | K62: 0 | L62: 0
A63: Total OM&A (Start-Up) | C63: 0 | D63: 0 | E63: 0 | F63: 0 | G63: 0 | H63: 0 | I63: 0 | J63: 0 | K63: 0 | L63: 0
A64: Total OM&A (Ongoing) | C64: 0 | D64: 0 | E64: 0 | F64: 0 | G64: 0 | H64: 0 | I64: 0 | J64: 0 | K64: 0 | L64: 0
A67: Part B | H67: Test Year
A68: Expansion Investments (Direct Benefit at 17%) | C68: =D68-1 -> 2016 | D68: =E68-1 -> 2017 | E68: =F68-1 -> 2018 | F68: =G68-1 -> 2019 | G68: =H68-1 -> 2020 | H68: =H31 -> 2021 | I68: =H68+1 -> 2022 | J68: =I68+1 -> 2023 | K68: =J68+1 -> 2024 | L68: =K68+1 -> 2025
A69: Project 1
A70: Name: Expansion Connection Project
A71: Capital Costs | C71: 0 | D71: 0 | E71: 0 | F71: 0 | G71: 0 | H71: 0 | I71: 0 | J71: 0 | K71: 0 | L71: 0
A72: OM&A (Start-Up) | C72: 0 | D72: 0 | E72: 0 | F72: 0 | G72: 0 | H72: 0 | I72: 0 | J72: 0 | K72: 0 | L72: 0
A73: OM&A (Ongoing) | C73: 0 | D73: 0 | E73: 0 | F73: 0 | G73: 0 | H73: 0 | I73: 0 | J73: 0 | K73: 0 | L73: 0
A75: Project 2
A76: Name: Expansion Connection Project
A77: Capital Costs | C77: 0 | D77: 0 | E77: 0 | F77: 0 | G77: 0 | H77: 0 | I77: 0 | J77: 0 | K77: 0 | L77: 0
A78: OM&A (Start-Up) | C78: 0 | D78: 0 | E78: 0 | F78: 0 | G78: 0 | H78: 0 | I78: 0 | J78: 0 | K78: 0 | L78: 0
A79: OM&A (Ongoing) | C79: 0 | D79: 0 | E79: 0 | F79: 0 | G79: 0 | H79: 0 | I79: 0 | J79: 0 | K79: 0 | L79: 0
A81: Project 3
A82: Name: Expansion Connection Project
A83: Capital Costs | C83: 0 | D83: 0 | E83: 0 | F83: 0 | G83: 0 | H83: 0 | I83: 0 | J83: 0 | K83: 0 | L83: 0
A84: OM&A (Start-Up) | C84: 0 | D84: 0 | E84: 0 | F84: 0 | G84: 0 | H84: 0 | I84: 0 | J84: 0 | K84: 0 | L84: 0
A85: OM&A (Ongoing) | C85: 0 | D85: 0 | E85: 0 | F85: 0 | G85: 0 | H85: 0 | I85: 0 | J85: 0 | K85: 0 | L85: 0
A87: Project 4
A88: Name: Expansion Connection Project
A89: Capital Costs | C89: 0 | D89: 0 | E89: 0 | F89: 0 | G89: 0 | H89: 0 | I89: 0 | J89: 0 | K89: 0 | L89: 0
A90: OM&A (Start-Up) | C90: 0 | D90: 0 | E90: 0 | F90: 0 | G90: 0 | H90: 0 | I90: 0 | J90: 0 | K90: 0 | L90: 0
A91: OM&A (Ongoing) | C91: 0 | D91: 0 | E91: 0 | F91: 0 | G91: 0 | H91: 0 | I91: 0 | J91: 0 | K91: 0 | L91: 0
A93: Project 5
A94: Name: Expansion Connection Project
A95: Capital Costs | C95: 0 | D95: 0 | E95: 0 | F95: 0 | G95: 0 | H95: 0 | I95: 0 | J95: 0 | K95: 0 | L95: 0
A96: OM&A (Start-Up) | C96: 0 | D96: 0 | E96: 0 | F96: 0 | G96: 0 | H96: 0 | I96: 0 | J96: 0 | K96: 0 | L96: 0
A97: OM&A (Ongoing) | C97: 0 | D97: 0 | E97: 0 | F97: 0 | G97: 0 | H97: 0 | I97: 0 | J97: 0 | K97: 0 | L97: 0
A99: Total Capital Costs | C99: =SUM(C95,C89,C83,C77,C71) -> 0 | D99: 0 | E99: 0 | F99: 0 | G99: 0 | H99: 0 | I99: 0 | J99: 0 | K99: 0 | L99: 0
A100: Total OM&A (Start-Up) | C100: 0 | D100: 0 | E100: 0 | F100: 0 | G100: 0 | H100: 0 | I100: 0 | J100: 0 | K100: 0 | L100: 0
A101: Total OM&A (Ongoing) | C101: 0 | D101: 0 | E101: 0 | F101: 0 | G101: 0 | H101: 0 | I101: 0 | J101: 0 | K101: 0 | L101: 0

Sheet App.2-FB Calc of REG Improvemnt
R1: File Number: | S1: 0
R2: Exhibit: | S2: N/A
R3: Tab:
A4: TO BE UPDATED AT DRAFT RATE ORDER STAGE | R4: Schedule:
R5: Page:
R7: Date:
A9: Appendix 2-FB (Not applicable to this application)
A10: Calculation of Renewable Generation Connection Direct Benefits/Provincial Amount: Renewable Enabling Improvement Investments
A12: This table will calculate the distributor/provincial shares of the investments entered in Part A of Appendix 2-FA.
A13: Enter values in green shaded cells: WCA percentage, debt percentages, interest rates, kWh, tax rates, amortization period, CCA Class and percentage.
A14: For historical investments, enter these variables that were approved in your last cost of service test year. For 2021 and beyond, enter variables as in the application.
A15: Rate Riders related to the direct benefit portion of the renewable investments are not calculated for the Test Year as these assets and costs are already in the distributor's rate base/revenue requirement.
S16: Test Year
D17: =G17-1 -> 2016 | G17: =J17-1 -> 2017 | J17: =M17-1 -> 2018 | M17: =P17-1 -> 2019 | P17: =S17-1 -> 2020 | S17: ='LDC Info'!$E$24 -> 2021 | V17: =S17+1 -> 2022 | Y17: =V17+1 -> 2023 | Z17: 2016 | AB17: =Y17+1 -> 2024 | AE17: =AB17+1 -> 2025 | AH17: =AE17+1 -> 2026
E18: Direct Benefit | F18: Provincial | H18: Direct Benefit | I18: Provincial | K18: Direct Benefit | L18: Provincial | N18: Direct Benefit | O18: Provincial | Q18: Direct Benefit | R18: Provincial | T18: Direct Benefit | U18: Provincial | W18: Direct Benefit | X18: Provincial | Z18: Direct Benefit | AA18: Provincial | AC18: Direct Benefit | AD18: Provincial | AF18: Direct Benefit | AG18: Provincial | AI18: Direct Benefit | AJ18: Provincial
D19: Total | E19: 0.06 | F19: 0.94 | G19: Total | H19: 0.06 | I19: 0.94 | J19: Total | K19: 0.06 | L19: 0.94 | M19: Total | N19: 0.06 | O19: 0.94 | P19: Total | Q19: 0.06 | R19: 0.94 | S19: Total | T19: 0.06 | U19: 0.94 | V19: Total | W19: 0.06 | X19: 0.94 | Y19: Total | Z19: 0.06 | AA19: 0.94 | AB19: Total | AC19: 0.06 | AD19: 0.94 | AE19: Total | AF19: 0.06 | AG19: 0.94 | AH19: Total | AI19: 0.06 | AJ19: 0.94
A20: Net Fixed Assets (average) | D20: =E83 -> 0 | E20: =D20*E19 -> 0 | F20: =D20*F19 -> 0 | G20: =F83 -> 0 | H20: =G20*H19 -> 0 | I20: =G20*I19 -> 0 | J20: =G83 -> 0 | K20: =J20*K19 -> 0 | L20: =J20*L19 -> 0 | M20: =H83 -> 0 | N20: =M20*N19 -> 0 | O20: =M20*O19 -> 0 | P20: =I83 -> 0 | Q20: =P20*Q19 -> 0 | R20: =P20*R19 -> 0 | S20: =J83 -> 0 | T20: =S20*T19 -> 0 | U20: =S20*U19 -> 0 | V20: =K83 -> 0 | W20: =V20*W19 -> 0 | X20: =V20*X19 -> 0 | Y20: =L83 -> 0 | Z20: =Y20*Z19 -> 0 | AA20: =Y20*AA19 -> 0 | AB20: =M83 -> 0 | AC20: =AB20*AC19 -> 0 | AD20: =AB20*AD19 -> 0 | AE20: =N83 -> 0 | AF20: =AE20*AF19 -> 0 | AG20: =AE20*AG19 -> 0 | AH20: =O83 -> 0 | AI20: =AH20*AI19 -> 0 | AJ20: =AH20*AJ19 -> 0
A21: Incremental OM&A (on-going, N/A for Provincial Recovery) | D21: ='App.2-FA Proposed REG Invest.'!C64 -> 0 | E21: =D21 -> 0 | G21: ='App.2-FA Proposed REG Invest.'!D64 -> 0 | H21: =G21 -> 0 | J21: ='App.2-FA Proposed REG Invest.'!E64 -> 0 | K21: =J21 -> 0 | M21: ='App.2-FA Proposed REG Invest.'!F64 -> 0 | N21: =M21 -> 0 | P21: ='App.2-FA Proposed REG Invest.'!G64 -> 0 | Q21: =P21 -> 0 | S21: ='App.2-FA Proposed REG Invest.'!H64 -> 0 | T21: =S21 -> 0 | V21: ='App.2-FA Proposed REG Invest.'!I64 -> 0 | W21: =V21 -> 0 | Y21: ='App.2-FA Proposed REG Invest.'!J64 -> 0 | Z21: =Y21 -> 0 | AB21: ='App.2-FA Proposed REG Invest.'!K64 -> 0 | AC21: =AB21 -> 0 | AE21: ='App.2-FA Proposed REG Invest.'!L64 -> 0 | AF21: =AE21 -> 0 | AH21: ='App.2-FA Proposed REG Invest.'!M64 -> 0 | AI21: =AH21 -> 0
A22: Incremental OM&A (start-up, applicable for Provincial Recovery) | D22: ='App.2-FA Proposed REG Invest.'!C63 -> 0 | E22: =D22*E19 -> 0 | F22: =D22*F19 -> 0 | G22: ='App.2-FA Proposed REG Invest.'!D63 -> 0 | H22: =G22*H19 -> 0 | I22: =G22*I19 -> 0 | J22: ='App.2-FA Proposed REG Invest.'!E63 -> 0 | K22: =J22*K19 -> 0 | L22: =J22*L19 -> 0 | M22: ='App.2-FA Proposed REG Invest.'!F63 -> 0 | N22: =M22*N19 -> 0 | O22: =M22*O19 -> 0 | P22: ='App.2-FA Proposed REG Invest.'!G63 -> 0 | Q22: =P22*Q19 -> 0 | R22: =P22*R19 -> 0 | S22: ='App.2-FA Proposed REG Invest.'!H63 -> 0 | T22: =S22*T19 -> 0 | U22: =S22*U19 -> 0 | V22: ='App.2-FA Proposed REG Invest.'!I63 -> 0 | W22: =V22*W19 -> 0 | X22: =V22*X19 -> 0 | Y22: ='App.2-FA Proposed REG Invest.'!J63 -> 0 | Z22: =Y22*Z19 -> 0 | AA22: =Y22*AA19 -> 0 | AB22: ='App.2-FA Proposed REG Invest.'!K63 -> 0 | AC22: =AB22*AC19 -> 0 | AD22: =AB22*AD19 -> 0 | AE22: ='App.2-FA Proposed REG Invest.'!L63 -> 0 | AF22: =AE22*AF19 -> 0 | AG22: =AE22*AG19 -> 0 | AH22: ='App.2-FA Proposed REG Invest.'!M63 -> 0 | AI22: =AH22*AI19 -> 0 | AJ22: =AH22*AJ19 -> 0
A23: Rebasing Year vs. Test Year | B23: ='LDC Info'!E28 -> 2015 | C23: ='LDC Info'!E24 -> 2021
A24: Allowance for Working Capital (enter rate) | E24: =IF(AND(D$17>=$B$23, D$17<$C$23),(E21+E22)*$B$24,(E21+E22)*$C$24) -> 0 | F24: =IF(AND(D$17>=$B$23, D$17<$C$23),(F22)*$B$24,(F22)*$C$24) -> 0 | H24: =IF(AND(G$17>=$B$23, G$17<$C$23),(H21+H22)*$B$24,(H21+H22)*$C$24) -> 0 | I24: =IF(AND(G$17>=$B$23, G$17<$C$23),(I22)*$B$24,(I22)*$C$24) -> 0 | K24: =IF(AND(J$17>=$B$23, J$17<$C$23),(K21+K22)*$B$24,(K21+K22)*$C$24) -> 0 | L24: =IF(AND(J$17>=$B$23, J$17<$C$23),(L22)*$B$24,(L22)*$C$24) -> 0 | N24: =IF(AND(M$17>=$B$23, M$17<$C$23),(N21+N22)*$B$24,(N21+N22)*$C$24) -> 0 | O24: =IF(AND(M$17>=$B$23, M$17<$C$23),(O22)*$B$24,(O22)*$C$24) -> 0 | Q24: =IF(AND(P$17>=$B$23, P$17<$C$23),(Q21+Q22)*$B$24,(Q21+Q22)*$C$24) -> 0 | R24: =IF(AND(P$17>=$B$23, P$17<$C$23),(R22)*$B$24,(R22)*$C$24) -> 0 | T24: =IF(AND(S$17>=$B$23, S$17<$C$23),(T21+T22)*$B$24,(T21+T22)*$C$24) -> 0 | U24: =IF(AND(S$17>=$B$23, S$17<$C$23),(U22)*$B$24,(U22)*$C$24) -> 0 | W24: =IF(AND(V$17>=$B$23, V$17<$C$23),(W21+W22)*$B$24,(W21+W22)*$C$24) -> 0 | X24: =IF(AND(V$17>=$B$23, V$17<$C$23),(X22)*$B$24,(X22)*$C$24) -> 0 | Z24: =IF(AND(Y$17>=$B$23, Y$17<$C$23),(Z21+Z22)*$B$24,(Z21+Z22)*$C$24) -> 0 | AA24: =IF(AND(Y$17>=$B$23, Y$17<$C$23),(AA22)*$B$24,(AA22)*$C$24) -> 0 | AC24: =IF(AND(AB$17>=$B$23, AB$17<$C$23),(AC21+AC22)*$B$24,(AC21+AC22)*$C$24) -> 0 | AD24: =IF(AND(AB$17>=$B$23, AB$17<$C$23),(AD22)*$B$24,(AD22)*$C$24) -> 0 | AF24: =IF(AND(AE$17>=$B$23, AE$17<$C$23),(AF21+AF22)*$B$24,(AF21+AF22)*$C$24) -> 0 | AG24: =IF(AND(AE$17>=$B$23, AE$17<$C$23),(AG22)*$B$24,(AG22)*$C$24) -> 0 | AI24: =IF(AND(AH$17>=$B$23, AH$17<$C$23),(AI21+AI22)*$B$24,(AI21+AI22)*$C$24) -> 0 | AJ24: =IF(AND(AH$17>=$B$23, AH$17<$C$23),(AJ22)*$B$24,(AJ22)*$C$24) -> 0
A25: Rate Base | E25: =SUM(E20+E24) -> 0 | F25: =SUM(F20+F24) -> 0 | H25: =SUM(H20+H24) -> 0 | I25: =SUM(I20+I24) -> 0 | K25: =SUM(K20+K24) -> 0 | L25: =SUM(L20+L24) -> 0 | N25: =SUM(N20+N24) -> 0 | O25: =SUM(O20+O24) -> 0 | Q25: =SUM(Q20+Q24) -> 0 | R25: =SUM(R20+R24) -> 0 | T25: =SUM(T20+T24) -> 0 | U25: =SUM(U20+U24) -> 0 | W25: =SUM(W20+W24) -> 0 | X25: =SUM(X20+X24) -> 0 | Z25: =SUM(Z20+Z24) -> 0 | AA25: =SUM(AA20+AA24) -> 0 | AC25: =SUM(AC20+AC24) -> 0 | AD25: =SUM(AD20+AD24) -> 0 | AF25: =SUM(AF20+AF24) -> 0 | AG25: =SUM(AG20+AG24) -> 0 | AI25: =SUM(AI20+AI24) -> 0 | AJ25: =SUM(AJ20+AJ24) -> 0
A27: Rebasing Year vs. Test Year | B27: =B23 -> 2015 | C27: =C23 -> 2021
A28: Deemed ST Debt (enter amount) | E28: =E25*$B$28 -> 0 | F28: =F25*$B$28 -> 0 | H28: =H25*$B$28 -> 0 | I28: =I25*$B$28 -> 0 | K28: =K25*$B$28 -> 0 | L28: =L25*$B$28 -> 0 | N28: =N25*$B$28 -> 0 | O28: =O25*$B$28 -> 0 | Q28: =Q25*$B$28 -> 0 | R28: =R25*$B$28 -> 0 | T28: =T25*$C$28 -> 0 | U28: =U25*$C$28 -> 0 | W28: =W25*$C$28 -> 0 | X28: =X25*$C$28 -> 0 | Z28: =Z25*$C$28 -> 0 | AA28: =AA25*$C$28 -> 0 | AC28: =AC25*$C$28 -> 0 | AD28: =AD25*$C$28 -> 0 | AF28: =AF25*$C$28 -> 0 | AG28: =AG25*$C$28 -> 0 | AI28: =AI25*$C$28 -> 0 | AJ28: =AJ25*$C$28 -> 0
A29: Deemed LT Debt (enter amount) | E29: =E25*$B$29 -> 0 | F29: =F25*$B$29 -> 0 | H29: =H25*$B$29 -> 0 | I29: =I25*$B$29 -> 0 | K29: =K25*$B$29 -> 0 | L29: =L25*$B$29 -> 0 | N29: =N25*$B$29 -> 0 | O29: =O25*$B$29 -> 0 | Q29: =Q25*$B$29 -> 0 | R29: =R25*$B$29 -> 0 | T29: =T25*$C$29 -> 0 | U29: =U25*$C$29 -> 0 | W29: =W25*$C$29 -> 0 | X29: =X25*$C$29 -> 0 | Z29: =Z25*$C$29 -> 0 | AA29: =AA25*$C$29 -> 0 | AC29: =AC25*$C$29 -> 0 | AD29: =AD25*$C$29 -> 0 | AF29: =AF25*$C$29 -> 0 | AG29: =AG25*$C$29 -> 0 | AI29: =AI25*$C$29 -> 0 | AJ29: =AJ25*$C$29 -> 0
A30: Deemed Equity (enter amount) | E30: =E25*$B$30 -> 0 | F30: =F25*$B$30 -> 0 | H30: =H25*$B$30 -> 0 | I30: =I25*$B$30 -> 0 | K30: =K25*$B$30 -> 0 | L30: =L25*$B$30 -> 0 | N30: =N25*$B$30 -> 0 | O30: =O25*$B$30 -> 0 | Q30: =Q25*$B$30 -> 0 | R30: =R25*$B$30 -> 0 | T30: =T25*$C$30 -> 0 | U30: =U25*$C$30 -> 0 | W30: =W25*$C$30 -> 0 | X30: =X25*$C$30 -> 0 | Z30: =Z25*$C$30 -> 0 | AA30: =AA25*$C$30 -> 0 | AC30: =AC25*$C$30 -> 0 | AD30: =AD25*$C$30 -> 0 | AF30: =AF25*$C$30 -> 0 | AG30: =AG25*$C$30 -> 0 | AI30: =AI25*$C$30 -> 0 | AJ30: =AJ25*$C$30 -> 0
A32: ST Interest (enter rate) | E32: =E28*$B32 -> 0 | F32: 0 | H32: 0 | I32: 0 | K32: 0 | L32: 0 | N32: 0 | O32: 0 | Q32: 0 | R32: 0 | T32: =T28*$C32 -> 0 | U32: 0 | W32: =W28*$C32 -> 0 | X32: 0 | Z32: =Z28*$C32 -> 0 | AA32: 0 | AC32: =AC28*$C32 -> 0 | AD32: 0 | AF32: =AF28*$C32 -> 0 | AG32: 0 | AI32: =AI28*$C32 -> 0 | AJ32: 0
A33: LT Interest (enter rate) | E33: 0 | F33: 0 | H33: 0 | I33: 0 | K33: 0 | L33: 0 | N33: 0 | O33: 0 | Q33: 0 | R33: 0 | T33: 0 | U33: 0 | W33: 0 | X33: 0 | Z33: 0 | AA33: 0 | AC33: 0 | AD33: 0 | AF33: 0 | AG33: 0 | AI33: =AI29*$C33 -> 0 | AJ33: 0
A34: Return on Equity (enter rate) | E34: 0 | F34: 0 | H34: 0 | I34: 0 | K34: 0 | L34: 0 | N34: 0 | O34: 0 | Q34: 0 | R34: 0 | T34: 0 | U34: 0 | W34: 0 | X34: 0 | Z34: 0 | AA34: 0 | AC34: 0 | AD34: 0 | AF34: 0 | AG34: 0 | AI34: =AI30*$C34 -> 0 | AJ34: 0
A35: Cost of Capital Total | E35: =SUM(E32:E34) -> 0 | F35: =SUM(F32:F34) -> 0 | H35: =SUM(H32:H34) -> 0 | I35: =SUM(I32:I34) -> 0 | K35: =SUM(K32:K34) -> 0 | L35: =SUM(L32:L34) -> 0 | N35: =SUM(N32:N34) -> 0 | O35: =SUM(O32:O34) -> 0 | Q35: =SUM(Q32:Q34) -> 0 | R35: =SUM(R32:R34) -> 0 | T35: =SUM(T32:T34) -> 0 | U35: =SUM(U32:U34) -> 0 | W35: =SUM(W32:W34) -> 0 | X35: =SUM(X32:X34) -> 0 | Z35: =SUM(Z32:Z34) -> 0 | AA35: =SUM(AA32:AA34) -> 0 | AC35: =SUM(AC32:AC34) -> 0 | AD35: =SUM(AD32:AD34) -> 0 | AF35: =SUM(AF32:AF34) -> 0 | AG35: =SUM(AG32:AG34) -> 0 | AI35: =SUM(AI32:AI34) -> 0 | AJ35: =SUM(AJ32:AJ34) -> 0
A37: OM&A | E37: =E21+E22 -> 0 | F37: =F22 -> 0 | H37: =H21+H22 -> 0 | I37: =I22 -> 0 | K37: =K21+K22 -> 0 | L37: =L22 -> 0 | N37: =N21+N22 -> 0 | O37: =O22 -> 0 | Q37: =Q21+Q22 -> 0 | R37: =R22 -> 0 | T37: =T21+T22 -> 0 | U37: =U22 -> 0 | W37: =W21+W22 -> 0 | X37: =X22 -> 0 | Z37: =Z21+Z22 -> 0 | AA37: =AA22 -> 0 | AC37: =AC21+AC22 -> 0 | AD37: =AD22 -> 0 | AF37: =AF21+AF22 -> 0 | AG37: =AG22 -> 0 | AI37: =AI21+AI22 -> 0 | AJ37: =AJ22 -> 0
A38: Amortization | D38: =+E77+E78 -> 0 | E38: =D38*E$19 -> 0 | F38: =D38*F$19 -> 0 | G38: =+F77+F78 -> 0 | H38: =G38*H$19 -> 0 | I38: =G38*I$19 -> 0 | J38: =+G77+G78 -> 0 | K38: =J38*K$19 -> 0 | L38: =J38*L$19 -> 0 | M38: =+H77+H78 -> 0 | N38: =M38*N$19 -> 0 | O38: =M38*O$19 -> 0 | P38: =+I77+I78 -> 0 | Q38: =P38*Q$19 -> 0 | R38: =P38*R$19 -> 0 | S38: =+J77+J78 -> 0 | T38: =S38*T$19 -> 0 | U38: =S38*U$19 -> 0 | V38: =+K77+K78 -> 0 | W38: =V38*W$19 -> 0 | X38: =V38*X$19 -> 0 | Y38: =+L77+L78 -> 0 | Z38: =Y38*Z$19 -> 0 | AA38: =Y38*AA$19 -> 0 | AB38: =+M77+M78 -> 0 | AC38: =AB38*AC$19 -> 0 | AD38: =AB38*AD$19 -> 0 | AE38: =+N77+N78 -> 0 | AF38: =AE38*AF$19 -> 0 | AG38: =AE38*AG$19 -> 0 | AH38: =+Q77+Q78 -> 0 | AI38: =AH38*AI$19 -> 0 | AJ38: =AH38*AJ$19 -> 0
A39: Grossed-up PILs | E39: =+E66 -> 0 | F39: =+F66 -> 0 | H39: =+H66 -> 0 | I39: =+I66 -> 0 | K39: =+K66 -> 0 | L39: =+L66 -> 0 | N39: =+N66 -> 0 | O39: =+O66 -> 0 | Q39: =+Q66 -> 0 | R39: =+R66 -> 0 | T39: =+T66 -> 0 | U39: =+U66 -> 0 | W39: =+W66 -> 0 | X39: =+X66 -> 0 | Z39: =+Z66 -> 0 | AA39: =+AA66 -> 0 | AC39: =+AC66 -> 0 | AD39: =+AD66 -> 0 | AF39: =+AF66 -> 0 | AG39: =+AG66 -> 0 | AI39: =+AI66 -> 0 | AJ39: =+AJ66 -> 0
A41: Revenue Requirement | E41: =SUM(E35:E39) -> 0 | F41: =SUM(F35:F39) -> 0 | H41: =SUM(H35:H39) -> 0 | I41: 0 | K41: =SUM(K35:K39) -> 0 | L41: 0 | N41: =SUM(N35:N39) -> 0 | O41: 0 | Q41: =SUM(Q35:Q39) -> 0 | R41: 0 | T41: =SUM(T35:T39) -> 0 | U41: 0 | W41: =SUM(W35:W39) -> 0 | X41: 0 | Z41: =SUM(Z35:Z39) -> 0 | AA41: 0 | AC41: =SUM(AC35:AC39) -> 0 | AD41: 0 | AF41: =SUM(AF35:AF39) -> 0 | AG41: 0 | AI41: =SUM(AI35:AI39) -> 0 | AJ41: 0
A44: Provincial Rate Protection | F44: =F41 -> 0 | I44: =I41 -> 0 | L44: =L41 -> 0 | O44: =O41 -> 0 | R44: =R41 -> 0 | U44: =U41 -> 0 | X44: =X41 -> 0 | AA44: =AA41 -> 0 | AD44: =AD41 -> 0 | AG44: =AG41 -> 0 | AJ44: =AJ41 -> 0
A46: Monthly Amount Paid by IESO | F46: =F44/12 -> 0 | I46: =I44/12 -> 0 | L46: =L44/12 -> 0 | O46: =O44/12 -> 0 | R46: =R44/12 -> 0 | U46: =U44/12 -> 0 | X46: =X44/12 -> 0 | AA46: =AA44/12 -> 0 | AD46: =AD44/12 -> 0 | AG46: =AG44/12 -> 0 | AJ46: =AJ44/12 -> 0
A48: Note 1: The distributor should follow the regulatory accounting set out in the Accounting Procedure Handbook Guidance FAQs issued in March 2015. Q10 of the APH FAQs states that: “For approved eligible investments as defined under O.Reg. 330/09 under the OEB Act, a variance account will continue to be used for the purpose of recording variances between the revenue requirement based on actual costs of approved eligible investments and the revenue received from the IESO.” The answer for Q10 provides the accounting guidance for this variance account: “Distributors that have included eligible investments to connect qualifying facilities in their DS plans are to establish the variance Account 1533 Renewable Generation Connection Funding Adder Deferral Account, Sub-account Provincial Rate Protection Payment Variances following OEB approval for investments forecast to enter service beyond the test year for purposes of implementing rate protection pursuant to O.Reg. 330/09. The purpose of this variance account is to track the variance between the distributor’s revenue requirement associated with the portion of the actual capital and/or operating costs that are eligible for rate protection, as incurred by the distributor for eligible renewable enabling and expansion investments, and the rate protection payments collected from the IESO.” The answer further provides the journal entries to record the variances. Distributors should follow the instructions in the answer for recording the journal entries in the variance account 1533.
A50: Note 2: For the Test Year, Costs and Revenues of the Direct Benefit are to be included in the test year applicant Rate Base and Revenues.
A52: PILs Calculation | T52: Test Year
E53: =G17-1 -> 2016 | H53: =G17 -> 2017 | K53: =J17 -> 2018 | N53: =M17 -> 2019 | Q53: =P17 -> 2020 | T53: =S17 -> 2021 | W53: =V17 -> 2022 | Z53: =Y17 -> 2023 | AC53: =AB17 -> 2024 | AF53: =AE17 -> 2025 | AI53: =AH17 -> 2026
A54: Income Tax | E54: Direct Benefit | F54: Provincial | H54: Direct Benefit | I54: Provincial | K54: Direct Benefit | L54: Provincial | N54: Direct Benefit | O54: Provincial | Q54: Direct Benefit | R54: Provincial | T54: Direct Benefit | U54: Provincial | W54: Direct Benefit | X54: Provincial | Z54: Direct Benefit | AA54: Provincial | AC54: Direct Benefit | AD54: Provincial | AF54: Direct Benefit | AG54: Provincial | AI54: Direct Benefit | AJ54: Provincial
AB55: Total | AE55: Total | AH55: Total
A56: Net Income - ROE on Rate Base | E56: =E34 -> 0 | F56: =F34 -> 0 | H56: =H34 -> 0 | I56: =I34 -> 0 | K56: =K34 -> 0 | L56: =L34 -> 0 | N56: =N34 -> 0 | O56: =O34 -> 0 | Q56: =Q34 -> 0 | R56: =R34 -> 0 | T56: =T34 -> 0 | U56: =U34 -> 0 | W56: =W34 -> 0 | X56: =X34 -> 0 | Z56: =Z34 -> 0 | AA56: =AA34 -> 0 | AC56: =AC34 -> 0 | AD56: =AD34 -> 0 | AF56: =AF34 -> 0 | AG56: =AG34 -> 0 | AI56: =AI34 -> 0 | AJ56: =AJ34 -> 0
A57: Amortization (6% DB and 94% P) | E57: =E38 -> 0 | F57: =F38 -> 0 | H57: =H38 -> 0 | I57: =I38 -> 0 | K57: =K38 -> 0 | L57: =L38 -> 0 | N57: =N38 -> 0 | O57: =O38 -> 0 | Q57: =Q38 -> 0 | R57: =R38 -> 0 | T57: =T38 -> 0 | U57: =U38 -> 0 | W57: =W38 -> 0 | X57: =X38 -> 0 | Z57: =Z38 -> 0 | AA57: =AA38 -> 0 | AC57: =AC38 -> 0 | AD57: =AD38 -> 0 | AF57: =AF38 -> 0 | AG57: =AG38 -> 0 | AI57: =AI38 -> 0 | AJ57: =AJ38 -> 0
A58: CCA (6% DB and 94% P) | E58: =-E95*$E$19 -> 0 | F58: =-E95*$F$19 -> 0 | H58: =-F95*$E$19 -> 0 | I58: =-F95*$F$19 -> 0 | K58: =-G95*$E$19 -> 0 | L58: =-G95*$F$19 -> 0 | N58: =-H95*$E$19 -> 0 | O58: =-H95*$F$19 -> 0 | Q58: =-I95*$E$19 -> 0 | R58: =-I95*$F$19 -> 0 | T58: =-J95*$E$19 -> 0 | U58: =-J95*$F$19 -> 0 | W58: =-K95*$E$19 -> 0 | X58: =-K95*$F$19 -> 0 | Z58: =-L95*$E$19 -> 0 | AA58: =-L95*$F$19 -> 0 | AC58: =-M95*$E$19 -> 0 | AD58: =-M95*$F$19 -> 0 | AF58: =-N95*$E$19 -> 0 | AG58: =-N95*$F$19 -> 0 | AI58: =-Q95*$E$19 -> 0 | AJ58: =-Q95*$F$19 -> 0
A59: Taxable income | E59: =SUM(E56:E58) -> 0 | F59: =SUM(F56:F58) -> 0 | H59: =SUM(H56:H58) -> 0 | I59: 0 | K59: =SUM(K56:K58) -> 0 | L59: 0 | N59: =SUM(N56:N58) -> 0 | O59: 0 | Q59: =SUM(Q56:Q58) -> 0 | R59: 0 | T59: =SUM(T56:T58) -> 0 | U59: 0 | W59: =SUM(W56:W58) -> 0 | X59: 0 | Z59: =SUM(Z56:Z58) -> 0 | AA59: =SUM(AA56:AA58) -> 0 | AC59: =SUM(AC56:AC58) -> 0 | AD59: =SUM(AD56:AD58) -> 0 | AF59: =SUM(AF56:AF58) -> 0 | AG59: =SUM(AG56:AG58) -> 0 | AI59: =SUM(AI56:AI58) -> 0 | AJ59: =SUM(AJ56:AJ58) -> 0
A61: Tax Rate (to be entered)
A63: Income Taxes Payable | E63: =E59*E61 -> 0 | F63: =F59*F61 -> 0 | H63: =H59*H61 -> 0 | I63: =I59*I61 -> 0 | K63: =K59*K61 -> 0 | L63: =L59*L61 -> 0 | N63: =N59*N61 -> 0 | O63: =O59*O61 -> 0 | Q63: =Q59*Q61 -> 0 | R63: =R59*R61 -> 0 | T63: =T59*T61 -> 0 | U63: =U59*U61 -> 0 | W63: =W59*W61 -> 0 | X63: =X59*X61 -> 0 | Z63: =Z59*Z61 -> 0 | AA63: =AA59*AA61 -> 0 | AC63: =AC59*AC61 -> 0 | AD63: =AD59*AD61 -> 0 | AF63: =AF59*AF61 -> 0 | AG63: =AG59*AG61 -> 0 | AI63: =AI59*AI61 -> 0 | AJ63: =AJ59*AJ61 -> 0
A64: Gross Up
A65: Income Taxes Payable | E65: =E63/(1-E61) -> 0 | F65: =F63/(1-F61) -> 0 | H65: =H63/(1-H61) -> 0 | I65: =I63/(1-I61) -> 0 | K65: =K63/(1-K61) -> 0 | L65: =L63/(1-L61) -> 0 | N65: =N63/(1-N61) -> 0 | O65: =O63/(1-O61) -> 0 | Q65: =Q63/(1-Q61) -> 0 | R65: =R63/(1-R61) -> 0 | T65: =T63/(1-T61) -> 0 | U65: =U63/(1-U61) -> 0 | W65: =W63/(1-W61) -> 0 | X65: =X63/(1-X61) -> 0 | Z65: =Z63/(1-Z61) -> 0 | AA65: =AA63/(1-AA61) -> 0 | AC65: =AC63/(1-AC61) -> 0 | AD65: =AD63/(1-AD61) -> 0 | AF65: =AF63/(1-AF61) -> 0 | AG65: =AG63/(1-AG61) -> 0 | AI65: =AI63/(1-AI61) -> 0 | AJ65: =AJ63/(1-AJ61) -> 0
A66: Grossed Up PILs | E66: =+E65 -> 0 | F66: =+F65 -> 0 | H66: =+H65 -> 0 | I66: =+I65 -> 0 | K66: =+K65 -> 0 | L66: 0 | N66: =+N65 -> 0 | O66: 0 | Q66: =+Q65 -> 0 | R66: 0 | T66: =+T65 -> 0 | U66: 0 | W66: =+W65 -> 0 | X66: 0 | Z66: =+Z65 -> 0 | AA66: 0 | AC66: =+AC65 -> 0 | AD66: 0 | AF66: =+AF65 -> 0 | AG66: 0 | AI66: =+AI65 -> 0 | AJ66: 0
J68: Test Year
E69: =F69-1 -> 2016 | F69: =G69-1 -> 2017 | G69: =H69-1 -> 2018 | H69: =I69-1 -> 2019 | I69: =J69-1 -> 2020 | J69: ='LDC Info'!E24 -> 2021 | K69: =J69+1 -> 2022 | L69: =K69+1 -> 2023 | M69: =L69+1 -> 2024 | N69: =M69+1 -> 2025 | O69: =N69+1 -> 2026
A70: Net Fixed Assets
A71: Enter applicable amortization in years: | B71: 40
A72: Opening Gross Fixed Assets | F72: =E74 -> 0 | G72: 0 | H72: 0 | I72: 0 | J72: 0 | K72: 0 | L72: 0 | M72: 0 | N72: 0 | O72: 0
A73: Capital Additions | E73: ='App.2-FA Proposed REG Invest.'!C62 -> 0 | F73: ='App.2-FA Proposed REG Invest.'!D62 -> 0 | G73: ='App.2-FA Proposed REG Invest.'!E62 -> 0 | H73: ='App.2-FA Proposed REG Invest.'!F62 -> 0 | I73: ='App.2-FA Proposed REG Invest.'!G62 -> 0 | J73: ='App.2-FA Proposed REG Invest.'!H62 -> 0 | K73: ='App.2-FA Proposed REG Invest.'!I62 -> 0 | L73: ='App.2-FA Proposed REG Invest.'!J62 -> 0 | M73: ='App.2-FA Proposed REG Invest.'!K62 -> 0 | N73: ='App.2-FA Proposed REG Invest.'!L62 -> 0 | O73: ='App.2-FA Proposed REG Invest.'!M62 -> 0
A74: Closing Gross Fixed Assets | E74: =SUM(E72:E73) -> 0 | F74: 0 | G74: 0 | H74: 0 | I74: 0 | J74: 0 | K74: 0 | L74: 0 | M74: 0 | N74: 0 | O74: =SUM(O72:O73) -> 0
A76: Opening Accumulated Amortization | F76: =+E79 -> 0 | G76: =+F79 -> 0 | H76: 0 | I76: 0 | J76: 0 | K76: 0 | L76: 0 | M76: 0 | N76: 0 | O76: 0
A77: Current Year Amortization (before additions) | E77: =IF(ISERROR(E72/$B$71), 0, E72/$B$71) -> 0 | F77: =IF(ISERROR(F72/$B$71), 0, F72/$B$71) -> 0 | G77: 0 | H77: 0 | I77: 0 | J77: 0 | K77: 0 | L77: 0 | M77: 0 | N77: 0 | O77: =IF(ISERROR(O72/$B$71), 0, O72/$B$71) -> 0
A78: Capital Additions Amortization (half year) | E78: =E73/$B$71/2 -> 0 | F78: =F73/$B$71/2 -> 0 | G78: 0 | H78: 0 | I78: 0 | J78: 0 | K78: 0 | L78: 0 | M78: 0 | N78: 0 | O78: =O73/$B$71/2 -> 0
A79: Closing Accumulated Amortization | E79: =SUM(E76+E77+E78) -> 0 | F79: 0 | G79: 0 | H79: 0 | I79: 0 | J79: 0 | K79: 0 | L79: 0 | M79: 0 | N79: 0 | O79: =SUM(O76+O77+O78) -> 0
A81: Opening Net Fixed Assets | E81: =E72-E76 -> 0 | F81: 0 | G81: 0 | H81: 0 | I81: 0 | J81: 0 | K81: 0 | L81: 0 | M81: 0 | N81: 0 | O81: =O72-O76 -> 0
A82: Closing Net Fixed Assets | E82: =E74-E79 -> 0 | F82: 0 | G82: 0 | H82: 0 | I82: 0 | J82: 0 | K82: 0 | L82: 0 | M82: 0 | N82: 0 | O82: =O74-O79 -> 0
A83: Average Net Fixed Assets | E83: =SUM(E81:E82)/2 -> 0 | F83: 0 | G83: 0 | H83: 0 | I83: 0 | J83: 0 | K83: 0 | L83: 0 | M83: 0 | N83: 0 | O83: =SUM(O81:O82)/2 -> 0
A85: UCC for PILs Calculation | J85: Test Year
E86: =E69 -> 2016 | F86: =F69 -> 2017 | G86: =G69 -> 2018 | H86: 2019 | I86: 2020 | J86: 2021 | K86: 2022 | L86: 2023 | M86: 2024 | N86: 2025 | O86: =O69 -> 2026
A88: Opening UCC | E88: =E72 -> 0 | F88: =E96 -> 0 | G88: 0 | H88: 0 | I88: 0 | J88: 0 | K88: 0 | L88: 0 | M88: 0 | N88: 0 | O88: 0
A89: Capital Additions | E89: =E73 -> 0 | F89: 0 | G89: 0 | H89: 0 | I89: 0 | J89: 0 | K89: 0 | L89: 0 | M89: 0 | N89: 0 | O89: =O73 -> 0
A90: UCC Before Half Year Rule | E90: =SUM(E88:E89) -> 0 | F90: 0 | G90: 0 | H90: 0 | I90: 0 | J90: 0 | K90: 0 | L90: 0 | M90: 0 | N90: 0 | O90: =SUM(O88:O89) -> 0
A91: Capital Additions (half year) | E91: =E89/2 -> 0 | F91: 0 | G91: 0 | H91: 0 | I91: 0 | J91: 0 | K91: 0 | L91: 0 | M91: 0 | N91: 0 | O91: =O89/2 -> 0
A92: Reduced UCC | E92: =E90-E91 -> 0 | F92: 0 | G92: 0 | H92: 0 | I92: 0 | J92: 0 | K92: 0 | L92: 0 | M92: 0 | N92: 0 | O92: =O90-O91 -> 0
A93: CCA Rate Class (to be entered)
A94: CCA Rate (to be entered)
A95: CCA | E95: =E92*$B$94 -> 0 | F95: =F92*$B$94 -> 0 | G95: 0 | H95: 0 | I95: 0 | J95: 0 | K95: 0 | L95: 0 | M95: 0 | N95: 0 | O95: =O92*$B$94 -> 0
A96: Closing UCC | E96: =E90-E95 -> 0 | F96: 0 | G96: 0 | H96: 0 | I96: 0 | J96: 0 | K96: 0 | L96: 0 | M96: 0 | N96: 0 | O96: =O90-O95 -> 0

Sheet App.2-FC Calc of REG Expansion
R1: File Number: | S1: 0
R2: Exhibit: | S2: N/A
R3: Tab:
A4: TO BE UPDATED AT DRAFT RATE ORDER STAGE | R4: Schedule:
R5: Page:
R7: Date:
A9: Appendix 2-FC (Not applicable to this application)
A10: Calculation of Renewable Generation Connection Direct Benefits/Provincial Amount: Renewable Expansion Investments
A12: This table will calculate the distributor/provincial shares of the investments entered in Part B of Appendix 2-FA.
A13: Enter values in green shaded cells: WCA percentage, debt percentages, interest rates, kWh, tax rates, amortization period, CCA Class and percentage.
A14: For historical investments, enter these variables that were approved in your last cost of service test year. For 2021 and beyond, enter variables as in the application.
A15: Rate Riders related to the direct benefit portion of the renewable investments are not calculated for the Test Year as these assets and costs are already in the distributor's rate base/revenue requirement.
S16: Test Year
D17: =G17-1 -> 2016 | G17: =J17-1 -> 2017 | J17: =M17-1 -> 2018 | M17: =P17-1 -> 2019 | P17: =S17-1 -> 2020 | S17: ='LDC Info'!$E$24 -> 2021 | V17: =S17+1 -> 2022 | Y17: =V17+1 -> 2023 | Z17: 2016 | AB17: =Y17+1 -> 2024 | AE17: =AB17+1 -> 2025 | AH17: =AE17+1 -> 2026
E18: Direct Benefit | F18: Provincial | H18: Direct Benefit | I18: Provincial | K18: Direct Benefit | L18: Provincial | N18: Direct Benefit | O18: Provincial | Q18: Direct Benefit | R18: Provincial | T18: Direct Benefit | U18: Provincial | W18: Direct Benefit | X18: Provincial | Z18: Direct Benefit | AA18: Provincial | AC18: Direct Benefit | AD18: Provincial | AF18: Direct Benefit | AG18: Provincial | AI18: Direct Benefit | AJ18: Provincial
D19: Total | E19: 0.17 | F19: 0.83 | G19: Total | H19: 0.17 | I19: 0.83 | J19: Total | K19: 0.17 | L19: 0.83 | M19: Total | N19: 0.17 | O19: 0.83 | P19: Total | Q19: 0.17 | R19: 0.83 | S19: Total | T19: 0.17 | U19: 0.83 | V19: Total | W19: 0.17 | X19: 0.83 | Y19: Total | Z19: 0.17 | AA19: 0.83 | AB19: Total | AC19: 0.17 | AD19: 0.83 | AE19: Total | AF19: 0.17 | AG19: 0.83 | AH19: Total | AI19: 0.17 | AJ19: 0.83
A20: Net Fixed Assets (average) | D20: =E83 -> 0 | E20: =D20*E19 -> 0 | F20: =D20*F19 -> 0 | G20: =F83 -> 0 | H20: =G20*H19 -> 0 | I20: =G20*I19 -> 0 | J20: =G83 -> 0 | K20: =J20*K19 -> 0 | L20: =J20*L19 -> 0 | M20: =H83 -> 0 | N20: =M20*N19 -> 0 | O20: =M20*O19 -> 0 | P20: =I83 -> 0 | Q20: =P20*Q19 -> 0 | R20: =P20*R19 -> 0 | S20: =J83 -> 0 | T20: =S20*T19 -> 0 | U20: =S20*U19 -> 0 | V20: =K83 -> 0 | W20: =V20*W19 -> 0 | X20: =V20*X19 -> 0 | Y20: =L83 -> 0 | Z20: =Y20*Z19 -> 0 | AA20: =Y20*AA19 -> 0 | AB20: =M83 -> 0 | AC20: =AB20*AC19 -> 0 | AD20: =AB20*AD19 -> 0 | AE20: =N83 -> 0 | AF20: =AE20*AF19 -> 0 | AG20: =AE20*AG19 -> 0 | AH20: =O83 -> 0 | AI20: =AH20*AI19 -> 0 | AJ20: =AH20*AJ19 -> 0
A21: Incremental OM&A (on-going, N/A for Provincial Recovery) | D21: ='App.2-FA Proposed REG Invest.'!C101 -> 0 | E21: =D21 -> 0 | G21: ='App.2-FA Proposed REG Invest.'!D101 -> 0 | H21: =G21 -> 0 | J21: ='App.2-FA Proposed REG Invest.'!E101 -> 0 | K21: =J21 -> 0 | M21: ='App.2-FA Proposed REG Invest.'!F101 -> 0 | N21: =M21 -> 0 | P21: ='App.2-FA Proposed REG Invest.'!G101 -> 0 | Q21: =P21 -> 0 | S21: ='App.2-FA Proposed REG Invest.'!H101 -> 0 | T21: =S21 -> 0 | V21: ='App.2-FA Proposed REG Invest.'!I101 -> 0 | W21: =V21 -> 0 | Y21: ='App.2-FA Proposed REG Invest.'!J101 -> 0 | Z21: =Y21 -> 0 | AB21: ='App.2-FA Proposed REG Invest.'!K101 -> 0 | AC21: =AB21 -> 0 | AE21: ='App.2-FA Proposed REG Invest.'!L101 -> 0 | AF21: =AE21 -> 0 | AH21: ='App.2-FA Proposed REG Invest.'!M101 -> 0 | AI21: =AH21 -> 0
A22: Incremental OM&A (start-up, applicable for Provincial Recovery) | D22: ='App.2-FA Proposed REG Invest.'!C100 -> 0 | E22: =D22*E19 -> 0 | F22: =D22*F19 -> 0 | G22: ='App.2-FA Proposed REG Invest.'!D100 -> 0 | H22: =G22*H19 -> 0 | I22: =G22*I19 -> 0 | J22: ='App.2-FA Proposed REG Invest.'!E100 -> 0 | K22: =J22*K19 -> 0 | L22: =J22*L19 -> 0 | M22: ='App.2-FA Proposed REG Invest.'!F100 -> 0 | N22: =M22*N19 -> 0 | O22: =M22*O19 -> 0 | P22: ='App.2-FA Proposed REG Invest.'!G100 -> 0 | Q22: =P22*Q19 -> 0 | R22: =P22*R19 -> 0 | S22: ='App.2-FA Proposed REG Invest.'!H100 -> 0 | T22: =S22*T19 -> 0 | U22: =S22*U19 -> 0 | V22: ='App.2-FA Proposed REG Invest.'!I100 -> 0 | W22: =V22*W19 -> 0 | X22: =V22*X19 -> 0 | Y22: ='App.2-FA Proposed REG Invest.'!J100 -> 0 | Z22: =Y22*Z19 -> 0 | AA22: =Y22*AA19 -> 0 | AB22: ='App.2-FA Proposed REG Invest.'!K100 -> 0 | AC22: =AB22*AC19 -> 0 | AD22: =AB22*AD19 -> 0 | AE22: ='App.2-FA Proposed REG Invest.'!L100 -> 0 | AF22: =AE22*AF19 -> 0 | AG22: =AE22*AG19 -> 0 | AH22: ='App.2-FA Proposed REG Invest.'!M100 -> 0 | AI22: =AH22*AI19 -> 0 | AJ22: =AH22*AJ19 -> 0
A23: Rebasing Year vs. Test Year | B23: ='LDC Info'!E28 -> 2015 | C23: ='LDC Info'!E24 -> 2021
A24: Allowance for Working Capital (enter rate) | E24: =IF(AND(D$17>=$B$23, D$17<$C$23),(E21+E22)*$B$24,(E21+E22)*$C$24) -> 0 | F24: =IF(AND(D$17>=$B$23, D$17<$C$23),(F22)*$B$24,(F22)*$C$24) -> 0 | H24: =IF(AND(G$17>=$B$23, G$17<$C$23),(H21+H22)*$B$24,(H21+H22)*$C$24) -> 0 | I24: =IF(AND(G$17>=$B$23, G$17<$C$23),(I22)*$B$24,(I22)*$C$24) -> 0 | K24: =IF(AND(J$17>=$B$23, J$17<$C$23),(K21+K22)*$B$24,(K21+K22)*$C$24) -> 0 | L24: =IF(AND(J$17>=$B$23, J$17<$C$23),(L22)*$B$24,(L22)*$C$24) -> 0 | N24: =IF(AND(M$17>=$B$23, M$17<$C$23),(N21+N22)*$B$24,(N21+N22)*$C$24) -> 0 | O24: =IF(AND(M$17>=$B$23, M$17<$C$23),(O22)*$B$24,(O22)*$C$24) -> 0 | Q24: =IF(AND(P$17>=$B$23, P$17<$C$23),(Q21+Q22)*$B$24,(Q21+Q22)*$C$24) -> 0 | R24: =IF(AND(P$17>=$B$23, P$17<$C$23),(R22)*$B$24,(R22)*$C$24) -> 0 | T24: =IF(AND(S$17>=$B$23, S$17<$C$23),(T21+T22)*$B$24,(T21+T22)*$C$24) -> 0 | U24: =IF(AND(S$17>=$B$23, S$17<$C$23),(U22)*$B$24,(U22)*$C$24) -> 0 | W24: =IF(AND(V$17>=$B$23, V$17<$C$23),(W21+W22)*$B$24,(W21+W22)*$C$24) -> 0 | X24: =IF(AND(V$17>=$B$23, V$17<$C$23),(X22)*$B$24,(X22)*$C$24) -> 0 | Z24: =IF(AND(Y$17>=$B$23, Y$17<$C$23),(Z21+Z22)*$B$24,(Z21+Z22)*$C$24) -> 0 | AA24: =IF(AND(Y$17>=$B$23, Y$17<$C$23),(AA22)*$B$24,(AA22)*$C$24) -> 0 | AC24: =IF(AND(AB$17>=$B$23, AB$17<$C$23),(AC21+AC22)*$B$24,(AC21+AC22)*$C$24) -> 0 | AD24: =IF(AND(AB$17>=$B$23, AB$17<$C$23),(AD22)*$B$24,(AD22)*$C$24) -> 0 | AF24: =IF(AND(AE$17>=$B$23, AE$17<$C$23),(AF21+AF22)*$B$24,(AF21+AF22)*$C$24) -> 0 | AG24: =IF(AND(AE$17>=$B$23, AE$17<$C$23),(AG22)*$B$24,(AG22)*$C$24) -> 0 | AI24: =IF(AND(AH$17>=$B$23, AH$17<$C$23),(AI21+AI22)*$B$24,(AI21+AI22)*$C$24) -> 0 | AJ24: =IF(AND(AH$17>=$B$23, AH$17<$C$23),(AJ22)*$B$24,(AJ22)*$C$24) -> 0
A25: Rate Base | E25: =SUM(E20+E24) -> 0 | F25: =SUM(F20+F24) -> 0 | H25: =SUM(H20+H24) -> 0 | I25: =SUM(I20+I24) -> 0 | K25: =SUM(K20+K24) -> 0 | L25: =SUM(L20+L24) -> 0 | N25: =SUM(N20+N24) -> 0 | O25: =SUM(O20+O24) -> 0 | Q25: =SUM(Q20+Q24) -> 0 | R25: =SUM(R20+R24) -> 0 | T25: =SUM(T20+T24) -> 0 | U25: =SUM(U20+U24) -> 0 | W25: =SUM(W20+W24) -> 0 | X25: =SUM(X20+X24) -> 0 | Z25: =SUM(Z20+Z24) -> 0 | AA25: =SUM(AA20+AA24) -> 0 | AC25: =SUM(AC20+AC24) -> 0 | AD25: =SUM(AD20+AD24) -> 0 | AF25: =SUM(AF20+AF24) -> 0 | AG25: =SUM(AG20+AG24) -> 0 | AI25: =SUM(AI20+AI24) -> 0 | AJ25: =SUM(AJ20+AJ24) -> 0
B27: =B23 -> 2015 | C27: =C23 -> 2021
A28: Deemed ST Debt (enter amount) | E28: =E25*$B$28 -> 0 | F28: =F25*$B$28 -> 0 | H28: =H25*$B$28 -> 0 | I28: =I25*$B$28 -> 0 | K28: =K25*$B$28 -> 0 | L28: =L25*$B$28 -> 0 | N28: =N25*$B$28 -> 0 | O28: =O25*$B$28 -> 0 | Q28: =Q25*$B$28 -> 0 | R28: =R25*$B$28 -> 0 | T28: =T25*$C$28 -> 0 | U28: =U25*$C$28 -> 0 | W28: =W25*$C$28 -> 0 | X28: =X25*$C$28 -> 0 | Z28: =Z25*$C$28 -> 0 | AA28: =AA25*$C$28 -> 0 | AC28: =AC25*$C$28 -> 0 | AD28: =AD25*$C$28 -> 0 | AF28: =AF25*$C$28 -> 0 | AG28: =AG25*$C$28 -> 0 | AI28: =AI25*$C$28 -> 0 | AJ28: =AJ25*$C$28 -> 0
A29: Deemed LT Debt (enter amount) | E29: =E25*$B$29 -> 0 | F29: =F25*$B$29 -> 0 | H29: =H25*$B$29 -> 0 | I29: =I25*$B$29 -> 0 | K29: =K25*$B$29 -> 0 | L29: =L25*$B$29 -> 0 | N29: =N25*$B$29 -> 0 | O29: =O25*$B$29 -> 0 | Q29: =Q25*$B$29 -> 0 | R29: =R25*$B$29 -> 0 | T29: =T25*$C$29 -> 0 | U29: =U25*$C$29 -> 0 | W29: =W25*$C$29 -> 0 | X29: =X25*$C$29 -> 0 | Z29: =Z25*$C$29 -> 0 | AA29: =AA25*$C$29 -> 0 | AC29: =AC25*$C$29 -> 0 | AD29: =AD25*$C$29 -> 0 | AF29: =AF25*$C$29 -> 0 | AG29: =AG25*$C$29 -> 0 | AI29: =AI25*$C$29 -> 0 | AJ29: =AJ25*$C$29 -> 0
A30: Deemed Equity (enter amount) | E30: =E25*$B$30 -> 0 | F30: =F25*$B$30 -> 0 | H30: =H25*$B$30 -> 0 | I30: =I25*$B$30 -> 0 | K30: =K25*$B$30 -> 0 | L30: =L25*$B$30 -> 0 | N30: =N25*$B$30 -> 0 | O30: =O25*$B$30 -> 0 | Q30: =Q25*$B$30 -> 0 | R30: =R25*$B$30 -> 0 | T30: =T25*$C$30 -> 0 | U30: =U25*$C$30 -> 0 | W30: =W25*$C$30 -> 0 | X30: =X25*$C$30 -> 0 | Z30: =Z25*$C$30 -> 0 | AA30: =AA25*$C$30 -> 0 | AC30: =AC25*$C$30 -> 0 | AD30: =AD25*$C$30 -> 0 | AF30: =AF25*$C$30 -> 0 | AG30: =AG25*$C$30 -> 0 | AI30: =AI25*$C$30 -> 0 | AJ30: =AJ25*$C$30 -> 0
A32: ST Interest (enter rate) | E32: =E28*$B32 -> 0 | F32: 0 | H32: 0 | I32: 0 | K32: 0 | L32: 0 | N32: 0 | O32: 0 | Q32: 0 | R32: 0 | T32: =T28*$C32 -> 0 | U32: 0 | W32: =W28*$C32 -> 0 | X32: 0 | Z32: =Z28*$C32 -> 0 | AA32: 0 | AC32: =AC28*$C32 -> 0 | AD32: 0 | AF32: =AF28*$C32 -> 0 | AG32: 0 | AI32: =AI28*$C32 -> 0 | AJ32: 0
A33: LT Interest (enter rate) | E33: 0 | F33: 0 | H33: 0 | I33: 0 | K33: 0 | L33: 0 | N33: 0 | O33: 0 | Q33: 0 | R33: 0 | T33: 0 | U33: 0 | W33: 0 | X33: 0 | Z33: 0 | AA33: 0 | AC33: 0 | AD33: 0 | AF33: 0 | AG33: 0 | AI33: =AI29*$C33 -> 0 | AJ33: 0
A34: Return on Equity (enter rate) | E34: 0 | F34: 0 | H34: 0 | I34: 0 | K34: 0 | L34: 0 | N34: 0 | O34: 0 | Q34: 0 | R34: 0 | T34: 0 | U34: 0 | W34: 0 | X34: 0 | Z34: 0 | AA34: 0 | AC34: 0 | AD34: 0 | AF34: 0 | AG34: 0 | AI34: =AI30*$C34 -> 0 | AJ34: 0
A35: Cost of Capital Total | E35: =SUM(E32:E34) -> 0 | F35: =SUM(F32:F34) -> 0 | H35: =SUM(H32:H34) -> 0 | I35: =SUM(I32:I34) -> 0 | K35: =SUM(K32:K34) -> 0 | L35: =SUM(L32:L34) -> 0 | N35: =SUM(N32:N34) -> 0 | O35: =SUM(O32:O34) -> 0 | Q35: =SUM(Q32:Q34) -> 0 | R35: =SUM(R32:R34) -> 0 | T35: =SUM(T32:T34) -> 0 | U35: =SUM(U32:U34) -> 0 | W35: =SUM(W32:W34) -> 0 | X35: =SUM(X32:X34) -> 0 | Z35: =SUM(Z32:Z34) -> 0 | AA35: =SUM(AA32:AA34) -> 0 | AC35: =SUM(AC32:AC34) -> 0 | AD35: =SUM(AD32:AD34) -> 0 | AF35: =SUM(AF32:AF34) -> 0 | AG35: =SUM(AG32:AG34) -> 0 | AI35: =SUM(AI32:AI34) -> 0 | AJ35: =SUM(AJ32:AJ34) -> 0
A37: OM&A | E37: =E21+E22 -> 0 | F37: =F22 -> 0 | H37: =H21+H22 -> 0 | I37: =I22 -> 0 | K37: =K21+K22 -> 0 | L37: =L22 -> 0 | N37: =N21+N22 -> 0 | O37: =O22 -> 0 | Q37: =Q21+Q22 -> 0 | R37: =R22 -> 0 | T37: =T21+T22 -> 0 | U37: =U22 -> 0 | W37: =W21+W22 -> 0 | X37: =X22 -> 0 | Z37: =Z21+Z22 -> 0 | AA37: =AA22 -> 0 | AC37: =AC21+AC22 -> 0 | AD37: =AD22 -> 0 | AF37: =AF21+AF22 -> 0 | AG37: =AG22 -> 0 | AI37: =AI21+AI22 -> 0 | AJ37: =AJ22 -> 0
A38: Amortization | D38: =+E77+E78 -> 0 | E38: =D38*E$19 -> 0 | F38: =D38*F$19 -> 0 | G38: =+F77+F78 -> 0 | H38: =G38*H$19 -> 0 | I38: =G38*I$19 -> 0 | J38: =+G77+G78 -> 0 | K38: =J38*K$19 -> 0 | L38: =J38*L$19 -> 0 | M38: =+H77+H78 -> 0 | N38: =M38*N$19 -> 0 | O38: =M38*O$19 -> 0 | P38: =+I77+I78 -> 0 | Q38: =P38*Q$19 -> 0 | R38: =P38*R$19 -> 0 | S38: =+J77+J78 -> 0 | T38: =S38*T$19 -> 0 | U38: =S38*U$19 -> 0 | V38: =+K77+K78 -> 0 | W38: =V38*W$19 -> 0 | X38: =V38*X$19 -> 0 | Y38: =+L77+L78 -> 0 | Z38: =Y38*Z$19 -> 0 | AA38: =Y38*AA$19 -> 0 | AB38: =+M77+M78 -> 0 | AC38: =AB38*AC$19 -> 0 | AD38: =AB38*AD$19 -> 0 | AE38: =+N77+N78 -> 0 | AF38: =AE38*AF$19 -> 0 | AG38: =AE38*AG$19 -> 0 | AH38: =+Q77+Q78 -> 0 | AI38: =AH38*AI$19 -> 0 | AJ38: =AH38*AJ$19 -> 0
A39: Grossed-up PILs | E39: =+E66 -> 0 | F39: =+F66 -> 0 | H39: =+H66 -> 0 | I39: =+I66 -> 0 | K39: =+K66 -> 0 | L39: =+L66 -> 0 | N39: =+N66 -> 0 | O39: =+O66 -> 0 | Q39: =+Q66 -> 0 | R39: =+R66 -> 0 | T39: =+T66 -> 0 | U39: =+U66 -> 0 | W39: =+W66 -> 0 | X39: =+X66 -> 0 | Z39: =+Z66 -> 0 | AA39: =+AA66 -> 0 | AC39: =+AC66 -> 0 | AD39: =+AD66 -> 0 | AF39: =+AF66 -> 0 | AG39: =+AG66 -> 0 | AI39: =+AI66 -> 0 | AJ39: =+AJ66 -> 0
A41: Revenue Requirement | E41: =SUM(E35:E39) -> 0 | F41: =SUM(F35:F39) -> 0 | H41: =SUM(H35:H39) -> 0 | I41: 0 | K41: =SUM(K35:K39) -> 0 | L41: 0 | N41: =SUM(N35:N39) -> 0 | O41: 0 | Q41: =SUM(Q35:Q39) -> 0 | R41: 0 | T41: =SUM(T35:T39) -> 0 | U41: 0 | W41: =SUM(W35:W39) -> 0 | X41: 0 | Z41: =SUM(Z35:Z39) -> 0 | AA41: 0 | AC41: =SUM(AC35:AC39) -> 0 | AD41: 0 | AF41: =SUM(AF35:AF39) -> 0 | AG41: 0 | AI41: =SUM(AI35:AI39) -> 0 | AJ41: 0
A44: Provincial Rate Protection | F44: =F41 -> 0 | I44: =I41 -> 0 | L44: =L41 -> 0 | O44: =O41 -> 0 | R44: =R41 -> 0 | U44: =U41 -> 0 | X44: =X41 -> 0 | AA44: =AA41 -> 0 | AD44: =AD41 -> 0 | AG44: =AG41 -> 0 | AJ44: =AJ41 -> 0
A46: Monthly Amount Paid by IESO | F46: =F44/12 -> 0 | I46: =I44/12 -> 0 | L46: =L44/12 -> 0 | O46: =O44/12 -> 0 | R46: =R44/12 -> 0 | U46: =U44/12 -> 0 | X46: =X44/12 -> 0 | AA46: =AA44/12 -> 0 | AD46: =AD44/12 -> 0 | AG46: =AG44/12 -> 0 | AJ46: =AJ44/12 -> 0
A48: Note 1: The distributor should follow the regulatory accounting set out in the Accounting Procedure Handbook Guidance FAQs issued in March 2015. Q10 of the APH FAQs states that: “For approved eligible investments as defined under O.Reg. 330/09 under the OEB Act, a variance account will continue to be used for the purpose of recording variances between the revenue requirement based on actual costs of approved eligible investments and the revenue received from the IESO.” The answer for Q10 provides the accounting guidance for this variance account: “Distributors that have included eligible investments to connect qualifying facilities in their DS plans are to establish the variance Account 1533 Renewable Generation Connection Funding Adder Deferral Account, Sub-account Provincial Rate Protection Payment Variances following OEB approval for investments forecast to enter service beyond the test year for purposes of implementing rate protection pursuant to O.Reg. 330/09. The purpose of this variance account is to track the variance between the distributor’s revenue requirement associated with the portion of the actual capital and/or operating costs that are eligible for rate protection, as incurred by the distributor for eligible renewable enabling and expansion investments, and the rate protection payments collected from the IESO.” The answer further provides the journal entries to record the variances. Distributors should follow the instructions in the answer for recording the journal entries in the variance account 1533.
A50: Note 2: For the Test Year, Costs and Revenues of the Direct Benefit are to be included in the test year applicant Rate Base and Revenues.
A52: PILs Calculation | T52: Test Year
E53: =G17-1 -> 2016 | H53: =G17 -> 2017 | K53: =J17 -> 2018 | N53: =M17 -> 2019 | Q53: =P17 -> 2020 | T53: =S17 -> 2021 | W53: =V17 -> 2022 | Z53: =Y17 -> 2023 | AC53: =AB17 -> 2024 | AF53: =AE17 -> 2025 | AI53: =AH17 -> 2026
A54: Income Tax | E54: Direct Benefit | F54: Provincial | H54: Direct Benefit | I54: Provincial | K54: Direct Benefit | L54: Provincial | N54: Direct Benefit | O54: Provincial | Q54: Direct Benefit | R54: Provincial | T54: Direct Benefit | U54: Provincial | W54: Direct Benefit | X54: Provincial | Z54: Direct Benefit | AA54: Provincial | AC54: Direct Benefit | AD54: Provincial | AF54: Direct Benefit | AG54: Provincial | AI54: Direct Benefit | AJ54: Provincial
AB55: Total | AE55: Total | AH55: Total
A56: Net Income - ROE on Rate Base | E56: =E34 -> 0 | F56: =F34 -> 0 | H56: =H34 -> 0 | I56: =I34 -> 0 | K56: =K34 -> 0 | L56: =L34 -> 0 | N56: =N34 -> 0 | O56: =O34 -> 0 | Q56: =Q34 -> 0 | R56: =R34 -> 0 | T56: =T34 -> 0 | U56: =U34 -> 0 | W56: =W34 -> 0 | X56: =X34 -> 0 | Z56: =Z34 -> 0 | AA56: =AA34 -> 0 | AC56: =AC34 -> 0 | AD56: =AD34 -> 0 | AF56: =AF34 -> 0 | AG56: =AG34 -> 0 | AI56: =AI34 -> 0 | AJ56: =AJ34 -> 0
A57: Amortization (6% DB and 94% P) | E57: =E38 -> 0 | F57: =F38 -> 0 | H57: =H38 -> 0 | I57: =I38 -> 0 | K57: =K38 -> 0 | L57: =L38 -> 0 | N57: =N38 -> 0 | O57: =O38 -> 0 | Q57: =Q38 -> 0 | R57: =R38 -> 0 | T57: =T38 -> 0 | U57: =U38 -> 0 | W57: =W38 -> 0 | X57: =X38 -> 0 | Z57: =Z38 -> 0 | AA57: =AA38 -> 0 | AC57: =AC38 -> 0 | AD57: =AD38 -> 0 | AF57: =AF38 -> 0 | AG57: =AG38 -> 0 | AI57: =AI38 -> 0 | AJ57: =AJ38 -> 0
A58: CCA (6% DB and 94% P) | E58: =-E95*$E$19 -> 0 | F58: =-E95*$F$19 -> 0 | H58: =-F95*$E$19 -> 0 | I58: =-F95*$F$19 -> 0 | K58: =-G95*$E$19 -> 0 | L58: =-G95*$F$19 -> 0 | N58: =-H95*$E$19 -> 0 | O58: =-H95*$F$19 -> 0 | Q58: =-I95*$E$19 -> 0 | R58: =-I95*$F$19 -> 0 | T58: =-J95*$E$19 -> 0 | U58: =-J95*$F$19 -> 0 | W58: =-K95*$E$19 -> 0 | X58: =-K95*$F$19 -> 0 | Z58: =-L95*$E$19 -> 0 | AA58: =-L95*$F$19 -> 0 | AC58: =-M95*$E$19 -> 0 | AD58: =-M95*$F$19 -> 0 | AF58: =-N95*$E$19 -> 0 | AG58: =-N95*$F$19 -> 0 | AI58: =-Q95*$E$19 -> 0 | AJ58: =-Q95*$F$19 -> 0
A59: Taxable income | E59: =SUM(E56:E58) -> 0 | F59: =SUM(F56:F58) -> 0 | H59: =SUM(H56:H58) -> 0 | I59: 0 | K59: =SUM(K56:K58) -> 0 | L59: 0 | N59: =SUM(N56:N58) -> 0 | O59: 0 | Q59: =SUM(Q56:Q58) -> 0 | R59: 0 | T59: =SUM(T56:T58) -> 0 | U59: 0 | W59: =SUM(W56:W58) -> 0 | X59: 0 | Z59: =SUM(Z56:Z58) -> 0 | AA59: =SUM(AA56:AA58) -> 0 | AC59: =SUM(AC56:AC58) -> 0 | AD59: =SUM(AD56:AD58) -> 0 | AF59: =SUM(AF56:AF58) -> 0 | AG59: =SUM(AG56:AG58) -> 0 | AI59: =SUM(AI56:AI58) -> 0 | AJ59: =SUM(AJ56:AJ58) -> 0
A61: Tax Rate (to be entered)
A63: Income Taxes Payable | E63: =E59*E61 -> 0 | F63: =F59*F61 -> 0 | H63: =H59*H61 -> 0 | I63: =I59*I61 -> 0 | K63: =K59*K61 -> 0 | L63: =L59*L61 -> 0 | N63: =N59*N61 -> 0 | O63: =O59*O61 -> 0 | Q63: =Q59*Q61 -> 0 | R63: =R59*R61 -> 0 | T63: =T59*T61 -> 0 | U63: =U59*U61 -> 0 | W63: =W59*W61 -> 0 | X63: =X59*X61 -> 0 | Z63: =Z59*Z61 -> 0 | AA63: =AA59*AA61 -> 0 | AC63: =AC59*AC61 -> 0 | AD63: =AD59*AD61 -> 0 | AF63: =AF59*AF61 -> 0 | AG63: =AG59*AG61 -> 0 | AI63: =AI59*AI61 -> 0 | AJ63: =AJ59*AJ61 -> 0
A64: Gross Up
A65: Income Taxes Payable | E65: =E63/(1-E61) -> 0 | F65: =F63/(1-F61) -> 0 | H65: =H63/(1-H61) -> 0 | I65: =I63/(1-I61) -> 0 | K65: =K63/(1-K61) -> 0 | L65: =L63/(1-L61) -> 0 | N65: =N63/(1-N61) -> 0 | O65: =O63/(1-O61) -> 0 | Q65: =Q63/(1-Q61) -> 0 | R65: =R63/(1-R61) -> 0 | T65: =T63/(1-T61) -> 0 | U65: =U63/(1-U61) -> 0 | W65: =W63/(1-W61) -> 0 | X65: =X63/(1-X61) -> 0 | Z65: =Z63/(1-Z61) -> 0 | AA65: =AA63/(1-AA61) -> 0 | AC65: =AC63/(1-AC61) -> 0 | AD65: =AD63/(1-AD61) -> 0 | AF65: =AF63/(1-AF61) -> 0 | AG65: =AG63/(1-AG61) -> 0 | AI65: =AI63/(1-AI61) -> 0 | AJ65: =AJ63/(1-AJ61) -> 0
A66: Grossed Up PILs | E66: =+E65 -> 0 | F66: =+F65 -> 0 | H66: =+H65 -> 0 | I66: =+I65 -> 0 | K66: =+K65 -> 0 | L66: 0 | N66: =+N65 -> 0 | O66: 0 | Q66: =+Q65 -> 0 | R66: 0 | T66: =+T65 -> 0 | U66: 0 | W66: =+W65 -> 0 | X66: 0 | Z66: =+Z65 -> 0 | AA66: 0 | AC66: =+AC65 -> 0 | AD66: 0 | AF66: =+AF65 -> 0 | AG66: 0 | AI66: =+AI65 -> 0 | AJ66: 0
J68: Test Year
E69: =F69-1 -> 2016 | F69: =G69-1 -> 2017 | G69: =H69-1 -> 2018 | H69: =I69-1 -> 2019 | I69: =J69-1 -> 2020 | J69: ='LDC Info'!E24 -> 2021 | K69: =J69+1 -> 2022 | L69: =K69+1 -> 2023 | M69: =L69+1 -> 2024 | N69: =M69+1 -> 2025 | O69: =N69+1 -> 2026
A70: Net Fixed Assets
A71: Enter applicable amortization in years: | B71: 40
A72: Opening Gross Fixed Assets | F72: =E74 -> 0 | G72: 0 | H72: 0 | I72: 0 | J72: 0 | K72: 0 | L72: 0 | M72: 0 | N72: 0 | O72: 0
A73: Capital Additions | E73: ='App.2-FA Proposed REG Invest.'!C99 -> 0 | F73: ='App.2-FA Proposed REG Invest.'!D99 -> 0 | G73: ='App.2-FA Proposed REG Invest.'!E99 -> 0 | H73: ='App.2-FA Proposed REG Invest.'!F99 -> 0 | I73: ='App.2-FA Proposed REG Invest.'!G99 -> 0 | J73: ='App.2-FA Proposed REG Invest.'!H99 -> 0 | K73: ='App.2-FA Proposed REG Invest.'!I99 -> 0 | L73: ='App.2-FA Proposed REG Invest.'!J99 -> 0 | M73: ='App.2-FA Proposed REG Invest.'!K99 -> 0 | N73: ='App.2-FA Proposed REG Invest.'!L99 -> 0 | O73: ='App.2-FA Proposed REG Invest.'!M99 -> 0
A74: Closing Gross Fixed Assets | E74: =SUM(E72:E73) -> 0 | F74: 0 | G74: 0 | H74: 0 | I74: 0 | J74: 0 | K74: 0 | L74: 0 | M74: 0 | N74: 0 | O74: =SUM(O72:O73) -> 0
A76: Opening Accumulated Amortization | E76: 0 | F76: =+E79 -> 0 | G76: =+F79 -> 0 | H76: 0 | I76: 0 | J76: 0 | K76: 0 | L76: 0 | M76: 0 | N76: 0 | O76: 0
A77: Current Year Amortization (before additions) | E77: =IF(ISERROR(E72/$B$71), 0, E72/$B$71) -> 0 | F77: =IF(ISERROR(F72/$B$71), 0, F72/$B$71) -> 0 | G77: 0 | H77: 0 | I77: 0 | J77: 0 | K77: 0 | L77: 0 | M77: 0 | N77: 0 | O77: =IF(ISERROR(O72/$B$71), 0, O72/$B$71) -> 0
A78: Capital Additions Amortization (half year) | E78: =E73/$B$71/2 -> 0 | F78: =F73/$B$71/2 -> 0 | G78: 0 | H78: 0 | I78: 0 | J78: 0 | K78: 0 | L78: 0 | M78: 0 | N78: 0 | O78: =O73/$B$71/2 -> 0
A79: Closing Accumulated Amortization | E79: =SUM(E76+E77+E78) -> 0 | F79: 0 | G79: 0 | H79: 0 | I79: 0 | J79: 0 | K79: 0 | L79: 0 | M79: 0 | N79: 0 | O79: =SUM(O76+O77+O78) -> 0
A81: Opening Net Fixed Assets | E81: =E72-E76 -> 0 | F81: 0 | G81: 0 | H81: 0 | I81: 0 | J81: 0 | K81: 0 | L81: 0 | M81: 0 | N81: 0 | O81: =O72-O76 -> 0
A82: Closing Net Fixed Assets | E82: =E74-E79 -> 0 | F82: 0 | G82: 0 | H82: 0 | I82: 0 | J82: 0 | K82: 0 | L82: 0 | M82: 0 | N82: 0 | O82: =O74-O79 -> 0
A83: Average Net Fixed Assets | E83: =SUM(E81:E82)/2 -> 0 | F83: 0 | G83: 0 | H83: 0 | I83: 0 | J83: 0 | K83: 0 | L83: 0 | M83: 0 | N83: 0 | O83: =SUM(O81:O82)/2 -> 0
A85: UCC for PILs Calculation | J85: =J68 -> Test Year
E86: =E69 -> 2016 | F86: =F69 -> 2017 | G86: =G69 -> 2018 | H86: 2019 | I86: 2020 | J86: 2021 | K86: 2022 | L86: 2023 | M86: 2024 | N86: 2025 | O86: =O69 -> 2026
A88: Opening UCC | E88: =E72 -> 0 | F88: =E96 -> 0 | G88: 0 | H88: 0 | I88: 0 | J88: 0 | K88: 0 | L88: 0 | M88: 0 | N88: 0 | O88: 0
A89: Capital Additions | E89: =E73 -> 0 | F89: 0 | G89: 0 | H89: 0 | I89: 0 | J89: 0 | K89: 0 | L89: 0 | M89: 0 | N89: 0 | O89: =O73 -> 0
A90: UCC Before Half Year Rule | E90: =SUM(E88:E89) -> 0 | F90: 0 | G90: 0 | H90: 0 | I90: 0 | J90: 0 | K90: 0 | L90: 0 | M90: 0 | N90: 0 | O90: =SUM(O88:O89) -> 0
A91: Capital Additions (half year) | E91: =E89/2 -> 0 | F91: 0 | G91: 0 | H91: 0 | I91: 0 | J91: 0 | K91: 0 | L91: 0 | M91: 0 | N91: 0 | O91: =O89/2 -> 0
A92: Reduced UCC | E92: =E90-E91 -> 0 | F92: 0 | G92: 0 | H92: 0 | I92: 0 | J92: 0 | K92: 0 | L92: 0 | M92: 0 | N92: 0 | O92: =O90-O91 -> 0
A93: CCA Rate Class (to be entered)
A94: CCA Rate (to be entered)
A95: CCA | E95: =E92*$B$94 -> 0 | F95: =F92*$B$94 -> 0 | G95: 0 | H95: 0 | I95: 0 | J95: 0 | K95: 0 | L95: 0 | M95: 0 | N95: 0 | O95: =O92*$B$94 -> 0
A96: Closing UCC | E96: =E90-E95 -> 0 | F96: 0 | G96: 0 | H96: 0 | I96: 0 | J96: 0 | K96: 0 | L96: 0 | M96: 0 | N96: 0 | O96: =O90-O95 -> 0

Sheet App.2-G SQI
M1: File Number: | O1: =EBNUMBER -> EB-2020-0043
M2: Exhibit: | O2: 2
M3: Tab:
M4: Schedule:
M5: Page:
M7: Date:
A9: Appendix 2-G
A10: Service Reliability and Quality Indicators
A13: Service Reliability
A15: Index | B15: Including outages caused by loss of supply | G15: Excluding outages caused by loss of supply | L15: Excluding Major Event Days
B16: =TestYear-6 -> 2015 | C16: =TestYear-5 -> 2016 | D16: =TestYear-4 -> 2017 | E16: =TestYear-3 -> 2018 | F16: =TestYear-2 -> 2019 | G16: =B16 -> 2015 | H16: 2016 | I16: 2017 | J16: 2018 | K16: 2019 | L16: 2015 | M16: 2016 | N16: 2017 | O16: 2018 | P16: 2019
A17: SAIDI | B17: 1.1 | C17: 2.37 | D17: 1.33 | E17: 2.2 | F17: 1.75 | G17: 1.1 | H17: 2.29 | I17: 1.11 | J17: 1.95 | K17: 1.16 | L17: 1.1 | M17: 2.29 | N17: 1.11 | O17: 1.95 | P17: 1.16
A18: SAIFI | B18: 0.88 | C18: 2.01 | D18: 1.12 | E18: 1.57 | F18: 3.85 | G18: 0.88 | H18: 1.98 | I18: 0.94 | J18: 1.4 | K18: 1.35 | L18: 0.88 | M18: 1.98 | N18: 0.94 | O18: 1.4 | P18: 1.35
A20: 5 Year Historical Average
A21: SAIDI | F21: =IF(ISERROR(AVERAGE(B17:F17)), "", AVERAGE(B17:F17)) -> 1.75 | K21: =IF(ISERROR(AVERAGE(G17:K17)), "", AVERAGE(G17:K17)) -> 1.522 | P21: =IF(ISERROR(AVERAGE(L17:P17)), "", AVERAGE(L17:P17)) -> 1.522
A22: SAIFI | F22: =IF(ISERROR(AVERAGE(B18:F18)), "", AVERAGE(B18:F18)) -> 1.886 | K22: =IF(ISERROR(AVERAGE(G18:K18)), "", AVERAGE(G18:K18)) -> 1.31 | P22: =IF(ISERROR(AVERAGE(L18:P18)), "", AVERAGE(L18:P18)) -> 1.31
A24: SAIDI = System Average Interruption Duration Index
A25: SAIFI = System Average Interruption Frequency Index
A27: Service Quality
A29: Indicator | E29: OEB Minimum Standard | G29: =B16 -> 2015 | H29: =C16 -> 2016 | I29: =D16 -> 2017 | J29: =E16 -> 2018 | K29: =F16 -> 2019
A30: Low Voltage Connections | E30: 0.9 | G30: 1 | H30: 1 | I30: 1 | J30: 1 | K30: 1
A31: High Voltage Connections | E31: 0.9 | G31: 1 | H31: 1 | I31: 1 | J31: 1 | K31: 1
A32: Telephone Accessibility | E32: 0.65 | G32: 0.821 | H32: 0.836 | I32: 0.8656 | J32: 0.9113 | K32: 0.9565
A33: Appointments Met | E33: 0.9 | G33: 1 | H33: 1 | I33: 1 | J33: 1 | K33: 1
A34: Written Response to Enquires | E34: 0.8 | G34: 1 | H34: 1 | I34: 0.999 | J34: 1 | K34: 1
A35: Emergency Urban Response | E35: 0.8 | G35: 1 | H35: 1 | I35: 1 | J35: 1 | K35: 1
A36: Emergency Rural Response | E36: 0.8 | G36: 1 | H36: 1 | I36: 1 | J36: NA | K36: NA
A37: Telephone Call Abandon Rate | E37: 0.1 | G37: 0.08 | H37: 0.066 | I37: 0.061 | J37: 0.0487 | K37: 0.0562
A38: Appointment Scheduling | E38: 0.9 | G38: 1 | H38: 1 | I38: 1 | J38: 1 | K38: 1
A39: Rescheduling a Missed Appointment | E39: 1 | G39: NA | H39: NA | I39: 1 | J39: NA | K39: NA
A40: Reconnection Performance Standard | E40: 0.85 | G40: 1 | H40: 1 | I40: 1 | J40: 1 | K40: 1

Sheet App.2-H_Other_Oper_Rev
K1: File Number: | L1: =EBNUMBER -> EB-2020-0043
K2: Exhibit: | L2: 3
K3: Tab:
A4: TO BE UPDATED AT THE DRAFT RATE ORDER STAGE | K4: Schedule:
K5: Page:
K7: Date:
A9: Appendix 2-H
A10: Other Operating Revenue
A12: USoA # | B12: USoA Description | C12: =D13 - 1 &" Actual"&CHAR(178) -> 2012 Actual² | D12: 2013 Actual² | E12: 2014 Actual² | F12: 2015 Actual² | G12: =H13 - 1 &" Actual"&CHAR(178) -> 2016 Actual² | H12: =I13 - 1 &" Actual"&CHAR(178) -> 2017 Actual² | I12: =I13 & " Actual" & CHAR(178) -> 2018 Actual² | J12: =J13& " Actual" -> 2019 Actual | K12: Bridge Year | L12: Test Year | N12: CGAAP
C13: =D13-1 -> 2012 | D13: =E13-1 -> 2013 | E13: =F13-1 -> 2014 | F13: =G13-1 -> 2015 | G13: =H13-1 -> 2016 | H13: =I13-1 -> 2017 | I13: =J13-1 -> 2018 | J13: 2019 | K13: =BridgeYear -> 2020 | L13: =TestYear -> 2021 | N13: Enter Transition Year
B14: Reporting Basis | N14: CGAAP
A15: 4235 | B15: Specific Service Charges | F15: -616192.95 | G15: -579683.51 | H15: -437296.79 | I15: -358851.77 | J15: -214871.43 | K15: -144519.41 | L15: -144519.41
A16: 4225 | B16: Late Payment Charges | F16: -144453.82 | G16: -145466.06 | H16: -161684.59 | I16: -152361.89 | J16: -134993.53 | K16: -77753.73 | L16: -150473.3733
A17: 4082 | B17: Retail Services Revenues | L17: -21958.96
A18: 4084 | B18: Service Tr Revenues | L18: -356.72
A19: 4086 | B19: SSS Charge | F19: -84281.92 | G19: -85403.35 | H19: -86269.23 | I19: -86924.16 | J19: -87409.87 | K19: -87188 | L19: -86997
A20: 4210 | B20: Rent from Electric Property | F20: -315550.5 | G20: -260463.76 | H20: -260447.6 | I20: -245584.35 | J20: -266287.89 | K20: -261898 | L20: -502360.5
A21: 4220 | B21: Other Electric Revenue | F21: -177.47
A22: 4245 | B22: Gov't Assistance Credited to Income | F22: -43034.99 | G22: -48689.32 | H22: -71269.17 | I22: -80619.4 | J22: -93371.27 | K22: -104244 | L22: -116593.4332
A23: 4305 | B23: Reg Debits | F23: 720314.22 | G23: 1628473.37 | H23: 811985.24 | I23: 272.9
A24: 4335 | B24: Profits and Losses from Hedges | F24: 152492.89 | G24: -672578 | H24: -890292 | I24: 140775 | J24: 681401
A25: 4355 | B25: Gain on Disposition of utility Property | F25: -19959.09 | G25: -137183.1 | H25: -30000 | I25: -3432 | J25: -90253.35
A26: 4362 | B26: Loss on Disposition of utility Property | F26: 69758.83 | G26: 21639.5 | H26: 184022.54 | I26: 29351.73 | J26: 180525.43 | K26: 47391 | L26: 69191
A27: 4375 | B27: Revenues From Non-Rate Regulated Utility Ops | F27: -1386728.42 | G27: -1103429.9 | H27: -1237152.53 | I27: -1155267.91 | J27: -864459 | K27: -666438.79 | L27: -67343.58
A28: 4380 | B28: Expenses From Non-Rate Regulated Utility Ops | F28: 1322809.83 | G28: 1091120 | H28: 1316876.98 | I28: 1320283.83 | J28: 876802.04 | K28: 606983.39 | L28: 17123
A29: 4390 | B29: Misc Non-Operating Income | F29: -22104.45 | G29: -3198.64 | H29: -14685.36 | I29: -9196.63 | J29: -3042.29 | K29: -9120.25 | L29: -9120
A30: 4398 | B30: Foreign Exchange | F30: -18073.71 | G30: 13352.3 | H30: 10733.17 | I30: -914.97 | J30: 1406.14 | K30: 15000 | L30: 15000
A31: 4405 | B31: Interest and Dividend Income | F31: -128267.11 | G31: -125146.15 | H31: -153260.22 | I31: -248275.24 | J31: -893411.06 | K31: -272368.26 | L31: -184331
A53: Specific Service Charges | C53: =C15 -> 0 | D53: 0 | E53: 0 | F53: -616192.95 | G53: -579683.51 | H53: -437296.79 | I53: -358851.77 | J53: -214871.43 | K53: -144519.41 | L53: -144519.41 | N53: =N15 -> 0
A54: Late Payment Charges | C54: =C16 -> 0 | D54: 0 | E54: 0 | F54: -144453.82 | G54: -145466.06 | H54: -161684.59 | I54: -152361.89 | J54: -134993.53 | K54: -77753.73 | L54: -150473.3733 | N54: =N16 -> 0
A55: Other Operating Revenues | F55: =+F17+F18+F20+F21+F22+F19 -> -443044.88 | G55: =+G17+G18+G20+G21+G22+G19 -> -394556.43 | H55: -417986 | I55: -413127.91 | J55: -447069.03 | K55: -453330 | L55: -728266.6132
A56: Other Income or Deductions | F56: =+F23+F24+F25+F26+F27+F28+F29+F30+F31 -> 690242.99 | G56: =+G23+G24+G25+G26+G27+G28+G29+G30+G31 -> 713049.38 | H56: -1772.18 | I56: 73596.71 | J56: -111031.09 | K56: -278552.91 | L56: -159480.58
A57: Total | C57: =SUM(C53:C56) -> 0 | D57: =SUM(D53:D56) -> 0 | E57: =SUM(E53:E56) -> 0 | F57: =SUM(F53:F56) -> -513448.66 | G57: =SUM(G53:G56) -> -406656.62 | H57: -1018739.56 | I57: -850744.86 | J57: -907965.08 | K57: -954156.05 | L57: -1182739.977 | N57: =SUM(N53:N56) -> 0
A59: Description Account(s)
A60: Specific Service Charges: 4235
A61: Late Payment Charges: 4225
A62: Other Distribution Revenues: 4082, 4084, 4090, 4205, 4210, 4215, 4220, 4230, 4240, 4245
A63: Other Income and Expenses: 4305, 4310, 4315, 4320, 4325, 4330, 4335, 4340, 4345, 4350, 4355, 4357, 4360, 4362, 4365, 4370, 4375, 4380, 4385, 4390, 4395, 4398, 4405, 4410, 4415, 4420
A66: Note: Add all applicable accounts listed above to the table and include all relevant information.
A68: Account Breakdown Details
A70: For each "Other Operating Revenue" and "Other Income or Deductions" Account, a detailed breakdown of the account components is required. See the example below for Account 4405, Interest and Dividend Income. Tables for the detailed breakdowns will be generated after cell B89 is filled in.
A73: Example: Account 4405 - Interest and Dividend Income
C74: =C12 -> 2012 Actual² | D74: 2013 Actual² | E74: 2014 Actual² | F74: 2015 Actual² | G74: 2016 Actual² | H74: 2017 Actual² | I74: 2018 Actual² | J74: 2019 Actual | K74: Bridge Year | L74: Test Year | N74: =N12 -> CGAAP
C75: =C13 -> 2012 | D75: 2013 | E75: 2014 | F75: 2015 | G75: 2016 | H75: 2017 | I75: 2018 | J75: =J13 -> 2019 | K75: =K13 -> 2020 | L75: =L13 -> 2021 | N75: =N13 -> Enter Transition Year
A76: Reporting Basis | C76: =IF(C14=0, "", C14) ->  | N76: =IF(N14=0, "", N14) -> CGAAP
A77: Short-term Investment Interest
A78: Bank Deposit Interest
A79: Miscellaneous Interest Revenue
A80: etc.1
A83: Total | C83: =SUM(C77:C82) -> 0 | D83: 0 | E83: 0 | F83: 0 | G83: 0 | H83: 0 | I83: 0 | J83: 0 | K83: 0 | L83: 0 | N83: =SUM(N77:N82) -> 0
A86: Notes:
A87: 1 | B87: List and specify any other interest revenue.
A88: 2 | B88: For applicants rebasing under IFRS for the first time, in the transition year (2014) to IFRS, the applicant is to present information in both MIFRS and CGAAP. In column N, present CGAAP transition year information.
B89: 15 | C89: Enter the number of "Other Operating Revenue" and "Other Income or Deductions" Accounts that require a detailed breakdown of the account components.
A93: 4082
C94: =C$12 -> 2012 Actual² | D94: 2013 Actual² | E94: 2014 Actual² | F94: 2015 Actual² | G94: 2016 Actual² | H94: 2017 Actual² | I94: 2018 Actual² | J94: 2019 Actual | K94: Bridge Year | L94: Test Year | N94: =N$12 -> CGAAP
C95: =C$13 -> 2012 | D95: 2013 | E95: 2014 | F95: 2015 | G95: 2016 | H95: 2017 | I95: 2018 | J95: 2019 | K95: 2020 | L95: 2021 | N95: =N$13 -> Enter Transition Year
A96: Reporting Basis | C96: =IF(C34=0, "", C34) ->  | N96: =IF(N$14=0, "", N$14) -> CGAAP
A97: Retail Service Revenue | F97: 0 | G97: 0 | H97: 0 | I97: 0 | J97: 0 | K97: 0 | L97: -21958.96
A105: Total | C105: =SUM(C97:C104) -> 0 | D105: 0 | E105: 0 | F105: 0 | G105: 0 | H105: 0 | I105: 0 | J105: 0 | K105: 0 | L105: -21958.96 | N105: =SUM(N97:N104) -> 0
A107: 4084
C108: =C$12 -> 2012 Actual² | D108: 2013 Actual² | E108: 2014 Actual² | F108: 2015 Actual² | G108: 2016 Actual² | H108: 2017 Actual² | I108: 2018 Actual² | J108: 2019 Actual | K108: Bridge Year | L108: Test Year | N108: =N$12 -> CGAAP
C109: =C$13 -> 2012 | D109: 2013 | E109: 2014 | F109: 2015 | G109: 2016 | H109: 2017 | I109: 2018 | J109: 2019 | K109: 2020 | L109: 2021 | N109: =N$13 -> Enter Transition Year
A110: Reporting Basis | C110: =IF(C48=0, "", C48) ->  | N110: =IF(N$14=0, "", N$14) -> CGAAP
A111: STR Revenue | F111: 0 | G111: 0 | H111: 0 | I111: 0 | J111: 0 | K111: 0 | L111: -356.72
A119: Total | C119: =SUM(C111:C118) -> 0 | D119: =SUM(D111:D118) -> 0 | E119: =SUM(E111:E118) -> 0 | F119: =SUM(F111:F118) -> 0 | G119: =SUM(G111:G118) -> 0 | H119: =SUM(H111:H118) -> 0 | I119: =SUM(I111:I118) -> 0 | J119: =SUM(J111:J118) -> 0 | K119: =SUM(K111:K118) -> 0 | L119: =SUM(L111:L118) -> -356.72 | N119: =SUM(N111:N118) -> 0
A121: 4086
C122: =C$12 -> 2012 Actual² | D122: 2013 Actual² | E122: 2014 Actual² | F122: 2015 Actual² | G122: 2016 Actual² | H122: 2017 Actual² | I122: 2018 Actual² | J122: 2019 Actual | K122: Bridge Year | L122: Test Year | N122: =N$12 -> CGAAP
C123: =C$13 -> 2012 | D123: 2013 | E123: 2014 | F123: 2015 | G123: 2016 | H123: 2017 | I123: 2018 | J123: 2019 | K123: 2020 | L123: 2021 | N123: =N$13 -> Enter Transition Year
A124: Reporting Basis | C124: =IF(C62=0, "", C62) ->  | N124: =IF(N$14=0, "", N$14) -> CGAAP
A125: SSS Admin Revenue | F125: -84281.92 | G125: -85403.35 | H125: -86269.23 | I125: -86924.16 | J125: -87409.87 | K125: -87188 | L125: -86997
A133: Total | C133: =SUM(C125:C132) -> 0 | D133: =SUM(D125:D132) -> 0 | E133: =SUM(E125:E132) -> 0 | F133: =SUM(F125:F132) -> -84281.92 | G133: =SUM(G125:G132) -> -85403.35 | H133: =SUM(H125:H132) -> -86269.23 | I133: =SUM(I125:I132) -> -86924.16 | J133: =SUM(J125:J132) -> -87409.87 | K133: =SUM(K125:K132) -> -87188 | L133: =SUM(L125:L132) -> -86997 | N133: =SUM(N125:N132) -> 0
A135: 4210
C136: =C$12 -> 2012 Actual² | D136: 2013 Actual² | E136: 2014 Actual² | F136: 2015 Actual² | G136: 2016 Actual² | H136: 2017 Actual² | I136: 2018 Actual² | J136: 2019 Actual | K136: Bridge Year | L136: Test Year | N136: =N$12 -> CGAAP
C137: =C$13 -> 2012 | D137: 2013 | E137: 2014 | F137: 2015 | G137: 2016 | H137: 2017 | I137: 2018 | J137: 2019 | K137: 2020 | L137: 2021 | N137: =N$13 -> Enter Transition Year
A138: Reporting Basis | C138: =IF(C76=0, "", C76) ->  | N138: =IF(N$14=0, "", N$14) -> CGAAP
A139: Joint Use Rental | F139: -315550.5 | G139: -260463.76 | H139: -260447.6 | I139: -245584.35 | J139: -266287.89 | K139: -261898 | L139: -502360.5
A147: Total | C147: =SUM(C139:C146) -> 0 | D147: =SUM(D139:D146) -> 0 | E147: =SUM(E139:E146) -> 0 | F147: =SUM(F139:F146) -> -315550.5 | G147: =SUM(G139:G146) -> -260463.76 | H147: =SUM(H139:H146) -> -260447.6 | I147: =SUM(I139:I146) -> -245584.35 | J147: =SUM(J139:J146) -> -266287.89 | K147: =SUM(K139:K146) -> -261898 | L147: =SUM(L139:L146) -> -502360.5 | N147: =SUM(N139:N146) -> 0
A149: 4220
C150: =C$12 -> 2012 Actual² | D150: 2013 Actual² | E150: 2014 Actual² | F150: 2015 Actual² | G150: 2016 Actual² | H150: 2017 Actual² | I150: 2018 Actual² | J150: 2019 Actual | K150: Bridge Year | L150: Test Year | N150: =N$12 -> CGAAP
C151: =C$13 -> 2012 | D151: 2013 | E151: 2014 | F151: 2015 | G151: 2016 | H151: 2017 | I151: 2018 | J151: 2019 | K151: 2020 | L151: 2021 | N151: =N$13 -> Enter Transition Year
A152: Reporting Basis | C152: =IF(C90=0, "", C90) ->  | N152: =IF(N$14=0, "", N$14) -> CGAAP
A153: Other | F153: -177.47
A161: Total | C161: =SUM(C153:C160) -> 0 | D161: =SUM(D153:D160) -> 0 | E161: =SUM(E153:E160) -> 0 | F161: =SUM(F153:F160) -> -177.47 | G161: =SUM(G153:G160) -> 0 | H161: =SUM(H153:H160) -> 0 | I161: =SUM(I153:I160) -> 0 | J161: =SUM(J153:J160) -> 0 | K161: =SUM(K153:K160) -> 0 | L161: =SUM(L153:L160) -> 0 | N161: =SUM(N153:N160) -> 0
A163: 4245
C164: =C$12 -> 2012 Actual² | D164: 2013 Actual² | E164: 2014 Actual² | F164: 2015 Actual² | G164: 2016 Actual² | H164: 2017 Actual² | I164: 2018 Actual² | J164: 2019 Actual | K164: Bridge Year | L164: Test Year | N164: =N$12 -> CGAAP
C165: =C$13 -> 2012 | D165: 2013 | E165: 2014 | F165: 2015 | G165: 2016 | H165: 2017 | I165: 2018 | J165: 2019 | K165: 2020 | L165: 2021 | N165: =N$13 -> Enter Transition Year
A166: Reporting Basis | C166: =IF(C104=0, "", C104) ->  | N166: =IF(N$14=0, "", N$14) -> CGAAP
A167: Contributed Capital | F167: -43034.99 | G167: -48689.32 | H167: -71269.17 | I167: -80619.4 | J167: -93371.27 | K167: -104244 | L167: -116593.4332
A175: Total | C175: =SUM(C167:C174) -> 0 | D175: =SUM(D167:D174) -> 0 | E175: =SUM(E167:E174) -> 0 | F175: =SUM(F167:F174) -> -43034.99 | G175: =SUM(G167:G174) -> -48689.32 | H175: =SUM(H167:H174) -> -71269.17 | I175: =SUM(I167:I174) -> -80619.4 | J175: =SUM(J167:J174) -> -93371.27 | K175: =SUM(K167:K174) -> -104244 | L175: =SUM(L167:L174) -> -116593.4332 | N175: =SUM(N167:N174) -> 0
A177: 4305
C178: =C$12 -> 2012 Actual² | D178: 2013 Actual² | E178: 2014 Actual² | F178: 2015 Actual² | G178: 2016 Actual² | H178: 2017 Actual² | I178: 2018 Actual² | J178: 2019 Actual | K178: Bridge Year | L178: Test Year | N178: =N$12 -> CGAAP
C179: =C$13 -> 2012 | D179: 2013 | E179: 2014 | F179: 2015 | G179: 2016 | H179: 2017 | I179: 2018 | J179: 2019 | K179: 2020 | L179: 2021 | N179: =N$13 -> Enter Transition Year
A180: Reporting Basis | C180: =IF(C118=0, "", C118) ->  | N180: =IF(N$14=0, "", N$14) -> CGAAP
A181: Regulatory Debits - CGAAP Changes | F181: 720314.22 | G181: 1628473.37 | H181: 811985.24 | I181: 272.9
A189: Total | C189: =SUM(C181:C188) -> 0 | D189: =SUM(D181:D188) -> 0 | E189: =SUM(E181:E188) -> 0 | F189: =SUM(F181:F188) -> 720314.22 | G189: =SUM(G181:G188) -> 1628473.37 | H189: =SUM(H181:H188) -> 811985.24 | I189: =SUM(I181:I188) -> 272.9 | J189: =SUM(J181:J188) -> 0 | K189: =SUM(K181:K188) -> 0 | L189: =SUM(L181:L188) -> 0 | N189: =SUM(N181:N188) -> 0
A191: 4335
C192: =C$12 -> 2012 Actual² | D192: 2013 Actual² | E192: 2014 Actual² | F192: 2015 Actual² | G192: 2016 Actual² | H192: 2017 Actual² | I192: 2018 Actual² | J192: 2019 Actual | K192: Bridge Year | L192: Test Year | N192: =N$12 -> CGAAP
C193: =C$13 -> 2012 | D193: 2013 | E193: 2014 | F193: 2015 | G193: 2016 | H193: 2017 | I193: 2018 | J193: 2019 | K193: 2020 | L193: 2021 | N193: =N$13 -> Enter Transition Year
A194: Reporting Basis | C194: =IF(C132=0, "", C132) ->  | N194: =IF(N$14=0, "", N$14) -> CGAAP
A195: Unrealized Gains/Losses SWAP | F195: 152492.89 | G195: -672578 | H195: -890292 | I195: 140775 | J195: 681401
A203: Total | C203: =SUM(C195:C202) -> 0 | D203: =SUM(D195:D202) -> 0 | E203: =SUM(E195:E202) -> 0 | F203: =SUM(F195:F202) -> 152492.89 | G203: =SUM(G195:G202) -> -672578 | H203: =SUM(H195:H202) -> -890292 | I203: =SUM(I195:I202) -> 140775 | J203: =SUM(J195:J202) -> 681401 | K203: =SUM(K195:K202) -> 0 | L203: =SUM(L195:L202) -> 0 | N203: =SUM(N195:N202) -> 0
